Workbook

Sheet Introduction
C4: Joint Monitoring Programme for Water Supply, Sanitation and Hygiene
C6: Estimates on household water, sanitation and hygiene by wealth quintile and sub-national region in
C7: =+Water!B5 -> Pakistan
C9: Updated May 2021
C11: Follow the links below to find the following information:
C13: JMP Estimates
C14: WASH status and trends by wealth quintile (customized quintiles made without water and sanitation assets)
C15: Water
C16: Sanitation
C17: Hygiene
C19: Data inputs
C20: customized wealth quintiles and subnational data:
C21: =IF(INDIRECT(CONCATENATE("Water","!B105"))=0,"",INDIRECT(CONCATENATE("Water","!B105"))) -> WHS03
C22: =IF(INDIRECT(CONCATENATE("Water","!B106"))=0,"",INDIRECT(CONCATENATE("Water","!B106"))) -> DHS07
C23: =IF(INDIRECT(CONCATENATE("Water","!B107"))=0,"",INDIRECT(CONCATENATE("Water","!B107"))) -> DHS13
C24: =IF(INDIRECT(CONCATENATE("Water","!B108"))=0,"",INDIRECT(CONCATENATE("Water","!B108"))) -> DHS18
C25: =IF(INDIRECT(CONCATENATE("Water","!B109"))=0,"",INDIRECT(CONCATENATE("Water","!B109"))) -> 
C26: =IF(INDIRECT(CONCATENATE("Water","!B110"))=0,"",INDIRECT(CONCATENATE("Water","!B110"))) -> 
C27: =IF(INDIRECT(CONCATENATE("Water","!B111"))=0,"",INDIRECT(CONCATENATE("Water","!B111"))) -> 
C28: =IF(INDIRECT(CONCATENATE("Water","!B112"))=0,"",INDIRECT(CONCATENATE("Water","!B112"))) -> 
C29: =IF(INDIRECT(CONCATENATE("Water","!B113"))=0,"",INDIRECT(CONCATENATE("Water","!B113"))) -> 
C30: =IF(INDIRECT(CONCATENATE("Water","!B114"))=0,"",INDIRECT(CONCATENATE("Water","!B114"))) -> 
C31: =IF(INDIRECT(CONCATENATE("Water","!B115"))=0,"",INDIRECT(CONCATENATE("Water","!B115"))) -> 
C32: =IF(INDIRECT(CONCATENATE("Water","!B116"))=0,"",INDIRECT(CONCATENATE("Water","!B116"))) -> 
L55: =+IF(ISNUMBER(M48), "", "Insufficient data to estimate safely managed sanitation services at national level") -> Insufficient data to estimate safely managed sanitation services at national level

Sheet Water
A1: BGD
B4: Summary of trends in use of drinking water by wealth quintile (%)
B5: =IF(ISERROR(INDIRECT(CONCATENATE($B105,"!A2"))),"",INDIRECT(CONCATENATE($B105,"!A2"))) -> Pakistan
B7: =B118 -> National use of drinking water sources, 2000–2020 | J7: =B218 -> Urban use of drinking water sources, 2000–2020 | R7: =B318 -> Rural use of drinking water sources, 2000–2020
B31: =IF(ISERROR(INDIRECT(CONCATENATE($B105,"!A2"))),"",INDIRECT(CONCATENATE($B105,"!A2"))) -> Pakistan | F31: Poorest | J31: Poor | N31: Middle | R31: Rich | V31: Richest
F32: Basic | G32: Limited | H32: Unimproved | I32: Surface water | J32: Basic | K32: Limited | L32: Unimproved | M32: Surface water | N32: Basic | O32: Limited | P32: Unimproved | Q32: Surface water | R32: Basic | S32: Limited | T32: Unimproved | U32: Surface water | V32: Basic | W32: Limited | X32: Unimproved | Y32: Surface water
B33: NATIONAL | D33: Estimate | E33: =C99 -> 2000 | F33: =E99 -> 80.6294642 | G33: =F99 -> 7.664780094 | H33: 5.905655138 | I33: 5.800100563 | J33: =J99 -> 85.31477782 | K33: =K99 -> 4.1697008 | L33: 5.318453772 | M33: 5.197067605 | N33: =O99 -> 91.83845703 | O33: =P99 -> 2.546257643 | P33: 1.97409803 | Q33: 3.641187299 | R33: =T99 -> 94.14856883 | S33: =U99 -> 2.254856656 | T33: 1.312825677 | U33: 2.283748834 | V33: =Y99 -> 95.84220914 | W33: =Z99 -> 2.199763364 | X33: 0.164031294 | Y33: 1.793996204
E34: =C100 -> 2020 | F34: =E100 -> 80.18507952 | G34: 7.622536097 | H34: 8.183883542 | I34: 4.008500839 | J34: =J100 -> 90.36238148 | K34: 4.416398939 | L34: 4.537394886 | M34: 0.6838246975 | N34: =O100 -> 95.39954986 | O34: 2.644990354 | P34: 1.735759451 | Q34: 0.2197003364 | R34: =T100 -> 96.97670997 | S34: 2.32259059 | T34: 0.7006994417 | U34: 0 | V34: =Y100 -> 97.20564881 | W34: 2.231056932 | X34: 0.5632942566 | Y34: 0
B36: URBAN | D36: Estimate | E36: =C199 -> 2000 | F36: =E199 -> 93.82302786 | G36: =F199 -> 3.420165939 | H36: 2.070977138 | I36: 0.6858290622 | J36: =J199 -> 97.06011576 | K36: =K199 -> 1.277136527 | L36: 0.6474088928 | M36: 1.015338818 | N36: =O199 -> 96.81286632 | O36: =P199 -> 1.858413227 | P36: 0.8698028458 | Q36: 0.4589176065 | R36: =T199 -> 95.87697697 | S36: =U199 -> 2.720647049 | T36: 0.4488154229 | U36: 0.9535605579 | V36: =Y199 -> 94.61239105 | W36: =Z199 -> 3.116279208 | X36: 0.8332240269 | Y36: 1.438105715
E37: =C200 -> 2020 | F37: =E200 -> 94.77612698 | G37: 3.454909618 | H37: 1.497843594 | I37: 0.2711198118 | J37: =J200 -> 98.00433376 | K37: 1.289560738 | L37: 0.3230709918 | M37: 0.3830345102 | N37: =O200 -> 97.47619856 | O37: 1.871146508 | P37: 0.4216693143 | Q37: 0.2309856185 | R37: =T200 -> 97.19126366 | S37: 2.757941823 | T37: 0.05079451573 | U37: 0 | V37: =Y200 -> 96.34607958 | W37: 3.173382273 | X37: 0.184339416 | Y37: 0.2961987347
B39: RURAL | D39: Estimate | E39: =C299 -> 2000 | F39: =E299 -> 78.34041273 | G39: =F299 -> 9.134468414 | H39: 6.228257655 | I39: 6.296861202 | J39: =J299 -> 82.68384406 | K39: =K299 -> 4.990589339 | L39: 5.175049779 | M39: 7.150516821 | N39: =O299 -> 85.29493716 | O39: =P299 -> 3.58650928 | P39: 5.37822836 | Q39: 5.740325195 | R39: =T299 -> 91.11626617 | S39: =U299 -> 3.124368726 | T39: 0.9858322901 | U39: 4.773532819 | V39: =Y299 -> 95.64904214 | W39: =Z299 -> 1.689895192 | X39: 0.4295962771 | Y39: 2.231466387
E40: =C300 -> 2020 | F40: =E300 -> 77.3220124 | G40: 9.015723244 | H40: 9.056615677 | I40: 4.605648677 | J40: =J300 -> 85.60009808 | K40: 5.166607114 | L40: 7.235345399 | M40: 1.997949404 | N40: =O300 -> 92.88173006 | O40: 3.905521218 | P40: 3.190824499 | Q40: 0.02192422018 | R40: =T300 -> 94.14961986 | S40: 3.228382157 | T40: 2.543677537 | U40: 0.07832044939 | V40: =Y300 -> 96.48098921 | W40: 1.704593754 | X40: 1.503947272 | Y40: 0.3104697667
A97: NATIONAL | D97: Poorest | I97: Poor | N97: Middle | S97: Rich | X97: Richest
D98: Improved | E98: Basic | F98: Limited | G98: Unimproved | H98: Surface water | I98: Improved | J98: Basic | K98: Limited | L98: Unimproved | M98: Surface water | N98: Improved | O98: Basic | P98: Limited | Q98: Unimproved | R98: Surface water | S98: Improved | T98: Basic | U98: Limited | V98: Unimproved | W98: Surface water | X98: Improved | Y98: Basic | Z98: Limited | AA98: Unimproved | AB98: Surface water
A99: Forecast period: | C99: 2000 | D99: =IF((D101+H101)>100,D101*100/(D101+H101),D101) -> 88.2942443 | E99: =D99*AVERAGEIF(E105:E116,">0")/100 -> 80.6294642 | F99: =D99*(100-AVERAGEIF(E105:E116,">0"))/100 -> 7.664780094 | G99: =100-(E99+F99+H99) -> 5.905655138 | H99: =IF((D101+H101)>100,H101*100/(D101+H101),H101) -> 5.800100563 | I99: =IF((I101+M101)>100,I101*100/(I101+M101),I101) -> 89.48447862 | J99: =I99*AVERAGEIF(J105:J116,">0")/100 -> 85.31477782 | K99: =I99*(100-AVERAGEIF(J105:J116,">0"))/100 -> 4.1697008 | L99: =100-(J99+K99+M99) -> 5.318453772 | M99: =IF((I101+M101)>100,M101*100/(I101+M101),M101) -> 5.197067605 | N99: =IF((N101+R101)>100,N101*100/(N101+R101),N101) -> 94.38471467 | O99: =N99*AVERAGEIF(O105:O116,">0")/100 -> 91.83845703 | P99: =N99*(100-AVERAGEIF(O105:O116,">0"))/100 -> 2.546257643 | Q99: =100-(O99+P99+R99) -> 1.97409803 | R99: =IF((N101+R101)>100,R101*100/(N101+R101),R101) -> 3.641187299 | S99: =IF((S101+W101)>100,S101*100/(S101+W101),S101) -> 96.40342549 | T99: =S99*AVERAGEIF(T105:T116,">0")/100 -> 94.14856883 | U99: =S99*(100-AVERAGEIF(T105:T116,">0"))/100 -> 2.254856656 | V99: =100-(T99+U99+W99) -> 1.312825677 | W99: =IF((S101+W101)>100,W101*100/(S101+W101),W101) -> 2.283748834 | X99: =IF((X101+AB101)>100,X101*100/(X101+AB101),X101) -> 98.0419725 | Y99: =X99*AVERAGEIF(Y105:Y116,">0")/100 -> 95.84220914 | Z99: =X99*(100-AVERAGEIF(Y105:Y116,">0"))/100 -> 2.199763364 | AA99: =100-(Y99+Z99+AB99) -> 0.164031294 | AB99: =IF((X101+AB101)>100,AB101*100/(X101+AB101),AB101) -> 1.793996204
C100: 2020 | D100: =IF((D102+H102)>100,D102*100/(D102+H102),D102) -> 87.80761562 | E100: =D100*AVERAGEIF(E105:E116,">0")/100 -> 80.18507952 | F100: =D100*(100-AVERAGEIF(E105:E116,">0"))/100 -> 7.622536097 | G100: =100-(E100+F100+H100) -> 8.183883542 | H100: =IF((D102+H102)>100,H102*100/(D102+H102),H102) -> 4.008500839 | I100: =IF((I102+M102)>100,I102*100/(I102+M102),I102) -> 94.77878042 | J100: =I100*AVERAGEIF(J105:J116,">0")/100 -> 90.36238148 | K100: =I100*(100-AVERAGEIF(J105:J116,">0"))/100 -> 4.416398939 | L100: =100-(J100+K100+M100) -> 4.537394886 | M100: =IF((I102+M102)>100,M102*100/(I102+M102),M102) -> 0.6838246975 | N100: =IF((N102+R102)>100,N102*100/(N102+R102),N102) -> 98.04454021 | O100: =N100*AVERAGEIF(O105:O116,">0")/100 -> 95.39954986 | P100: =N100*(100-AVERAGEIF(O105:O116,">0"))/100 -> 2.644990354 | Q100: =100-(O100+P100+R100) -> 1.735759451 | R100: =IF((N102+R102)>100,R102*100/(N102+R102),R102) -> 0.2197003364 | S100: =IF((S102+W102)>100,S102*100/(S102+W102),S102) -> 99.29930056 | T100: =S100*AVERAGEIF(T105:T116,">0")/100 -> 96.97670997 | U100: =S100*(100-AVERAGEIF(T105:T116,">0"))/100 -> 2.32259059 | V100: =100-(T100+U100+W100) -> 0.7006994417 | W100: =IF((S102+W102)>100,W102*100/(S102+W102),W102) -> 0 | X100: =IF((X102+AB102)>100,X102*100/(X102+AB102),X102) -> 99.43670574 | Y100: =X100*AVERAGEIF(Y105:Y116,">0")/100 -> 97.20564881 | Z100: =X100*(100-AVERAGEIF(Y105:Y116,">0"))/100 -> 2.231056932 | AA100: =100-(Y100+Z100+AB100) -> 0.5632942566 | AB100: =IF((X102+AB102)>100,AB102*100/(X102+AB102),AB102) -> 0
A101: Regression period: | C101: =MinRegYear(C99,C105:C116) -> 2001 | D101: =IF(MAX(C105:C116)-MIN(C105:C116)<5,AVERAGEIF(C105:C116,">0",D105:D116), IF(FORECAST($C101,D$105:D$116,$C$105:$C$116)<0,0, IF(FORECAST($C101,D$105:D$116,$C$105:$C$116)>100,100, FORECAST($C101,D$105:D$116,$C$105:$C$116)))) -> 88.2942443 | H101: =IF(MAX(C105:C116)-MIN(C105:C116)<5,AVERAGEIF(C105:C116,">0",H105:H116), IF(FORECAST($C101,H$105:H$116,$C$105:$C$116)<0,0, IF(FORECAST($C101,H$105:H$116,$C$105:$C$116)>100,100, FORECAST($C101,H$105:H$116,$C$105:$C$116)))) -> 5.800100563 | I101: =IF(MAX(C105:C116)-MIN(C105:C116)<5,AVERAGEIF(C105:C116,">0",I105:I116), IF(FORECAST($C101,I$105:I$116,$C$105:$C$116)<0,0, IF(FORECAST($C101,I$105:I$116,$C$105:$C$116)>100,100, FORECAST($C101,I$105:I$116,$C$105:$C$116)))) -> 89.48447862 | M101: =IF(MAX(C105:C116)-MIN(C105:C116)<5,AVERAGEIF(C105:C116,">0",M105:M116), IF(FORECAST($C101,M$105:M$116,$C$105:$C$116)<0,0, IF(FORECAST($C101,M$105:M$116,$C$105:$C$116)>100,100, FORECAST($C101,M$105:M$116,$C$105:$C$116)))) -> 5.197067605 | N101: =IF(MAX(C105:C116)-MIN(C105:C116)<5,AVERAGEIF(C105:C116,">0",N105:N116), IF(FORECAST($C101,N$105:N$116,$C$105:$C$116)<0,0, IF(FORECAST($C101,N$105:N$116,$C$105:$C$116)>100,100, FORECAST($C101,N$105:N$116,$C$105:$C$116)))) -> 94.38471467 | R101: =IF(MAX(C105:C116)-MIN(C105:C116)<5,AVERAGEIF(C105:C116,">0",R105:R116), IF(FORECAST($C101,R$105:R$116,$C$105:$C$116)<0,0, IF(FORECAST($C101,R$105:R$116,$C$105:$C$116)>100,100, FORECAST($C101,R$105:R$116,$C$105:$C$116)))) -> 3.641187299 | S101: =IF(MAX(C105:C116)-MIN(C105:C116)<5,AVERAGEIF(C105:C116,">0",S105:S116), IF(FORECAST($C101,S$105:S$116,$C$105:$C$116)<0,0, IF(FORECAST($C101,S$105:S$116,$C$105:$C$116)>100,100, FORECAST($C101,S$105:S$116,$C$105:$C$116)))) -> 96.40342549 | W101: =IF(MAX(C105:C116)-MIN(C105:C116)<5,AVERAGEIF(C105:C116,">0",W105:W116), IF(FORECAST($C101,W$105:W$116,$C$105:$C$116)<0,0, IF(FORECAST($C101,W$105:W$116,$C$105:$C$116)>100,100, FORECAST($C101,W$105:W$116,$C$105:$C$116)))) -> 2.283748834 | X101: =IF(MAX(C105:C116)-MIN(C105:C116)<5,AVERAGEIF(C105:C116,">0",X105:X116), IF(FORECAST($C101,X$105:X$116,$C$105:$C$116)<0,0, IF(FORECAST($C101,X$105:X$116,$C$105:$C$116)>100,100, FORECAST($C101,X$105:X$116,$C$105:$C$116)))) -> 98.0419725 | AB101: =IF(MAX(C105:C116)-MIN(C105:C116)<5,AVERAGEIF(C105:C116,">0",AB105:AB116), IF(FORECAST($C101,AB$105:AB$116,$C$105:$C$116)<0,0, IF(FORECAST($C101,AB$105:AB$116,$C$105:$C$116)>100,100, FORECAST($C101,AB$105:AB$116,$C$105:$C$116)))) -> 1.793996204
C102: =MaxRegYear(C100,C105:C116) -> 2020 | D102: =IF(MAX(C105:C116)-MIN(C105:C116)<5,AVERAGEIF(C105:C116,">0",D105:D116), IF(FORECAST($C102,D$105:D$116,$C$105:$C$116)<0,0, IF(FORECAST($C102,D$105:D$116,$C$105:$C$116)>100,100, FORECAST($C102,D$105:D$116,$C$105:$C$116)))) -> 87.80761562 | H102: =IF(MAX(C105:C116)-MIN(C105:C116)<5,AVERAGEIF(C105:C116,">0",H105:H116), IF(FORECAST($C102,H$105:H$116,$C$105:$C$116)<0,0, IF(FORECAST($C102,H$105:H$116,$C$105:$C$116)>100,100, FORECAST($C102,H$105:H$116,$C$105:$C$116)))) -> 4.008500839 | I102: =IF(MAX(C105:C116)-MIN(C105:C116)<5,AVERAGEIF(C105:C116,">0",I105:I116), IF(FORECAST($C102,I$105:I$116,$C$105:$C$116)<0,0, IF(FORECAST($C102,I$105:I$116,$C$105:$C$116)>100,100, FORECAST($C102,I$105:I$116,$C$105:$C$116)))) -> 94.77878042 | M102: =IF(MAX(C105:C116)-MIN(C105:C116)<5,AVERAGEIF(C105:C116,">0",M105:M116), IF(FORECAST($C102,M$105:M$116,$C$105:$C$116)<0,0, IF(FORECAST($C102,M$105:M$116,$C$105:$C$116)>100,100, FORECAST($C102,M$105:M$116,$C$105:$C$116)))) -> 0.6838246975 | N102: =IF(MAX(C105:C116)-MIN(C105:C116)<5,AVERAGEIF(C105:C116,">0",N105:N116), IF(FORECAST($C102,N$105:N$116,$C$105:$C$116)<0,0, IF(FORECAST($C102,N$105:N$116,$C$105:$C$116)>100,100, FORECAST($C102,N$105:N$116,$C$105:$C$116)))) -> 98.04454021 | R102: =IF(MAX(C105:C116)-MIN(C105:C116)<5,AVERAGEIF(C105:C116,">0",R105:R116), IF(FORECAST($C102,R$105:R$116,$C$105:$C$116)<0,0, IF(FORECAST($C102,R$105:R$116,$C$105:$C$116)>100,100, FORECAST($C102,R$105:R$116,$C$105:$C$116)))) -> 0.2197003364 | S102: =IF(MAX(C105:C116)-MIN(C105:C116)<5,AVERAGEIF(C105:C116,">0",S105:S116), IF(FORECAST($C102,S$105:S$116,$C$105:$C$116)<0,0, IF(FORECAST($C102,S$105:S$116,$C$105:$C$116)>100,100, FORECAST($C102,S$105:S$116,$C$105:$C$116)))) -> 99.29930056 | W102: =IF(MAX(C105:C116)-MIN(C105:C116)<5,AVERAGEIF(C105:C116,">0",W105:W116), IF(FORECAST($C102,W$105:W$116,$C$105:$C$116)<0,0, IF(FORECAST($C102,W$105:W$116,$C$105:$C$116)>100,100, FORECAST($C102,W$105:W$116,$C$105:$C$116)))) -> 0 | X102: =IF(MAX(C105:C116)-MIN(C105:C116)<5,AVERAGEIF(C105:C116,">0",X105:X116), IF(FORECAST($C102,X$105:X$116,$C$105:$C$116)<0,0, IF(FORECAST($C102,X$105:X$116,$C$105:$C$116)>100,100, FORECAST($C102,X$105:X$116,$C$105:$C$116)))) -> 99.43670574 | AB102: =IF(MAX(C105:C116)-MIN(C105:C116)<5,AVERAGEIF(C105:C116,">0",AB105:AB116), IF(FORECAST($C102,AB$105:AB$116,$C$105:$C$116)<0,0, IF(FORECAST($C102,AB$105:AB$116,$C$105:$C$116)>100,100, FORECAST($C102,AB$105:AB$116,$C$105:$C$116)))) -> 0
B104: Survey | C104: Year | D104: Improved | E104: % Improved < = 30min | H104: Surface water | I104: Improved | J104: % Improved < = 30min | M104: Surface water | N104: Improved | O104: % Improved < = 30min | R104: Surface water | S104: Improved | T104: % Improved < = 30min | W104: Surface water | X104: Improved | Y104: % Improved < = 30min | AB104: Surface water
B105: WHS03 | C105: 2003 | D105: =IF(ISERROR(INDIRECT(CONCATENATE($B105,"!C16"))),"",INDIRECT(CONCATENATE($B105,"!C16"))) -> 87.13245261 | E105: =IF(ISERROR(INDIRECT(CONCATENATE($B105,"!C23"))),"",INDIRECT(CONCATENATE($B105,"!C23"))) -> 89.52036176 | H105: =IF(ISERROR(INDIRECT(CONCATENATE($B105,"!C21"))),"",INDIRECT(CONCATENATE($B105,"!C21"))) -> 6.3061089 | I105: =IF(ISERROR(INDIRECT(CONCATENATE($B105,"!D16"))),"",INDIRECT(CONCATENATE($B105,"!D16"))) -> 90.00696276 | J105: =IF(ISERROR(INDIRECT(CONCATENATE($B105,"!D23"))),"",INDIRECT(CONCATENATE($B105,"!D23"))) -> 93.38869444 | M105: =IF(ISERROR(INDIRECT(CONCATENATE($B105,"!D21"))),"",INDIRECT(CONCATENATE($B105,"!D21"))) -> 5.905307798 | N105: =IF(ISERROR(INDIRECT(CONCATENATE($B105,"!E16"))),"",INDIRECT(CONCATENATE($B105,"!E16"))) -> 94.71523913 | O105: =IF(ISERROR(INDIRECT(CONCATENATE($B105,"!E23"))),"",INDIRECT(CONCATENATE($B105,"!E23"))) -> 96.03317518 | R105: =IF(ISERROR(INDIRECT(CONCATENATE($B105,"!E21"))),"",INDIRECT(CONCATENATE($B105,"!E21"))) -> 3.51777502 | S105: =IF(ISERROR(INDIRECT(CONCATENATE($B105,"!F16"))),"",INDIRECT(CONCATENATE($B105,"!F16"))) -> 96.92151936 | T105: =IF(ISERROR(INDIRECT(CONCATENATE($B105,"!F23"))),"",INDIRECT(CONCATENATE($B105,"!F23"))) -> 95.5322635 | W105: =IF(ISERROR(INDIRECT(CONCATENATE($B105,"!F21"))),"",INDIRECT(CONCATENATE($B105,"!F21"))) -> 2.311045085 | X105: =IF(ISERROR(INDIRECT(CONCATENATE($B105,"!G16"))),"",INDIRECT(CONCATENATE($B105,"!G16"))) -> 99.25091503 | Y105: =IF(ISERROR(INDIRECT(CONCATENATE($B105,"!G23"))),"",INDIRECT(CONCATENATE($B105,"!G23"))) -> 95.44647274 | AB105: =IF(ISERROR(INDIRECT(CONCATENATE($B105,"!G221"))),"",INDIRECT(CONCATENATE($B105,"!G21"))) -> 1.153695354
B106: DHS07 | C106: 2007 | D106: 89.39832912 | E106: 92.67689836 | H106: 5.053512114 | I106: 91.9471786 | J106: 96.37839178 | M106: 2.654486656 | N106: 95.39019764 | O106: 97.8182718 | R106: 2.558623577 | S106: 97.09216382 | T106: 97.73249647 | W106: 1.228560198 | X106: 96.86207485 | Y106: 98.54499001 | AB106: 1.969853185
B107: DHS13 | C107: 2013 | D107: 88.55153723 | E107: 93.29448148 | H107: 2.982574807 | I107: 91.1928871 | J107: 96.42017581 | M107: 1.254805181 | N107: 97.19089756 | O107: 97.72076968 | R107: 0.774622574 | S107: 98.08925123 | T107: 99.09308888 | W107: 0.6240478126 | X107: 99.30121853 | Y107: 98.72592292 | AB107: 0.3398309251
B108: DHS18 | C108: 2018 | D108: 87.14701291 | E108: 89.78445434 | H108: 5.369301707 | I108: 95.10084215 | J108: 95.17397128 | M108: 2.18472407 | N108: 97.36955305 | O108: 97.63680875 | R108: 1.05083236 | S108: 99.15010321 | T108: 98.28623192 | W108: 0.3472586218 | X108: 99.46974106 | Y108: 98.30783218 | AB108: 0.1689274222
D111: =IF(ISERROR(INDIRECT(CONCATENATE($B111,"!C16"))),"",INDIRECT(CONCATENATE($B111,"!C16"))) ->  | E111: =IF(ISERROR(INDIRECT(CONCATENATE($B111,"!C23"))),"",INDIRECT(CONCATENATE($B111,"!C23"))) ->  | H111: =IF(ISERROR(INDIRECT(CONCATENATE($B111,"!C21"))),"",INDIRECT(CONCATENATE($B111,"!C21"))) ->  | I111: =IF(ISERROR(INDIRECT(CONCATENATE($B111,"!D16"))),"",INDIRECT(CONCATENATE($B111,"!D16"))) ->  | J111: =IF(ISERROR(INDIRECT(CONCATENATE($B111,"!D23"))),"",INDIRECT(CONCATENATE($B111,"!D23"))) ->  | M111: =IF(ISERROR(INDIRECT(CONCATENATE($B111,"!D21"))),"",INDIRECT(CONCATENATE($B111,"!D21"))) ->  | N111: =IF(ISERROR(INDIRECT(CONCATENATE($B111,"!E16"))),"",INDIRECT(CONCATENATE($B111,"!E16"))) ->  | O111: =IF(ISERROR(INDIRECT(CONCATENATE($B111,"!E23"))),"",INDIRECT(CONCATENATE($B111,"!E23"))) ->  | R111: =IF(ISERROR(INDIRECT(CONCATENATE($B111,"!E21"))),"",INDIRECT(CONCATENATE($B111,"!E21"))) ->  | S111: =IF(ISERROR(INDIRECT(CONCATENATE($B111,"!F16"))),"",INDIRECT(CONCATENATE($B111,"!F16"))) ->  | T111: =IF(ISERROR(INDIRECT(CONCATENATE($B111,"!F23"))),"",INDIRECT(CONCATENATE($B111,"!F23"))) ->  | W111: =IF(ISERROR(INDIRECT(CONCATENATE($B111,"!F21"))),"",INDIRECT(CONCATENATE($B111,"!F21"))) ->  | X111: =IF(ISERROR(INDIRECT(CONCATENATE($B111,"!G16"))),"",INDIRECT(CONCATENATE($B111,"!G16"))) ->  | Y111: =IF(ISERROR(INDIRECT(CONCATENATE($B111,"!G23"))),"",INDIRECT(CONCATENATE($B111,"!G23"))) ->  | AB111: =IF(ISERROR(INDIRECT(CONCATENATE($B111,"!G221"))),"",INDIRECT(CONCATENATE($B111,"!G21"))) -> 
D112: =IF(ISERROR(INDIRECT(CONCATENATE($B112,"!C16"))),"",INDIRECT(CONCATENATE($B112,"!C16"))) ->  | E112: =IF(ISERROR(INDIRECT(CONCATENATE($B112,"!C23"))),"",INDIRECT(CONCATENATE($B112,"!C23"))) ->  | H112: =IF(ISERROR(INDIRECT(CONCATENATE($B112,"!C21"))),"",INDIRECT(CONCATENATE($B112,"!C21"))) ->  | I112: =IF(ISERROR(INDIRECT(CONCATENATE($B112,"!D16"))),"",INDIRECT(CONCATENATE($B112,"!D16"))) ->  | J112: =IF(ISERROR(INDIRECT(CONCATENATE($B112,"!D23"))),"",INDIRECT(CONCATENATE($B112,"!D23"))) ->  | M112: =IF(ISERROR(INDIRECT(CONCATENATE($B112,"!D21"))),"",INDIRECT(CONCATENATE($B112,"!D21"))) ->  | N112: =IF(ISERROR(INDIRECT(CONCATENATE($B112,"!E16"))),"",INDIRECT(CONCATENATE($B112,"!E16"))) ->  | O112: =IF(ISERROR(INDIRECT(CONCATENATE($B112,"!E23"))),"",INDIRECT(CONCATENATE($B112,"!E23"))) ->  | R112: =IF(ISERROR(INDIRECT(CONCATENATE($B112,"!E21"))),"",INDIRECT(CONCATENATE($B112,"!E21"))) ->  | S112: =IF(ISERROR(INDIRECT(CONCATENATE($B112,"!F16"))),"",INDIRECT(CONCATENATE($B112,"!F16"))) ->  | T112: =IF(ISERROR(INDIRECT(CONCATENATE($B112,"!F23"))),"",INDIRECT(CONCATENATE($B112,"!F23"))) ->  | W112: =IF(ISERROR(INDIRECT(CONCATENATE($B112,"!F21"))),"",INDIRECT(CONCATENATE($B112,"!F21"))) ->  | X112: =IF(ISERROR(INDIRECT(CONCATENATE($B112,"!G16"))),"",INDIRECT(CONCATENATE($B112,"!G16"))) ->  | Y112: =IF(ISERROR(INDIRECT(CONCATENATE($B112,"!G23"))),"",INDIRECT(CONCATENATE($B112,"!G23"))) ->  | AB112: =IF(ISERROR(INDIRECT(CONCATENATE($B112,"!G221"))),"",INDIRECT(CONCATENATE($B112,"!G21"))) -> 
B118: =CONCATENATE("National use of drinking water sources, ",C99,"–",C100) -> National use of drinking water sources, 2000–2020 | S118: Data points used for regression
E153: =IF(ISERROR(INDIRECT(CONCATENATE($B153,"!M18"))),"",INDIRECT(CONCATENATE($B153,"!M18"))) ->  | F153: =IF(ISERROR(INDIRECT(CONCATENATE($B153,"!M19"))),"",INDIRECT(CONCATENATE($B153,"!M19"))) ->  | G153: =IF(ISERROR(INDIRECT(CONCATENATE($B153,"!M20"))),"",INDIRECT(CONCATENATE($B153,"!M20"))) ->  | H153: =IF(ISERROR(INDIRECT(CONCATENATE($B153,"!M21"))),"",INDIRECT(CONCATENATE($B153,"!M21"))) ->  | J153: =IF(ISERROR(INDIRECT(CONCATENATE($B153,"!N18"))),"",INDIRECT(CONCATENATE($B153,"!N18"))) ->  | K153: =IF(ISERROR(INDIRECT(CONCATENATE($B153,"!N19"))),"",INDIRECT(CONCATENATE($B153,"!N19"))) ->  | L153: =IF(ISERROR(INDIRECT(CONCATENATE($B153,"!N20"))),"",INDIRECT(CONCATENATE($B153,"!N20"))) ->  | M153: =IF(ISERROR(INDIRECT(CONCATENATE($B153,"!N21"))),"",INDIRECT(CONCATENATE($B153,"!N21"))) ->  | O153: =IF(ISERROR(INDIRECT(CONCATENATE($B153,"!O18"))),"",INDIRECT(CONCATENATE($B153,"!O18"))) ->  | P153: =IF(ISERROR(INDIRECT(CONCATENATE($B153,"!O19"))),"",INDIRECT(CONCATENATE($B153,"!O19"))) ->  | Q153: =IF(ISERROR(INDIRECT(CONCATENATE($B153,"!O20"))),"",INDIRECT(CONCATENATE($B153,"!O20"))) ->  | R153: =IF(ISERROR(INDIRECT(CONCATENATE($B153,"!O21"))),"",INDIRECT(CONCATENATE($B153,"!O21"))) ->  | T153: =IF(ISERROR(INDIRECT(CONCATENATE($B153,"!P18"))),"",INDIRECT(CONCATENATE($B153,"!P18"))) ->  | U153: =IF(ISERROR(INDIRECT(CONCATENATE($B153,"!P19"))),"",INDIRECT(CONCATENATE($B153,"!P19"))) ->  | V153: =IF(ISERROR(INDIRECT(CONCATENATE($B153,"!P20"))),"",INDIRECT(CONCATENATE($B153,"!P20"))) ->  | W153: =IF(ISERROR(INDIRECT(CONCATENATE($B153,"!P21"))),"",INDIRECT(CONCATENATE($B153,"!P21"))) ->  | Y153: =IF(ISERROR(INDIRECT(CONCATENATE($B153,"!Q18"))),"",INDIRECT(CONCATENATE($B153,"!Q18"))) ->  | Z153: =IF(ISERROR(INDIRECT(CONCATENATE($B153,"!Q19"))),"",INDIRECT(CONCATENATE($B153,"!Q19"))) ->  | AA153: =IF(ISERROR(INDIRECT(CONCATENATE($B153,"!Q20"))),"",INDIRECT(CONCATENATE($B153,"!Q20"))) ->  | AB153: =IF(ISERROR(INDIRECT(CONCATENATE($B153,"!Q21"))),"",INDIRECT(CONCATENATE($B153,"!Q1"))) -> 
A197: URBAN | D197: Poorest | I197: Poor | N197: Middle | S197: Rich | X197: Richest
D198: Improved | E198: Basic | F198: Limited | G198: Unimproved | H198: Surface water | I198: Improved | J198: Basic | K198: Limited | L198: Unimproved | M198: Surface water | N198: Improved | O198: Basic | P198: Limited | Q198: Unimproved | R198: Surface water | S198: Improved | T198: Basic | U198: Limited | V198: Unimproved | W198: Surface water | X198: Improved | Y198: Basic | Z198: Limited | AA198: Unimproved | AB198: Surface water
A199: Forecast period: | C199: 2000 | D199: =IF((D201+H201)>100,D201*100/(D201+H201),D201) -> 97.2431938 | E199: =D199*AVERAGEIF(E205:E216,">0")/100 -> 93.82302786 | F199: =D199*(100-AVERAGEIF(E205:E216,">0"))/100 -> 3.420165939 | G199: =100-(E199+F199+H199) -> 2.070977138 | H199: =IF((D201+H201)>100,H201*100/(D201+H201),H201) -> 0.6858290622 | I199: =IF((I201+M201)>100,I201*100/(I201+M201),I201) -> 98.33725229 | J199: =I199*AVERAGEIF(J205:J216,">0")/100 -> 97.06011576 | K199: =I199*(100-AVERAGEIF(J205:J216,">0"))/100 -> 1.277136527 | L199: =100-(J199+K199+M199) -> 0.6474088928 | M199: =IF((I201+M201)>100,M201*100/(I201+M201),M201) -> 1.015338818 | N199: =IF((N201+R201)>100,N201*100/(N201+R201),N201) -> 98.67127955 | O199: =N199*AVERAGEIF(O205:O216,">0")/100 -> 96.81286632 | P199: =N199*(100-AVERAGEIF(O205:O216,">0"))/100 -> 1.858413227 | Q199: =100-(O199+P199+R199) -> 0.8698028458 | R199: =IF((N201+R201)>100,R201*100/(N201+R201),R201) -> 0.4589176065 | S199: =IF((S201+W201)>100,S201*100/(S201+W201),S201) -> 98.59762402 | T199: =S199*AVERAGEIF(T205:T216,">0")/100 -> 95.87697697 | U199: =S199*(100-AVERAGEIF(T205:T216,">0"))/100 -> 2.720647049 | V199: =100-(T199+U199+W199) -> 0.4488154229 | W199: =IF((S201+W201)>100,W201*100/(S201+W201),W201) -> 0.9535605579 | X199: =IF((X201+AB201)>100,X201*100/(X201+AB201),X201) -> 97.72867026 | Y199: =X199*AVERAGEIF(Y205:Y216,">0")/100 -> 94.61239105 | Z199: =X199*(100-AVERAGEIF(Y205:Y216,">0"))/100 -> 3.116279208 | AA199: =100-(Y199+Z199+AB199) -> 0.8332240269 | AB199: =IF((X201+AB201)>100,AB201*100/(X201+AB201),AB201) -> 1.438105715
C200: 2020 | D200: =IF((D202+H202)>100,D202*100/(D202+H202),D202) -> 98.23103659 | E200: =D200*AVERAGEIF(E205:E216,">0")/100 -> 94.77612698 | F200: =D200*(100-AVERAGEIF(E205:E216,">0"))/100 -> 3.454909618 | G200: =100-(E200+F200+H200) -> 1.497843594 | H200: =IF((D202+H202)>100,H202*100/(D202+H202),H202) -> 0.2711198118 | I200: =IF((I202+M202)>100,I202*100/(I202+M202),I202) -> 99.2938945 | J200: =I200*AVERAGEIF(J205:J216,">0")/100 -> 98.00433376 | K200: =I200*(100-AVERAGEIF(J205:J216,">0"))/100 -> 1.289560738 | L200: =100-(J200+K200+M200) -> 0.3230709918 | M200: =IF((I202+M202)>100,M202*100/(I202+M202),M202) -> 0.3830345102 | N200: =IF((N202+R202)>100,N202*100/(N202+R202),N202) -> 99.34734507 | O200: =N200*AVERAGEIF(O205:O216,">0")/100 -> 97.47619856 | P200: =N200*(100-AVERAGEIF(O205:O216,">0"))/100 -> 1.871146508 | Q200: =100-(O200+P200+R200) -> 0.4216693143 | R200: =IF((N202+R202)>100,R202*100/(N202+R202),R202) -> 0.2309856185 | S200: =IF((S202+W202)>100,S202*100/(S202+W202),S202) -> 99.94920548 | T200: =S200*AVERAGEIF(T205:T216,">0")/100 -> 97.19126366 | U200: =S200*(100-AVERAGEIF(T205:T216,">0"))/100 -> 2.757941823 | V200: =100-(T200+U200+W200) -> 0.05079451573 | W200: =IF((S202+W202)>100,W202*100/(S202+W202),W202) -> 0 | X200: =IF((X202+AB202)>100,X202*100/(X202+AB202),X202) -> 99.51946185 | Y200: =X200*AVERAGEIF(Y205:Y216,">0")/100 -> 96.34607958 | Z200: =X200*(100-AVERAGEIF(Y205:Y216,">0"))/100 -> 3.173382273 | AA200: =100-(Y200+Z200+AB200) -> 0.184339416 | AB200: =IF((X202+AB202)>100,AB202*100/(X202+AB202),AB202) -> 0.2961987347
A201: Regression period: | C201: =MinRegYear(C199,C205:C216) -> 2001 | D201: =IF(MAX(C205:C216)-MIN(C205:C216)<5,AVERAGEIF(C205:C216,">0",D205:D216), IF(FORECAST($C201,D$205:D$216,$C$205:$C$216)<0,0, IF(FORECAST($C201,D$205:D$216,$C$205:$C$216)>100,100, FORECAST($C201,D$205:D$216,$C$205:$C$216)))) -> 97.2431938 | H201: =IF(MAX(C205:C216)-MIN(C205:C216)<5,AVERAGEIF(C205:C216,">0",H205:H216), IF(FORECAST($C201,H$205:H$216,$C$205:$C$216)<0,0, IF(FORECAST($C201,H$205:H$216,$C$205:$C$216)>100,100, FORECAST($C201,H$205:H$216,$C$205:$C$216)))) -> 0.6858290622 | I201: =IF(MAX(C205:C216)-MIN(C205:C216)<5,AVERAGEIF(C205:C216,">0",I205:I216), IF(FORECAST($C201,I$205:I$216,$C$205:$C$216)<0,0, IF(FORECAST($C201,I$205:I$216,$C$205:$C$216)>100,100, FORECAST($C201,I$205:I$216,$C$205:$C$216)))) -> 98.33725229 | M201: =IF(MAX(C205:C216)-MIN(C205:C216)<5,AVERAGEIF(C205:C216,">0",M205:M216), IF(FORECAST($C201,M$205:M$216,$C$205:$C$216)<0,0, IF(FORECAST($C201,M$205:M$216,$C$205:$C$216)>100,100, FORECAST($C201,M$205:M$216,$C$205:$C$216)))) -> 1.015338818 | N201: =IF(MAX(C205:C216)-MIN(C205:C216)<5,AVERAGEIF(C205:C216,">0",N205:N216), IF(FORECAST($C201,N$205:N$216,$C$205:$C$216)<0,0, IF(FORECAST($C201,N$205:N$216,$C$205:$C$216)>100,100, FORECAST($C201,N$205:N$216,$C$205:$C$216)))) -> 98.67127955 | R201: =IF(MAX(C205:C216)-MIN(C205:C216)<5,AVERAGEIF(C205:C216,">0",R205:R216), IF(FORECAST($C201,R$205:R$216,$C$205:$C$216)<0,0, IF(FORECAST($C201,R$205:R$216,$C$205:$C$216)>100,100, FORECAST($C201,R$205:R$216,$C$205:$C$216)))) -> 0.4589176065 | S201: =IF(MAX(C205:C216)-MIN(C205:C216)<5,AVERAGEIF(C205:C216,">0",S205:S216), IF(FORECAST($C201,S$205:S$216,$C$205:$C$216)<0,0, IF(FORECAST($C201,S$205:S$216,$C$205:$C$216)>100,100, FORECAST($C201,S$205:S$216,$C$205:$C$216)))) -> 98.59762402 | W201: =IF(MAX(C205:C216)-MIN(C205:C216)<5,AVERAGEIF(C205:C216,">0",W205:W216), IF(FORECAST($C201,W$205:W$216,$C$205:$C$216)<0,0, IF(FORECAST($C201,W$205:W$216,$C$205:$C$216)>100,100, FORECAST($C201,W$205:W$216,$C$205:$C$216)))) -> 0.9535605579 | X201: =IF(MAX(C205:C216)-MIN(C205:C216)<5,AVERAGEIF(C205:C216,">0",X205:X216), IF(FORECAST($C201,X$205:X$216,$C$205:$C$216)<0,0, IF(FORECAST($C201,X$205:X$216,$C$205:$C$216)>100,100, FORECAST($C201,X$205:X$216,$C$205:$C$216)))) -> 97.72867026 | AB201: =IF(MAX(C205:C216)-MIN(C205:C216)<5,AVERAGEIF(C205:C216,">0",AB205:AB216), IF(FORECAST($C201,AB$205:AB$216,$C$205:$C$216)<0,0, IF(FORECAST($C201,AB$205:AB$216,$C$205:$C$216)>100,100, FORECAST($C201,AB$205:AB$216,$C$205:$C$216)))) -> 1.438105715
C202: =MaxRegYear(C200,C205:C216) -> 2020 | D202: =IF(MAX(C205:C216)-MIN(C205:C216)<5,AVERAGEIF(C205:C216,">0",D205:D216), IF(FORECAST($C202,D$205:D$216,$C$205:$C$216)<0,0, IF(FORECAST($C202,D$205:D$216,$C$205:$C$216)>100,100, FORECAST($C202,D$205:D$216,$C$205:$C$216)))) -> 98.23103659 | H202: =IF(MAX(C205:C216)-MIN(C205:C216)<5,AVERAGEIF(C205:C216,">0",H205:H216), IF(FORECAST($C202,H$205:H$216,$C$205:$C$216)<0,0, IF(FORECAST($C202,H$205:H$216,$C$205:$C$216)>100,100, FORECAST($C202,H$205:H$216,$C$205:$C$216)))) -> 0.2711198118 | I202: =IF(MAX(C205:C216)-MIN(C205:C216)<5,AVERAGEIF(C205:C216,">0",I205:I216), IF(FORECAST($C202,I$205:I$216,$C$205:$C$216)<0,0, IF(FORECAST($C202,I$205:I$216,$C$205:$C$216)>100,100, FORECAST($C202,I$205:I$216,$C$205:$C$216)))) -> 99.2938945 | M202: =IF(MAX(C205:C216)-MIN(C205:C216)<5,AVERAGEIF(C205:C216,">0",M205:M216), IF(FORECAST($C202,M$205:M$216,$C$205:$C$216)<0,0, IF(FORECAST($C202,M$205:M$216,$C$205:$C$216)>100,100, FORECAST($C202,M$205:M$216,$C$205:$C$216)))) -> 0.3830345102 | N202: =IF(MAX(C205:C216)-MIN(C205:C216)<5,AVERAGEIF(C205:C216,">0",N205:N216), IF(FORECAST($C202,N$205:N$216,$C$205:$C$216)<0,0, IF(FORECAST($C202,N$205:N$216,$C$205:$C$216)>100,100, FORECAST($C202,N$205:N$216,$C$205:$C$216)))) -> 99.34734507 | R202: =IF(MAX(C205:C216)-MIN(C205:C216)<5,AVERAGEIF(C205:C216,">0",R205:R216), IF(FORECAST($C202,R$205:R$216,$C$205:$C$216)<0,0, IF(FORECAST($C202,R$205:R$216,$C$205:$C$216)>100,100, FORECAST($C202,R$205:R$216,$C$205:$C$216)))) -> 0.2309856185 | S202: =IF(MAX(C205:C216)-MIN(C205:C216)<5,AVERAGEIF(C205:C216,">0",S205:S216), IF(FORECAST($C202,S$205:S$216,$C$205:$C$216)<0,0, IF(FORECAST($C202,S$205:S$216,$C$205:$C$216)>100,100, FORECAST($C202,S$205:S$216,$C$205:$C$216)))) -> 99.94920548 | W202: =IF(MAX(C205:C216)-MIN(C205:C216)<5,AVERAGEIF(C205:C216,">0",W205:W216), IF(FORECAST($C202,W$205:W$216,$C$205:$C$216)<0,0, IF(FORECAST($C202,W$205:W$216,$C$205:$C$216)>100,100, FORECAST($C202,W$205:W$216,$C$205:$C$216)))) -> 0 | X202: =IF(MAX(C205:C216)-MIN(C205:C216)<5,AVERAGEIF(C205:C216,">0",X205:X216), IF(FORECAST($C202,X$205:X$216,$C$205:$C$216)<0,0, IF(FORECAST($C202,X$205:X$216,$C$205:$C$216)>100,100, FORECAST($C202,X$205:X$216,$C$205:$C$216)))) -> 99.51946185 | AB202: =IF(MAX(C205:C216)-MIN(C205:C216)<5,AVERAGEIF(C205:C216,">0",AB205:AB216), IF(FORECAST($C202,AB$205:AB$216,$C$205:$C$216)<0,0, IF(FORECAST($C202,AB$205:AB$216,$C$205:$C$216)>100,100, FORECAST($C202,AB$205:AB$216,$C$205:$C$216)))) -> 0.2961987347
B204: Survey | C204: Year | D204: Improved | E204: % Improved < = 30min | H204: Surface water | I204: Improved | J204: % Improved < = 30min | M204: Surface water | N204: Improved | O204: % Improved < = 30min | R204: Surface water | S204: Improved | T204: % Improved < = 30min | W204: Surface water | X204: Improved | Y204: % Improved < = 30min | AB204: Surface water
B205: WHS03 | C205: 2003 | D205: =IF(ISERROR(INDIRECT(CONCATENATE($B205,"!H16"))),"",INDIRECT(CONCATENATE($B205,"!H16"))) -> 97.650145 | E205: =IF(ISERROR(INDIRECT(CONCATENATE($B205,"!H23"))),"",INDIRECT(CONCATENATE($B205,"!H23"))) -> 97.79501281 | H205: =IF(ISERROR(INDIRECT(CONCATENATE($B205,"!H21"))),"",INDIRECT(CONCATENATE($B205,"!H21"))) -> 0.7531636382 | I205: =IF(ISERROR(INDIRECT(CONCATENATE($B205,"!I16"))),"",INDIRECT(CONCATENATE($B205,"!I16"))) -> 99.60997636 | J205: =IF(ISERROR(INDIRECT(CONCATENATE($B205,"!I23"))),"",INDIRECT(CONCATENATE($B205,"!I23"))) -> 99.40990415 | M205: =IF(ISERROR(INDIRECT(CONCATENATE($B205,"!I21"))),"",INDIRECT(CONCATENATE($B205,"!I21"))) -> 0 | N205: =IF(ISERROR(INDIRECT(CONCATENATE($B205,"!J16"))),"",INDIRECT(CONCATENATE($B205,"!J16"))) -> 99.70458147 | O205: =IF(ISERROR(INDIRECT(CONCATENATE($B205,"!J23"))),"",INDIRECT(CONCATENATE($B205,"!J23"))) -> 96.39612223 | R205: =IF(ISERROR(INDIRECT(CONCATENATE($B205,"!J21"))),"",INDIRECT(CONCATENATE($B205,"!J21"))) -> 0 | S205: =IF(ISERROR(INDIRECT(CONCATENATE($B205,"!K16"))),"",INDIRECT(CONCATENATE($B205,"!K16"))) -> 99.34481428 | T205: =IF(ISERROR(INDIRECT(CONCATENATE($B205,"!K23"))),"",INDIRECT(CONCATENATE($B205,"!K23"))) -> 93.36558342 | W205: =IF(ISERROR(INDIRECT(CONCATENATE($B205,"!K21"))),"",INDIRECT(CONCATENATE($B205,"!K21"))) -> 0.6590296069 | X205: =IF(ISERROR(INDIRECT(CONCATENATE($B205,"!L16"))),"",INDIRECT(CONCATENATE($B205,"!L16"))) -> 99.87343408 | Y205: =IF(ISERROR(INDIRECT(CONCATENATE($B205,"!L23"))),"",INDIRECT(CONCATENATE($B205,"!L23"))) -> 92.35194164 | AB205: =IF(ISERROR(INDIRECT(CONCATENATE($B205,"!L221"))),"",INDIRECT(CONCATENATE($B205,"!L21"))) -> 0
B206: DHS07 | C206: 2007 | D206: 97.72112895 | E206: 96.25781917 | H206: 0.156643892 | I206: 97.03859668 | J206: 97.92312064 | M206: 2.0977203 | N206: 97.6922558 | O206: 98.31780992 | R206: 1.029207145 | S206: 97.9653314 | T206: 98.65367986 | W206: 0.9539521879 | X206: 95.50080338 | Y206: 98.50522314 | AB206: 2.948024131
B207: DHS13 | C207: 2013 | D207: 96.59302471 | E207: 96.55676676 | H207: 0.9670364661 | I207: 98.9470296 | J207: 98.95383922 | M207: 0.6418057821 | N207: 98.83539678 | O207: 99.33575514 | R207: 0.2067451232 | S207: 99.96653603 | T207: 99.08431491 | W207: 0.03365838778 | X207: 99.13635423 | Y207: 97.75394418 | AB207: 0.5554708798
B208: DHS18 | C208: 2018 | D208: 98.9321704 | E208: 95.32189608 | H208: 0.05888055447 | I208: 99.61634133 | J208: 98.51821139 | M208: 0.09049974942 | N208: 99.76943278 | O208: 98.41655726 | R208: 0.1558506017 | S208: 99.74584143 | T208: 97.85904814 | W208: 0.02986367808 | X208: 99.89142034 | Y208: 98.63407016 | AB208: 0.02521425485
B218: =CONCATENATE("Urban use of drinking water sources, ",C199,"–",C200) -> Urban use of drinking water sources, 2000–2020 | S218: Data points used for regression
E253: =IF(ISERROR(INDIRECT(CONCATENATE($B253,"!M18"))),"",INDIRECT(CONCATENATE($B253,"!M18"))) ->  | F253: =IF(ISERROR(INDIRECT(CONCATENATE($B253,"!M19"))),"",INDIRECT(CONCATENATE($B253,"!M19"))) ->  | G253: =IF(ISERROR(INDIRECT(CONCATENATE($B253,"!M20"))),"",INDIRECT(CONCATENATE($B253,"!M20"))) ->  | H253: =IF(ISERROR(INDIRECT(CONCATENATE($B253,"!M21"))),"",INDIRECT(CONCATENATE($B253,"!M21"))) ->  | J253: =IF(ISERROR(INDIRECT(CONCATENATE($B253,"!N18"))),"",INDIRECT(CONCATENATE($B253,"!N18"))) ->  | K253: =IF(ISERROR(INDIRECT(CONCATENATE($B253,"!N19"))),"",INDIRECT(CONCATENATE($B253,"!N19"))) ->  | L253: =IF(ISERROR(INDIRECT(CONCATENATE($B253,"!N20"))),"",INDIRECT(CONCATENATE($B253,"!N20"))) ->  | M253: =IF(ISERROR(INDIRECT(CONCATENATE($B253,"!N21"))),"",INDIRECT(CONCATENATE($B253,"!N21"))) ->  | O253: =IF(ISERROR(INDIRECT(CONCATENATE($B253,"!O18"))),"",INDIRECT(CONCATENATE($B253,"!O18"))) ->  | P253: =IF(ISERROR(INDIRECT(CONCATENATE($B253,"!O19"))),"",INDIRECT(CONCATENATE($B253,"!O19"))) ->  | Q253: =IF(ISERROR(INDIRECT(CONCATENATE($B253,"!O20"))),"",INDIRECT(CONCATENATE($B253,"!O20"))) ->  | R253: =IF(ISERROR(INDIRECT(CONCATENATE($B253,"!O21"))),"",INDIRECT(CONCATENATE($B253,"!O21"))) ->  | T253: =IF(ISERROR(INDIRECT(CONCATENATE($B253,"!P18"))),"",INDIRECT(CONCATENATE($B253,"!P18"))) ->  | U253: =IF(ISERROR(INDIRECT(CONCATENATE($B253,"!P19"))),"",INDIRECT(CONCATENATE($B253,"!P19"))) ->  | V253: =IF(ISERROR(INDIRECT(CONCATENATE($B253,"!P20"))),"",INDIRECT(CONCATENATE($B253,"!P20"))) ->  | W253: =IF(ISERROR(INDIRECT(CONCATENATE($B253,"!P21"))),"",INDIRECT(CONCATENATE($B253,"!P21"))) ->  | Y253: =IF(ISERROR(INDIRECT(CONCATENATE($B253,"!Q18"))),"",INDIRECT(CONCATENATE($B253,"!Q18"))) ->  | Z253: =IF(ISERROR(INDIRECT(CONCATENATE($B253,"!Q19"))),"",INDIRECT(CONCATENATE($B253,"!Q19"))) ->  | AA253: =IF(ISERROR(INDIRECT(CONCATENATE($B253,"!Q20"))),"",INDIRECT(CONCATENATE($B253,"!Q20"))) ->  | AB253: =IF(ISERROR(INDIRECT(CONCATENATE($B253,"!Q21"))),"",INDIRECT(CONCATENATE($B253,"!Q1"))) -> 
E254: =IF(ISERROR(INDIRECT(CONCATENATE($B254,"!M18"))),"",INDIRECT(CONCATENATE($B254,"!M18"))) ->  | F254: =IF(ISERROR(INDIRECT(CONCATENATE($B254,"!M19"))),"",INDIRECT(CONCATENATE($B254,"!M19"))) ->  | G254: =IF(ISERROR(INDIRECT(CONCATENATE($B254,"!M20"))),"",INDIRECT(CONCATENATE($B254,"!M20"))) ->  | H254: =IF(ISERROR(INDIRECT(CONCATENATE($B254,"!M21"))),"",INDIRECT(CONCATENATE($B254,"!M21"))) ->  | J254: =IF(ISERROR(INDIRECT(CONCATENATE($B254,"!N18"))),"",INDIRECT(CONCATENATE($B254,"!N18"))) ->  | K254: =IF(ISERROR(INDIRECT(CONCATENATE($B254,"!N19"))),"",INDIRECT(CONCATENATE($B254,"!N19"))) ->  | L254: =IF(ISERROR(INDIRECT(CONCATENATE($B254,"!N20"))),"",INDIRECT(CONCATENATE($B254,"!N20"))) ->  | M254: =IF(ISERROR(INDIRECT(CONCATENATE($B254,"!N21"))),"",INDIRECT(CONCATENATE($B254,"!N21"))) ->  | O254: =IF(ISERROR(INDIRECT(CONCATENATE($B254,"!O18"))),"",INDIRECT(CONCATENATE($B254,"!O18"))) ->  | P254: =IF(ISERROR(INDIRECT(CONCATENATE($B254,"!O19"))),"",INDIRECT(CONCATENATE($B254,"!O19"))) ->  | Q254: =IF(ISERROR(INDIRECT(CONCATENATE($B254,"!O20"))),"",INDIRECT(CONCATENATE($B254,"!O20"))) ->  | R254: =IF(ISERROR(INDIRECT(CONCATENATE($B254,"!O21"))),"",INDIRECT(CONCATENATE($B254,"!O21"))) ->  | T254: =IF(ISERROR(INDIRECT(CONCATENATE($B254,"!P18"))),"",INDIRECT(CONCATENATE($B254,"!P18"))) ->  | U254: =IF(ISERROR(INDIRECT(CONCATENATE($B254,"!P19"))),"",INDIRECT(CONCATENATE($B254,"!P19"))) ->  | V254: =IF(ISERROR(INDIRECT(CONCATENATE($B254,"!P20"))),"",INDIRECT(CONCATENATE($B254,"!P20"))) ->  | W254: =IF(ISERROR(INDIRECT(CONCATENATE($B254,"!P21"))),"",INDIRECT(CONCATENATE($B254,"!P21"))) ->  | Y254: =IF(ISERROR(INDIRECT(CONCATENATE($B254,"!Q18"))),"",INDIRECT(CONCATENATE($B254,"!Q18"))) ->  | Z254: =IF(ISERROR(INDIRECT(CONCATENATE($B254,"!Q19"))),"",INDIRECT(CONCATENATE($B254,"!Q19"))) ->  | AA254: =IF(ISERROR(INDIRECT(CONCATENATE($B254,"!Q20"))),"",INDIRECT(CONCATENATE($B254,"!Q20"))) ->  | AB254: =IF(ISERROR(INDIRECT(CONCATENATE($B254,"!Q21"))),"",INDIRECT(CONCATENATE($B254,"!Q1"))) -> 
E255: =IF(ISERROR(INDIRECT(CONCATENATE($B255,"!M18"))),"",INDIRECT(CONCATENATE($B255,"!M18"))) ->  | F255: =IF(ISERROR(INDIRECT(CONCATENATE($B255,"!M19"))),"",INDIRECT(CONCATENATE($B255,"!M19"))) ->  | G255: =IF(ISERROR(INDIRECT(CONCATENATE($B255,"!M20"))),"",INDIRECT(CONCATENATE($B255,"!M20"))) ->  | H255: =IF(ISERROR(INDIRECT(CONCATENATE($B255,"!M21"))),"",INDIRECT(CONCATENATE($B255,"!M21"))) ->  | J255: =IF(ISERROR(INDIRECT(CONCATENATE($B255,"!N18"))),"",INDIRECT(CONCATENATE($B255,"!N18"))) ->  | K255: =IF(ISERROR(INDIRECT(CONCATENATE($B255,"!N19"))),"",INDIRECT(CONCATENATE($B255,"!N19"))) ->  | L255: =IF(ISERROR(INDIRECT(CONCATENATE($B255,"!N20"))),"",INDIRECT(CONCATENATE($B255,"!N20"))) ->  | M255: =IF(ISERROR(INDIRECT(CONCATENATE($B255,"!N21"))),"",INDIRECT(CONCATENATE($B255,"!N21"))) ->  | O255: =IF(ISERROR(INDIRECT(CONCATENATE($B255,"!O18"))),"",INDIRECT(CONCATENATE($B255,"!O18"))) ->  | P255: =IF(ISERROR(INDIRECT(CONCATENATE($B255,"!O19"))),"",INDIRECT(CONCATENATE($B255,"!O19"))) ->  | Q255: =IF(ISERROR(INDIRECT(CONCATENATE($B255,"!O20"))),"",INDIRECT(CONCATENATE($B255,"!O20"))) ->  | R255: =IF(ISERROR(INDIRECT(CONCATENATE($B255,"!O21"))),"",INDIRECT(CONCATENATE($B255,"!O21"))) ->  | T255: =IF(ISERROR(INDIRECT(CONCATENATE($B255,"!P18"))),"",INDIRECT(CONCATENATE($B255,"!P18"))) ->  | U255: =IF(ISERROR(INDIRECT(CONCATENATE($B255,"!P19"))),"",INDIRECT(CONCATENATE($B255,"!P19"))) ->  | V255: =IF(ISERROR(INDIRECT(CONCATENATE($B255,"!P20"))),"",INDIRECT(CONCATENATE($B255,"!P20"))) ->  | W255: =IF(ISERROR(INDIRECT(CONCATENATE($B255,"!P21"))),"",INDIRECT(CONCATENATE($B255,"!P21"))) ->  | Y255: =IF(ISERROR(INDIRECT(CONCATENATE($B255,"!Q18"))),"",INDIRECT(CONCATENATE($B255,"!Q18"))) ->  | Z255: =IF(ISERROR(INDIRECT(CONCATENATE($B255,"!Q19"))),"",INDIRECT(CONCATENATE($B255,"!Q19"))) ->  | AA255: =IF(ISERROR(INDIRECT(CONCATENATE($B255,"!Q20"))),"",INDIRECT(CONCATENATE($B255,"!Q20"))) ->  | AB255: =IF(ISERROR(INDIRECT(CONCATENATE($B255,"!Q21"))),"",INDIRECT(CONCATENATE($B255,"!Q1"))) -> 
E256: =IF(ISERROR(INDIRECT(CONCATENATE($B256,"!M18"))),"",INDIRECT(CONCATENATE($B256,"!M18"))) ->  | F256: =IF(ISERROR(INDIRECT(CONCATENATE($B256,"!M19"))),"",INDIRECT(CONCATENATE($B256,"!M19"))) ->  | G256: =IF(ISERROR(INDIRECT(CONCATENATE($B256,"!M20"))),"",INDIRECT(CONCATENATE($B256,"!M20"))) ->  | H256: =IF(ISERROR(INDIRECT(CONCATENATE($B256,"!M21"))),"",INDIRECT(CONCATENATE($B256,"!M21"))) ->  | J256: =IF(ISERROR(INDIRECT(CONCATENATE($B256,"!N18"))),"",INDIRECT(CONCATENATE($B256,"!N18"))) ->  | K256: =IF(ISERROR(INDIRECT(CONCATENATE($B256,"!N19"))),"",INDIRECT(CONCATENATE($B256,"!N19"))) ->  | L256: =IF(ISERROR(INDIRECT(CONCATENATE($B256,"!N20"))),"",INDIRECT(CONCATENATE($B256,"!N20"))) ->  | M256: =IF(ISERROR(INDIRECT(CONCATENATE($B256,"!N21"))),"",INDIRECT(CONCATENATE($B256,"!N21"))) ->  | O256: =IF(ISERROR(INDIRECT(CONCATENATE($B256,"!O18"))),"",INDIRECT(CONCATENATE($B256,"!O18"))) ->  | P256: =IF(ISERROR(INDIRECT(CONCATENATE($B256,"!O19"))),"",INDIRECT(CONCATENATE($B256,"!O19"))) ->  | Q256: =IF(ISERROR(INDIRECT(CONCATENATE($B256,"!O20"))),"",INDIRECT(CONCATENATE($B256,"!O20"))) ->  | R256: =IF(ISERROR(INDIRECT(CONCATENATE($B256,"!O21"))),"",INDIRECT(CONCATENATE($B256,"!O21"))) ->  | T256: =IF(ISERROR(INDIRECT(CONCATENATE($B256,"!P18"))),"",INDIRECT(CONCATENATE($B256,"!P18"))) ->  | U256: =IF(ISERROR(INDIRECT(CONCATENATE($B256,"!P19"))),"",INDIRECT(CONCATENATE($B256,"!P19"))) ->  | V256: =IF(ISERROR(INDIRECT(CONCATENATE($B256,"!P20"))),"",INDIRECT(CONCATENATE($B256,"!P20"))) ->  | W256: =IF(ISERROR(INDIRECT(CONCATENATE($B256,"!P21"))),"",INDIRECT(CONCATENATE($B256,"!P21"))) ->  | Y256: =IF(ISERROR(INDIRECT(CONCATENATE($B256,"!Q18"))),"",INDIRECT(CONCATENATE($B256,"!Q18"))) ->  | Z256: =IF(ISERROR(INDIRECT(CONCATENATE($B256,"!Q19"))),"",INDIRECT(CONCATENATE($B256,"!Q19"))) ->  | AA256: =IF(ISERROR(INDIRECT(CONCATENATE($B256,"!Q20"))),"",INDIRECT(CONCATENATE($B256,"!Q20"))) ->  | AB256: =IF(ISERROR(INDIRECT(CONCATENATE($B256,"!Q21"))),"",INDIRECT(CONCATENATE($B256,"!Q1"))) -> 
E257: =IF(ISERROR(INDIRECT(CONCATENATE($B257,"!M18"))),"",INDIRECT(CONCATENATE($B257,"!M18"))) ->  | F257: =IF(ISERROR(INDIRECT(CONCATENATE($B257,"!M19"))),"",INDIRECT(CONCATENATE($B257,"!M19"))) ->  | G257: =IF(ISERROR(INDIRECT(CONCATENATE($B257,"!M20"))),"",INDIRECT(CONCATENATE($B257,"!M20"))) ->  | H257: =IF(ISERROR(INDIRECT(CONCATENATE($B257,"!M21"))),"",INDIRECT(CONCATENATE($B257,"!M21"))) ->  | J257: =IF(ISERROR(INDIRECT(CONCATENATE($B257,"!N18"))),"",INDIRECT(CONCATENATE($B257,"!N18"))) ->  | K257: =IF(ISERROR(INDIRECT(CONCATENATE($B257,"!N19"))),"",INDIRECT(CONCATENATE($B257,"!N19"))) ->  | L257: =IF(ISERROR(INDIRECT(CONCATENATE($B257,"!N20"))),"",INDIRECT(CONCATENATE($B257,"!N20"))) ->  | M257: =IF(ISERROR(INDIRECT(CONCATENATE($B257,"!N21"))),"",INDIRECT(CONCATENATE($B257,"!N21"))) ->  | O257: =IF(ISERROR(INDIRECT(CONCATENATE($B257,"!O18"))),"",INDIRECT(CONCATENATE($B257,"!O18"))) ->  | P257: =IF(ISERROR(INDIRECT(CONCATENATE($B257,"!O19"))),"",INDIRECT(CONCATENATE($B257,"!O19"))) ->  | Q257: =IF(ISERROR(INDIRECT(CONCATENATE($B257,"!O20"))),"",INDIRECT(CONCATENATE($B257,"!O20"))) ->  | R257: =IF(ISERROR(INDIRECT(CONCATENATE($B257,"!O21"))),"",INDIRECT(CONCATENATE($B257,"!O21"))) ->  | T257: =IF(ISERROR(INDIRECT(CONCATENATE($B257,"!P18"))),"",INDIRECT(CONCATENATE($B257,"!P18"))) ->  | U257: =IF(ISERROR(INDIRECT(CONCATENATE($B257,"!P19"))),"",INDIRECT(CONCATENATE($B257,"!P19"))) ->  | V257: =IF(ISERROR(INDIRECT(CONCATENATE($B257,"!P20"))),"",INDIRECT(CONCATENATE($B257,"!P20"))) ->  | W257: =IF(ISERROR(INDIRECT(CONCATENATE($B257,"!P21"))),"",INDIRECT(CONCATENATE($B257,"!P21"))) ->  | Y257: =IF(ISERROR(INDIRECT(CONCATENATE($B257,"!Q18"))),"",INDIRECT(CONCATENATE($B257,"!Q18"))) ->  | Z257: =IF(ISERROR(INDIRECT(CONCATENATE($B257,"!Q19"))),"",INDIRECT(CONCATENATE($B257,"!Q19"))) ->  | AA257: =IF(ISERROR(INDIRECT(CONCATENATE($B257,"!Q20"))),"",INDIRECT(CONCATENATE($B257,"!Q20"))) ->  | AB257: =IF(ISERROR(INDIRECT(CONCATENATE($B257,"!Q21"))),"",INDIRECT(CONCATENATE($B257,"!Q1"))) -> 
A297: RURAL | D297: Poorest | I297: Poor | N297: Middle | S297: Rich | X297: Richest
D298: Improved | E298: Basic | F298: Limited | G298: Unimproved | H298: Surface water | I298: Improved | J298: Basic | K298: Limited | L298: Unimproved | M298: Surface water | N298: Improved | O298: Basic | P298: Limited | Q298: Unimproved | R298: Surface water | S298: Improved | T298: Basic | U298: Limited | V298: Unimproved | W298: Surface water | X298: Improved | Y298: Basic | Z298: Limited | AA298: Unimproved | AB298: Surface water
A299: Forecast period: | C299: 2000 | D299: =IF((D301+H301)>100,D301*100/(D301+H301),D301) -> 87.47488114 | E299: =D299*AVERAGEIF(E305:E316,">0")/100 -> 78.34041273 | F299: =D299*(100-AVERAGEIF(E305:E316,">0"))/100 -> 9.134468414 | G299: =100-(E299+F299+H299) -> 6.228257655 | H299: =IF((D301+H301)>100,H301*100/(D301+H301),H301) -> 6.296861202 | I299: =IF((I301+M301)>100,I301*100/(I301+M301),I301) -> 87.6744334 | J299: =I299*AVERAGEIF(J305:J316,">0")/100 -> 82.68384406 | K299: =I299*(100-AVERAGEIF(J305:J316,">0"))/100 -> 4.990589339 | L299: =100-(J299+K299+M299) -> 5.175049779 | M299: =IF((I301+M301)>100,M301*100/(I301+M301),M301) -> 7.150516821 | N299: =IF((N301+R301)>100,N301*100/(N301+R301),N301) -> 88.88144645 | O299: =N299*AVERAGEIF(O305:O316,">0")/100 -> 85.29493716 | P299: =N299*(100-AVERAGEIF(O305:O316,">0"))/100 -> 3.58650928 | Q299: =100-(O299+P299+R299) -> 5.37822836 | R299: =IF((N301+R301)>100,R301*100/(N301+R301),R301) -> 5.740325195 | S299: =IF((S301+W301)>100,S301*100/(S301+W301),S301) -> 94.24063489 | T299: =S299*AVERAGEIF(T305:T316,">0")/100 -> 91.11626617 | U299: =S299*(100-AVERAGEIF(T305:T316,">0"))/100 -> 3.124368726 | V299: =100-(T299+U299+W299) -> 0.9858322901 | W299: =IF((S301+W301)>100,W301*100/(S301+W301),W301) -> 4.773532819 | X299: =IF((X301+AB301)>100,X301*100/(X301+AB301),X301) -> 97.33893734 | Y299: =X299*AVERAGEIF(Y305:Y316,">0")/100 -> 95.64904214 | Z299: =X299*(100-AVERAGEIF(Y305:Y316,">0"))/100 -> 1.689895192 | AA299: =100-(Y299+Z299+AB299) -> 0.4295962771 | AB299: =IF((X301+AB301)>100,AB301*100/(X301+AB301),AB301) -> 2.231466387
C300: 2020 | D300: =IF((D302+H302)>100,D302*100/(D302+H302),D302) -> 86.33773565 | E300: =D300*AVERAGEIF(E305:E316,">0")/100 -> 77.3220124 | F300: =D300*(100-AVERAGEIF(E305:E316,">0"))/100 -> 9.015723244 | G300: =100-(E300+F300+H300) -> 9.056615677 | H300: =IF((D302+H302)>100,H302*100/(D302+H302),H302) -> 4.605648677 | I300: =IF((I302+M302)>100,I302*100/(I302+M302),I302) -> 90.7667052 | J300: =I300*AVERAGEIF(J305:J316,">0")/100 -> 85.60009808 | K300: =I300*(100-AVERAGEIF(J305:J316,">0"))/100 -> 5.166607114 | L300: =100-(J300+K300+M300) -> 7.235345399 | M300: =IF((I302+M302)>100,M302*100/(I302+M302),M302) -> 1.997949404 | N300: =IF((N302+R302)>100,N302*100/(N302+R302),N302) -> 96.78725128 | O300: =N300*AVERAGEIF(O305:O316,">0")/100 -> 92.88173006 | P300: =N300*(100-AVERAGEIF(O305:O316,">0"))/100 -> 3.905521218 | Q300: =100-(O300+P300+R300) -> 3.190824499 | R300: =IF((N302+R302)>100,R302*100/(N302+R302),R302) -> 0.02192422018 | S300: =IF((S302+W302)>100,S302*100/(S302+W302),S302) -> 97.37800201 | T300: =S300*AVERAGEIF(T305:T316,">0")/100 -> 94.14961986 | U300: =S300*(100-AVERAGEIF(T305:T316,">0"))/100 -> 3.228382157 | V300: =100-(T300+U300+W300) -> 2.543677537 | W300: =IF((S302+W302)>100,W302*100/(S302+W302),W302) -> 0.07832044939 | X300: =IF((X302+AB302)>100,X302*100/(X302+AB302),X302) -> 98.18558296 | Y300: =X300*AVERAGEIF(Y305:Y316,">0")/100 -> 96.48098921 | Z300: =X300*(100-AVERAGEIF(Y305:Y316,">0"))/100 -> 1.704593754 | AA300: =100-(Y300+Z300+AB300) -> 1.503947272 | AB300: =IF((X302+AB302)>100,AB302*100/(X302+AB302),AB302) -> 0.3104697667
A301: Regression period: | C301: =MinRegYear(C299,C305:C316) -> 2001 | D301: =IF(MAX(C305:C316)-MIN(C305:C316)<5,AVERAGEIF(C305:C316,">0",D305:D316), IF(FORECAST($C301,D$305:D$316,$C$305:$C$316)<0,0, IF(FORECAST($C301,D$305:D$316,$C$305:$C$316)>100,100, FORECAST($C301,D$305:D$316,$C$305:$C$316)))) -> 87.47488114 | H301: =IF(MAX(C305:C316)-MIN(C305:C316)<5,AVERAGEIF(C305:C316,">0",H305:H316), IF(FORECAST($C301,H$305:H$316,$C$305:$C$316)<0,0, IF(FORECAST($C301,H$305:H$316,$C$305:$C$316)>100,100, FORECAST($C301,H$305:H$316,$C$305:$C$316)))) -> 6.296861202 | I301: =IF(MAX(C305:C316)-MIN(C305:C316)<5,AVERAGEIF(C305:C316,">0",I305:I316), IF(FORECAST($C301,I$305:I$316,$C$305:$C$316)<0,0, IF(FORECAST($C301,I$305:I$316,$C$305:$C$316)>100,100, FORECAST($C301,I$305:I$316,$C$305:$C$316)))) -> 87.6744334 | M301: =IF(MAX(C305:C316)-MIN(C305:C316)<5,AVERAGEIF(C305:C316,">0",M305:M316), IF(FORECAST($C301,M$305:M$316,$C$305:$C$316)<0,0, IF(FORECAST($C301,M$305:M$316,$C$305:$C$316)>100,100, FORECAST($C301,M$305:M$316,$C$305:$C$316)))) -> 7.150516821 | N301: =IF(MAX(C305:C316)-MIN(C305:C316)<5,AVERAGEIF(C305:C316,">0",N305:N316), IF(FORECAST($C301,N$305:N$316,$C$305:$C$316)<0,0, IF(FORECAST($C301,N$305:N$316,$C$305:$C$316)>100,100, FORECAST($C301,N$305:N$316,$C$305:$C$316)))) -> 88.88144645 | R301: =IF(MAX(C305:C316)-MIN(C305:C316)<5,AVERAGEIF(C305:C316,">0",R305:R316), IF(FORECAST($C301,R$305:R$316,$C$305:$C$316)<0,0, IF(FORECAST($C301,R$305:R$316,$C$305:$C$316)>100,100, FORECAST($C301,R$305:R$316,$C$305:$C$316)))) -> 5.740325195 | S301: =IF(MAX(C305:C316)-MIN(C305:C316)<5,AVERAGEIF(C305:C316,">0",S305:S316), IF(FORECAST($C301,S$305:S$316,$C$305:$C$316)<0,0, IF(FORECAST($C301,S$305:S$316,$C$305:$C$316)>100,100, FORECAST($C301,S$305:S$316,$C$305:$C$316)))) -> 94.24063489 | W301: =IF(MAX(C305:C316)-MIN(C305:C316)<5,AVERAGEIF(C305:C316,">0",W305:W316), IF(FORECAST($C301,W$305:W$316,$C$305:$C$316)<0,0, IF(FORECAST($C301,W$305:W$316,$C$305:$C$316)>100,100, FORECAST($C301,W$305:W$316,$C$305:$C$316)))) -> 4.773532819 | X301: =IF(MAX(C305:C316)-MIN(C305:C316)<5,AVERAGEIF(C305:C316,">0",X305:X316), IF(FORECAST($C301,X$305:X$316,$C$305:$C$316)<0,0, IF(FORECAST($C301,X$305:X$316,$C$305:$C$316)>100,100, FORECAST($C301,X$305:X$316,$C$305:$C$316)))) -> 97.33893734 | AB301: =IF(MAX(C305:C316)-MIN(C305:C316)<5,AVERAGEIF(C305:C316,">0",AB305:AB316), IF(FORECAST($C301,AB$305:AB$316,$C$305:$C$316)<0,0, IF(FORECAST($C301,AB$305:AB$316,$C$305:$C$316)>100,100, FORECAST($C301,AB$305:AB$316,$C$305:$C$316)))) -> 2.231466387
C302: =MaxRegYear(C300,C305:C316) -> 2020 | D302: =IF(MAX(C305:C316)-MIN(C305:C316)<5,AVERAGEIF(C305:C316,">0",D305:D316), IF(FORECAST($C302,D$305:D$316,$C$305:$C$316)<0,0, IF(FORECAST($C302,D$305:D$316,$C$305:$C$316)>100,100, FORECAST($C302,D$305:D$316,$C$305:$C$316)))) -> 86.33773565 | H302: =IF(MAX(C305:C316)-MIN(C305:C316)<5,AVERAGEIF(C305:C316,">0",H305:H316), IF(FORECAST($C302,H$305:H$316,$C$305:$C$316)<0,0, IF(FORECAST($C302,H$305:H$316,$C$305:$C$316)>100,100, FORECAST($C302,H$305:H$316,$C$305:$C$316)))) -> 4.605648677 | I302: =IF(MAX(C305:C316)-MIN(C305:C316)<5,AVERAGEIF(C305:C316,">0",I305:I316), IF(FORECAST($C302,I$305:I$316,$C$305:$C$316)<0,0, IF(FORECAST($C302,I$305:I$316,$C$305:$C$316)>100,100, FORECAST($C302,I$305:I$316,$C$305:$C$316)))) -> 90.7667052 | M302: =IF(MAX(C305:C316)-MIN(C305:C316)<5,AVERAGEIF(C305:C316,">0",M305:M316), IF(FORECAST($C302,M$305:M$316,$C$305:$C$316)<0,0, IF(FORECAST($C302,M$305:M$316,$C$305:$C$316)>100,100, FORECAST($C302,M$305:M$316,$C$305:$C$316)))) -> 1.997949404 | N302: =IF(MAX(C305:C316)-MIN(C305:C316)<5,AVERAGEIF(C305:C316,">0",N305:N316), IF(FORECAST($C302,N$305:N$316,$C$305:$C$316)<0,0, IF(FORECAST($C302,N$305:N$316,$C$305:$C$316)>100,100, FORECAST($C302,N$305:N$316,$C$305:$C$316)))) -> 96.78725128 | R302: =IF(MAX(C305:C316)-MIN(C305:C316)<5,AVERAGEIF(C305:C316,">0",R305:R316), IF(FORECAST($C302,R$305:R$316,$C$305:$C$316)<0,0, IF(FORECAST($C302,R$305:R$316,$C$305:$C$316)>100,100, FORECAST($C302,R$305:R$316,$C$305:$C$316)))) -> 0.02192422018 | S302: =IF(MAX(C305:C316)-MIN(C305:C316)<5,AVERAGEIF(C305:C316,">0",S305:S316), IF(FORECAST($C302,S$305:S$316,$C$305:$C$316)<0,0, IF(FORECAST($C302,S$305:S$316,$C$305:$C$316)>100,100, FORECAST($C302,S$305:S$316,$C$305:$C$316)))) -> 97.37800201 | W302: =IF(MAX(C305:C316)-MIN(C305:C316)<5,AVERAGEIF(C305:C316,">0",W305:W316), IF(FORECAST($C302,W$305:W$316,$C$305:$C$316)<0,0, IF(FORECAST($C302,W$305:W$316,$C$305:$C$316)>100,100, FORECAST($C302,W$305:W$316,$C$305:$C$316)))) -> 0.07832044939 | X302: =IF(MAX(C305:C316)-MIN(C305:C316)<5,AVERAGEIF(C305:C316,">0",X305:X316), IF(FORECAST($C302,X$305:X$316,$C$305:$C$316)<0,0, IF(FORECAST($C302,X$305:X$316,$C$305:$C$316)>100,100, FORECAST($C302,X$305:X$316,$C$305:$C$316)))) -> 98.18558296 | AB302: =IF(MAX(C305:C316)-MIN(C305:C316)<5,AVERAGEIF(C305:C316,">0",AB305:AB316), IF(FORECAST($C302,AB$305:AB$316,$C$305:$C$316)<0,0, IF(FORECAST($C302,AB$305:AB$316,$C$305:$C$316)>100,100, FORECAST($C302,AB$305:AB$316,$C$305:$C$316)))) -> 0.3104697667
B304: Survey | C304: Year | D304: Improved | E304: % Improved < = 30min | H304: Surface water | I304: Improved | J304: % Improved < = 30min | M304: Surface water | N304: Improved | O304: % Improved < = 30min | R304: Surface water | S304: Improved | T304: % Improved < = 30min | W304: Surface water | X304: Improved | Y304: % Improved < = 30min | AB304: Surface water
B305: WHS03 | C305: 2003 | D305: =IF(ISERROR(INDIRECT(CONCATENATE($B305,"!M16"))),"",INDIRECT(CONCATENATE($B305,"!M16"))) -> 85.8062466 | E305: =IF(ISERROR(INDIRECT(CONCATENATE($B305,"!M23"))),"",INDIRECT(CONCATENATE($B305,"!M23"))) -> 86.52004926 | H305: =IF(ISERROR(INDIRECT(CONCATENATE($B305,"!M21"))),"",INDIRECT(CONCATENATE($B305,"!M21"))) -> 6.757281332 | I305: =IF(ISERROR(INDIRECT(CONCATENATE($B305,"!N16"))),"",INDIRECT(CONCATENATE($B305,"!N16"))) -> 86.83190498 | J305: =IF(ISERROR(INDIRECT(CONCATENATE($B305,"!N23"))),"",INDIRECT(CONCATENATE($B305,"!N23"))) -> 91.45740651 | M305: =IF(ISERROR(INDIRECT(CONCATENATE($B305,"!N21"))),"",INDIRECT(CONCATENATE($B305,"!N21"))) -> 8.377286497 | N305: =IF(ISERROR(INDIRECT(CONCATENATE($B305,"!O16"))),"",INDIRECT(CONCATENATE($B305,"!O16"))) -> 90.31001402 | O305: =IF(ISERROR(INDIRECT(CONCATENATE($B305,"!O23"))),"",INDIRECT(CONCATENATE($B305,"!O23"))) -> 94.50011892 | R305: =IF(ISERROR(INDIRECT(CONCATENATE($B305,"!O21"))),"",INDIRECT(CONCATENATE($B305,"!O21"))) -> 6.11560946 | S305: =IF(ISERROR(INDIRECT(CONCATENATE($B305,"!P16"))),"",INDIRECT(CONCATENATE($B305,"!P16"))) -> 94.12816925 | T305: =IF(ISERROR(INDIRECT(CONCATENATE($B305,"!P23"))),"",INDIRECT(CONCATENATE($B305,"!P23"))) -> 93.93936085 | W305: =IF(ISERROR(INDIRECT(CONCATENATE($B305,"!P21"))),"",INDIRECT(CONCATENATE($B305,"!P21"))) -> 5.490715022 | X305: =IF(ISERROR(INDIRECT(CONCATENATE($B305,"!Q16"))),"",INDIRECT(CONCATENATE($B305,"!Q16"))) -> 97.68065378 | Y305: =IF(ISERROR(INDIRECT(CONCATENATE($B305,"!Q23"))),"",INDIRECT(CONCATENATE($B305,"!Q23"))) -> 97.21754722 | AB305: =IF(ISERROR(INDIRECT(CONCATENATE($B305,"!Q221"))),"",INDIRECT(CONCATENATE($B305,"!Q21"))) -> 2.071337594
B306: DHS07 | C306: 2007 | D306: 88.79751773 | E306: 91.75601087 | H306: 5.800022687 | I306: 90.42008446 | J306: 95.37481847 | M306: 4.071700742 | N306: 90.87278944 | O306: 96.9206252 | R306: 3.059938366 | S306: 95.43479299 | T306: 97.24358314 | W306: 2.109203365 | X306: 97.33545969 | Y306: 98.48002744 | AB306: 1.66202811
B307: DHS13 | C307: 2013 | D307: 87.70367169 | E307: 92.06761942 | H307: 3.231496559 | I307: 89.23942211 | J307: 96.19182272 | M307: 1.782545094 | N307: 93.19695288 | O307: 96.75772877 | R307: 1.121107086 | S307: 97.10277105 | T307: 97.90899073 | W307: 0.7734780617 | X307: 97.71172008 | Y307: 99.17662879 | AB307: 0.8101383183
B308: DHS18 | C308: 2018 | D308: 85.37764732 | E308: 87.88675966 | H308: 6.105230367 | I308: 90.22811449 | J308: 94.20721963 | M308: 4.336587876 | N308: 96.54154413 | O308: 95.68088393 | R308: 1.528812391 | S308: 96.40641593 | T308: 97.64682726 | W308: 1.577426527 | X308: 98.27664676 | Y308: 98.18142162 | AB308: 0.6414733718
B318: =CONCATENATE("Rural use of drinking water sources, ",C299,"–",C300) -> Rural use of drinking water sources, 2000–2020 | S318: Data points used for regression

Sheet Sanitation
B4: Summary of trends in use of sanitation facilities by wealth quintile (%)
B5: =IF(ISERROR(INDIRECT(CONCATENATE($B105,"!A2"))),"",INDIRECT(CONCATENATE($B105,"!A2"))) -> Pakistan
B7: =B118 -> National use of sanitation facilities, 2000–2020 | J7: =B218 -> Urban use of sanitation facilities, 2000–2020 | R7: =B318 -> Rural use of sanitation facilities, 2000–2020
B31: =IF(ISERROR(INDIRECT(CONCATENATE($B105,"!A2"))),"",INDIRECT(CONCATENATE($B105,"!A2"))) -> Pakistan | F31: Poorest | J31: Poor | N31: Middle | R31: Rich | V31: Richest
F32: Basic | G32: Limited | H32: Unimproved | I32: Open defecation | J32: Basic | K32: Limited | L32: Unimproved | M32: Open defecation | N32: Basic | O32: Limited | P32: Unimproved | Q32: Open defecation | R32: Basic | S32: Limited | T32: Unimproved | U32: Open defecation | V32: Basic | W32: Limited | X32: Unimproved | Y32: Open defecation
B33: NATIONAL | D33: Estimate | E33: =C99 -> 2000 | F33: =E99 -> 12.79147629 | G33: =F99 -> 4.47901907 | H33: 7.143489119 | I33: 75.58601552 | J33: =J99 -> 21.24083657 | K33: =K99 -> 4.835123275 | L33: 12.10798481 | M33: 61.81605535 | N33: =O99 -> 37.37721189 | O33: =P99 -> 10.81149624 | P33: 12.86179326 | Q33: 38.94949861 | R33: =T99 -> 58.4381627 | S33: =U99 -> 5.281707291 | T33: 8.405692378 | U33: 27.87443763 | V33: =Y99 -> 88.85813844 | W33: =Z99 -> 4.186480973 | X33: 5.410581231 | Y33: 1.544799357
E34: =C100 -> 2020 | F34: =E100 -> 27.34950905 | G34: 9.576609436 | H34: 16.08198857 | I34: 46.99189294 | J34: =J100 -> 62.62112081 | K34: 14.25465696 | L34: 13.71657294 | M34: 9.4076493 | N34: =O100 -> 76.41559676 | O34: 22.10349288 | P34: 1.480910356 | Q34: 0 | R34: =T100 -> 91.71105137 | S34: 8.28894863 | T34: 0 | U34: 0 | V34: =Y100 -> 93.60806523 | W34: 4.41027002 | X34: 1.981664751 | Y34: 0
B36: URBAN | D36: Estimate | E36: =C199 -> 2000 | F36: =E199 -> 21.52703902 | G36: =F199 -> 4.446930195 | H36: 12.09455934 | I36: 61.93147144 | J36: =J199 -> 49.44898968 | K36: =K199 -> 20.20853824 | L36: 9.052967449 | M36: 21.28950463 | N36: =O199 -> 52.59590037 | O36: =P199 -> 3.745257517 | P36: 5.381406485 | Q36: 38.27743563 | R36: =T199 -> 85.10465238 | S36: =U199 -> 4.952487691 | T36: 4.676845257 | U36: 5.266014677 | V36: =Y199 -> 93.85153489 | W36: =Z199 -> 3.215463516 | X36: 2.856981187 | Y36: 0.07602041052
E37: =C200 -> 2020 | F37: =E200 -> 79.20811886 | G37: 16.36235133 | H37: 4.429529816 | I37: 0 | J37: =J200 -> 70.98872319 | K37: 29.01127681 | L37: 0 | M37: 0 | N37: =O200 -> 93.35253719 | O37: 6.647462809 | P37: 0 | Q37: 0 | R37: =T200 -> 93.66683839 | S37: 5.450746243 | T37: 0.8824153618 | U37: 0 | V37: =Y200 -> 94.84185327 | W37: 3.249392984 | X37: 1.904702333 | Y37: 0.004051410168
B39: RURAL | D39: Estimate | E39: =C299 -> 2000 | F39: =E299 -> 12.58863051 | G39: =F299 -> 4.857126929 | H39: 6.274945288 | I39: 76.27929727 | J39: =J299 -> 19.71532711 | K39: =K299 -> 5.153176372 | L39: 10.34212851 | M39: 64.789368 | N39: =O299 -> 25.0970192 | O39: =P299 -> 5.589881853 | P39: 13.0219437 | Q39: 56.29115524 | R39: =T299 -> 43.39842593 | S39: =U299 -> 6.25636609 | T39: 12.15414674 | U39: 38.19106124 | V39: =Y299 -> 72.89896771 | W39: =Z299 -> 6.041382306 | X39: 10.12515694 | Y39: 10.93449304
E40: =C300 -> 2020 | F40: =E300 -> 19.63747554 | G40: 7.576813947 | H40: 15.96838508 | I40: 56.81732543 | J40: =J300 -> 43.08147859 | K40: 11.26060228 | L40: 14.95593355 | M40: 30.70198557 | N40: =O300 -> 69.41981036 | O40: 15.46193733 | P40: 11.16083988 | Q40: 3.957412424 | R40: =T300 -> 83.93974579 | S40: 12.10084854 | T40: 3.959405665 | U40: 0 | V40: =Y300 -> 90.66696472 | W40: 7.513875897 | X40: 1.819159387 | Y40: 0
A97: NATIONAL | D97: Poorest | I97: Poor | N97: Middle | S97: Rich | X97: Richest
D98: Improved | E98: Basic | F98: Limited | G98: Unimproved | H98: Open defecation | I98: Improved | J98: Basic | K98: Limited | L98: Unimproved | M98: Open defecation | N98: Improved | O98: Basic | P98: Limited | Q98: Unimproved | R98: Open defecation | S98: Improved | T98: Basic | U98: Limited | V98: Unimproved | W98: Open defecation | X98: Improved | Y98: Basic | Z98: Limited | AA98: Unimproved | AB98: Open defecation
A99: Forecast period: | C99: 2000 | D99: =IF((D101+H101)>100,D101*100/(D101+H101),D101) -> 17.27049536 | E99: =D99*AVERAGEIF(E105:E116,">0")/100 -> 12.79147629 | F99: =D99*(100-AVERAGEIF(E105:E116,">0"))/100 -> 4.47901907 | G99: =100-(E99+F99+H99) -> 7.143489119 | H99: =IF((D101+H101)>100,H101*100/(D101+H101),H101) -> 75.58601552 | I99: =IF((I101+M101)>100,I101*100/(I101+M101),I101) -> 26.07595984 | J99: =I99*AVERAGEIF(J105:J116,">0")/100 -> 21.24083657 | K99: =I99*(100-AVERAGEIF(J105:J116,">0"))/100 -> 4.835123275 | L99: =100-(J99+K99+M99) -> 12.10798481 | M99: =IF((I101+M101)>100,M101*100/(I101+M101),M101) -> 61.81605535 | N99: =IF((N101+R101)>100,N101*100/(N101+R101),N101) -> 48.18870813 | O99: =N99*AVERAGEIF(O105:O116,">0")/100 -> 37.37721189 | P99: =N99*(100-AVERAGEIF(O105:O116,">0"))/100 -> 10.81149624 | Q99: =100-(O99+P99+R99) -> 12.86179326 | R99: =IF((N101+R101)>100,R101*100/(N101+R101),R101) -> 38.94949861 | S99: =IF((S101+W101)>100,S101*100/(S101+W101),S101) -> 63.71986999 | T99: =S99*AVERAGEIF(T105:T116,">0")/100 -> 58.4381627 | U99: =S99*(100-AVERAGEIF(T105:T116,">0"))/100 -> 5.281707291 | V99: =100-(T99+U99+W99) -> 8.405692378 | W99: =IF((S101+W101)>100,W101*100/(S101+W101),W101) -> 27.87443763 | X99: =IF((X101+AB101)>100,X101*100/(X101+AB101),X101) -> 93.04461941 | Y99: =X99*AVERAGEIF(Y105:Y116,">0")/100 -> 88.85813844 | Z99: =X99*(100-AVERAGEIF(Y105:Y116,">0"))/100 -> 4.186480973 | AA99: =100-(Y99+Z99+AB99) -> 5.410581231 | AB99: =IF((X101+AB101)>100,AB101*100/(X101+AB101),AB101) -> 1.544799357
C100: 2020 | D100: =IF((D102+H102)>100,D102*100/(D102+H102),D102) -> 36.92611849 | E100: =D100*AVERAGEIF(E105:E116,">0")/100 -> 27.34950905 | F100: =D100*(100-AVERAGEIF(E105:E116,">0"))/100 -> 9.576609436 | G100: =100-(E100+F100+H100) -> 16.08198857 | H100: =IF((D102+H102)>100,H102*100/(D102+H102),H102) -> 46.99189294 | I100: =IF((I102+M102)>100,I102*100/(I102+M102),I102) -> 76.87577776 | J100: =I100*AVERAGEIF(J105:J116,">0")/100 -> 62.62112081 | K100: =I100*(100-AVERAGEIF(J105:J116,">0"))/100 -> 14.25465696 | L100: =100-(J100+K100+M100) -> 13.71657294 | M100: =IF((I102+M102)>100,M102*100/(I102+M102),M102) -> 9.4076493 | N100: =IF((N102+R102)>100,N102*100/(N102+R102),N102) -> 98.51908964 | O100: =N100*AVERAGEIF(O105:O116,">0")/100 -> 76.41559676 | P100: =N100*(100-AVERAGEIF(O105:O116,">0"))/100 -> 22.10349288 | Q100: =100-(O100+P100+R100) -> 1.480910356 | R100: =IF((N102+R102)>100,R102*100/(N102+R102),R102) -> 0 | S100: =IF((S102+W102)>100,S102*100/(S102+W102),S102) -> 100 | T100: =S100*AVERAGEIF(T105:T116,">0")/100 -> 91.71105137 | U100: =S100*(100-AVERAGEIF(T105:T116,">0"))/100 -> 8.28894863 | V100: =100-(T100+U100+W100) -> 0 | W100: =IF((S102+W102)>100,W102*100/(S102+W102),W102) -> 0 | X100: =IF((X102+AB102)>100,X102*100/(X102+AB102),X102) -> 98.01833525 | Y100: =X100*AVERAGEIF(Y105:Y116,">0")/100 -> 93.60806523 | Z100: =X100*(100-AVERAGEIF(Y105:Y116,">0"))/100 -> 4.41027002 | AA100: =100-(Y100+Z100+AB100) -> 1.981664751 | AB100: =IF((X102+AB102)>100,AB102*100/(X102+AB102),AB102) -> 0
A101: Regression period: | C101: =MinRegYear(C99,C105:C116) -> 2001 | D101: =IF(MAX(C105:C116)-MIN(C105:C116)<5,AVERAGEIF(C105:C116,">0",D105:D116), IF(FORECAST($C101,D$105:D$116,$C$105:$C$116)<0,0, IF(FORECAST($C101,D$105:D$116,$C$105:$C$116)>100,100, FORECAST($C101,D$105:D$116,$C$105:$C$116)))) -> 17.27049536 | H101: =IF(MAX(C105:C116)-MIN(C105:C116)<5,AVERAGEIF(C105:C116,">0",H105:H116), IF(FORECAST($C101,H$105:H$116,$C$105:$C$116)<0,0, IF(FORECAST($C101,H$105:H$116,$C$105:$C$116)>100,100, FORECAST($C101,H$105:H$116,$C$105:$C$116)))) -> 75.58601552 | I101: =IF(MAX(C105:C116)-MIN(C105:C116)<5,AVERAGEIF(C105:C116,">0",I105:I116), IF(FORECAST($C101,I$105:I$116,$C$105:$C$116)<0,0, IF(FORECAST($C101,I$105:I$116,$C$105:$C$116)>100,100, FORECAST($C101,I$105:I$116,$C$105:$C$116)))) -> 26.07595984 | M101: =IF(MAX(C105:C116)-MIN(C105:C116)<5,AVERAGEIF(C105:C116,">0",M105:M116), IF(FORECAST($C101,M$105:M$116,$C$105:$C$116)<0,0, IF(FORECAST($C101,M$105:M$116,$C$105:$C$116)>100,100, FORECAST($C101,M$105:M$116,$C$105:$C$116)))) -> 61.81605535 | N101: =IF(MAX(C105:C116)-MIN(C105:C116)<5,AVERAGEIF(C105:C116,">0",N105:N116), IF(FORECAST($C101,N$105:N$116,$C$105:$C$116)<0,0, IF(FORECAST($C101,N$105:N$116,$C$105:$C$116)>100,100, FORECAST($C101,N$105:N$116,$C$105:$C$116)))) -> 48.18870813 | R101: =IF(MAX(C105:C116)-MIN(C105:C116)<5,AVERAGEIF(C105:C116,">0",R105:R116), IF(FORECAST($C101,R$105:R$116,$C$105:$C$116)<0,0, IF(FORECAST($C101,R$105:R$116,$C$105:$C$116)>100,100, FORECAST($C101,R$105:R$116,$C$105:$C$116)))) -> 38.94949861 | S101: =IF(MAX(C105:C116)-MIN(C105:C116)<5,AVERAGEIF(C105:C116,">0",S105:S116), IF(FORECAST($C101,S$105:S$116,$C$105:$C$116)<0,0, IF(FORECAST($C101,S$105:S$116,$C$105:$C$116)>100,100, FORECAST($C101,S$105:S$116,$C$105:$C$116)))) -> 63.71986999 | W101: =IF(MAX(C105:C116)-MIN(C105:C116)<5,AVERAGEIF(C105:C116,">0",W105:W116), IF(FORECAST($C101,W$105:W$116,$C$105:$C$116)<0,0, IF(FORECAST($C101,W$105:W$116,$C$105:$C$116)>100,100, FORECAST($C101,W$105:W$116,$C$105:$C$116)))) -> 27.87443763 | X101: =IF(MAX(C105:C116)-MIN(C105:C116)<5,AVERAGEIF(C105:C116,">0",X105:X116), IF(FORECAST($C101,X$105:X$116,$C$105:$C$116)<0,0, IF(FORECAST($C101,X$105:X$116,$C$105:$C$116)>100,100, FORECAST($C101,X$105:X$116,$C$105:$C$116)))) -> 93.04461941 | AB101: =IF(MAX(C105:C116)-MIN(C105:C116)<5,AVERAGEIF(C105:C116,">0",AB105:AB116), IF(FORECAST($C101,AB$105:AB$116,$C$105:$C$116)<0,0, IF(FORECAST($C101,AB$105:AB$116,$C$105:$C$116)>100,100, FORECAST($C101,AB$105:AB$116,$C$105:$C$116)))) -> 1.544799357
C102: =MaxRegYear(C100,C105:C116) -> 2020 | D102: =IF(MAX(C105:C116)-MIN(C105:C116)<5,AVERAGEIF(C105:C116,">0",D105:D116), IF(FORECAST($C102,D$105:D$116,$C$105:$C$116)<0,0, IF(FORECAST($C102,D$105:D$116,$C$105:$C$116)>100,100, FORECAST($C102,D$105:D$116,$C$105:$C$116)))) -> 36.92611849 | H102: =IF(MAX(C105:C116)-MIN(C105:C116)<5,AVERAGEIF(C105:C116,">0",H105:H116), IF(FORECAST($C102,H$105:H$116,$C$105:$C$116)<0,0, IF(FORECAST($C102,H$105:H$116,$C$105:$C$116)>100,100, FORECAST($C102,H$105:H$116,$C$105:$C$116)))) -> 46.99189294 | I102: =IF(MAX(C105:C116)-MIN(C105:C116)<5,AVERAGEIF(C105:C116,">0",I105:I116), IF(FORECAST($C102,I$105:I$116,$C$105:$C$116)<0,0, IF(FORECAST($C102,I$105:I$116,$C$105:$C$116)>100,100, FORECAST($C102,I$105:I$116,$C$105:$C$116)))) -> 76.87577776 | M102: =IF(MAX(C105:C116)-MIN(C105:C116)<5,AVERAGEIF(C105:C116,">0",M105:M116), IF(FORECAST($C102,M$105:M$116,$C$105:$C$116)<0,0, IF(FORECAST($C102,M$105:M$116,$C$105:$C$116)>100,100, FORECAST($C102,M$105:M$116,$C$105:$C$116)))) -> 9.4076493 | N102: =IF(MAX(C105:C116)-MIN(C105:C116)<5,AVERAGEIF(C105:C116,">0",N105:N116), IF(FORECAST($C102,N$105:N$116,$C$105:$C$116)<0,0, IF(FORECAST($C102,N$105:N$116,$C$105:$C$116)>100,100, FORECAST($C102,N$105:N$116,$C$105:$C$116)))) -> 98.51908964 | R102: =IF(MAX(C105:C116)-MIN(C105:C116)<5,AVERAGEIF(C105:C116,">0",R105:R116), IF(FORECAST($C102,R$105:R$116,$C$105:$C$116)<0,0, IF(FORECAST($C102,R$105:R$116,$C$105:$C$116)>100,100, FORECAST($C102,R$105:R$116,$C$105:$C$116)))) -> 0 | S102: =IF(MAX(C105:C116)-MIN(C105:C116)<5,AVERAGEIF(C105:C116,">0",S105:S116), IF(FORECAST($C102,S$105:S$116,$C$105:$C$116)<0,0, IF(FORECAST($C102,S$105:S$116,$C$105:$C$116)>100,100, FORECAST($C102,S$105:S$116,$C$105:$C$116)))) -> 100 | W102: =IF(MAX(C105:C116)-MIN(C105:C116)<5,AVERAGEIF(C105:C116,">0",W105:W116), IF(FORECAST($C102,W$105:W$116,$C$105:$C$116)<0,0, IF(FORECAST($C102,W$105:W$116,$C$105:$C$116)>100,100, FORECAST($C102,W$105:W$116,$C$105:$C$116)))) -> 0 | X102: =IF(MAX(C105:C116)-MIN(C105:C116)<5,AVERAGEIF(C105:C116,">0",X105:X116), IF(FORECAST($C102,X$105:X$116,$C$105:$C$116)<0,0, IF(FORECAST($C102,X$105:X$116,$C$105:$C$116)>100,100, FORECAST($C102,X$105:X$116,$C$105:$C$116)))) -> 98.01833525 | AB102: =IF(MAX(C105:C116)-MIN(C105:C116)<5,AVERAGEIF(C105:C116,">0",AB105:AB116), IF(FORECAST($C102,AB$105:AB$116,$C$105:$C$116)<0,0, IF(FORECAST($C102,AB$105:AB$116,$C$105:$C$116)>100,100, FORECAST($C102,AB$105:AB$116,$C$105:$C$116)))) -> 0
B104: Survey | C104: Year | D104: Improved | E104: Not shared | H104: Open defecation | I104: Improved | J104: Not shared | M104: Open defecation | N104: Improved | O104: Not shared | R104: Open defecation | S104: Improved | T104: Not shared | W104: Open defecation | X104: Improved | Y104: Not shared | AB104: Open defecation
B105: WHS03 | C105: 2003 | D105: =IF(ISERROR(INDIRECT(CONCATENATE($B105,"!C122"))),"",INDIRECT(CONCATENATE($B105,"!C122"))) -> 27.3722671 | E105: =IF(ISERROR(INDIRECT(CONCATENATE($B105,"!C129"))),"",INDIRECT(CONCATENATE($B105,"!C129"))) -> 78.08765655 | H105: =IF(ISERROR(INDIRECT(CONCATENATE($B105,"!C127"))),"",INDIRECT(CONCATENATE($B105,"!C127"))) -> 68.31476918 | I105: =IF(ISERROR(INDIRECT(CONCATENATE($B105,"!D122"))),"",INDIRECT(CONCATENATE($B105,"!D122"))) -> 41.19300143 | J105: =IF(ISERROR(INDIRECT(CONCATENATE($B105,"!D129"))),"",INDIRECT(CONCATENATE($B105,"!D129"))) -> 88.48525035 | M105: =IF(ISERROR(INDIRECT(CONCATENATE($B105,"!D127"))),"",INDIRECT(CONCATENATE($B105,"!D127"))) -> 55.218071 | N105: =IF(ISERROR(INDIRECT(CONCATENATE($B105,"!E122"))),"",INDIRECT(CONCATENATE($B105,"!E122"))) -> 57.64589498 | O105: =IF(ISERROR(INDIRECT(CONCATENATE($B105,"!E129"))),"",INDIRECT(CONCATENATE($B105,"!E129"))) -> 55.5526774 | R105: =IF(ISERROR(INDIRECT(CONCATENATE($B105,"!E127"))),"",INDIRECT(CONCATENATE($B105,"!E127"))) -> 39.36270939 | S105: =IF(ISERROR(INDIRECT(CONCATENATE($B105,"!F122"))),"",INDIRECT(CONCATENATE($B105,"!F122"))) -> 66.48723071 | T105: =IF(ISERROR(INDIRECT(CONCATENATE($B105,"!F129"))),"",INDIRECT(CONCATENATE($B105,"!F129"))) -> 94.52681724 | W105: =IF(ISERROR(INDIRECT(CONCATENATE($B105,"!F127"))),"",INDIRECT(CONCATENATE($B105,"!F127"))) -> 32.31624957 | X105: =IF(ISERROR(INDIRECT(CONCATENATE($B105,"!G122"))),"",INDIRECT(CONCATENATE($B105,"!G122"))) -> 97.85502817 | Y105: =IF(ISERROR(INDIRECT(CONCATENATE($B105,"!G129"))),"",INDIRECT(CONCATENATE($B105,"!G129"))) -> 96.21363499 | AB105: =IF(ISERROR(INDIRECT(CONCATENATE($B105,"!G2127"))),"",INDIRECT(CONCATENATE($B105,"!G127"))) -> 1.565596371
B106: DHS07 | C106: 2007 | D106: 14.4841641 | E106: 73.46991824 | H106: 69.59104524 | I106: 29.77005658 | J106: 82.00109154 | M106: 45.62641642 | N106: 57.35228619 | O106: 87.02975196 | R106: 18.2764824 | S106: 77.07981429 | T106: 91.2643078 | W106: 6.56512611 | X106: 88.65362422 | Y106: 91.05471545 | AB106: 0.697869778
B107: DHS13 | C107: 2013 | D107: 25.37171113 | E107: 71.11183904 | H107: 63.63412993 | I107: 56.01647061 | J107: 76.33611618 | M107: 31.16709464 | N107: 82.30506022 | O107: 82.28267712 | R107: 9.742405432 | S107: 93.71301233 | T107: 89.33709841 | W107: 1.307318897 | X107: 96.44094753 | Y107: 96.38255815 | AB107: 0.2790275009
B108: DHS18 | C108: 2018 | D108: 40.1305789 | E108: 73.59252944 | H108: 45.12082637 | I108: 76.25027196 | J108: 79.00771956 | M108: 13.1941644 | N108: 93.46338671 | O108: 85.39190885 | R108: 1.314487921 | S108: 97.86938328 | T108: 91.71598202 | W108: 0.01033076677 | X108: 98.91453489 | Y108: 98.35135656 | AB108: 0
B118: =CONCATENATE("National use of sanitation facilities, ",C99,"–",C100) -> National use of sanitation facilities, 2000–2020 | S118: Data points used for regression
A197: URBAN | D197: Poorest | I197: Poor | N197: Middle | S197: Rich | X197: Richest
D198: Improved | E198: Basic | F198: Limited | G198: Unimproved | H198: Open defecation | I198: Improved | J198: Basic | K198: Limited | L198: Unimproved | M198: Open defecation | N198: Improved | O198: Basic | P198: Limited | Q198: Unimproved | R198: Open defecation | S198: Improved | T198: Basic | U198: Limited | V198: Unimproved | W198: Open defecation | X198: Improved | Y198: Basic | Z198: Limited | AA198: Unimproved | AB198: Open defecation
A199: Forecast period: | C199: =MinBase(C205:C216) -> 2000 | D199: =IF((D201+H201)>100,D201*100/(D201+H201),D201) -> 25.97396921 | E199: =D199*AVERAGEIF(E205:E216,">0")/100 -> 21.52703902 | F199: =D199*(100-AVERAGEIF(E205:E216,">0"))/100 -> 4.446930195 | G199: =100-(E199+F199+H199) -> 12.09455934 | H199: =IF((D201+H201)>100,H201*100/(D201+H201),H201) -> 61.93147144 | I199: =IF((I201+M201)>100,I201*100/(I201+M201),I201) -> 69.65752792 | J199: =I199*AVERAGEIF(J205:J216,">0")/100 -> 49.44898968 | K199: =I199*(100-AVERAGEIF(J205:J216,">0"))/100 -> 20.20853824 | L199: =100-(J199+K199+M199) -> 9.052967449 | M199: =IF((I201+M201)>100,M201*100/(I201+M201),M201) -> 21.28950463 | N199: =IF((N201+R201)>100,N201*100/(N201+R201),N201) -> 56.34115789 | O199: =N199*AVERAGEIF(O205:O216,">0")/100 -> 52.59590037 | P199: =N199*(100-AVERAGEIF(O205:O216,">0"))/100 -> 3.745257517 | Q199: =100-(O199+P199+R199) -> 5.381406485 | R199: =IF((N201+R201)>100,R201*100/(N201+R201),R201) -> 38.27743563 | S199: =IF((S201+W201)>100,S201*100/(S201+W201),S201) -> 90.05714007 | T199: =S199*AVERAGEIF(T205:T216,">0")/100 -> 85.10465238 | U199: =S199*(100-AVERAGEIF(T205:T216,">0"))/100 -> 4.952487691 | V199: =100-(T199+U199+W199) -> 4.676845257 | W199: =IF((S201+W201)>100,W201*100/(S201+W201),W201) -> 5.266014677 | X199: =IF((X201+AB201)>100,X201*100/(X201+AB201),X201) -> 97.0669984 | Y199: =X199*AVERAGEIF(Y205:Y216,">0")/100 -> 93.85153489 | Z199: =X199*(100-AVERAGEIF(Y205:Y216,">0"))/100 -> 3.215463516 | AA199: =100-(Y199+Z199+AB199) -> 2.856981187 | AB199: =IF((X201+AB201)>100,AB201*100/(X201+AB201),AB201) -> 0.07602041052
C200: =MaxTarget(C205:C216) -> 2020 | D200: =IF((D202+H202)>100,D202*100/(D202+H202),D202) -> 95.57047018 | E200: =D200*AVERAGEIF(E205:E216,">0")/100 -> 79.20811886 | F200: =D200*(100-AVERAGEIF(E205:E216,">0"))/100 -> 16.36235133 | G200: =100-(E200+F200+H200) -> 4.429529816 | H200: =IF((D202+H202)>100,H202*100/(D202+H202),H202) -> 0 | I200: =IF((I202+M202)>100,I202*100/(I202+M202),I202) -> 100 | J200: =I200*AVERAGEIF(J205:J216,">0")/100 -> 70.98872319 | K200: =I200*(100-AVERAGEIF(J205:J216,">0"))/100 -> 29.01127681 | L200: =100-(J200+K200+M200) -> 0 | M200: =IF((I202+M202)>100,M202*100/(I202+M202),M202) -> 0 | N200: =IF((N202+R202)>100,N202*100/(N202+R202),N202) -> 100 | O200: =N200*AVERAGEIF(O205:O216,">0")/100 -> 93.35253719 | P200: =N200*(100-AVERAGEIF(O205:O216,">0"))/100 -> 6.647462809 | Q200: =100-(O200+P200+R200) -> 0 | R200: =IF((N202+R202)>100,R202*100/(N202+R202),R202) -> 0 | S200: =IF((S202+W202)>100,S202*100/(S202+W202),S202) -> 99.11758464 | T200: =S200*AVERAGEIF(T205:T216,">0")/100 -> 93.66683839 | U200: =S200*(100-AVERAGEIF(T205:T216,">0"))/100 -> 5.450746243 | V200: =100-(T200+U200+W200) -> 0.8824153618 | W200: =IF((S202+W202)>100,W202*100/(S202+W202),W202) -> 0 | X200: =IF((X202+AB202)>100,X202*100/(X202+AB202),X202) -> 98.09124626 | Y200: =X200*AVERAGEIF(Y205:Y216,">0")/100 -> 94.84185327 | Z200: =X200*(100-AVERAGEIF(Y205:Y216,">0"))/100 -> 3.249392984 | AA200: =100-(Y200+Z200+AB200) -> 1.904702333 | AB200: =IF((X202+AB202)>100,AB202*100/(X202+AB202),AB202) -> 0.004051410168
A201: Regression period: | C201: =MinRegYear(C199,C205:C216) -> 2001 | D201: =IF(MAX(C205:C216)-MIN(C205:C216)<5,AVERAGEIF(C205:C216,">0",D205:D216), IF(FORECAST($C201,D$205:D$216,$C$205:$C$216)<0,0, IF(FORECAST($C201,D$205:D$216,$C$205:$C$216)>100,100, FORECAST($C201,D$205:D$216,$C$205:$C$216)))) -> 25.97396921 | H201: =IF(MAX(C205:C216)-MIN(C205:C216)<5,AVERAGEIF(C205:C216,">0",H205:H216), IF(FORECAST($C201,H$205:H$216,$C$205:$C$216)<0,0, IF(FORECAST($C201,H$205:H$216,$C$205:$C$216)>100,100, FORECAST($C201,H$205:H$216,$C$205:$C$216)))) -> 61.93147144 | I201: =IF(MAX(C205:C216)-MIN(C205:C216)<5,AVERAGEIF(C205:C216,">0",I205:I216), IF(FORECAST($C201,I$205:I$216,$C$205:$C$216)<0,0, IF(FORECAST($C201,I$205:I$216,$C$205:$C$216)>100,100, FORECAST($C201,I$205:I$216,$C$205:$C$216)))) -> 69.65752792 | M201: =IF(MAX(C205:C216)-MIN(C205:C216)<5,AVERAGEIF(C205:C216,">0",M205:M216), IF(FORECAST($C201,M$205:M$216,$C$205:$C$216)<0,0, IF(FORECAST($C201,M$205:M$216,$C$205:$C$216)>100,100, FORECAST($C201,M$205:M$216,$C$205:$C$216)))) -> 21.28950463 | N201: =IF(MAX(C205:C216)-MIN(C205:C216)<5,AVERAGEIF(C205:C216,">0",N205:N216), IF(FORECAST($C201,N$205:N$216,$C$205:$C$216)<0,0, IF(FORECAST($C201,N$205:N$216,$C$205:$C$216)>100,100, FORECAST($C201,N$205:N$216,$C$205:$C$216)))) -> 56.34115789 | R201: =IF(MAX(C205:C216)-MIN(C205:C216)<5,AVERAGEIF(C205:C216,">0",R205:R216), IF(FORECAST($C201,R$205:R$216,$C$205:$C$216)<0,0, IF(FORECAST($C201,R$205:R$216,$C$205:$C$216)>100,100, FORECAST($C201,R$205:R$216,$C$205:$C$216)))) -> 38.27743563 | S201: =IF(MAX(C205:C216)-MIN(C205:C216)<5,AVERAGEIF(C205:C216,">0",S205:S216), IF(FORECAST($C201,S$205:S$216,$C$205:$C$216)<0,0, IF(FORECAST($C201,S$205:S$216,$C$205:$C$216)>100,100, FORECAST($C201,S$205:S$216,$C$205:$C$216)))) -> 90.05714007 | W201: =IF(MAX(C205:C216)-MIN(C205:C216)<5,AVERAGEIF(C205:C216,">0",W205:W216), IF(FORECAST($C201,W$205:W$216,$C$205:$C$216)<0,0, IF(FORECAST($C201,W$205:W$216,$C$205:$C$216)>100,100, FORECAST($C201,W$205:W$216,$C$205:$C$216)))) -> 5.266014677 | X201: =IF(MAX(C205:C216)-MIN(C205:C216)<5,AVERAGEIF(C205:C216,">0",X205:X216), IF(FORECAST($C201,X$205:X$216,$C$205:$C$216)<0,0, IF(FORECAST($C201,X$205:X$216,$C$205:$C$216)>100,100, FORECAST($C201,X$205:X$216,$C$205:$C$216)))) -> 97.0669984 | AB201: =IF(MAX(C205:C216)-MIN(C205:C216)<5,AVERAGEIF(C205:C216,">0",AB205:AB216), IF(FORECAST($C201,AB$205:AB$216,$C$205:$C$216)<0,0, IF(FORECAST($C201,AB$205:AB$216,$C$205:$C$216)>100,100, FORECAST($C201,AB$205:AB$216,$C$205:$C$216)))) -> 0.07602041052
C202: =MaxRegYear(C200,C205:C216) -> 2020 | D202: =IF(MAX(C205:C216)-MIN(C205:C216)<5,AVERAGEIF(C205:C216,">0",D205:D216), IF(FORECAST($C202,D$205:D$216,$C$205:$C$216)<0,0, IF(FORECAST($C202,D$205:D$216,$C$205:$C$216)>100,100, FORECAST($C202,D$205:D$216,$C$205:$C$216)))) -> 95.57047018 | H202: =IF(MAX(C205:C216)-MIN(C205:C216)<5,AVERAGEIF(C205:C216,">0",H205:H216), IF(FORECAST($C202,H$205:H$216,$C$205:$C$216)<0,0, IF(FORECAST($C202,H$205:H$216,$C$205:$C$216)>100,100, FORECAST($C202,H$205:H$216,$C$205:$C$216)))) -> 0 | I202: =IF(MAX(C205:C216)-MIN(C205:C216)<5,AVERAGEIF(C205:C216,">0",I205:I216), IF(FORECAST($C202,I$205:I$216,$C$205:$C$216)<0,0, IF(FORECAST($C202,I$205:I$216,$C$205:$C$216)>100,100, FORECAST($C202,I$205:I$216,$C$205:$C$216)))) -> 100 | M202: =IF(MAX(C205:C216)-MIN(C205:C216)<5,AVERAGEIF(C205:C216,">0",M205:M216), IF(FORECAST($C202,M$205:M$216,$C$205:$C$216)<0,0, IF(FORECAST($C202,M$205:M$216,$C$205:$C$216)>100,100, FORECAST($C202,M$205:M$216,$C$205:$C$216)))) -> 0 | N202: =IF(MAX(C205:C216)-MIN(C205:C216)<5,AVERAGEIF(C205:C216,">0",N205:N216), IF(FORECAST($C202,N$205:N$216,$C$205:$C$216)<0,0, IF(FORECAST($C202,N$205:N$216,$C$205:$C$216)>100,100, FORECAST($C202,N$205:N$216,$C$205:$C$216)))) -> 100 | R202: =IF(MAX(C205:C216)-MIN(C205:C216)<5,AVERAGEIF(C205:C216,">0",R205:R216), IF(FORECAST($C202,R$205:R$216,$C$205:$C$216)<0,0, IF(FORECAST($C202,R$205:R$216,$C$205:$C$216)>100,100, FORECAST($C202,R$205:R$216,$C$205:$C$216)))) -> 0 | S202: =IF(MAX(C205:C216)-MIN(C205:C216)<5,AVERAGEIF(C205:C216,">0",S205:S216), IF(FORECAST($C202,S$205:S$216,$C$205:$C$216)<0,0, IF(FORECAST($C202,S$205:S$216,$C$205:$C$216)>100,100, FORECAST($C202,S$205:S$216,$C$205:$C$216)))) -> 99.11758464 | W202: =IF(MAX(C205:C216)-MIN(C205:C216)<5,AVERAGEIF(C205:C216,">0",W205:W216), IF(FORECAST($C202,W$205:W$216,$C$205:$C$216)<0,0, IF(FORECAST($C202,W$205:W$216,$C$205:$C$216)>100,100, FORECAST($C202,W$205:W$216,$C$205:$C$216)))) -> 0 | X202: =IF(MAX(C205:C216)-MIN(C205:C216)<5,AVERAGEIF(C205:C216,">0",X205:X216), IF(FORECAST($C202,X$205:X$216,$C$205:$C$216)<0,0, IF(FORECAST($C202,X$205:X$216,$C$205:$C$216)>100,100, FORECAST($C202,X$205:X$216,$C$205:$C$216)))) -> 98.09124626 | AB202: =IF(MAX(C205:C216)-MIN(C205:C216)<5,AVERAGEIF(C205:C216,">0",AB205:AB216), IF(FORECAST($C202,AB$205:AB$216,$C$205:$C$216)<0,0, IF(FORECAST($C202,AB$205:AB$216,$C$205:$C$216)>100,100, FORECAST($C202,AB$205:AB$216,$C$205:$C$216)))) -> 0.004051410168
B204: Survey | C204: Year | D204: Improved | E204: Not shared | H204: Open defecation | I204: Improved | J204: Not shared | M204: Open defecation | N204: Improved | O204: Not shared | R204: Open defecation | S204: Improved | T204: Not shared | W204: Open defecation | X204: Improved | Y204: Not shared | AB204: Open defecation
B205: WHS03 | C205: 2003 | D205: =IF(ISERROR(INDIRECT(CONCATENATE($B205,"!H122"))),"",INDIRECT(CONCATENATE($B205,"!H122"))) -> 24.25077015 | E205: =IF(ISERROR(INDIRECT(CONCATENATE($B205,"!H129"))),"",INDIRECT(CONCATENATE($B205,"!H129"))) -> 86.70098993 | H205: =IF(ISERROR(INDIRECT(CONCATENATE($B205,"!H127"))),"",INDIRECT(CONCATENATE($B205,"!H127"))) -> 72.35774111 | I205: =IF(ISERROR(INDIRECT(CONCATENATE($B205,"!I122"))),"",INDIRECT(CONCATENATE($B205,"!I122"))) -> 69.3912017 | J205: =IF(ISERROR(INDIRECT(CONCATENATE($B205,"!I129"))),"",INDIRECT(CONCATENATE($B205,"!I129"))) -> 13.99864244 | M205: =IF(ISERROR(INDIRECT(CONCATENATE($B205,"!I127"))),"",INDIRECT(CONCATENATE($B205,"!I127"))) -> 26.76643038 | N205: =IF(ISERROR(INDIRECT(CONCATENATE($B205,"!J122"))),"",INDIRECT(CONCATENATE($B205,"!J122"))) -> 49.87813601 | O205: =IF(ISERROR(INDIRECT(CONCATENATE($B205,"!J129"))),"",INDIRECT(CONCATENATE($B205,"!J129"))) -> 94.12011061 | R205: =IF(ISERROR(INDIRECT(CONCATENATE($B205,"!J127"))),"",INDIRECT(CONCATENATE($B205,"!J127"))) -> 49.34076603 | S205: =IF(ISERROR(INDIRECT(CONCATENATE($B205,"!K122"))),"",INDIRECT(CONCATENATE($B205,"!K122"))) -> 93.04015613 | T205: =IF(ISERROR(INDIRECT(CONCATENATE($B205,"!K129"))),"",INDIRECT(CONCATENATE($B205,"!K129"))) -> 95.25757322 | W205: =IF(ISERROR(INDIRECT(CONCATENATE($B205,"!K127"))),"",INDIRECT(CONCATENATE($B205,"!K127"))) -> 6.602328615 | X205: =IF(ISERROR(INDIRECT(CONCATENATE($B205,"!L122"))),"",INDIRECT(CONCATENATE($B205,"!L122"))) -> 99.96352978 | Y205: =IF(ISERROR(INDIRECT(CONCATENATE($B205,"!L129"))),"",INDIRECT(CONCATENATE($B205,"!L129"))) -> 98.08842842 | AB205: =IF(ISERROR(INDIRECT(CONCATENATE($B205,"!L2127"))),"",INDIRECT(CONCATENATE($B205,"!L127"))) -> 0.03647021663
B206: DHS07 | C206: 2007 | D206: 60.2915569 | E206: 83.12948568 | H206: 14.44557985 | I206: 84.98645303 | J206: 89.26161752 | M206: 1.335008953 | N206: 88.42465878 | O206: 92.15032488 | R206: 0.5047931614 | S206: 90.15112619 | T206: 88.7300912 | W206: 0.3589253044 | X206: 93.5876508 | Y206: 91.09838771 | AB206: 0.09689496184
B207: DHS13 | D207: 87.25835184 | E207: 79.34404453 | H207: 2.626858681 | I207: 96.34681505 | J207: 89.79375 | M207: 0.05199451841 | N207: 95.66951845 | O207: 94.14398159 | R207: 0.2571475983 | S207: 97.06074404 | T207: 96.08626476 | W207: 0 | X207: 99.28854744 | Y207: 98.55804828 | AB207: 0
B208: DHS18 | C208: 2018 | D208: 84.95392397 | E208: 82.34260521 | H208: 3.691415636 | I208: 97.46557563 | J208: 90.90088282 | M208: 0 | N208: 97.38036161 | O208: 92.99573169 | R208: 0 | S208: 98.90177547 | T208: 97.92898015 | W208: 0 | X208: 98.99750917 | Y208: 99.00464441 | AB208: 0
B218: =CONCATENATE("Urban use of sanitation facilities, ",C199,"–",C200) -> Urban use of sanitation facilities, 2000–2020 | S218: Data points used for regression
A297: RURAL | D297: Poorest | I297: Poor | N297: Middle | S297: Rich | X297: Richest
D298: Improved | E298: Basic | F298: Limited | G298: Unimproved | H298: Open defecation | I298: Improved | J298: Basic | K298: Limited | L298: Unimproved | M298: Open defecation | N298: Improved | O298: Basic | P298: Limited | Q298: Unimproved | R298: Open defecation | S298: Improved | T298: Basic | U298: Limited | V298: Unimproved | W298: Open defecation | X298: Improved | Y298: Basic | Z298: Limited | AA298: Unimproved | AB298: Open defecation
A299: Forecast period: | C299: 2000 | D299: =IF((D301+H301)>100,D301*100/(D301+H301),D301) -> 17.44575744 | E299: =D299*AVERAGEIF(E305:E316,">0")/100 -> 12.58863051 | F299: =D299*(100-AVERAGEIF(E305:E316,">0"))/100 -> 4.857126929 | G299: =100-(E299+F299+H299) -> 6.274945288 | H299: =IF((D301+H301)>100,H301*100/(D301+H301),H301) -> 76.27929727 | I299: =IF((I301+M301)>100,I301*100/(I301+M301),I301) -> 24.86850349 | J299: =I299*AVERAGEIF(J305:J316,">0")/100 -> 19.71532711 | K299: =I299*(100-AVERAGEIF(J305:J316,">0"))/100 -> 5.153176372 | L299: =100-(J299+K299+M299) -> 10.34212851 | M299: =IF((I301+M301)>100,M301*100/(I301+M301),M301) -> 64.789368 | N299: =IF((N301+R301)>100,N301*100/(N301+R301),N301) -> 30.68690106 | O299: =N299*AVERAGEIF(O305:O316,">0")/100 -> 25.0970192 | P299: =N299*(100-AVERAGEIF(O305:O316,">0"))/100 -> 5.589881853 | Q299: =100-(O299+P299+R299) -> 13.0219437 | R299: =IF((N301+R301)>100,R301*100/(N301+R301),R301) -> 56.29115524 | S299: =IF((S301+W301)>100,S301*100/(S301+W301),S301) -> 49.65479202 | T299: =S299*AVERAGEIF(T305:T316,">0")/100 -> 43.39842593 | U299: =S299*(100-AVERAGEIF(T305:T316,">0"))/100 -> 6.25636609 | V299: =100-(T299+U299+W299) -> 12.15414674 | W299: =IF((S301+W301)>100,W301*100/(S301+W301),W301) -> 38.19106124 | X299: =IF((X301+AB301)>100,X301*100/(X301+AB301),X301) -> 78.94035002 | Y299: =X299*AVERAGEIF(Y305:Y316,">0")/100 -> 72.89896771 | Z299: =X299*(100-AVERAGEIF(Y305:Y316,">0"))/100 -> 6.041382306 | AA299: =100-(Y299+Z299+AB299) -> 10.12515694 | AB299: =IF((X301+AB301)>100,AB301*100/(X301+AB301),AB301) -> 10.93449304
C300: 2020 | D300: =IF((D302+H302)>100,D302*100/(D302+H302),D302) -> 27.21428949 | E300: =D300*AVERAGEIF(E305:E316,">0")/100 -> 19.63747554 | F300: =D300*(100-AVERAGEIF(E305:E316,">0"))/100 -> 7.576813947 | G300: =100-(E300+F300+H300) -> 15.96838508 | H300: =IF((D302+H302)>100,H302*100/(D302+H302),H302) -> 56.81732543 | I300: =IF((I302+M302)>100,I302*100/(I302+M302),I302) -> 54.34208087 | J300: =I300*AVERAGEIF(J305:J316,">0")/100 -> 43.08147859 | K300: =I300*(100-AVERAGEIF(J305:J316,">0"))/100 -> 11.26060228 | L300: =100-(J300+K300+M300) -> 14.95593355 | M300: =IF((I302+M302)>100,M302*100/(I302+M302),M302) -> 30.70198557 | N300: =IF((N302+R302)>100,N302*100/(N302+R302),N302) -> 84.8817477 | O300: =N300*AVERAGEIF(O305:O316,">0")/100 -> 69.41981036 | P300: =N300*(100-AVERAGEIF(O305:O316,">0"))/100 -> 15.46193733 | Q300: =100-(O300+P300+R300) -> 11.16083988 | R300: =IF((N302+R302)>100,R302*100/(N302+R302),R302) -> 3.957412424 | S300: =IF((S302+W302)>100,S302*100/(S302+W302),S302) -> 96.04059434 | T300: =S300*AVERAGEIF(T305:T316,">0")/100 -> 83.93974579 | U300: =S300*(100-AVERAGEIF(T305:T316,">0"))/100 -> 12.10084854 | V300: =100-(T300+U300+W300) -> 3.959405665 | W300: =IF((S302+W302)>100,W302*100/(S302+W302),W302) -> 0 | X300: =IF((X302+AB302)>100,X302*100/(X302+AB302),X302) -> 98.18084061 | Y300: =X300*AVERAGEIF(Y305:Y316,">0")/100 -> 90.66696472 | Z300: =X300*(100-AVERAGEIF(Y305:Y316,">0"))/100 -> 7.513875897 | AA300: =100-(Y300+Z300+AB300) -> 1.819159387 | AB300: =IF((X302+AB302)>100,AB302*100/(X302+AB302),AB302) -> 0
A301: Regression period: | C301: =MinRegYear(C299,C305:C316) -> 2001 | D301: =IF(MAX(C305:C316)-MIN(C305:C316)<5,AVERAGEIF(C305:C316,">0",D305:D316), IF(FORECAST($C301,D$305:D$316,$C$305:$C$316)<0,0, IF(FORECAST($C301,D$305:D$316,$C$305:$C$316)>100,100, FORECAST($C301,D$305:D$316,$C$305:$C$316)))) -> 17.44575744 | H301: =IF(MAX(C305:C316)-MIN(C305:C316)<5,AVERAGEIF(C305:C316,">0",H305:H316), IF(FORECAST($C301,H$305:H$316,$C$305:$C$316)<0,0, IF(FORECAST($C301,H$305:H$316,$C$305:$C$316)>100,100, FORECAST($C301,H$305:H$316,$C$305:$C$316)))) -> 76.27929727 | I301: =IF(MAX(C305:C316)-MIN(C305:C316)<5,AVERAGEIF(C305:C316,">0",I305:I316), IF(FORECAST($C301,I$305:I$316,$C$305:$C$316)<0,0, IF(FORECAST($C301,I$305:I$316,$C$305:$C$316)>100,100, FORECAST($C301,I$305:I$316,$C$305:$C$316)))) -> 24.86850349 | M301: =IF(MAX(C305:C316)-MIN(C305:C316)<5,AVERAGEIF(C305:C316,">0",M305:M316), IF(FORECAST($C301,M$305:M$316,$C$305:$C$316)<0,0, IF(FORECAST($C301,M$305:M$316,$C$305:$C$316)>100,100, FORECAST($C301,M$305:M$316,$C$305:$C$316)))) -> 64.789368 | N301: =IF(MAX(C305:C316)-MIN(C305:C316)<5,AVERAGEIF(C305:C316,">0",N305:N316), IF(FORECAST($C301,N$305:N$316,$C$305:$C$316)<0,0, IF(FORECAST($C301,N$305:N$316,$C$305:$C$316)>100,100, FORECAST($C301,N$305:N$316,$C$305:$C$316)))) -> 30.68690106 | R301: =IF(MAX(C305:C316)-MIN(C305:C316)<5,AVERAGEIF(C305:C316,">0",R305:R316), IF(FORECAST($C301,R$305:R$316,$C$305:$C$316)<0,0, IF(FORECAST($C301,R$305:R$316,$C$305:$C$316)>100,100, FORECAST($C301,R$305:R$316,$C$305:$C$316)))) -> 56.29115524 | S301: =IF(MAX(C305:C316)-MIN(C305:C316)<5,AVERAGEIF(C305:C316,">0",S305:S316), IF(FORECAST($C301,S$305:S$316,$C$305:$C$316)<0,0, IF(FORECAST($C301,S$305:S$316,$C$305:$C$316)>100,100, FORECAST($C301,S$305:S$316,$C$305:$C$316)))) -> 49.65479202 | W301: =IF(MAX(C305:C316)-MIN(C305:C316)<5,AVERAGEIF(C305:C316,">0",W305:W316), IF(FORECAST($C301,W$305:W$316,$C$305:$C$316)<0,0, IF(FORECAST($C301,W$305:W$316,$C$305:$C$316)>100,100, FORECAST($C301,W$305:W$316,$C$305:$C$316)))) -> 38.19106124 | X301: =IF(MAX(C305:C316)-MIN(C305:C316)<5,AVERAGEIF(C305:C316,">0",X305:X316), IF(FORECAST($C301,X$305:X$316,$C$305:$C$316)<0,0, IF(FORECAST($C301,X$305:X$316,$C$305:$C$316)>100,100, FORECAST($C301,X$305:X$316,$C$305:$C$316)))) -> 78.94035002 | AB301: =IF(MAX(C305:C316)-MIN(C305:C316)<5,AVERAGEIF(C305:C316,">0",AB305:AB316), IF(FORECAST($C301,AB$305:AB$316,$C$305:$C$316)<0,0, IF(FORECAST($C301,AB$305:AB$316,$C$305:$C$316)>100,100, FORECAST($C301,AB$305:AB$316,$C$305:$C$316)))) -> 10.93449304
C302: =MaxRegYear(C300,C305:C316) -> 2020 | D302: =IF(MAX(C305:C316)-MIN(C305:C316)<5,AVERAGEIF(C305:C316,">0",D305:D316), IF(FORECAST($C302,D$305:D$316,$C$305:$C$316)<0,0, IF(FORECAST($C302,D$305:D$316,$C$305:$C$316)>100,100, FORECAST($C302,D$305:D$316,$C$305:$C$316)))) -> 27.21428949 | H302: =IF(MAX(C305:C316)-MIN(C305:C316)<5,AVERAGEIF(C305:C316,">0",H305:H316), IF(FORECAST($C302,H$305:H$316,$C$305:$C$316)<0,0, IF(FORECAST($C302,H$305:H$316,$C$305:$C$316)>100,100, FORECAST($C302,H$305:H$316,$C$305:$C$316)))) -> 56.81732543 | I302: =IF(MAX(C305:C316)-MIN(C305:C316)<5,AVERAGEIF(C305:C316,">0",I305:I316), IF(FORECAST($C302,I$305:I$316,$C$305:$C$316)<0,0, IF(FORECAST($C302,I$305:I$316,$C$305:$C$316)>100,100, FORECAST($C302,I$305:I$316,$C$305:$C$316)))) -> 54.34208087 | M302: =IF(MAX(C305:C316)-MIN(C305:C316)<5,AVERAGEIF(C305:C316,">0",M305:M316), IF(FORECAST($C302,M$305:M$316,$C$305:$C$316)<0,0, IF(FORECAST($C302,M$305:M$316,$C$305:$C$316)>100,100, FORECAST($C302,M$305:M$316,$C$305:$C$316)))) -> 30.70198557 | N302: =IF(MAX(C305:C316)-MIN(C305:C316)<5,AVERAGEIF(C305:C316,">0",N305:N316), IF(FORECAST($C302,N$305:N$316,$C$305:$C$316)<0,0, IF(FORECAST($C302,N$305:N$316,$C$305:$C$316)>100,100, FORECAST($C302,N$305:N$316,$C$305:$C$316)))) -> 84.8817477 | R302: =IF(MAX(C305:C316)-MIN(C305:C316)<5,AVERAGEIF(C305:C316,">0",R305:R316), IF(FORECAST($C302,R$305:R$316,$C$305:$C$316)<0,0, IF(FORECAST($C302,R$305:R$316,$C$305:$C$316)>100,100, FORECAST($C302,R$305:R$316,$C$305:$C$316)))) -> 3.957412424 | S302: =IF(MAX(C305:C316)-MIN(C305:C316)<5,AVERAGEIF(C305:C316,">0",S305:S316), IF(FORECAST($C302,S$305:S$316,$C$305:$C$316)<0,0, IF(FORECAST($C302,S$305:S$316,$C$305:$C$316)>100,100, FORECAST($C302,S$305:S$316,$C$305:$C$316)))) -> 96.04059434 | W302: =IF(MAX(C305:C316)-MIN(C305:C316)<5,AVERAGEIF(C305:C316,">0",W305:W316), IF(FORECAST($C302,W$305:W$316,$C$305:$C$316)<0,0, IF(FORECAST($C302,W$305:W$316,$C$305:$C$316)>100,100, FORECAST($C302,W$305:W$316,$C$305:$C$316)))) -> 0 | X302: =IF(MAX(C305:C316)-MIN(C305:C316)<5,AVERAGEIF(C305:C316,">0",X305:X316), IF(FORECAST($C302,X$305:X$316,$C$305:$C$316)<0,0, IF(FORECAST($C302,X$305:X$316,$C$305:$C$316)>100,100, FORECAST($C302,X$305:X$316,$C$305:$C$316)))) -> 98.18084061 | AB302: =IF(MAX(C305:C316)-MIN(C305:C316)<5,AVERAGEIF(C305:C316,">0",AB305:AB316), IF(FORECAST($C302,AB$305:AB$316,$C$305:$C$316)<0,0, IF(FORECAST($C302,AB$305:AB$316,$C$305:$C$316)>100,100, FORECAST($C302,AB$305:AB$316,$C$305:$C$316)))) -> 0
B304: Survey | C304: Year | D304: Improved | E304: Not shared | H304: Open defecation | I304: Improved | J304: Not shared | M304: Open defecation | N304: Improved | O304: Not shared | R304: Open defecation | S304: Improved | T304: Not shared | W304: Open defecation | X304: Improved | Y304: Not shared | AB304: Open defecation
B305: WHS03 | C305: 2003 | D305: =IF(ISERROR(INDIRECT(CONCATENATE($B305,"!M122"))),"",INDIRECT(CONCATENATE($B305,"!M122"))) -> 28.56381409 | E305: =IF(ISERROR(INDIRECT(CONCATENATE($B305,"!M129"))),"",INDIRECT(CONCATENATE($B305,"!M129"))) -> 75.46196801 | H305: =IF(ISERROR(INDIRECT(CONCATENATE($B305,"!M127"))),"",INDIRECT(CONCATENATE($B305,"!M127"))) -> 66.59599175 | I305: =IF(ISERROR(INDIRECT(CONCATENATE($B305,"!N122"))),"",INDIRECT(CONCATENATE($B305,"!N122"))) -> 39.92014198 | J305: =IF(ISERROR(INDIRECT(CONCATENATE($B305,"!N129"))),"",INDIRECT(CONCATENATE($B305,"!N129"))) -> 87.67432963 | M305: =IF(ISERROR(INDIRECT(CONCATENATE($B305,"!N127"))),"",INDIRECT(CONCATENATE($B305,"!N127"))) -> 55.60819066 | N305: =IF(ISERROR(INDIRECT(CONCATENATE($B305,"!O122"))),"",INDIRECT(CONCATENATE($B305,"!O122"))) -> 48.13603309 | O305: =IF(ISERROR(INDIRECT(CONCATENATE($B305,"!O129"))),"",INDIRECT(CONCATENATE($B305,"!O129"))) -> 86.12392262 | R305: =IF(ISERROR(INDIRECT(CONCATENATE($B305,"!O127"))),"",INDIRECT(CONCATENATE($B305,"!O127"))) -> 49.41646225 | S305: =IF(ISERROR(INDIRECT(CONCATENATE($B305,"!P122"))),"",INDIRECT(CONCATENATE($B305,"!P122"))) -> 61.82143552 | T305: =IF(ISERROR(INDIRECT(CONCATENATE($B305,"!P129"))),"",INDIRECT(CONCATENATE($B305,"!P129"))) -> 93.3868803 | W305: =IF(ISERROR(INDIRECT(CONCATENATE($B305,"!P127"))),"",INDIRECT(CONCATENATE($B305,"!P127"))) -> 36.79484372 | X305: =IF(ISERROR(INDIRECT(CONCATENATE($B305,"!Q122"))),"",INDIRECT(CONCATENATE($B305,"!Q122"))) -> 87.681083 | Y305: =IF(ISERROR(INDIRECT(CONCATENATE($B305,"!Q129"))),"",INDIRECT(CONCATENATE($B305,"!Q129"))) -> 94.28532655 | AB305: =IF(ISERROR(INDIRECT(CONCATENATE($B305,"!Q2127"))),"",INDIRECT(CONCATENATE($B305,"!Q127"))) -> 10.64775002
B306: DHS07 | C306: 2007 | D306: 9.233440821 | E306: 72.46571784 | H306: 77.07706533 | I306: 19.59249733 | J306: 78.91646392 | M306: 59.48536496 | N306: 31.95275023 | O306: 81.63029266 | R306: 41.3610393 | S306: 53.75040819 | T306: 89.174935 | W306: 20.89638139 | X306: 75.65671744 | Y306: 92.01567745 | AB306: 5.625255269
B307: DHS13 | C307: 2013 | D307: 18.19964195 | E307: 67.42333728 | H307: 71.61551771 | I307: 39.71951812 | J307: 75.17455204 | M307: 48.02663663 | N307: 64.54827967 | O307: 78.39394038 | R307: 23.82397475 | S307: 80.31487606 | T307: 82.61957229 | W307: 11.04779109 | X307: 91.5370536 | Y307: 89.24245567 | AB307: 2.099705393
B308: DHS18 | C308: 2018 | D308: 32.80906373 | E308: 73.28374793 | H308: 51.92898492 | I308: 57.63777038 | J308: 75.34785948 | M308: 29.65658766 | N308: 83.64787416 | O308: 80.98841844 | R308: 8.650066541 | S308: 93.06269492 | T308: 84.41972171 | W308: 1.747405674 | X308: 98.35486981 | Y308: 93.84414855 | AB308: 0.0163008076
B318: =CONCATENATE("Rural use of sanitation facilities, ",C299,"–",C300) -> Rural use of sanitation facilities, 2000–2020 | S318: Data points used for regression

Sheet Hygiene
B4: Access to hygiene facilities by wealth quintile (%)
B5: =IF(ISERROR(INDIRECT(CONCATENATE($E$32,"!A2"))),"",INDIRECT(CONCATENATE($E$32,"!A2"))) -> Pakistan
B7: =CONCATENATE("National ",IF(ISERROR(INDIRECT(CONCATENATE($E$32,"!A2"))),"",INDIRECT(CONCATENATE($E$32,"!A210")))) -> National Access to hygiene facilities | K7: =CONCATENATE("Urban ",IF(ISERROR(INDIRECT(CONCATENATE($E$32,"!A2"))),"",INDIRECT(CONCATENATE($E$32,"!A210")))) -> Urban Access to hygiene facilities | S7: =CONCATENATE("Rural ",IF(ISERROR(INDIRECT(CONCATENATE($E$32,"!A2"))),"",INDIRECT(CONCATENATE($E$32,"!A210")))) -> Rural Access to hygiene facilities
E32: =INDEX(B88:B100,A88) -> DHS13 | G32: =IF(ISERROR(INDIRECT(CONCATENATE($E$32,"!A2"))),"",INDIRECT(CONCATENATE($E$32,"!A2"))) -> Pakistan | K32: Poorest | N32: Poor | Q32: Middle | T32: Rich | W32: Richest
K33: Basic | L33: Limited | M33: No facility | N33: Basic | O33: Limited | P33: No facility | Q33: Basic | R33: Limited | S33: No facility | T33: Basic | U33: Limited | V33: No facility | W33: Basic | X33: Limited | Y33: No facility
B34: >>> Select Survey : | G34: NATIONAL | J34: =IF(ISERROR(INDIRECT(CONCATENATE(#REF!,"!A2"))),"",INDIRECT(CONCATENATE(#REF!,"!A210"))) ->  | K34: =IF(ISERROR(INDIRECT(CONCATENATE($E$32,"!C222"))),"",INDIRECT(CONCATENATE($E$32,"!C222"))) -> 15.2690382 | L34: =IF(ISERROR(INDIRECT(CONCATENATE($E$32,"!C223"))),"",INDIRECT(CONCATENATE($E$32,"!C223"))) -> 70.18023187 | M34: =IF(ISERROR(INDIRECT(CONCATENATE($E$32,"!C224"))),"",INDIRECT(CONCATENATE($E$32,"!C224"))) -> 14.55072993 | N34: =IF(ISERROR(INDIRECT(CONCATENATE($E$32,"!D222"))),"",INDIRECT(CONCATENATE($E$32,"!D222"))) -> 38.68279965 | O34: =IF(ISERROR(INDIRECT(CONCATENATE($E$32,"!D223"))),"",INDIRECT(CONCATENATE($E$32,"!D223"))) -> 49.42241705 | P34: =IF(ISERROR(INDIRECT(CONCATENATE($E$32,"!D224"))),"",INDIRECT(CONCATENATE($E$32,"!D224"))) -> 11.89478329 | Q34: =IF(ISERROR(INDIRECT(CONCATENATE($E$32,"!E222"))),"",INDIRECT(CONCATENATE($E$32,"!E222"))) -> 64.71663781 | R34: =IF(ISERROR(INDIRECT(CONCATENATE($E$32,"!E223"))),"",INDIRECT(CONCATENATE($E$32,"!E223"))) -> 28.8538998 | S34: =IF(ISERROR(INDIRECT(CONCATENATE($E$32,"!E224"))),"",INDIRECT(CONCATENATE($E$32,"!E224"))) -> 6.429462397 | T34: =IF(ISERROR(INDIRECT(CONCATENATE($E$32,"!F222"))),"",INDIRECT(CONCATENATE($E$32,"!F222"))) -> 83.18883957 | U34: =IF(ISERROR(INDIRECT(CONCATENATE($E$32,"!F223"))),"",INDIRECT(CONCATENATE($E$32,"!F223"))) -> 11.28340526 | V34: =IF(ISERROR(INDIRECT(CONCATENATE($E$32,"!F224"))),"",INDIRECT(CONCATENATE($E$32,"!F224"))) -> 5.527755175 | W34: =IF(ISERROR(INDIRECT(CONCATENATE($E$32,"!G222"))),"",INDIRECT(CONCATENATE($E$32,"!G222"))) -> 92.24240733 | X34: =IF(ISERROR(INDIRECT(CONCATENATE($E$32,"!G223"))),"",INDIRECT(CONCATENATE($E$32,"!G223"))) -> 3.365589389 | Y34: =IF(ISERROR(INDIRECT(CONCATENATE($E$32,"!G224"))),"",INDIRECT(CONCATENATE($E$32,"!G224"))) -> 4.392003282
G37: URBAN | J37: =IF(ISERROR(INDIRECT(CONCATENATE(#REF!,"!A2"))),"",INDIRECT(CONCATENATE(#REF!,"!A210"))) ->  | K37: =IF(ISERROR(INDIRECT(CONCATENATE($E$32,"!H222"))),"",INDIRECT(CONCATENATE($E$32,"!H222"))) -> 61.462108 | L37: =IF(ISERROR(INDIRECT(CONCATENATE($E$32,"!H223"))),"",INDIRECT(CONCATENATE($E$32,"!H223"))) -> 34.41673346 | M37: =IF(ISERROR(INDIRECT(CONCATENATE($E$32,"!H224"))),"",INDIRECT(CONCATENATE($E$32,"!H224"))) -> 4.121158535 | N37: =IF(ISERROR(INDIRECT(CONCATENATE($E$32,"!I222"))),"",INDIRECT(CONCATENATE($E$32,"!I222"))) -> 81.99075247 | O37: =IF(ISERROR(INDIRECT(CONCATENATE($E$32,"!I223"))),"",INDIRECT(CONCATENATE($E$32,"!I223"))) -> 13.16920665 | P37: =IF(ISERROR(INDIRECT(CONCATENATE($E$32,"!I224"))),"",INDIRECT(CONCATENATE($E$32,"!I224"))) -> 4.840040884 | Q37: =IF(ISERROR(INDIRECT(CONCATENATE($E$32,"!J222"))),"",INDIRECT(CONCATENATE($E$32,"!J222"))) -> 89.13669409 | R37: =IF(ISERROR(INDIRECT(CONCATENATE($E$32,"!J223"))),"",INDIRECT(CONCATENATE($E$32,"!J223"))) -> 5.819083331 | S37: =IF(ISERROR(INDIRECT(CONCATENATE($E$32,"!J224"))),"",INDIRECT(CONCATENATE($E$32,"!J224"))) -> 5.044222583 | T37: =IF(ISERROR(INDIRECT(CONCATENATE($E$32,"!K222"))),"",INDIRECT(CONCATENATE($E$32,"!K222"))) -> 92.28479935 | U37: =IF(ISERROR(INDIRECT(CONCATENATE($E$32,"!K223"))),"",INDIRECT(CONCATENATE($E$32,"!K223"))) -> 3.20592364 | V37: =IF(ISERROR(INDIRECT(CONCATENATE($E$32,"!K224"))),"",INDIRECT(CONCATENATE($E$32,"!K224"))) -> 4.509277013 | W37: =IF(ISERROR(INDIRECT(CONCATENATE($E$32,"!L222"))),"",INDIRECT(CONCATENATE($E$32,"!L222"))) -> 93.93971724 | X37: =IF(ISERROR(INDIRECT(CONCATENATE($E$32,"!L223"))),"",INDIRECT(CONCATENATE($E$32,"!L223"))) -> 2.625130917 | Y37: =IF(ISERROR(INDIRECT(CONCATENATE($E$32,"!L224"))),"",INDIRECT(CONCATENATE($E$32,"!L224"))) -> 3.435151838
G40: RURAL | J40: =IF(ISERROR(INDIRECT(CONCATENATE(#REF!,"!A2"))),"",INDIRECT(CONCATENATE(#REF!,"!A210"))) ->  | K40: =IF(ISERROR(INDIRECT(CONCATENATE($E$32,"!M222"))),"",INDIRECT(CONCATENATE($E$32,"!M222"))) -> 10.98725461 | L40: =IF(ISERROR(INDIRECT(CONCATENATE($E$32,"!M223"))),"",INDIRECT(CONCATENATE($E$32,"!M223"))) -> 73.42958785 | M40: =IF(ISERROR(INDIRECT(CONCATENATE($E$32,"!M224"))),"",INDIRECT(CONCATENATE($E$32,"!M224"))) -> 15.58315753 | N40: =IF(ISERROR(INDIRECT(CONCATENATE($E$32,"!N222"))),"",INDIRECT(CONCATENATE($E$32,"!N222"))) -> 26.17355257 | O40: =IF(ISERROR(INDIRECT(CONCATENATE($E$32,"!N223"))),"",INDIRECT(CONCATENATE($E$32,"!N223"))) -> 59.5291241 | P40: =IF(ISERROR(INDIRECT(CONCATENATE($E$32,"!N224"))),"",INDIRECT(CONCATENATE($E$32,"!N224"))) -> 14.29732333 | Q40: =IF(ISERROR(INDIRECT(CONCATENATE($E$32,"!O222"))),"",INDIRECT(CONCATENATE($E$32,"!O222"))) -> 47.00653336 | R40: =IF(ISERROR(INDIRECT(CONCATENATE($E$32,"!O223"))),"",INDIRECT(CONCATENATE($E$32,"!O223"))) -> 42.83802694 | S40: =IF(ISERROR(INDIRECT(CONCATENATE($E$32,"!O224"))),"",INDIRECT(CONCATENATE($E$32,"!O224"))) -> 10.15543969 | T40: =IF(ISERROR(INDIRECT(CONCATENATE($E$32,"!P222"))),"",INDIRECT(CONCATENATE($E$32,"!P222"))) -> 65.11774718 | U40: =IF(ISERROR(INDIRECT(CONCATENATE($E$32,"!P223"))),"",INDIRECT(CONCATENATE($E$32,"!P223"))) -> 27.99662268 | V40: =IF(ISERROR(INDIRECT(CONCATENATE($E$32,"!P224"))),"",INDIRECT(CONCATENATE($E$32,"!P224"))) -> 6.885630146 | W40: =IF(ISERROR(INDIRECT(CONCATENATE($E$32,"!Q222"))),"",INDIRECT(CONCATENATE($E$32,"!Q222"))) -> 83.87067573 | X40: =IF(ISERROR(INDIRECT(CONCATENATE($E$32,"!Q223"))),"",INDIRECT(CONCATENATE($E$32,"!Q223"))) -> 10.09638986 | Y40: =IF(ISERROR(INDIRECT(CONCATENATE($E$32,"!Q224"))),"",INDIRECT(CONCATENATE($E$32,"!Q224"))) -> 6.032934402
A88: 3 | B88: WHS03
B89: DHS07
B90: DHS13
B91: DHS18
B92: Template

Sheet WHS03
A2: =A1026 -> Pakistan
A3: =A1034 -> 2003
A4: Use of drinking water sources
A5: by wealth quintile and sub-national region
A6: Notes:
A7: WHO/UNICEF JMP customised wealth index excludes water,
A8: sanitation and hygiene assets.
A9: Survey used for analysis: | B9: =A1025 -> WHS03
A10: Time to source based on: | B10: DHS07
A11: =B1027 -> 
A14: Use of drinking water sources | C14: NATIONAL wealth index quintile | H14: URBAN wealth index quintile | M14: RURAL wealth index quintile | BA14: Raw numbers of respondents: | BB14: Use of drinking water sources | BC14: NATIONAL wealth index quintile | BH14: URBAN wealth index quintile | BM14: RURAL wealth index quintile
A15: Weighted percentage (used in graphs) | C15: Poorest | D15: Poor | E15: Middle | F15: Rich | G15: Richest | H15: Poorest | I15: Poor | J15: Middle | K15: Rich | L15: Richest | M15: Poorest | N15: Poor | O15: Middle | P15: Rich | Q15: Richest | BA15: Water data, raw numbers (weighted) | BC15: Poorest | BD15: Poor | BE15: Middle | BF15: Rich | BG15: Richest | BH15: Poorest | BI15: Poor | BJ15: Middle | BK15: Rich | BL15: Richest | BM15: Poorest | BN15: Poor | BO15: Middle | BP15: Rich | BQ15: Richest
A16: Water | B16: Improved | C16: =C58+C59+C60+C61+C63+C65 -> 87.13245261 | D16: 90.00696276 | E16: 94.71523913 | F16: 96.92151936 | G16: 99.25091503 | H16: 97.650145 | I16: 99.60997636 | J16: 99.70458147 | K16: 99.34481428 | L16: 99.87343408 | M16: 85.8062466 | N16: 86.83190498 | O16: 90.31001402 | P16: 94.12816925 | Q16: 97.68065378 | BA16: Water | BB16: Improved | BC16: N/A | BD16: N/A | BE16: N/A | BF16: N/A | BG16: N/A | BH16: N/A | BI16: N/A | BJ16: N/A | BK16: N/A | BL16: N/A | BM16: N/A | BN16: N/A | BO16: N/A | BP16: N/A | BQ16: N/A
B17: Not Improved | C17: =100-C16 -> 12.86754739 | D17: =100-D16 -> 9.99303724 | E17: 5.284760875 | F17: 3.078480636 | G17: 0.749084967 | H17: 2.349855 | I17: 0.3900236357 | J17: 0.2954185302 | K17: 0.655185717 | L17: 0.1265659223 | M17: 14.1937534 | N17: 13.16809502 | O17: 9.689985983 | P17: 5.871830749 | Q17: 2.319346224 | BB17: Not Improved | BC17: N/A | BD17: N/A | BE17: N/A | BF17: N/A | BG17: N/A | BH17: N/A | BI17: N/A | BJ17: N/A | BK17: N/A | BL17: N/A | BM17: N/A | BN17: N/A | BO17: N/A | BP17: N/A | BQ17: N/A
A18: Water ladder | B18: Basic | C18: =C16*'DHS07'!C23/100 -> 80.75165455 | D18: =D16*'DHS07'!D23/100 -> 86.74726319 | E18: =E16*'DHS07'!E23/100 -> 92.64881004 | F18: =F16*'DHS07'!F23/100 -> 94.72382049 | G18: =G16*'DHS07'!G23/100 -> 97.8068043 | H18: =H16*'DHS07'!H23/100 -> 93.9959 | I18: =I16*'DHS07'!I23/100 -> 97.54119732 | J18: =J16*'DHS07'!J23/100 -> 98.02736089 | K18: =K16*'DHS07'!K23/100 -> 98.00731504 | L18: =L16*'DHS07'!L23/100 -> 98.38054909 | M18: =M16*'DHS07'!M23/100 -> 78.73238895 | N18: =N16*'DHS07'!N23/100 -> 82.81577175 | O18: =O16*'DHS07'!O23/100 -> 87.52903021 | P18: =P16*'DHS07'!P23/100 -> 91.53360452 | Q18: =Q16*'DHS07'!Q23/100 -> 96.19593464 | BA18: Water ladder | BB18: Basic | BC18: N/A | BD18: N/A | BE18: N/A | BF18: N/A | BG18: N/A | BH18: N/A | BI18: N/A | BJ18: N/A | BK18: N/A | BL18: N/A | BM18: N/A | BN18: N/A | BO18: N/A | BP18: N/A | BQ18: N/A
B19: Limited | C19: =C16*'DHS07'!C22/100 -> 6.380798062 | D19: =D16*'DHS07'!D22/100 -> 3.259699566 | E19: =E16*'DHS07'!E22/100 -> 2.06642908 | F19: =F16*'DHS07'!F22/100 -> 2.197698877 | G19: =G16*'DHS07'!G22/100 -> 1.444110729 | H19: =H16*'DHS07'!H22/100 -> 3.654245003 | I19: =I16*'DHS07'!I22/100 -> 2.068779041 | J19: =J16*'DHS07'!J22/100 -> 1.677220583 | K19: =K16*'DHS07'!K22/100 -> 1.337499245 | L19: =L16*'DHS07'!L22/100 -> 1.492884983 | M19: =M16*'DHS07'!M22/100 -> 7.073857643 | N19: =N16*'DHS07'!N22/100 -> 4.016133232 | O19: =O16*'DHS07'!O22/100 -> 2.78098381 | P19: =P16*'DHS07'!P22/100 -> 2.594564727 | Q19: =Q16*'DHS07'!Q22/100 -> 1.484719137 | BB19: Limited | BC19: N/A | BD19: N/A | BE19: N/A | BF19: N/A | BG19: N/A | BH19: N/A | BI19: N/A | BJ19: N/A | BK19: N/A | BL19: N/A | BM19: N/A | BN19: N/A | BO19: N/A | BP19: N/A | BQ19: N/A
B20: Unimproved | C20: =100-C18-C19-C21 -> 6.561438486 | D20: =100-D18-D19-D21 -> 4.087729442 | E20: =100-E18-E19-E21 -> 1.766985855 | F20: 0.7674355511 | G20: -0.4046103872 | H20: 1.596691362 | I20: 0.3900236357 | J20: 0.2954185302 | K20: -0.003843889991 | L20: 0.1265659223 | M20: 7.436472072 | N20: 4.790808523 | O20: 3.574376523 | P20: 0.3811157265 | Q20: 0.2480086307 | BB20: Unimproved | BC20: N/A | BD20: N/A | BE20: N/A | BF20: N/A | BG20: N/A | BH20: N/A | BI20: N/A | BJ20: N/A | BK20: N/A | BL20: N/A | BM20: N/A | BN20: N/A | BO20: N/A | BP20: N/A | BQ20: N/A
B21: Surface water | C21: 6.3061089 | D21: 5.905307798 | E21: 3.51777502 | F21: 2.311045085 | G21: 1.153695354 | H21: 0.7531636382 | I21: 0 | J21: 0 | K21: 0.6590296069 | L21: 0 | M21: 6.757281332 | N21: 8.377286497 | O21: 6.11560946 | P21: 5.490715022 | Q21: 2.071337594 | BB21: Surface water | BC21: N/A | BD21: N/A | BE21: N/A | BF21: N/A | BG21: N/A | BH21: N/A | BI21: N/A | BJ21: N/A | BK21: N/A | BL21: N/A | BM21: N/A | BN21: N/A | BO21: N/A | BP21: N/A | BQ21: N/A
A22: Improved water point at more than 30 minutes | B22: Yes | C22: 10.47963824 | D22: 6.611305564 | E22: 3.966824819 | F22: 4.467736501 | G22: 4.553527263 | H22: 2.204987193 | I22: 0.5900958494 | J22: 3.603877771 | K22: 6.634416578 | L22: 7.648058355 | M22: 13.47995074 | N22: 8.542593491 | O22: 5.499881083 | P22: 6.060639147 | Q22: 2.782452781 | BA22: Improved water point at more than 30 minutes | BB22: Yes | BC22: N/A | BD22: N/A | BE22: N/A | BF22: N/A | BG22: N/A | BH22: N/A | BI22: N/A | BJ22: N/A | BK22: N/A | BL22: N/A | BM22: N/A | BN22: N/A | BO22: N/A | BP22: N/A | BQ22: N/A
B23: No | C23: 89.52036176 | D23: 93.38869444 | E23: 96.03317518 | F23: 95.5322635 | G23: 95.44647274 | H23: 97.79501281 | I23: 99.40990415 | J23: 96.39612223 | K23: 93.36558342 | L23: 92.35194164 | M23: 86.52004926 | N23: 91.45740651 | O23: 94.50011892 | P23: 93.93936085 | Q23: 97.21754722 | BB23: No | BC23: N/A | BD23: N/A | BE23: N/A | BF23: N/A | BG23: N/A | BH23: N/A | BI23: N/A | BJ23: N/A | BK23: N/A | BL23: N/A | BM23: N/A | BN23: N/A | BO23: N/A | BP23: N/A | BQ23: N/A
A24: Manually calculated ratios | B24: Improved wells
B25: Improved springs
B26: Other
C27: NATIONAL wealth index quintile | H27: URBAN wealth index quintile | M27: RURAL wealth index quintile | BA27: Raw numbers of respondents: | BB27: Use of drinking water sources | BC27: NATIONAL wealth index quintile | BH27: URBAN wealth index quintile | BM27: RURAL wealth index quintile
A28: Percentage based on weighted population | C28: Poorest | D28: Poor | E28: Middle | F28: Rich | G28: Richest | H28: Poorest | I28: Poor | J28: Middle | K28: Rich | L28: Richest | M28: Poorest | N28: Poor | O28: Middle | P28: Rich | Q28: Richest | BA28: Water data, raw numbers (weighted) | BC28: Poorest | BD28: Poor | BE28: Middle | BF28: Rich | BG28: Richest | BH28: Poorest | BI28: Poor | BJ28: Middle | BK28: Rich | BL28: Richest | BM28: Poorest | BN28: Poor | BO28: Middle | BP28: Rich | BQ28: Richest
A29: Piped water | B29: Yes | C29: 53.66722625 | D29: 55.3946698 | E29: 63.21788903 | F29: 52.28143672 | G29: 64.74100801 | H29: 72.36663883 | I29: 80.84402322 | J29: 56.57135096 | K29: 59.49901072 | L29: 74.69983996 | M29: 51.22608955 | N29: 50.20678768 | O29: 52.56203301 | P29: 54.17514543 | Q29: 52.41306586 | BA29: Piped water | BB29: Yes | BC29: N/A | BD29: N/A | BE29: N/A | BF29: N/A | BG29: N/A | BH29: N/A | BI29: N/A | BJ29: N/A | BK29: N/A | BL29: N/A | BM29: N/A | BN29: N/A | BO29: N/A | BP29: N/A | BQ29: N/A
B30: No | C30: 46.33277375 | D30: 44.6053302 | E30: 36.78211097 | F30: 47.71856328 | G30: 35.25899199 | H30: 27.63336117 | I30: 19.15597678 | J30: 43.42864904 | K30: 40.50098928 | L30: 25.30016004 | M30: 48.77391045 | N30: 49.79321232 | O30: 47.43796699 | P30: 45.82485457 | Q30: 47.58693414 | BB30: No | BC30: N/A | BD30: N/A | BE30: N/A | BF30: N/A | BG30: N/A | BH30: N/A | BI30: N/A | BJ30: N/A | BK30: N/A | BL30: N/A | BM30: N/A | BN30: N/A | BO30: N/A | BP30: N/A | BQ30: N/A
A31: Piped water on premises | B31: Yes | C31: 10.67805281 | D31: 24.03981709 | E31: 19.55969977 | F31: 24.61654037 | G31: 57.71174006 | H31: 17.71907378 | I31: 17.34989807 | J31: 23.89970764 | K31: 47.67452327 | L31: 71.96823234 | M31: 10.6528278 | N31: 20.02201496 | O31: 20.15984746 | P31: 26.61763399 | Q31: 37.63351933 | BA31: Piped water on premises | BB31: Yes | BC31: N/A | BD31: N/A | BE31: N/A | BF31: N/A | BG31: N/A | BH31: N/A | BI31: N/A | BJ31: N/A | BK31: N/A | BL31: N/A | BM31: N/A | BN31: N/A | BO31: N/A | BP31: N/A | BQ31: N/A
B32: No | C32: 89.32194719 | D32: 75.96018291 | E32: 80.44030023 | F32: 75.38345963 | G32: 42.28825994 | H32: 82.28092622 | I32: 82.65010193 | J32: 76.10029236 | K32: 52.32547673 | L32: 28.03176766 | M32: 89.3471722 | N32: 79.97798504 | O32: 79.84015254 | P32: 73.38236601 | Q32: 62.36648067 | BB32: No | BC32: N/A | BD32: N/A | BE32: N/A | BF32: N/A | BG32: N/A | BH32: N/A | BI32: N/A | BJ32: N/A | BK32: N/A | BL32: N/A | BM32: N/A | BN32: N/A | BO32: N/A | BP32: N/A | BQ32: N/A
A33: Piped water into dwelling | B33: Yes | C33: N/A | D33: N/A | E33: N/A | F33: N/A | G33: N/A | H33: N/A | I33: N/A | J33: N/A | K33: N/A | L33: N/A | M33: N/A | N33: N/A | O33: N/A | P33: N/A | Q33: N/A | BA33: Piped water into dwelling | BB33: Yes | BC33: N/A | BD33: N/A | BE33: N/A | BF33: N/A | BG33: N/A | BH33: N/A | BI33: N/A | BJ33: N/A | BK33: N/A | BL33: N/A | BM33: N/A | BN33: N/A | BO33: N/A | BP33: N/A | BQ33: N/A
B34: No | C34: N/A | D34: N/A | E34: N/A | F34: N/A | G34: N/A | H34: N/A | I34: N/A | J34: N/A | K34: N/A | L34: N/A | M34: N/A | N34: N/A | O34: N/A | P34: N/A | Q34: N/A | BB34: No | BC34: N/A | BD34: N/A | BE34: N/A | BF34: N/A | BG34: N/A | BH34: N/A | BI34: N/A | BJ34: N/A | BK34: N/A | BL34: N/A | BM34: N/A | BN34: N/A | BO34: N/A | BP34: N/A | BQ34: N/A
A35: Water source on premises | B35: Yes | C35: N/A | D35: N/A | E35: N/A | F35: N/A | G35: N/A | H35: N/A | I35: N/A | J35: N/A | K35: N/A | L35: N/A | M35: N/A | N35: N/A | O35: N/A | P35: N/A | Q35: N/A | BA35: Water source on premises | BB35: Yes | BC35: N/A | BD35: N/A | BE35: N/A | BF35: N/A | BG35: N/A | BH35: N/A | BI35: N/A | BJ35: N/A | BK35: N/A | BL35: N/A | BM35: N/A | BN35: N/A | BO35: N/A | BP35: N/A | BQ35: N/A
B36: No | C36: N/A | D36: N/A | E36: N/A | F36: N/A | G36: N/A | H36: N/A | I36: N/A | J36: N/A | K36: N/A | L36: N/A | M36: N/A | N36: N/A | O36: N/A | P36: N/A | Q36: N/A | BB36: No | BC36: N/A | BD36: N/A | BE36: N/A | BF36: N/A | BG36: N/A | BH36: N/A | BI36: N/A | BJ36: N/A | BK36: N/A | BL36: N/A | BM36: N/A | BN36: N/A | BO36: N/A | BP36: N/A | BQ36: N/A
A37: Improved Water source on premises | B37: Yes | C37: N/A | D37: N/A | E37: N/A | F37: N/A | G37: N/A | H37: N/A | I37: N/A | J37: N/A | K37: N/A | L37: N/A | M37: N/A | N37: N/A | O37: N/A | P37: N/A | Q37: N/A | BA37: Improved water source on premises | BB37: Yes | BC37: N/A | BD37: N/A | BE37: N/A | BF37: N/A | BG37: N/A | BH37: N/A | BI37: N/A | BJ37: N/A | BK37: N/A | BL37: N/A | BM37: N/A | BN37: N/A | BO37: N/A | BP37: N/A | BQ37: N/A
B38: No | C38: N/A | D38: N/A | E38: N/A | F38: N/A | G38: N/A | H38: N/A | I38: N/A | J38: N/A | K38: N/A | L38: N/A | M38: N/A | N38: N/A | O38: N/A | P38: N/A | Q38: N/A | BB38: No | BC38: N/A | BD38: N/A | BE38: N/A | BF38: N/A | BG38: N/A | BH38: N/A | BI38: N/A | BJ38: N/A | BK38: N/A | BL38: N/A | BM38: N/A | BN38: N/A | BO38: N/A | BP38: N/A | BQ38: N/A
A39: Piped water on premises available when needed | B39: Yes | C39: N/A | D39: N/A | E39: N/A | F39: N/A | G39: N/A | H39: N/A | I39: N/A | J39: N/A | K39: N/A | L39: N/A | M39: N/A | N39: N/A | O39: N/A | P39: N/A | Q39: N/A | BA39: Piped water on premises available when needed | BB39: Yes | BC39: N/A | BD39: N/A | BE39: N/A | BF39: N/A | BG39: N/A | BH39: N/A | BI39: N/A | BJ39: N/A | BK39: N/A | BL39: N/A | BM39: N/A | BN39: N/A | BO39: N/A | BP39: N/A | BQ39: N/A
B40: No | C40: N/A | D40: N/A | E40: N/A | F40: N/A | G40: N/A | H40: N/A | I40: N/A | J40: N/A | K40: N/A | L40: N/A | M40: N/A | N40: N/A | O40: N/A | P40: N/A | Q40: N/A | BB40: No | BC40: N/A | BD40: N/A | BE40: N/A | BF40: N/A | BG40: N/A | BH40: N/A | BI40: N/A | BJ40: N/A | BK40: N/A | BL40: N/A | BM40: N/A | BN40: N/A | BO40: N/A | BP40: N/A | BQ40: N/A
A41: Water point at more than 30 minutes | B41: Yes | C41: 12.45205414 | D41: 8.84978711 | E41: 4.964547802 | F41: 4.480092406 | G41: 5.011902895 | H41: 2.113056827 | I41: 0.4788157304 | J41: 2.349267351 | K41: 5.975900063 | L41: 7.386299275 | M41: 15.51487572 | N41: 11.30260186 | O41: 7.987389343 | P41: 7.909062208 | Q41: 3.290919351 | BA41: Water point at more than 30 minutes | BB41: Yes | BC41: N/A | BD41: N/A | BE41: N/A | BF41: N/A | BG41: N/A | BH41: N/A | BI41: N/A | BJ41: N/A | BK41: N/A | BL41: N/A | BM41: N/A | BN41: N/A | BO41: N/A | BP41: N/A | BQ41: N/A
B42: No | C42: 87.54794586 | D42: 91.15021289 | E42: 95.0354522 | F42: 95.51990759 | G42: 94.98809711 | H42: 97.88694317 | I42: 99.52118427 | J42: 97.65073265 | K42: 94.02409994 | L42: 92.61370072 | M42: 84.48512428 | N42: 88.69739814 | O42: 92.01261066 | P42: 92.09093779 | Q42: 96.70908065 | BB42: No | BC42: N/A | BD42: N/A | BE42: N/A | BF42: N/A | BG42: N/A | BH42: N/A | BI42: N/A | BJ42: N/A | BK42: N/A | BL42: N/A | BM42: N/A | BN42: N/A | BO42: N/A | BP42: N/A | BQ42: N/A
A43: Water source available when needed | B43: Yes | C43: N/A | D43: N/A | E43: N/A | F43: N/A | G43: N/A | H43: N/A | I43: N/A | J43: N/A | K43: N/A | L43: N/A | M43: N/A | N43: N/A | O43: N/A | P43: N/A | Q43: N/A | BA43: Water source available when needed | BB43: Yes | BC43: N/A | BD43: N/A | BE43: N/A | BF43: N/A | BG43: N/A | BH43: N/A | BI43: N/A | BJ43: N/A | BK43: N/A | BL43: N/A | BM43: N/A | BN43: N/A | BO43: N/A | BP43: N/A | BQ43: N/A
B44: No | C44: N/A | D44: N/A | E44: N/A | F44: N/A | G44: N/A | H44: N/A | I44: N/A | J44: N/A | K44: N/A | L44: N/A | M44: N/A | N44: N/A | O44: N/A | P44: N/A | Q44: N/A | BB44: No | BC44: N/A | BD44: N/A | BE44: N/A | BF44: N/A | BG44: N/A | BH44: N/A | BI44: N/A | BJ44: N/A | BK44: N/A | BL44: N/A | BM44: N/A | BN44: N/A | BO44: N/A | BP44: N/A | BQ44: N/A
A45: Improved water source available when needed | B45: Yes | C45: N/A | D45: N/A | E45: N/A | F45: N/A | G45: N/A | H45: N/A | I45: N/A | J45: N/A | K45: N/A | L45: N/A | M45: N/A | N45: N/A | O45: N/A | P45: N/A | Q45: N/A | BA45: Improved water source available when needed | BB45: Yes | BC45: N/A | BD45: N/A | BE45: N/A | BF45: N/A | BG45: N/A | BH45: N/A | BI45: N/A | BJ45: N/A | BK45: N/A | BL45: N/A | BM45: N/A | BN45: N/A | BO45: N/A | BP45: N/A | BQ45: N/A
B46: No | C46: N/A | D46: N/A | E46: N/A | F46: N/A | G46: N/A | H46: N/A | I46: N/A | J46: N/A | K46: N/A | L46: N/A | M46: N/A | N46: N/A | O46: N/A | P46: N/A | Q46: N/A | BB46: No | BC46: N/A | BD46: N/A | BE46: N/A | BF46: N/A | BG46: N/A | BH46: N/A | BI46: N/A | BJ46: N/A | BK46: N/A | BL46: N/A | BM46: N/A | BN46: N/A | BO46: N/A | BP46: N/A | BQ46: N/A
A47: Microbiological quality at point of collection | B47: Not contaminated (No E. coli in 100 mL) | C47: N/A | D47: N/A | E47: N/A | F47: N/A | G47: N/A | H47: N/A | I47: N/A | J47: N/A | K47: N/A | L47: N/A | M47: N/A | N47: N/A | O47: N/A | P47: N/A | Q47: N/A | BA47: Microbiological quality at point of collection | BB47: Not contaminated (No E. coli in 100 mL) | BC47: N/A | BD47: N/A | BE47: N/A | BF47: N/A | BG47: N/A | BH47: N/A | BI47: N/A | BJ47: N/A | BK47: N/A | BL47: N/A | BM47: N/A | BN47: N/A | BO47: N/A | BP47: N/A | BQ47: N/A
B48: Contaminated (E. coli detected in 100 mL) | C48: N/A | D48: N/A | E48: N/A | F48: N/A | G48: N/A | H48: N/A | I48: N/A | J48: N/A | K48: N/A | L48: N/A | M48: N/A | N48: N/A | O48: N/A | P48: N/A | Q48: N/A | BB48: Contaminated (E. coli detected in 100 mL) | BC48: N/A | BD48: N/A | BE48: N/A | BF48: N/A | BG48: N/A | BH48: N/A | BI48: N/A | BJ48: N/A | BK48: N/A | BL48: N/A | BM48: N/A | BN48: N/A | BO48: N/A | BP48: N/A | BQ48: N/A
B49: Highly contaminated (>100 CFU/100 mL) | C49: N/A | D49: N/A | E49: N/A | F49: N/A | G49: N/A | H49: N/A | I49: N/A | J49: N/A | K49: N/A | L49: N/A | M49: N/A | N49: N/A | O49: N/A | P49: N/A | Q49: N/A | BB49: Highly contaminated (>100 CFU/100 mL) | BC49: N/A | BD49: N/A | BE49: N/A | BF49: N/A | BG49: N/A | BH49: N/A | BI49: N/A | BJ49: N/A | BK49: N/A | BL49: N/A | BM49: N/A | BN49: N/A | BO49: N/A | BP49: N/A | BQ49: N/A
A50: Microbiological quality of improved water sources at point of collection | B50: Not contaminated (No E. coli in 100 mL) | C50: N/A | D50: N/A | E50: N/A | F50: N/A | G50: N/A | H50: N/A | I50: N/A | J50: N/A | K50: N/A | L50: N/A | M50: N/A | N50: N/A | O50: N/A | P50: N/A | Q50: N/A | BA50: Microbiological quality of improved water sources at point of collection | BB50: Not contaminated (No E. coli in 100 mL) | BC50: N/A | BD50: N/A | BE50: N/A | BF50: N/A | BG50: N/A | BH50: N/A | BI50: N/A | BJ50: N/A | BK50: N/A | BL50: N/A | BM50: N/A | BN50: N/A | BO50: N/A | BP50: N/A | BQ50: N/A
B51: Contaminated (E. coli detected in 100 mL) | C51: N/A | D51: N/A | E51: N/A | F51: N/A | G51: N/A | H51: N/A | I51: N/A | J51: N/A | K51: N/A | L51: N/A | M51: N/A | N51: N/A | O51: N/A | P51: N/A | Q51: N/A | BB51: Contaminated (E. coli detected in 100 mL) | BC51: N/A | BD51: N/A | BE51: N/A | BF51: N/A | BG51: N/A | BH51: N/A | BI51: N/A | BJ51: N/A | BK51: N/A | BL51: N/A | BM51: N/A | BN51: N/A | BO51: N/A | BP51: N/A | BQ51: N/A
B52: Highly contaminated (>100 CFU/100 mL) | C52: N/A | D52: N/A | E52: N/A | F52: N/A | G52: N/A | H52: N/A | I52: N/A | J52: N/A | K52: N/A | L52: N/A | M52: N/A | N52: N/A | O52: N/A | P52: N/A | Q52: N/A | BB52: Highly contaminated (>100 CFU/100 mL) | BC52: N/A | BD52: N/A | BE52: N/A | BF52: N/A | BG52: N/A | BH52: N/A | BI52: N/A | BJ52: N/A | BK52: N/A | BL52: N/A | BM52: N/A | BN52: N/A | BO52: N/A | BP52: N/A | BQ52: N/A
A53: Microbiological quality of piped on premises at point of collection | B53: Not contaminated (No E. coli in 100 mL) | C53: N/A | D53: N/A | E53: N/A | F53: N/A | G53: N/A | H53: N/A | I53: N/A | J53: N/A | K53: N/A | L53: N/A | M53: N/A | N53: N/A | O53: N/A | P53: N/A | Q53: N/A | BA53: Microbiological quality of piped on premises at point of collection | BB53: Not contaminated (No E. coli in 100 mL) | BC53: N/A | BD53: N/A | BE53: N/A | BF53: N/A | BG53: N/A | BH53: N/A | BI53: N/A | BJ53: N/A | BK53: N/A | BL53: N/A | BM53: N/A | BN53: N/A | BO53: N/A | BP53: N/A | BQ53: N/A
B54: Contaminated (E. coli detected in 100 mL) | C54: N/A | D54: N/A | E54: N/A | F54: N/A | G54: N/A | H54: N/A | I54: N/A | J54: N/A | K54: N/A | L54: N/A | M54: N/A | N54: N/A | O54: N/A | P54: N/A | Q54: N/A | BB54: Contaminated (E. coli detected in 100 mL) | BC54: N/A | BD54: N/A | BE54: N/A | BF54: N/A | BG54: N/A | BH54: N/A | BI54: N/A | BJ54: N/A | BK54: N/A | BL54: N/A | BM54: N/A | BN54: N/A | BO54: N/A | BP54: N/A | BQ54: N/A
B55: Highly contaminated (>100 CFU/100 mL) | C55: N/A | D55: N/A | E55: N/A | F55: N/A | G55: N/A | H55: N/A | I55: N/A | J55: N/A | K55: N/A | L55: N/A | M55: N/A | N55: N/A | O55: N/A | P55: N/A | Q55: N/A | BB55: Highly contaminated (>100 CFU/100 mL) | BC55: N/A | BD55: N/A | BE55: N/A | BF55: N/A | BG55: N/A | BH55: N/A | BI55: N/A | BJ55: N/A | BK55: N/A | BL55: N/A | BM55: N/A | BN55: N/A | BO55: N/A | BP55: N/A | BQ55: N/A
C56: NATIONAL wealth index quintile | H56: URBAN wealth index quintile | M56: RURAL wealth index quintile | BA56: Raw numbers of respondents: | BB56: Use of drinking water sources | BC56: NATIONAL wealth index quintile | BH56: URBAN wealth index quintile | BM56: RURAL wealth index quintile
A57: Percentage based on weighted population | C57: Poorest | D57: Poor | E57: Middle | F57: Rich | G57: Richest | H57: Poorest | I57: Poor | J57: Middle | K57: Rich | L57: Richest | M57: Poorest | N57: Poor | O57: Middle | P57: Rich | Q57: Richest | BA57: Water data, raw numbers (weighted) | BC57: Poorest | BD57: Poor | BE57: Middle | BF57: Rich | BG57: Richest | BH57: Poorest | BI57: Poor | BJ57: Middle | BK57: Rich | BL57: Richest | BM57: Poorest | BN57: Poor | BO57: Middle | BP57: Rich | BQ57: Richest
A58: main source of drinking water | B58: Piped water through house connection or yard | C58: 11.07404256 | D58: 25.07771211 | E58: 21.38820428 | F58: 28.07734603 | G58: 60.62715527 | H58: 19.88141143 | I58: 20.46507973 | J58: 33.69771021 | K58: 56.08804716 | L58: 74.24265144 | M58: 10.87752163 | N58: 20.53779018 | O58: 20.6766605 | P58: 27.36543659 | Q58: 38.85049801
B59: Public standpipe | C59: 44.58340344 | D59: 32.70856706 | E59: 47.73949912 | F59: 31.5542662 | G59: 7.384364414 | H59: 61.3164513 | I59: 74.89452266 | J59: 46.06581742 | K59: 13.91125416 | L59: 2.81793489 | M59: 41.42904968 | N59: 30.96234471 | O59: 33.23284025 | P59: 28.3317192 | Q59: 15.25748198
B60: Protected tube well or bore hole | C60: 16.20069238 | D60: 19.0738079 | E60: 16.41237188 | F60: 28.078837 | G60: 24.2976365 | H60: 11.6946722 | I60: 3.252122197 | J60: 14.76609041 | K60: 20.20510728 | L60: 17.58777888 | M60: 14.34067587 | N60: 21.06679423 | O60: 23.77027472 | P60: 26.9857174 | Q60: 34.02165438
B61: Protected dug well or protected spring | C61: 14.06312579 | D61: 11.46396265 | E61: 8.226912759 | F61: 7.967075604 | G61: 3.842869422 | H61: 4.023303453 | I61: 0.8861201395 | J61: 3.246130621 | K61: 3.889035555 | L61: 0.6076799258 | M61: 18.00187135 | N61: 12.32700032 | O61: 11.28786183 | P61: 10.15084191 | Q61: 9.153984312
B62: Unprotected dug well or spring | C62: 7.151388925 | D62: 5.553235911 | E62: 2.412901732 | F62: 1.387080743 | G62: 0.2896324672 | H62: 1.631916559 | I62: 0.3900236357 | J62: 0.2954185302 | K62: 0.260319155 | L62: 0.1265659223 | M62: 8.128586564 | N62: 6.762717382 | O62: 5.147541 | P62: 2.303963832 | Q62: 1.158071497
B63: Rainwater (into tank or cistern ) | C63: 0.465956416 | D63: 0.370542009 | E63: 0.4112174891 | F63: 0.02978470846 | G63: 0.03209807316 | H63: 0.09270891645 | I63: 0 | J63: 0 | K63: 0 | L63: 0 | M63: 0.6023818198 | N63: 0.5033343113 | O63: 0.3172369214 | P63: 0.4083499331 | Q63: 0.04783159827
B64: Water taken directly from pond-water or stream | C64: 5.71615846 | D64: 4.439801328 | E64: 2.871859143 | F64: 1.691399892 | G64: 0.4594524999 | H64: 0.7179384411 | I64: 0 | J64: 0 | K64: 0.3948665619 | L64: 0 | M64: 6.065166841 | N64: 6.405377638 | O64: 4.542444983 | P64: 3.567866917 | Q64: 1.161274727
B65: Tanker-truck, vendor | C65: 0.745232019 | D65: 1.312371036 | E65: 0.5370335934 | F65: 1.214209817 | G65: 3.066791356 | H65: 0.6415976929 | I65: 0.1121316377 | J65: 1.928832804 | K65: 5.251370124 | L65: 4.617388939 | M65: 0.5547462618 | N65: 1.434641229 | O65: 1.025139791 | P65: 0.8861042245 | Q65: 0.3492034946
A108: =A1026 -> Pakistan
A109: =A1034 -> 2003
A110: Use of sanitation facilities
A111: by wealth quintile and sub-national region
A112: Notes:
A113: WHO/UNICEF JMP customised wealth index excludes water,
A114: sanitation and hygiene assets.
A115: Survey used for analysis: | B115: =A1025 -> WHS03
A116: Shared among improved based on: | B116: DHS07
A117: =B1029 -> 
A120: Use of sanitation facilities | C120: NATIONAL wealth index quintile | H120: URBAN wealth index quintile | M120: RURAL wealth index quintile | BA120: Raw numbers of respondents: | BB120: Use of sanitation facilities | BC120: NATIONAL wealth index quintile | BH120: URBAN wealth index quintile | BM120: RURAL wealth index quintile
A121: Weighted percentage (used in graphs) | C121: Poorest | D121: Poor | E121: Middle | F121: Rich | G121: Richest | H121: Poorest | I121: Poor | J121: Middle | K121: Rich | L121: Richest | M121: Poorest | N121: Poor | O121: Middle | P121: Rich | Q121: Richest | BA121: Sanitation data, raw numbers (weighted) | BC121: Poorest | BD121: Poor | BE121: Middle | BF121: Rich | BG121: Richest | BH121: Poorest | BI121: Poor | BJ121: Middle | BK121: Rich | BL121: Richest | BM121: Poorest | BN121: Poor | BO121: Middle | BP121: Rich | BQ121: Richest
A122: Sanitation | B122: Improved | C122: =C153+C154+C155+(C156+C157) -> 27.3722671 | D122: =D153+D154+D155+(D156+D157) -> 41.19300143 | E122: 57.64589498 | F122: 66.48723071 | G122: 97.85502817 | H122: 24.25077015 | I122: 69.3912017 | J122: 49.87813601 | K122: 93.04015613 | L122: 99.96352978 | M122: 28.56381409 | N122: 39.92014198 | O122: 48.13603309 | P122: 61.82143552 | Q122: 87.681083 | BA122: Sanitation | BB122: Improved | BC122: 694967.895 | BD122: 1134026.083 | BE122: 1787085.535 | BF122: 2071338.392 | BG122: 3024225.172 | BH122: 241197.913 | BI122: 789804.8679 | BJ122: 517651.6166 | BK122: 921338.4705 | BL122: 1070758.771 | BM122: 477334.9433 | BN122: 687004.8607 | BO122: 905402.9749 | BP122: 1263921.971 | BQ122: 1837226.688
B123: Not Improved | C123: =100-C122 -> 72.6277329 | D123: =100-D122 -> 58.80699857 | E123: 42.35410502 | F123: 33.51276929 | G123: 2.144971831 | H123: 75.74922985 | I123: 30.6087983 | J123: 50.12186399 | K123: 6.959843868 | L123: 0.03647021663 | M123: 71.43618591 | N123: 60.07985802 | O123: 51.86396691 | P123: 38.17856448 | Q123: 12.318917 | BB123: Not Improved | BC123: 2506294.945 | BD123: 2099046.252 | BE123: 1421702.18 | BF123: 1155422.729 | BG123: 192944.0841 | BH123: 835202.0565 | BI123: 355161.7337 | BJ123: 553372.4508 | BK123: 173395.5022 | BL123: 26941.14542 | BM123: 1642723.598 | BN123: 1432706.881 | BO123: 1217110.43 | BP123: 854456.2644 | BQ123: 284340.1289
A124: Sanitation ladder | B124: Basic | C124: =C122*'DHS07'!C129/100 -> 20.11038226 | D124: =D122*'DHS07'!D129/100 -> 33.77871081 | E124: =E122*'DHS07'!E129/100 -> 50.16907942 | F124: =F122*'DHS07'!F129/100 -> 60.67911088 | G124: =G122*'DHS07'!G129/100 -> 89.10161745 | H124: =H122*'DHS07'!H129/100 -> 20.1595405 | I124: =I122*'DHS07'!I129/100 -> 61.93970905 | J124: =J122*'DHS07'!J129/100 -> 45.96286438 | K124: =K122*'DHS07'!K129/100 -> 82.55461538 | L124: =L122*'DHS07'!L129/100 -> 91.06516393 | M124: =M122*'DHS07'!M129/100 -> 20.69897292 | N124: =N122*'DHS07'!N129/100 -> 31.50356444 | O124: =O122*'DHS07'!O129/100 -> 39.29358469 | P124: =P122*'DHS07'!P129/100 -> 55.12922494 | Q124: =Q122*'DHS07'!Q129/100 -> 80.68034252 | BA124: Sanitation ladder | BB124: Basic | BC124: 544135.737 | BD124: 1020484.072 | BE124: 940739.4483 | BF124: 1936631.065 | BG124: 2890949.737 | BH124: 218824.9117 | BI124: 73568.24512 | BJ124: 483973.0246 | BK124: 874807.7113 | BL124: 1043707.576 | BM124: 358887.8466 | BN124: 608231.136 | BO124: 788780.0462 | BP124: 1161753.414 | BQ124: 1720406.148
B125: Limited | C125: =C122*'DHS07'!C128/100 -> 7.261884841 | D125: =D122*'DHS07'!D128/100 -> 7.414290622 | E125: =E122*'DHS07'!E128/100 -> 7.476815563 | F125: =F122*'DHS07'!F128/100 -> 5.808119826 | G125: =G122*'DHS07'!G128/100 -> 8.753410717 | H125: =H122*'DHS07'!H128/100 -> 4.09122965 | I125: =I122*'DHS07'!I128/100 -> 7.451492647 | J125: =J122*'DHS07'!J128/100 -> 3.915271635 | K125: =K122*'DHS07'!K128/100 -> 10.48554075 | L125: =L122*'DHS07'!L128/100 -> 8.898365854 | M125: =M122*'DHS07'!M128/100 -> 7.864841166 | N125: =N122*'DHS07'!N128/100 -> 8.416577536 | O125: =O122*'DHS07'!O128/100 -> 8.842448402 | P125: =P122*'DHS07'!P128/100 -> 6.692210582 | Q125: =Q122*'DHS07'!Q128/100 -> 7.000740485 | BB125: Limited | BC125: 145458.9198 | BD125: 105245.9965 | BE125: 837835.7434 | BF125: 108119.2466 | BG125: 111898.6518 | BH125: 21513.33467 | BI125: 714416.2895 | BJ125: 30229.53925 | BK125: 43563.92571 | BL125: 20464.25812 | BM125: 113143.2085 | BN125: 76218.78351 | BO125: 111672.1716 | BP125: 78390.11761 | BQ125: 98946.92963
B126: Unimproved | C126: =100-C124-C125-C127 -> 4.312963718 | D126: =100-D124-D125-D127 -> 3.588927569 | E126: 2.991395624 | F126: 1.196519721 | G126: 0.5793754607 | H126: 3.391488741 | I126: 3.842367924 | J126: 0.7810979565 | K126: 0.3575152533 | L126: -1.306108e-13 | M126: 4.840194158 | N126: 4.471667363 | O126: 2.447504656 | P126: 1.383720753 | Q126: 1.67116698 | BB126: Unimproved | BC126: 327977.4408 | BD126: 326345.4428 | BE126: 162213.102 | BF126: 131296.7406 | BG126: 144395.0581 | BH126: 56343.35323 | BI126: 48695.04549 | BJ126: 35117.64805 | BK126: 107677.9272 | BL126: 26549.54541 | BM126: 239250.5812 | BN126: 260175.3947 | BO126: 176773.4717 | BP126: 81560.20093 | BQ126: 60084.61639
B127: Open defecation | C127: =C159 -> 68.31476918 | D127: =D159 -> 55.218071 | E127: 39.36270939 | F127: 32.31624957 | G127: 1.565596371 | H127: 72.35774111 | I127: 26.76643038 | J127: 49.34076603 | K127: 6.602328615 | L127: 0.03647021663 | M127: 66.59599175 | N127: 55.60819066 | O127: 49.41646225 | P127: 36.79484372 | Q127: 10.64775002 | BB127: Open defecation | BC127: 2178317.505 | BD127: 1772700.809 | BE127: 1259489.078 | BF127: 1024125.989 | BG127: 48549.026 | BH127: 778858.7033 | BI127: 306466.6883 | BJ127: 518254.8028 | BK127: 65717.57498 | BL127: 391.6000061 | BM127: 1403473.017 | BN127: 1172531.486 | BO127: 1040336.958 | BP127: 772896.0635 | BQ127: 224255.5125
A128: Shared among Improved Sanitation | B128: Yes | C128: 21.91234345 | D128: 11.51474965 | E128: 44.4473226 | F128: 5.473182758 | G128: 3.786365011 | H128: 13.29901007 | I128: 86.00135756 | J128: 5.879889391 | K128: 4.742426782 | L128: 1.911571582 | M128: 24.53803199 | N128: 12.32567037 | O128: 13.87607738 | P128: 6.613119699 | Q128: 5.71467345 | BA128: Shared among improved sanitation facilities | BB128: Yes | BC128: N/A | BD128: N/A | BE128: N/A | BF128: N/A | BG128: N/A | BH128: N/A | BI128: N/A | BJ128: N/A | BK128: N/A | BL128: N/A | BM128: N/A | BN128: N/A | BO128: N/A | BP128: N/A | BQ128: N/A
B129: No | C129: 78.08765655 | D129: 88.48525035 | E129: 55.5526774 | F129: 94.52681724 | G129: 96.21363499 | H129: 86.70098993 | I129: 13.99864244 | J129: 94.12011061 | K129: 95.25757322 | L129: 98.08842842 | M129: 75.46196801 | N129: 87.67432963 | O129: 86.12392262 | P129: 93.3868803 | Q129: 94.28532655 | BB129: No | BC129: N/A | BD129: N/A | BE129: N/A | BF129: N/A | BG129: N/A | BH129: N/A | BI129: N/A | BJ129: N/A | BK129: N/A | BL129: N/A | BM129: N/A | BN129: N/A | BO129: N/A | BP129: N/A | BQ129: N/A
A130: Manually calculated ratios | B130: Improved latrines
B131: Other
B132: Other
C133: NATIONAL wealth index quintile | H133: URBAN wealth index quintile | M133: RURAL wealth index quintile | BA133: Raw numbers of respondents: | BB133: Use of sanitation facilities | BC133: NATIONAL wealth index quintile | BH133: URBAN wealth index quintile | BM133: RURAL wealth index quintile
A134: Percentage based on weighted population | C134: Poorest | D134: Poor | E134: Middle | F134: Rich | G134: Richest | H134: Poorest | I134: Poor | J134: Middle | K134: Rich | L134: Richest | M134: Poorest | N134: Poor | O134: Middle | P134: Rich | Q134: Richest | BA134: Sanitation data, raw numbers (weighted) | BC134: Poorest | BD134: Poor | BE134: Middle | BF134: Rich | BG134: Richest | BH134: Poorest | BI134: Poor | BJ134: Middle | BK134: Rich | BL134: Richest | BM134: Poorest | BN134: Poor | BO134: Middle | BP134: Rich | BQ134: Richest
A135: Sanitation type | B135: Sewer connection | C135: 2.966628331 | D135: 3.973432493 | E135: 6.599675427 | F135: 9.493388928 | G135: 40.71465954 | H135: 2.480036525 | I135: 5.947143131 | J135: 8.200678142 | K135: 36.38728844 | L135: 59.85499736 | M135: 2.745102581 | N135: 4.696280147 | O135: 4.874481955 | P135: 8.591472401 | Q135: 17.44905546 | BA135: Sanitation type | BB135: Sewer connection | BC135: N/A | BD135: N/A | BE135: N/A | BF135: N/A | BG135: N/A | BH135: N/A | BI135: N/A | BJ135: N/A | BK135: N/A | BL135: N/A | BM135: N/A | BN135: N/A | BO135: N/A | BP135: N/A | BQ135: N/A
B136: Septic tank connection | C136: 0.4588184993 | D136: 3.186034659 | E136: 6.200073235 | F136: 17.90448626 | G136: 21.40747631 | H136: 2.728063031 | I136: 2.054467071 | J136: 15.65041514 | K136: 15.05012856 | L136: 18.03849512 | M136: 0.2054588501 | N136: 1.263866088 | O136: 6.858511879 | P136: 12.85463192 | Q136: 25.96138092 | BB136: Septic tank connection | BC136: N/A | BD136: N/A | BE136: N/A | BF136: N/A | BG136: N/A | BH136: N/A | BI136: N/A | BJ136: N/A | BK136: N/A | BL136: N/A | BM136: N/A | BN136: N/A | BO136: N/A | BP136: N/A | BQ136: N/A
B137: Improved latrines | C137: 18.28373263 | D137: 27.91633586 | E137: 42.89373104 | F137: 36.79461734 | G137: 31.88053952 | H137: 17.19973395 | I137: 60.97899297 | J137: 24.48130487 | K137: 32.72352926 | L137: 19.65218053 | M137: 19.56461605 | N137: 26.45015028 | O137: 30.92412074 | P137: 38.21849901 | Q137: 43.18719861 | BB137: Improved latrines | BC137: N/A | BD137: N/A | BE137: N/A | BF137: N/A | BG137: N/A | BH137: N/A | BI137: N/A | BJ137: N/A | BK137: N/A | BL137: N/A | BM137: N/A | BN137: N/A | BO137: N/A | BP137: N/A | BQ137: N/A
B138: Unimproved facilities | C138: 10.24525186 | D138: 10.09397282 | E138: 5.055276833 | F138: 4.068994749 | G138: 4.488264267 | H138: 5.234425383 | I138: 4.252966455 | J138: 3.278885052 | K138: 9.835990289 | L138: 2.418652404 | M138: 11.28509315 | N138: 12.2740932 | O138: 8.328497304 | P138: 3.85012457 | Q138: 2.832086923 | BB138: Unimproved facilities | BC138: N/A | BD138: N/A | BE138: N/A | BF138: N/A | BG138: N/A | BH138: N/A | BI138: N/A | BJ138: N/A | BK138: N/A | BL138: N/A | BM138: N/A | BN138: N/A | BO138: N/A | BP138: N/A | BQ138: N/A
B139: Open defecation | C139: 68.04556868 | D139: 54.83022417 | E139: 39.25124347 | F139: 31.73851272 | G139: 1.509060361 | H139: 72.35774111 | I139: 26.76643038 | J139: 48.3887168 | K139: 6.003063449 | L139: 0.03567459562 | M139: 66.19972938 | N139: 55.31561029 | O139: 49.01438812 | P139: 36.48527211 | Q139: 10.57027809 | BB139: Open defecation | BC139: N/A | BD139: N/A | BE139: N/A | BF139: N/A | BG139: N/A | BH139: N/A | BI139: N/A | BJ139: N/A | BK139: N/A | BL139: N/A | BM139: N/A | BN139: N/A | BO139: N/A | BP139: N/A | BQ139: N/A
A140: Septic tank emptying practices | B140: Not emptied/treated and disposed in situ | C140: N/A | D140: N/A | E140: N/A | F140: N/A | G140: N/A | H140: N/A | I140: N/A | J140: N/A | K140: N/A | L140: N/A | M140: N/A | N140: N/A | O140: N/A | P140: N/A | Q140: N/A | BA140: Septic tank emptying practices | BB140: Not emptied/treated and disposed in situ | BC140: N/A | BD140: N/A | BE140: N/A | BF140: N/A | BG140: N/A | BH140: N/A | BI140: N/A | BJ140: N/A | BK140: N/A | BL140: N/A | BM140: N/A | BN140: N/A | BO140: N/A | BP140: N/A | BQ140: N/A
B141: Emptied and buried on site | C141: N/A | D141: N/A | E141: N/A | F141: N/A | G141: N/A | H141: N/A | I141: N/A | J141: N/A | K141: N/A | L141: N/A | M141: N/A | N141: N/A | O141: N/A | P141: N/A | Q141: N/A | BB141: Emptied and buried on site | BC141: N/A | BD141: N/A | BE141: N/A | BF141: N/A | BG141: N/A | BH141: N/A | BI141: N/A | BJ141: N/A | BK141: N/A | BL141: N/A | BM141: N/A | BN141: N/A | BO141: N/A | BP141: N/A | BQ141: N/A
B142: Emptied and discharged locally | C142: N/A | D142: N/A | E142: N/A | F142: N/A | G142: N/A | H142: N/A | I142: N/A | J142: N/A | K142: N/A | L142: N/A | M142: N/A | N142: N/A | O142: N/A | P142: N/A | Q142: N/A | BB142: Emptied and discharged locally | BC142: N/A | BD142: N/A | BE142: N/A | BF142: N/A | BG142: N/A | BH142: N/A | BI142: N/A | BJ142: N/A | BK142: N/A | BL142: N/A | BM142: N/A | BN142: N/A | BO142: N/A | BP142: N/A | BQ142: N/A
B143: Emptied and removed offsite | C143: N/A | D143: N/A | E143: N/A | F143: N/A | G143: N/A | H143: N/A | I143: N/A | J143: N/A | K143: N/A | L143: N/A | M143: N/A | N143: N/A | O143: N/A | P143: N/A | Q143: N/A | BB143: Emptied and removed offsite | BC143: N/A | BD143: N/A | BE143: N/A | BF143: N/A | BG143: N/A | BH143: N/A | BI143: N/A | BJ143: N/A | BK143: N/A | BL143: N/A | BM143: N/A | BN143: N/A | BO143: N/A | BP143: N/A | BQ143: N/A
A144: Latrine emptying practices | B144: Not emptied/treated and disposed in situ | C144: N/A | D144: N/A | E144: N/A | F144: N/A | G144: N/A | H144: N/A | I144: N/A | J144: N/A | K144: N/A | L144: N/A | M144: N/A | N144: N/A | O144: N/A | P144: N/A | Q144: N/A | BA144: Latrine emptying practices | BB144: Not emptied/treated and disposed in situ | BC144: N/A | BD144: N/A | BE144: N/A | BF144: N/A | BG144: N/A | BH144: N/A | BI144: N/A | BJ144: N/A | BK144: N/A | BL144: N/A | BM144: N/A | BN144: N/A | BO144: N/A | BP144: N/A | BQ144: N/A
B145: Emptied and buried on site | C145: N/A | D145: N/A | E145: N/A | F145: N/A | G145: N/A | H145: N/A | I145: N/A | J145: N/A | K145: N/A | L145: N/A | M145: N/A | N145: N/A | O145: N/A | P145: N/A | Q145: N/A | BB145: Emptied and buried on site | BC145: N/A | BD145: N/A | BE145: N/A | BF145: N/A | BG145: N/A | BH145: N/A | BI145: N/A | BJ145: N/A | BK145: N/A | BL145: N/A | BM145: N/A | BN145: N/A | BO145: N/A | BP145: N/A | BQ145: N/A
B146: Emptied and discharged locally | C146: N/A | D146: N/A | E146: N/A | F146: N/A | G146: N/A | H146: N/A | I146: N/A | J146: N/A | K146: N/A | L146: N/A | M146: N/A | N146: N/A | O146: N/A | P146: N/A | Q146: N/A | BB146: Emptied and discharged locally | BC146: N/A | BD146: N/A | BE146: N/A | BF146: N/A | BG146: N/A | BH146: N/A | BI146: N/A | BJ146: N/A | BK146: N/A | BL146: N/A | BM146: N/A | BN146: N/A | BO146: N/A | BP146: N/A | BQ146: N/A
B147: Emptied and removed offsite | C147: N/A | D147: N/A | E147: N/A | F147: N/A | G147: N/A | H147: N/A | I147: N/A | J147: N/A | K147: N/A | L147: N/A | M147: N/A | N147: N/A | O147: N/A | P147: N/A | Q147: N/A | BB147: Emptied and removed offsite | BC147: N/A | BD147: N/A | BE147: N/A | BF147: N/A | BG147: N/A | BH147: N/A | BI147: N/A | BJ147: N/A | BK147: N/A | BL147: N/A | BM147: N/A | BN147: N/A | BO147: N/A | BP147: N/A | BQ147: N/A
A148: Shared among improved sanitation facilities | B148: Yes | C148: 7.015716442 | D148: 5.128101713 | E148: 26.99679129 | F148: 3.608304311 | G148: 3.574185993 | H148: 3.813995744 | I148: 62.81812296 | J148: 2.894704253 | K148: 4.023305826 | L148: 1.864285295 | M148: 8.182274708 | N148: 5.364099553 | O148: 7.114200742 | P148: 4.121970109 | Q148: 5.032700483 | BA148: Shared among improved sanitation facilities | BB148: Yes | BC148: N/A | BD148: N/A | BE148: N/A | BF148: N/A | BG148: N/A | BH148: N/A | BI148: N/A | BJ148: N/A | BK148: N/A | BL148: N/A | BM148: N/A | BN148: N/A | BO148: N/A | BP148: N/A | BQ148: N/A
B149: No | C149: 25.00147268 | D149: 39.40696738 | E149: 33.74205575 | F149: 62.3186795 | G149: 90.82204847 | H149: 24.86479857 | I149: 10.22505303 | J149: 46.33588599 | K149: 80.81312942 | L149: 95.66202826 | M149: 25.16300218 | N149: 38.15563928 | O149: 44.1553371 | P149: 58.20822043 | Q149: 83.03358233 | BB149: No | BC149: N/A | BD149: N/A | BE149: N/A | BF149: N/A | BG149: N/A | BH149: N/A | BI149: N/A | BJ149: N/A | BK149: N/A | BL149: N/A | BM149: N/A | BN149: N/A | BO149: N/A | BP149: N/A | BQ149: N/A
B150: DK/missing | C150: 67.98281088 | D150: 55.46493091 | E150: 39.26115296 | F150: 34.07301619 | G150: 5.603765533 | H150: 71.32120568 | I150: 26.95682401 | J150: 50.76940976 | K150: 15.16356476 | L150: 2.473686449 | M150: 66.65472312 | N150: 56.48026117 | O150: 48.73046216 | P150: 37.66980947 | Q150: 11.93371719 | BB150: DK/missing | BC150: N/A | BD150: N/A | BE150: N/A | BF150: N/A | BG150: N/A | BH150: N/A | BI150: N/A | BJ150: N/A | BK150: N/A | BL150: N/A | BM150: N/A | BN150: N/A | BO150: N/A | BP150: N/A | BQ150: N/A
A151: Shared among all sanitation facilities | B151: Yes | C151: 79.55051526 | D151: 89.86381556 | E151: 57.84452808 | F151: 94.72315015 | G151: 96.29936204 | H151: 87.85154504 | I151: 15.04365729 | J151: 94.07656613 | K151: 95.64563975 | L151: 98.08646864 | M151: 76.86046242 | N151: 88.95644136 | O151: 88.00089406 | P151: 94.05342449 | Q151: 94.37043725 | BA151: Shared among all sanitation facilities | BB151: Yes | BC151: N/A | BD151: N/A | BE151: N/A | BF151: N/A | BG151: N/A | BH151: N/A | BI151: N/A | BJ151: N/A | BK151: N/A | BL151: N/A | BM151: N/A | BN151: N/A | BO151: N/A | BP151: N/A | BQ151: N/A
B152: No | C152: 20.44948474 | D152: 10.13618444 | E152: 42.15547192 | F152: 5.276849853 | G152: 3.700637964 | H152: 12.14845496 | I152: 84.95634271 | J152: 5.923433871 | K152: 4.354360247 | L152: 1.913531355 | M152: 23.13953758 | N152: 11.04355864 | O152: 11.99910594 | P152: 5.946575512 | Q152: 5.629562754 | BB152: No | BC152: N/A | BD152: N/A | BE152: N/A | BF152: N/A | BG152: N/A | BH152: N/A | BI152: N/A | BJ152: N/A | BK152: N/A | BL152: N/A | BM152: N/A | BN152: N/A | BO152: N/A | BP152: N/A | BQ152: N/A
A153: What type of toilet facilities | B153: Flush to piped sewage system | C153: 2.978364846 | D153: 4.001538947 | E153: 6.618417226 | F153: 9.666197298 | G153: 42.24000898 | H153: 2.480036525 | I153: 5.947143131 | J153: 8.362026693 | K153: 40.01970623 | L153: 61.18989389 | M153: 2.761534383 | N153: 4.72112014 | O153: 4.914468236 | P153: 8.664369652 | Q153: 17.57694348 | BA153: What type of toilet facilities | BB153: Flush to piped sewage system | BC153: 94969.57037 | BD153: 128463.9467 | BE153: 211769.5743 | BF153: 306328.983 | BG153: 1309859.51 | BH153: 26695.1124 | BI153: 68092.8026 | BJ153: 87831.2366 | BK153: 398344.0084 | BL153: 657028.2557 | BM153: 58197.78174 | BN153: 99547.60168 | BO153: 103461.5329 | BP153: 181999.8815 | BQ153: 370193.3705
B154: Flush to septic tank | C154: 0.4606336678 | D154: 3.208571379 | E154: 6.217680242 | F154: 18.23040203 | G154: 22.20949412 | H154: 2.728063031 | I154: 2.054467071 | J154: 15.95833745 | K154: 16.5525311 | L154: 18.44079276 | M154: 0.2066886982 | N154: 1.270551044 | O154: 6.914773526 | P154: 12.96370138 | Q154: 26.15165766 | BB154: Flush to septic tank | BC154: 14687.98612 | BD154: 103006.8051 | BE154: 198947.1883 | BF154: 577735.0017 | BG154: 688714.7465 | BH154: 29364.86964 | BI154: 23522.96181 | BJ154: 167619.7128 | BK154: 164758.8703 | BL154: 198008.5458 | BM154: 4355.8479 | BN154: 26790.31787 | BO154: 145572.834 | BP154: 272309.7248 | BQ154: 550788.0428
B155: Pour flush latrine | C155: 5.333237354 | D155: 11.78678826 | E155: 34.7649025 | F155: 31.41355668 | G155: 29.38828047 | H155: 8.40887786 | I155: 59.7025447 | J155: 22.78430307 | K155: 33.83455235 | L155: 19.03591476 | M155: 5.264404693 | N155: 8.456556993 | O155: 17.48175803 | P155: 27.74000568 | Q155: 36.70769247 | BB155: Pour flush latrine | BC155: 170058.1649 | BD155: 378398.7508 | BE155: 1112372.997 | BF155: 995518.9794 | BG155: 911328.3726 | BH155: 90513.15872 | BI155: 683574.1972 | BJ155: 239316.8052 | BK155: 336778.8641 | BL155: 204398.6854 | BM155: 110944.3638 | BN155: 178311.4901 | BO155: 368033.6096 | BP155: 582694.1772 | BQ155: 773111.9134
B156: Covered dry latrine (with privacy) | C156: 13.02282901 | D156: 16.32701646 | E156: 8.25063842 | F156: 6.050833905 | G156: 3.686643666 | H156: 8.790856089 | I156: 1.276448262 | J156: 2.178672103 | K156: 2.155654214 | L156: 1.054552107 | M156: 14.41732243 | N156: 18.13349584 | O156: 13.69603902 | P156: 10.8027711 | Q156: 6.79603474 | BB156: Covered dry latrine (with privacy) | BC156: 415252.1736 | BD156: 524156.5808 | BE156: 263995.7752 | BF156: 191755.4276 | BG156: 114322.5435 | BH156: 94624.77227 | BI156: 14614.90629 | BJ156: 22883.86201 | BK156: 21456.72772 | BL156: 11323.28375 | BM156: 303836.9498 | BN156: 382355.451 | BO156: 288334.9985 | BP156: 226918.1877 | BQ156: 143133.3616
B157: Uncovered dry latrine (without privacy) | C157: 5.577202219 | D157: 5.869086387 | E157: 1.794256592 | F157: 1.126240799 | G157: 0.3306009378 | H157: 1.842936641 | I157: 0.4105985312 | J157: 0.5947966985 | K157: 0.4777122299 | L157: 0.2423762706 | M157: 5.913863889 | N157: 7.338417962 | O157: 5.12899428 | P157: 1.65058771 | Q157: 0.4487546476 | BB157: Uncovered dry latrine (without privacy) | BC157: 177837.3456 | BD157: 188419.0085 | BE157: 57410.84941 | BF157: 35691.40871 | BG157: 10251.91028 | BH157: 19837.36945 | BI157: 4701.216049 | BJ157: 6247.496147 | BK157: 4755.002533 | BL157: 2602.522217 | BM157: 124631.3506 | BN157: 154734.8694 | BO157: 107977.8289 | BP157: 34671.50867 | BQ157: 9451.358582
B158: Bucket latrine (where fresh excreta are manually removed) | C158: 4.116774478 | D158: 3.373730719 | E158: 2.873963634 | F158: 1.043355455 | G158: 0.5793754607 | H158: 3.339729141 | I158: 3.842367924 | J158: 0.6767129283 | K158: 0.3575152533 | L158: 0 | M158: 4.680262239 | N158: 4.105501962 | O158: 2.197014442 | P158: 1.343606658 | Q158: 1.532768435 | BB158: Bucket latrine (where fresh excreta are manually removed) | BC158: 131269.446 | BD158: 108309.0203 | BE158: 91958.24841 | BF158: 33064.71053 | BG158: 17966.38957 | BH158: 35948.84346 | BI158: 43993.82944 | BJ158: 7107.910019 | BK158: 3558.598312 | BL158: 0 | BM158: 98633.89062 | BN158: 86566.92944 | BO158: 46252.50812 | BP158: 28223.20172 | BQ158: 32282.10376
B159: No facilities (open defecation) | C159: 68.31476918 | D159: 55.218071 | E159: 39.36270939 | F159: 32.31624957 | G159: 1.565596371 | H159: 72.35774111 | I159: 26.76643038 | J159: 49.34076603 | K159: 6.602328615 | L159: 0.03647021663 | M159: 66.59599175 | N159: 55.60819066 | O159: 49.41646225 | P159: 36.79484372 | Q159: 10.64775002 | BB159: No facilities (open defecation) | BC159: 2178317.505 | BD159: 1772700.809 | BE159: 1259489.078 | BF159: 1024125.989 | BG159: 48549.026 | BH159: 778858.7033 | BI159: 306466.6883 | BJ159: 518254.8028 | BK159: 65717.57498 | BL159: 391.6000061 | BM159: 1403473.017 | BN159: 1172531.486 | BO159: 1040336.958 | BP159: 772896.0635 | BQ159: 224255.5125
B160: Other | C160: 0.1961892403 | D160: 0.2151968507 | E160: 0.1174319901 | F160: 0.153164266 | G160: 0 | H160: 0.05175960011 | I160: 0 | J160: 0.1043850283 | K160: 0 | L160: 0 | M160: 0.1599319182 | N160: 0.3661654004 | O160: 0.2504902138 | P160: 0.04011409501 | Q160: 0.1383985456 | BB160: Other | BC160: 6255.784241 | BD160: 6908.601196 | BE160: 3757.472778 | BF160: 4853.889526 | BG160: 0 | BH160: 557.1403198 | BI160: 0 | BJ160: 1096.416748 | BK160: 0 | BL160: 0 | BM160: 3370.475098 | BN160: 7720.813354 | BO160: 5273.429443 | BP160: 842.6187744 | BQ160: 2914.854004
BB161: Total | BC161: 3188647.976 | BD161: 3210363.523 | BE161: 3199701.184 | BF161: 3169074.389 | BG161: 3100992.498 | BH161: 1076399.97 | BI161: 1144966.602 | BJ161: 1050358.242 | BK161: 995369.6463 | BL161: 1073752.893 | BM161: 2107443.677 | BN161: 2108558.959 | BO161: 2105243.699 | BP161: 2100555.364 | BQ161: 2106130.517
A208: =A1026 -> Pakistan
A209: =A1034 -> 2003
A210: Access to hygiene facilities
A211: by wealth quintile and sub-national region
A212: Notes:
A213: WHO/UNICEF JMP customised wealth index excludes water,
A214: sanitation and hygiene assets.
A215: Survey used for analysis: | B215: =A1025 -> WHS03
A220: Access to handwashing | C220: NATIONAL wealth index quintile | H220: URBAN wealth index quintile | M220: RURAL wealth index quintile | BA220: Raw numbers of respondents: | BB220: Access to handwashing | BC220: NATIONAL wealth index quintile | BH220: URBAN wealth index quintile | BM220: RURAL wealth index quintile
A221: Weighted percentage (used in graphs) | C221: Poorest | D221: Poor | E221: Middle | F221: Rich | G221: Richest | H221: Poorest | I221: Poor | J221: Middle | K221: Rich | L221: Richest | M221: Poorest | N221: Poor | O221: Middle | P221: Rich | Q221: Richest | BA221: Hygiene data, raw numbers (weighted) | BC221: Poorest | BD221: Poor | BE221: Middle | BF221: Rich | BG221: Richest | BH221: Poorest | BI221: Poor | BJ221: Middle | BK221: Rich | BL221: Richest | BM221: Poorest | BN221: Poor | BO221: Middle | BP221: Rich | BQ221: Richest
A222: Hygiene ladder | B222: Basic | C222: N/A | D222: N/A | E222: N/A | F222: N/A | G222: N/A | H222: N/A | I222: N/A | J222: N/A | K222: N/A | L222: N/A | M222: N/A | N222: N/A | O222: N/A | P222: N/A | Q222: N/A | BA222: Hygiene ladder | BB222: Basic | BC222: N/A | BD222: N/A | BE222: N/A | BF222: N/A | BG222: N/A | BH222: N/A | BI222: N/A | BJ222: N/A | BK222: N/A | BL222: N/A | BM222: N/A | BN222: N/A | BO222: N/A | BP222: N/A | BQ222: N/A
B223: Limited | C223: N/A | D223: N/A | E223: N/A | F223: N/A | G223: N/A | H223: N/A | I223: N/A | J223: N/A | K223: N/A | L223: N/A | M223: N/A | N223: N/A | O223: N/A | P223: N/A | Q223: N/A | BB223: Limited | BC223: N/A | BD223: N/A | BE223: N/A | BF223: N/A | BG223: N/A | BH223: N/A | BI223: N/A | BJ223: N/A | BK223: N/A | BL223: N/A | BM223: N/A | BN223: N/A | BO223: N/A | BP223: N/A | BQ223: N/A
B224: No facility | C224: N/A | D224: N/A | E224: N/A | F224: N/A | G224: N/A | H224: N/A | I224: N/A | J224: N/A | K224: N/A | L224: N/A | M224: N/A | N224: N/A | O224: N/A | P224: N/A | Q224: N/A | BB224: No facility | BC224: N/A | BD224: N/A | BE224: N/A | BF224: N/A | BG224: N/A | BH224: N/A | BI224: N/A | BJ224: N/A | BK224: N/A | BL224: N/A | BM224: N/A | BN224: N/A | BO224: N/A | BP224: N/A | BQ224: N/A
BA225: Observed handwashing place | BB225: Fixed | BC225: N/A | BD225: N/A | BE225: N/A | BF225: N/A | BG225: N/A | BH225: N/A | BI225: N/A | BJ225: N/A | BK225: N/A | BL225: N/A | BM225: N/A | BN225: N/A | BO225: N/A | BP225: N/A | BQ225: N/A
BB226: Mobile | BC226: N/A | BD226: N/A | BE226: N/A | BF226: N/A | BG226: N/A | BH226: N/A | BI226: N/A | BJ226: N/A | BK226: N/A | BL226: N/A | BM226: N/A | BN226: N/A | BO226: N/A | BP226: N/A | BQ226: N/A
BA227: Water / Soap | BB227: Water and soap | BC227: N/A | BD227: N/A | BE227: N/A | BF227: N/A | BG227: N/A | BH227: N/A | BI227: N/A | BJ227: N/A | BK227: N/A | BL227: N/A | BM227: N/A | BN227: N/A | BO227: N/A | BP227: N/A | BQ227: N/A
BB228: Water only | BC228: N/A | BD228: N/A | BE228: N/A | BF228: N/A | BG228: N/A | BH228: N/A | BI228: N/A | BJ228: N/A | BK228: N/A | BL228: N/A | BM228: N/A | BN228: N/A | BO228: N/A | BP228: N/A | BQ228: N/A
BB229: Soap only | BC229: N/A | BD229: N/A | BE229: N/A | BF229: N/A | BG229: N/A | BH229: N/A | BI229: N/A | BJ229: N/A | BK229: N/A | BL229: N/A | BM229: N/A | BN229: N/A | BO229: N/A | BP229: N/A | BQ229: N/A
BB230: Neither | BC230: N/A | BD230: N/A | BE230: N/A | BF230: N/A | BG230: N/A | BH230: N/A | BI230: N/A | BJ230: N/A | BK230: N/A | BL230: N/A | BM230: N/A | BN230: N/A | BO230: N/A | BP230: N/A | BQ230: N/A
BA259: Raw numbers of respondents: | BB259: Menstrual health and hygiene | BC259: NATIONAL wealth index quintile | BH259: URBAN wealth index quintile | BM259: RURAL wealth index quintile
BA260: MHH data, raw numbers (weighted) | BC260: Poorest | BD260: Poor | BE260: Middle | BF260: Rich | BG260: Richest | BH260: Poorest | BI260: Poor | BJ260: Middle | BK260: Rich | BL260: Richest | BM260: Poorest | BN260: Poor | BO260: Middle | BP260: Rich | BQ260: Richest
BA261: Private place to wash and change | BB261: Yes | BC261: N/A | BD261: N/A | BE261: N/A | BF261: N/A | BG261: N/A | BH261: N/A | BI261: N/A | BJ261: N/A | BK261: N/A | BL261: N/A | BM261: N/A | BN261: N/A | BO261: N/A | BP261: N/A | BQ261: N/A
BB262: No | BC262: N/A | BD262: N/A | BE262: N/A | BF262: N/A | BG262: N/A | BH262: N/A | BI262: N/A | BJ262: N/A | BK262: N/A | BL262: N/A | BM262: N/A | BN262: N/A | BO262: N/A | BP262: N/A | BQ262: N/A
BB263: DK/not sure/missing | BC263: N/A | BD263: N/A | BE263: N/A | BF263: N/A | BG263: N/A | BH263: N/A | BI263: N/A | BJ263: N/A | BK263: N/A | BL263: N/A | BM263: N/A | BN263: N/A | BO263: N/A | BP263: N/A | BQ263: N/A
BA264: Use of menstrual materials | BB264: Materials reusable | BC264: N/A | BD264: N/A | BE264: N/A | BF264: N/A | BG264: N/A | BH264: N/A | BI264: N/A | BJ264: N/A | BK264: N/A | BL264: N/A | BM264: N/A | BN264: N/A | BO264: N/A | BP264: N/A | BQ264: N/A
BB265: Materials not reusable | BC265: N/A | BD265: N/A | BE265: N/A | BF265: N/A | BG265: N/A | BH265: N/A | BI265: N/A | BJ265: N/A | BK265: N/A | BL265: N/A | BM265: N/A | BN265: N/A | BO265: N/A | BP265: N/A | BQ265: N/A
BB266: No materials used | BC266: N/A | BD266: N/A | BE266: N/A | BF266: N/A | BG266: N/A | BH266: N/A | BI266: N/A | BJ266: N/A | BK266: N/A | BL266: N/A | BM266: N/A | BN266: N/A | BO266: N/A | BP266: N/A | BQ266: N/A
BB267: DK/not sure/missing | BC267: N/A | BD267: N/A | BE267: N/A | BF267: N/A | BG267: N/A | BH267: N/A | BI267: N/A | BJ267: N/A | BK267: N/A | BL267: N/A | BM267: N/A | BN267: N/A | BO267: N/A | BP267: N/A | BQ267: N/A
BA268: Use of menstrual materials with private place to wash and change | BB268: Materials reusable | BC268: N/A | BD268: N/A | BE268: N/A | BF268: N/A | BG268: N/A | BH268: N/A | BI268: N/A | BJ268: N/A | BK268: N/A | BL268: N/A | BM268: N/A | BN268: N/A | BO268: N/A | BP268: N/A | BQ268: N/A
BB269: Materials not reusable | BC269: N/A | BD269: N/A | BE269: N/A | BF269: N/A | BG269: N/A | BH269: N/A | BI269: N/A | BJ269: N/A | BK269: N/A | BL269: N/A | BM269: N/A | BN269: N/A | BO269: N/A | BP269: N/A | BQ269: N/A
BB270: No materials used | BC270: N/A | BD270: N/A | BE270: N/A | BF270: N/A | BG270: N/A | BH270: N/A | BI270: N/A | BJ270: N/A | BK270: N/A | BL270: N/A | BM270: N/A | BN270: N/A | BO270: N/A | BP270: N/A | BQ270: N/A
BA271: Awareness of menstruation before menarche | BB271: Yes | BC271: N/A | BD271: N/A | BE271: N/A | BF271: N/A | BG271: N/A | BH271: N/A | BI271: N/A | BJ271: N/A | BK271: N/A | BL271: N/A | BM271: N/A | BN271: N/A | BO271: N/A | BP271: N/A | BQ271: N/A
BB272: No | BC272: N/A | BD272: N/A | BE272: N/A | BF272: N/A | BG272: N/A | BH272: N/A | BI272: N/A | BJ272: N/A | BK272: N/A | BL272: N/A | BM272: N/A | BN272: N/A | BO272: N/A | BP272: N/A | BQ272: N/A
BB273: DK/not sure/missing | BC273: N/A | BD273: N/A | BE273: N/A | BF273: N/A | BG273: N/A | BH273: N/A | BI273: N/A | BJ273: N/A | BK273: N/A | BL273: N/A | BM273: N/A | BN273: N/A | BO273: N/A | BP273: N/A | BQ273: N/A
BA274: Participation in (all) activities during menstruation | BB274: Yes | BC274: N/A | BD274: N/A | BE274: N/A | BF274: N/A | BG274: N/A | BH274: N/A | BI274: N/A | BJ274: N/A | BK274: N/A | BL274: N/A | BM274: N/A | BN274: N/A | BO274: N/A | BP274: N/A | BQ274: N/A
BB275: No | BC275: N/A | BD275: N/A | BE275: N/A | BF275: N/A | BG275: N/A | BH275: N/A | BI275: N/A | BJ275: N/A | BK275: N/A | BL275: N/A | BM275: N/A | BN275: N/A | BO275: N/A | BP275: N/A | BQ275: N/A
BB276: DK/not sure/missing/no such activity | BC276: N/A | BD276: N/A | BE276: N/A | BF276: N/A | BG276: N/A | BH276: N/A | BI276: N/A | BJ276: N/A | BK276: N/A | BL276: N/A | BM276: N/A | BN276: N/A | BO276: N/A | BP276: N/A | BQ276: N/A
BA277: Participation in specific activities during menstruation | BB277: Did not go to school (amongst those usually attending school) | BC277: N/A | BD277: N/A | BE277: N/A | BF277: N/A | BG277: N/A | BH277: N/A | BI277: N/A | BJ277: N/A | BK277: N/A | BL277: N/A | BM277: N/A | BN277: N/A | BO277: N/A | BP277: N/A | BQ277: N/A
BB278: Did not go to work (amongst those who usually work) | BC278: N/A | BD278: N/A | BE278: N/A | BF278: N/A | BG278: N/A | BH278: N/A | BI278: N/A | BJ278: N/A | BK278: N/A | BL278: N/A | BM278: N/A | BN278: N/A | BO278: N/A | BP278: N/A | BQ278: N/A
BB279: Did not participate in social activities | BC279: N/A | BD279: N/A | BE279: N/A | BF279: N/A | BG279: N/A | BH279: N/A | BI279: N/A | BJ279: N/A | BK279: N/A | BL279: N/A | BM279: N/A | BN279: N/A | BO279: N/A | BP279: N/A | BQ279: N/A
BB280: Did not cook food | BC280: N/A | BD280: N/A | BE280: N/A | BF280: N/A | BG280: N/A | BH280: N/A | BI280: N/A | BJ280: N/A | BK280: N/A | BL280: N/A | BM280: N/A | BN280: N/A | BO280: N/A | BP280: N/A | BQ280: N/A
BB281: Did not eat with others | BC281: N/A | BD281: N/A | BE281: N/A | BF281: N/A | BG281: N/A | BH281: N/A | BI281: N/A | BJ281: N/A | BK281: N/A | BL281: N/A | BM281: N/A | BN281: N/A | BO281: N/A | BP281: N/A | BQ281: N/A
BB282: Did not bathe in regular place | BC282: N/A | BD282: N/A | BE282: N/A | BF282: N/A | BG282: N/A | BH282: N/A | BI282: N/A | BJ282: N/A | BK282: N/A | BL282: N/A | BM282: N/A | BN282: N/A | BO282: N/A | BP282: N/A | BQ282: N/A
BB283: Did not participate in other activities | BC283: N/A | BD283: N/A | BE283: N/A | BF283: N/A | BG283: N/A | BH283: N/A | BI283: N/A | BJ283: N/A | BK283: N/A | BL283: N/A | BM283: N/A | BN283: N/A | BO283: N/A | BP283: N/A | BQ283: N/A
BB284: DK/not sure/missing/no such activity | BC284: N/A | BD284: N/A | BE284: N/A | BF284: N/A | BG284: N/A | BH284: N/A | BI284: N/A | BJ284: N/A | BK284: N/A | BL284: N/A | BM284: N/A | BN284: N/A | BO284: N/A | BP284: N/A | BQ284: N/A
BA339: Raw numbers of respondents: | BB339: Basic water, sanitation and hygiene | BC339: NATIONAL wealth index quintile | BH339: URBAN wealth index quintile | BM339: RURAL wealth index quintile
BA340: WatSan data, raw numbers (weighted) | BC340: Poorest | BD340: Poor | BE340: Middle | BF340: Rich | BG340: Richest | BH340: Poorest | BI340: Poor | BJ340: Middle | BK340: Rich | BL340: Richest | BM340: Poorest | BN340: Poor | BO340: Middle | BP340: Rich | BQ340: Richest
BA341: Use of Basic Water Sanitation and Hygiene | BB341: Yes | BC341: N/A | BD341: N/A | BE341: N/A | BF341: N/A | BG341: N/A | BH341: N/A | BI341: N/A | BJ341: N/A | BK341: N/A | BL341: N/A | BM341: N/A | BN341: N/A | BO341: N/A | BP341: N/A | BQ341: N/A
BB342: No | BC342: N/A | BD342: N/A | BE342: N/A | BF342: N/A | BG342: N/A | BH342: N/A | BI342: N/A | BJ342: N/A | BK342: N/A | BL342: N/A | BM342: N/A | BN342: N/A | BO342: N/A | BP342: N/A | BQ342: N/A
BA343: Use of Basic Water and Sanitation | BB343: Yes | BC343: N/A | BD343: N/A | BE343: N/A | BF343: N/A | BG343: N/A | BH343: N/A | BI343: N/A | BJ343: N/A | BK343: N/A | BL343: N/A | BM343: N/A | BN343: N/A | BO343: N/A | BP343: N/A | BQ343: N/A
BB344: No | BC344: N/A | BD344: N/A | BE344: N/A | BF344: N/A | BG344: N/A | BH344: N/A | BI344: N/A | BJ344: N/A | BK344: N/A | BL344: N/A | BM344: N/A | BN344: N/A | BO344: N/A | BP344: N/A | BQ344: N/A
BA345: Use of Basic Water and Hygiene | BB345: Yes | BC345: N/A | BD345: N/A | BE345: N/A | BF345: N/A | BG345: N/A | BH345: N/A | BI345: N/A | BJ345: N/A | BK345: N/A | BL345: N/A | BM345: N/A | BN345: N/A | BO345: N/A | BP345: N/A | BQ345: N/A
BB346: No | BC346: N/A | BD346: N/A | BE346: N/A | BF346: N/A | BG346: N/A | BH346: N/A | BI346: N/A | BJ346: N/A | BK346: N/A | BL346: N/A | BM346: N/A | BN346: N/A | BO346: N/A | BP346: N/A | BQ346: N/A
BA347: Use of Basic Sanitation and Hygiene | BB347: Yes | BC347: N/A | BD347: N/A | BE347: N/A | BF347: N/A | BG347: N/A | BH347: N/A | BI347: N/A | BJ347: N/A | BK347: N/A | BL347: N/A | BM347: N/A | BN347: N/A | BO347: N/A | BP347: N/A | BQ347: N/A
BB348: No | BC348: N/A | BD348: N/A | BE348: N/A | BF348: N/A | BG348: N/A | BH348: N/A | BI348: N/A | BJ348: N/A | BK348: N/A | BL348: N/A | BM348: N/A | BN348: N/A | BO348: N/A | BP348: N/A | BQ348: N/A
BA349: Use of Basic Water | BB349: Yes | BC349: N/A | BD349: N/A | BE349: N/A | BF349: N/A | BG349: N/A | BH349: N/A | BI349: N/A | BJ349: N/A | BK349: N/A | BL349: N/A | BM349: N/A | BN349: N/A | BO349: N/A | BP349: N/A | BQ349: N/A
BB350: No | BC350: N/A | BD350: N/A | BE350: N/A | BF350: N/A | BG350: N/A | BH350: N/A | BI350: N/A | BJ350: N/A | BK350: N/A | BL350: N/A | BM350: N/A | BN350: N/A | BO350: N/A | BP350: N/A | BQ350: N/A
BA351: Use of Basic Sanitation | BB351: Yes | BC351: N/A | BD351: N/A | BE351: N/A | BF351: N/A | BG351: N/A | BH351: N/A | BI351: N/A | BJ351: N/A | BK351: N/A | BL351: N/A | BM351: N/A | BN351: N/A | BO351: N/A | BP351: N/A | BQ351: N/A
BB352: No | BC352: N/A | BD352: N/A | BE352: N/A | BF352: N/A | BG352: N/A | BH352: N/A | BI352: N/A | BJ352: N/A | BK352: N/A | BL352: N/A | BM352: N/A | BN352: N/A | BO352: N/A | BP352: N/A | BQ352: N/A
BA353: Access to Basic Hygiene | BB353: Yes | BC353: N/A | BD353: N/A | BE353: N/A | BF353: N/A | BG353: N/A | BH353: N/A | BI353: N/A | BJ353: N/A | BK353: N/A | BL353: N/A | BM353: N/A | BN353: N/A | BO353: N/A | BP353: N/A | BQ353: N/A
BB354: No | BC354: N/A | BD354: N/A | BE354: N/A | BF354: N/A | BG354: N/A | BH354: N/A | BI354: N/A | BJ354: N/A | BK354: N/A | BL354: N/A | BM354: N/A | BN354: N/A | BO354: N/A | BP354: N/A | BQ354: N/A
C399: INITIAL (national) Wealth Index | H399: URBAN Wealth Index | M399: RURAL Wealth Index
C400: Component Matrix | H400: Component Matrix | M400: Component Matrix
E401: Component | J401: Component | O401: Component
B402: Note: The INITIAL (national) Wealth Index is based on the first component of the Principal Component Analysis (PCA) which has been obtained at national level. The final national-level (NATIONAL) Wealth Index is based on the URBAN and RURAL specific wealth indexes. Regression procedures are used to establish the relationships between the two sets of scores (urban and rural) and the initial (national) wealth factors. This allows best use of the available information for each area and a better precision of the FINAL (NATIONAL) Wealth Index. For dependency reasons, all WASH variables (contained in the generic MICS and DHS scripts) have been excluded from the sets of asset variables used in the PCAs. The PCA can extracts as many components as there are asset variables in the input. Only the first of the components is used to represent the Wealth Index. The scores represent the weights of the asset variables on the Wealth Index (correlations between the variables and the component). The communalities are the proportion of each variable's variance that can be explained by the component. Proportion of explained variance is the part of the model's total variance that is explained by the component. For more information on the procedure used: The DHS Wealth Index, DHS Comparative Reports No. 6, Shea Oscar Rutstein, Kiersten Johnson, ORC Macro International Inc., 2004. The DHS Wealth Index: Approaches for Rural and Urban Areas, Shea O. Rutstein, ORC Macro International Inc., 2008. MICS Methodological Paper No. 4, Review of options for reporting water, sanitation and hygiene coverage by wealth quintile, UNICEF, 2016. | E402: 1 | J402: 1 | O402: 1
C403: Uses gaz fuel | E403: -0.7998978718 | H403: Uses gaz fuel | J403: -0.8099361002 | M403: Has hard floor | O403: -0.6696417321
C404: Has hearth floor | E404: 0.7644087305 | H404: Uses wood fuel | J404: 0.7495429306 | M404: Has hearth floor | O404: 0.6627268472
C405: Has hard floor | E405: -0.7544369286 | H405: Has hearth floor | J405: 0.7315792869 | M405: Has Clothes washing machine | O405: 0.6315772904
C406: Has Second home | E406: 0.7315369353 | H406: Has Second home | J406: 0.7234848124 | M406: Has Vacuum cleaner | O406: 0.6156478916
C407: Has Clothes washing machine | E407: 0.7025078408 | H407: Has hard floor | J407: -0.7108254486 | M407: Has cement, brick, stone or wood wall | O407: -0.6002949198
C408: Has Vacuum cleaner | E408: 0.6775687606 | H408: Uses open fire without chimney | J408: 0.6889093174 | M408: Has Car | O408: 0.5672136661
C409: Uses wood fuel | E409: 0.671886388 | H409: Has mud brick wall | J409: 0.626088376 | M409: Has Cellular phone | O409: 0.5533692489
C410: Has Cellular phone | E410: 0.6333133682 | H410: Has Clothes washing machine | J410: 0.6206139792 | M410: Has mud brick wall | O410: 0.5524924889
C411: Uses open fire without chimney | E411: 0.6288555867 | H411: Has Vacuum cleaner | J411: 0.6131747073 | M411: Has TV | O411: 0.5444307959
C412: Has cement, brick, stone or wood wall | E412: -0.622654539 | H412: Has cement, brick, stone or wood wall | J412: -0.6000941949 | M412: Has DVD | O412: 0.5015770404
C413: Has mud brick wall | E413: 0.6042500627 | H413: Has Cellular phone | J413: 0.5703194774 | M413: Has Refrigerator | O413: 0.4795368965
C414: Has Refrigerator | E414: 0.5309992842 | H414: Has Car | J414: 0.5265719999 | M414: Has Video | O414: 0.469568397
C415: Has Car | E415: 0.5221892943 | H415: Kooks outdoor | J415: 0.5234039162 | M415: Uses gaz fuel | O415: -0.4573019433
C416: Has DVD | E416: 0.5017632584 | H416: Has TV | J416: 0.4900389024 | M416: Permanent Income question 1 | O416: 0.4015036412
C417: Uses gaz heating | E417: -0.4963304762 | H417: Has Refrigerator | J417: 0.4895853463 | M417: Has Security system | O417: 0.3474328636
C418: Kooks outdoor | E418: 0.4719776639 | H418: Uses gaz heating | J418: -0.4720383271 | M418: Kooks outdoor | O418: 0.3317606324
C419: Has TV | E419: 0.4685783743 | H419: Has DVD | J419: 0.4432441345 | M419: Has Stereo | O419: 0.3173342663
C420: Has Video | E420: 0.4546650341 | H420: Has Telephone | J420: 0.3859607226 | M420: Has Second home | O420: 0.3147212285
C421: Has Magazine | E421: -0.4148860793 | H421: Has Computer | J421: 0.3836935735 | M421: Has Camera | O421: 0.3100928246
C422: Has Telephone | E422: 0.4079648042 | H422: Uses wood heating | J422: 0.3556985362 | M422: Uses open fire without chimney | O422: 0.2853681114
C423: Has Computer | E423: 0.4000774291 | H423: Has Security system | J423: 0.3264323589 | M423: Has Telephone | O423: 0.2805647239
... 212 more rows

Sheet DHS07
A2: =A1026 -> Pakistan
A3: =A1034 -> 2007
A4: Use of drinking water sources
A5: by wealth quintile and sub-national region
A6: Notes:
A7: WHO/UNICEF JMP customised wealth index excludes water,
A8: sanitation and hygiene assets.
A9: Survey used for analysis: | B9: =A1025 -> DHS07
A10: =B1028 -> 
A11: =B1027 -> 
A14: Use of drinking water sources | C14: NATIONAL wealth index quintile | H14: URBAN wealth index quintile | M14: RURAL wealth index quintile | R14: SUB-REGIONS: | BA14: Raw numbers of respondents: | BB14: Use of drinking water sources | BC14: NATIONAL wealth index quintile | BH14: URBAN wealth index quintile | BM14: RURAL wealth index quintile | BR14: SUB-REGIONS:
A15: Weighted percentage (used in graphs) | C15: Poorest | D15: Poor | E15: Middle | F15: Rich | G15: Richest | H15: Poorest | I15: Poor | J15: Middle | K15: Rich | L15: Richest | M15: Poorest | N15: Poor | O15: Middle | P15: Rich | Q15: Richest | R15: Balochistan | S15: NWFP | T15: Punjab | U15: Sindh | BA15: Water data, raw numbers (weighted) | BC15: Poorest | BD15: Poor | BE15: Middle | BF15: Rich | BG15: Richest | BH15: Poorest | BI15: Poor | BJ15: Middle | BK15: Rich | BL15: Richest | BM15: Poorest | BN15: Poor | BO15: Middle | BP15: Rich | BQ15: Richest | BR15: Balochistan | BS15: NWFP | BT15: Punjab | BU15: Sindh
A16: Water | B16: Improved | C16: 89.39832912 | D16: 91.9471786 | E16: 95.39019764 | F16: 97.09216382 | G16: 96.86207485 | H16: 97.72112895 | I16: 97.03859668 | J16: 97.6922558 | K16: 97.9653314 | L16: 95.50080338 | M16: 88.79751773 | N16: 90.42008446 | O16: 90.87278944 | P16: 95.43479299 | Q16: 97.33545969 | R16: 89.3585713 | S16: 85.81412699 | T16: 96.26062514 | U16: 94.69172549 | BA16: Water | BB16: Improved | BC16: N/A | BD16: N/A | BE16: N/A | BF16: N/A | BG16: N/A | BH16: N/A | BI16: N/A | BJ16: N/A | BK16: N/A | BL16: N/A | BM16: N/A | BN16: N/A | BO16: N/A | BP16: N/A | BQ16: N/A | BR16: N/A | BS16: N/A | BT16: N/A | BU16: N/A
B17: Not Improved | C17: 10.60167088 | D17: 8.052821399 | E17: 4.609802356 | F17: 2.907836179 | G17: 3.137925146 | H17: 2.278871046 | I17: 2.961403317 | J17: 2.307744204 | K17: 2.034668601 | L17: 4.499196618 | M17: 11.20248227 | N17: 9.579915538 | O17: 9.127210564 | P17: 4.565207005 | Q17: 2.664540312 | R17: 10.6414287 | S17: 14.18587301 | T17: 3.739374864 | U17: 5.308274509 | BB17: Not Improved | BC17: N/A | BD17: N/A | BE17: N/A | BF17: N/A | BG17: N/A | BH17: N/A | BI17: N/A | BJ17: N/A | BK17: N/A | BL17: N/A | BM17: N/A | BN17: N/A | BO17: N/A | BP17: N/A | BQ17: N/A | BR17: N/A | BS17: N/A | BT17: N/A | BU17: N/A
A18: Water ladder | B18: Basic | C18: =C16*C23/100 -> 82.85159862 | D18: =D16*D23/100 -> 88.61721202 | E18: =E16*E23/100 -> 93.3090428 | F18: 94.89059558 | G18: 95.45272199 | H18: 94.0642276 | I18: 95.0232221 | J18: 96.04888636 | K18: 96.64640441 | L18: 94.07327947 | M18: 81.47706002 | N18: 86.23799141 | O18: 88.07447566 | P18: 92.80421227 | Q18: 95.85598741 | R18: 75.81642582 | S18: 81.77648928 | T18: 95.12397187 | U18: 89.04357889 | BA18: Water ladder | BB18: Basic | BC18: N/A | BD18: N/A | BE18: N/A | BF18: N/A | BG18: N/A | BH18: N/A | BI18: N/A | BJ18: N/A | BK18: N/A | BL18: N/A | BM18: N/A | BN18: N/A | BO18: N/A | BP18: N/A | BQ18: N/A | BR18: N/A | BS18: N/A | BT18: N/A | BU18: N/A
B19: Limited | C19: =C16*C22/100 -> 6.546730502 | D19: =D16*D22/100 -> 3.329966582 | E19: =E16*E22/100 -> 2.08115484 | F19: 2.201568246 | G19: 1.409352866 | H19: 3.656901351 | I19: 2.015374588 | J19: 1.64336944 | K19: 1.318926989 | L19: 1.427523911 | M19: 7.32045771 | N19: 4.182093047 | O19: 2.798313774 | P19: 2.630580724 | Q19: 1.479472282 | R19: 13.54214548 | S19: 4.037637712 | T19: 1.136653262 | U19: 5.648146603 | BB19: Limited | BC19: N/A | BD19: N/A | BE19: N/A | BF19: N/A | BG19: N/A | BH19: N/A | BI19: N/A | BJ19: N/A | BK19: N/A | BL19: N/A | BM19: N/A | BN19: N/A | BO19: N/A | BP19: N/A | BQ19: N/A | BR19: N/A | BS19: N/A | BT19: N/A | BU19: N/A
B20: Unimproved | C20: =100-C18-C19-C21 -> 5.548158766 | D20: =100-D18-D19-D21 -> 5.398334743 | E20: =100-E18-E19-E21 -> 2.05117878 | F20: 1.67927598 | G20: 1.168071961 | H20: 2.122227154 | I20: 0.8636830174 | J20: 1.278537059 | K20: 1.080716413 | L20: 1.551172487 | M20: 5.402459587 | N20: 5.508214797 | O20: 6.067272198 | P20: 2.45600364 | Q20: 1.002512202 | R20: 2.900138596 | S20: 11.04089215 | T20: 1.902429559 | U20: 1.651006296 | BB20: Unimproved | BC20: N/A | BD20: N/A | BE20: N/A | BF20: N/A | BG20: N/A | BH20: N/A | BI20: N/A | BJ20: N/A | BK20: N/A | BL20: N/A | BM20: N/A | BN20: N/A | BO20: N/A | BP20: N/A | BQ20: N/A | BR20: N/A | BS20: N/A | BT20: N/A | BU20: N/A
B21: Surface water | C21: 5.053512114 | D21: 2.654486656 | E21: 2.558623577 | F21: 1.228560198 | G21: 1.969853185 | H21: 0.156643892 | I21: 2.0977203 | J21: 1.029207145 | K21: 0.9539521879 | L21: 2.948024131 | M21: 5.800022687 | N21: 4.071700742 | O21: 3.059938366 | P21: 2.109203365 | Q21: 1.66202811 | R21: 7.741290104 | S21: 3.144980854 | T21: 1.836945306 | U21: 3.657268213 | BB21: Surface water | BC21: N/A | BD21: N/A | BE21: N/A | BF21: N/A | BG21: N/A | BH21: N/A | BI21: N/A | BJ21: N/A | BK21: N/A | BL21: N/A | BM21: N/A | BN21: N/A | BO21: N/A | BP21: N/A | BQ21: N/A | BR21: N/A | BS21: N/A | BT21: N/A | BU21: N/A
A22: Improved water point at more than 30 minutes | B22: Yes | C22: 7.323101635 | D22: 3.621608224 | E22: 2.181728198 | F22: 2.267503534 | G22: 1.45500999 | H22: 3.742180826 | I22: 2.076879362 | J22: 1.682190084 | K22: 1.346320142 | L22: 1.494776861 | M22: 8.243989131 | N22: 4.625181531 | O22: 3.079374796 | P22: 2.75641686 | Q22: 1.519972564 | R22: 15.15483662 | S22: 4.705096764 | T22: 1.180808103 | U22: 5.964773135 | BA22: Improved water point at more than 30 minutes | BB22: Yes | BC22: N/A | BD22: N/A | BE22: N/A | BF22: N/A | BG22: N/A | BH22: N/A | BI22: N/A | BJ22: N/A | BK22: N/A | BL22: N/A | BM22: N/A | BN22: N/A | BO22: N/A | BP22: N/A | BQ22: N/A | BR22: N/A | BS22: N/A | BT22: N/A | BU22: N/A
B23: No | C23: 92.67689836 | D23: 96.37839178 | E23: 97.8182718 | F23: 97.73249647 | G23: 98.54499001 | H23: 96.25781917 | I23: 97.92312064 | J23: 98.31780992 | K23: 98.65367986 | L23: 98.50522314 | M23: 91.75601087 | N23: 95.37481847 | O23: 96.9206252 | P23: 97.24358314 | Q23: 98.48002744 | R23: 84.84516338 | S23: 95.29490324 | T23: 98.8191919 | U23: 94.03522686 | BB23: No | BC23: N/A | BD23: N/A | BE23: N/A | BF23: N/A | BG23: N/A | BH23: N/A | BI23: N/A | BJ23: N/A | BK23: N/A | BL23: N/A | BM23: N/A | BN23: N/A | BO23: N/A | BP23: N/A | BQ23: N/A | BR23: N/A | BS23: N/A | BT23: N/A | BU23: N/A
A24: Manually calculated ratios | B24: Improved wells
B25: Improved springs
B26: Other
C27: NATIONAL wealth index quintile | H27: URBAN wealth index quintile | M27: RURAL wealth index quintile | R27: SUB-REGIONS: | BA27: Raw numbers of respondents: | BB27: Use of drinking water sources | BC27: NATIONAL wealth index quintile | BH27: URBAN wealth index quintile | BM27: RURAL wealth index quintile | BR27: SUB-REGIONS:
A28: Percentage based on weighted population | C28: Poorest | D28: Poor | E28: Middle | F28: Rich | G28: Richest | H28: Poorest | I28: Poor | J28: Middle | K28: Rich | L28: Richest | M28: Poorest | N28: Poor | O28: Middle | P28: Rich | Q28: Richest | R28: Balochistan | S28: NWFP | T28: Punjab | U28: Sindh | BA28: Water data, raw numbers (weighted) | BC28: Poorest | BD28: Poor | BE28: Middle | BF28: Rich | BG28: Richest | BH28: Poorest | BI28: Poor | BJ28: Middle | BK28: Rich | BL28: Richest | BM28: Poorest | BN28: Poor | BO28: Middle | BP28: Rich | BQ28: Richest | BR28: Balochistan | BS28: NWFP | BT28: Punjab | BU28: Sindh
A29: Piped water | B29: Yes | C29: 15.88930624 | D29: 26.2992047 | E29: 40.45182259 | F29: 51.78812767 | G29: 59.08660767 | H29: 50.83658838 | I29: 63.05332121 | J29: 70.5826901 | K29: 71.52414493 | L29: 69.60929594 | M29: 11.49545068 | N29: 18.06515478 | O29: 25.68088172 | P29: 35.3047505 | Q29: 35.06052506 | R29: 45.92497382 | S29: 49.92393713 | T29: 37.23818828 | U29: 34.37857738 | BA29: Piped water | BB29: Yes | BC29: N/A | BD29: N/A | BE29: N/A | BF29: N/A | BG29: N/A | BH29: N/A | BI29: N/A | BJ29: N/A | BK29: N/A | BL29: N/A | BM29: N/A | BN29: N/A | BO29: N/A | BP29: N/A | BQ29: N/A | BR29: N/A | BS29: N/A | BT29: N/A | BU29: N/A
B30: No | C30: 84.11069376 | D30: 73.7007953 | E30: 59.54817741 | F30: 48.21187233 | G30: 40.91339233 | H30: 49.16341162 | I30: 36.94667879 | J30: 29.4173099 | K30: 28.47585507 | L30: 30.39070406 | M30: 88.50454932 | N30: 81.93484522 | O30: 74.31911828 | P30: 64.6952495 | Q30: 64.93947494 | R30: 54.07502618 | S30: 50.07606287 | T30: 62.76181172 | U30: 65.62142262 | BB30: No | BC30: N/A | BD30: N/A | BE30: N/A | BF30: N/A | BG30: N/A | BH30: N/A | BI30: N/A | BJ30: N/A | BK30: N/A | BL30: N/A | BM30: N/A | BN30: N/A | BO30: N/A | BP30: N/A | BQ30: N/A | BR30: N/A | BS30: N/A | BT30: N/A | BU30: N/A
A31: Piped water on premises | B31: Yes | C31: 14.06918822 | D31: 24.1024058 | E31: 37.94278932 | F31: 48.39140363 | G31: 57.6300937 | H31: 45.89783713 | I31: 58.04379623 | J31: 65.99555857 | K31: 69.23410983 | L31: 68.3026422 | M31: 10.12079277 | N31: 16.94710391 | O31: 23.49408854 | P31: 33.56378905 | Q31: 33.56979707 | R31: 44.6164029 | S31: 46.74168114 | T31: 34.60139829 | U31: 33.33121318 | BA31: Piped water on premises | BB31: Yes | BC31: N/A | BD31: N/A | BE31: N/A | BF31: N/A | BG31: N/A | BH31: N/A | BI31: N/A | BJ31: N/A | BK31: N/A | BL31: N/A | BM31: N/A | BN31: N/A | BO31: N/A | BP31: N/A | BQ31: N/A | BR31: N/A | BS31: N/A | BT31: N/A | BU31: N/A
B32: No | C32: 85.93081178 | D32: 75.8975942 | E32: 62.05721068 | F32: 51.60859637 | G32: 42.3699063 | H32: 54.10216287 | I32: 41.95620377 | J32: 34.00444143 | K32: 30.76589017 | L32: 31.6973578 | M32: 89.87920723 | N32: 83.05289609 | O32: 76.50591146 | P32: 66.43621095 | Q32: 66.43020293 | R32: 55.3835971 | S32: 53.25831886 | T32: 65.39860171 | U32: 66.66878682 | BB32: No | BC32: N/A | BD32: N/A | BE32: N/A | BF32: N/A | BG32: N/A | BH32: N/A | BI32: N/A | BJ32: N/A | BK32: N/A | BL32: N/A | BM32: N/A | BN32: N/A | BO32: N/A | BP32: N/A | BQ32: N/A | BR32: N/A | BS32: N/A | BT32: N/A | BU32: N/A
A33: Piped water into dwelling | B33: Yes | C33: N/A | D33: N/A | E33: N/A | F33: N/A | G33: N/A | H33: N/A | I33: N/A | J33: N/A | K33: N/A | L33: N/A | M33: N/A | N33: N/A | O33: N/A | P33: N/A | Q33: N/A | R33: N/A | S33: N/A | T33: N/A | U33: N/A | BA33: Piped water into dwelling | BB33: Yes | BC33: N/A | BD33: N/A | BE33: N/A | BF33: N/A | BG33: N/A | BH33: N/A | BI33: N/A | BJ33: N/A | BK33: N/A | BL33: N/A | BM33: N/A | BN33: N/A | BO33: N/A | BP33: N/A | BQ33: N/A | BR33: N/A | BS33: N/A | BT33: N/A | BU33: N/A
B34: No | C34: N/A | D34: N/A | E34: N/A | F34: N/A | G34: N/A | H34: N/A | I34: N/A | J34: N/A | K34: N/A | L34: N/A | M34: N/A | N34: N/A | O34: N/A | P34: N/A | Q34: N/A | R34: N/A | S34: N/A | T34: N/A | U34: N/A | BB34: No | BC34: N/A | BD34: N/A | BE34: N/A | BF34: N/A | BG34: N/A | BH34: N/A | BI34: N/A | BJ34: N/A | BK34: N/A | BL34: N/A | BM34: N/A | BN34: N/A | BO34: N/A | BP34: N/A | BQ34: N/A | BR34: N/A | BS34: N/A | BT34: N/A | BU34: N/A
A35: Water source on premises | B35: Yes | C35: 66.12027262 | D35: 76.71259463 | E35: 84.29410078 | F35: 89.48614382 | G35: 92.28640726 | H35: 83.26295809 | I35: 87.16553046 | J35: 89.96142753 | K35: 91.08943324 | L35: 92.6997187 | M35: 62.74782918 | N35: 71.72460165 | O35: 77.60961345 | P35: 86.13966071 | Q35: 92.54187923 | R35: 53.01685407 | S35: 70.54969613 | T35: 90.39041166 | U35: 72.68252559 | BA35: Water source on premises | BB35: Yes | BC35: N/A | BD35: N/A | BE35: N/A | BF35: N/A | BG35: N/A | BH35: N/A | BI35: N/A | BJ35: N/A | BK35: N/A | BL35: N/A | BM35: N/A | BN35: N/A | BO35: N/A | BP35: N/A | BQ35: N/A | BR35: N/A | BS35: N/A | BT35: N/A | BU35: N/A
B36: No | C36: 33.87972738 | D36: 23.28740537 | E36: 15.70589922 | F36: 10.51385618 | G36: 7.713592738 | H36: 16.73704191 | I36: 12.83446954 | J36: 10.03857247 | K36: 8.910566758 | L36: 7.300281296 | M36: 37.25217082 | N36: 28.27539835 | O36: 22.39038655 | P36: 13.86033929 | Q36: 7.458120767 | R36: 46.98314593 | S36: 29.45030387 | T36: 9.609588345 | U36: 27.31747441 | BB36: No | BC36: N/A | BD36: N/A | BE36: N/A | BF36: N/A | BG36: N/A | BH36: N/A | BI36: N/A | BJ36: N/A | BK36: N/A | BL36: N/A | BM36: N/A | BN36: N/A | BO36: N/A | BP36: N/A | BQ36: N/A | BR36: N/A | BS36: N/A | BT36: N/A | BU36: N/A
A37: Improved Water source on premises | B37: Yes | C37: 65.69389642 | D37: 75.9381197 | E37: 83.6256067 | F37: 88.78552641 | G37: 91.09541432 | H37: 83.04208098 | I37: 86.92432978 | J37: 89.30392524 | K37: 90.48703776 | L37: 89.94931893 | M37: 62.55811713 | N37: 71.01370915 | O37: 76.48612555 | P37: 85.27629809 | Q37: 92.03438152 | R37: 51.7886724 | S37: 70.06198878 | T37: 89.49489682 | U37: 72.21806696 | BA37: Improved water source on premises | BB37: Yes | BC37: N/A | BD37: N/A | BE37: N/A | BF37: N/A | BG37: N/A | BH37: N/A | BI37: N/A | BJ37: N/A | BK37: N/A | BL37: N/A | BM37: N/A | BN37: N/A | BO37: N/A | BP37: N/A | BQ37: N/A | BR37: N/A | BS37: N/A | BT37: N/A | BU37: N/A
B38: No | C38: 34.30610358 | D38: 24.0618803 | E38: 16.3743933 | F38: 11.21447359 | G38: 8.904585681 | H38: 16.95791902 | I38: 13.07567022 | J38: 10.69607476 | K38: 9.512962237 | L38: 10.05068107 | M38: 37.44188287 | N38: 28.98629085 | O38: 23.51387445 | P38: 14.72370191 | Q38: 7.965618485 | R38: 48.2113276 | S38: 29.93801122 | T38: 10.50510318 | U38: 27.78193304 | BB38: No | BC38: N/A | BD38: N/A | BE38: N/A | BF38: N/A | BG38: N/A | BH38: N/A | BI38: N/A | BJ38: N/A | BK38: N/A | BL38: N/A | BM38: N/A | BN38: N/A | BO38: N/A | BP38: N/A | BQ38: N/A | BR38: N/A | BS38: N/A | BT38: N/A | BU38: N/A
A39: Piped water on premises available when needed | B39: Yes | C39: N/A | D39: N/A | E39: N/A | F39: N/A | G39: N/A | H39: N/A | I39: N/A | J39: N/A | K39: N/A | L39: N/A | M39: N/A | N39: N/A | O39: N/A | P39: N/A | Q39: N/A | R39: N/A | S39: N/A | T39: N/A | U39: N/A | BA39: Piped water on premises available when needed | BB39: Yes | BC39: N/A | BD39: N/A | BE39: N/A | BF39: N/A | BG39: N/A | BH39: N/A | BI39: N/A | BJ39: N/A | BK39: N/A | BL39: N/A | BM39: N/A | BN39: N/A | BO39: N/A | BP39: N/A | BQ39: N/A | BR39: N/A | BS39: N/A | BT39: N/A | BU39: N/A
B40: No | C40: N/A | D40: N/A | E40: N/A | F40: N/A | G40: N/A | H40: N/A | I40: N/A | J40: N/A | K40: N/A | L40: N/A | M40: N/A | N40: N/A | O40: N/A | P40: N/A | Q40: N/A | R40: N/A | S40: N/A | T40: N/A | U40: N/A | BB40: No | BC40: N/A | BD40: N/A | BE40: N/A | BF40: N/A | BG40: N/A | BH40: N/A | BI40: N/A | BJ40: N/A | BK40: N/A | BL40: N/A | BM40: N/A | BN40: N/A | BO40: N/A | BP40: N/A | BQ40: N/A | BR40: N/A | BS40: N/A | BT40: N/A | BU40: N/A
A41: Water point at more than 30 minutes | B41: Yes | C41: 10.84107601 | D41: 5.613212177 | E41: 3.022738291 | F41: 2.646224365 | G41: 1.743859511 | H41: 3.786776368 | I41: 2.882670821 | J41: 1.722598085 | K41: 1.320293944 | L41: 2.060063348 | M41: 12.03289556 | N41: 7.437081778 | O41: 5.086691679 | P41: 3.608094674 | Q41: 1.922264808 | R41: 15.67724265 | S41: 8.142496625 | T41: 2.063295619 | U41: 7.57601356 | BA41: Water point at more than 30 minutes | BB41: Yes | BC41: N/A | BD41: N/A | BE41: N/A | BF41: N/A | BG41: N/A | BH41: N/A | BI41: N/A | BJ41: N/A | BK41: N/A | BL41: N/A | BM41: N/A | BN41: N/A | BO41: N/A | BP41: N/A | BQ41: N/A | BR41: N/A | BS41: N/A | BT41: N/A | BU41: N/A
B42: No | C42: 89.15892399 | D42: 94.38678782 | E42: 96.97726171 | F42: 97.35377563 | G42: 98.25614049 | H42: 96.21322363 | I42: 97.11732918 | J42: 98.27740191 | K42: 98.67970606 | L42: 97.93993665 | M42: 87.96710444 | N42: 92.56291822 | O42: 94.91330832 | P42: 96.39190533 | Q42: 98.07773519 | R42: 84.32275735 | S42: 91.85750338 | T42: 97.93670438 | U42: 92.42398644 | BB42: No | BC42: N/A | BD42: N/A | BE42: N/A | BF42: N/A | BG42: N/A | BH42: N/A | BI42: N/A | BJ42: N/A | BK42: N/A | BL42: N/A | BM42: N/A | BN42: N/A | BO42: N/A | BP42: N/A | BQ42: N/A | BR42: N/A | BS42: N/A | BT42: N/A | BU42: N/A
A43: Water source available when needed | B43: Yes | C43: N/A | D43: N/A | E43: N/A | F43: N/A | G43: N/A | H43: N/A | I43: N/A | J43: N/A | K43: N/A | L43: N/A | M43: N/A | N43: N/A | O43: N/A | P43: N/A | Q43: N/A | R43: N/A | S43: N/A | T43: N/A | U43: N/A | BA43: Water source available when needed | BB43: Yes | BC43: N/A | BD43: N/A | BE43: N/A | BF43: N/A | BG43: N/A | BH43: N/A | BI43: N/A | BJ43: N/A | BK43: N/A | BL43: N/A | BM43: N/A | BN43: N/A | BO43: N/A | BP43: N/A | BQ43: N/A | BR43: N/A | BS43: N/A | BT43: N/A | BU43: N/A
B44: No | C44: N/A | D44: N/A | E44: N/A | F44: N/A | G44: N/A | H44: N/A | I44: N/A | J44: N/A | K44: N/A | L44: N/A | M44: N/A | N44: N/A | O44: N/A | P44: N/A | Q44: N/A | R44: N/A | S44: N/A | T44: N/A | U44: N/A | BB44: No | BC44: N/A | BD44: N/A | BE44: N/A | BF44: N/A | BG44: N/A | BH44: N/A | BI44: N/A | BJ44: N/A | BK44: N/A | BL44: N/A | BM44: N/A | BN44: N/A | BO44: N/A | BP44: N/A | BQ44: N/A | BR44: N/A | BS44: N/A | BT44: N/A | BU44: N/A
A45: Improved water source available when needed | B45: Yes | C45: N/A | D45: N/A | E45: N/A | F45: N/A | G45: N/A | H45: N/A | I45: N/A | J45: N/A | K45: N/A | L45: N/A | M45: N/A | N45: N/A | O45: N/A | P45: N/A | Q45: N/A | R45: N/A | S45: N/A | T45: N/A | U45: N/A | BA45: Improved water source available when needed | BB45: Yes | BC45: N/A | BD45: N/A | BE45: N/A | BF45: N/A | BG45: N/A | BH45: N/A | BI45: N/A | BJ45: N/A | BK45: N/A | BL45: N/A | BM45: N/A | BN45: N/A | BO45: N/A | BP45: N/A | BQ45: N/A | BR45: N/A | BS45: N/A | BT45: N/A | BU45: N/A
B46: No | C46: N/A | D46: N/A | E46: N/A | F46: N/A | G46: N/A | H46: N/A | I46: N/A | J46: N/A | K46: N/A | L46: N/A | M46: N/A | N46: N/A | O46: N/A | P46: N/A | Q46: N/A | R46: N/A | S46: N/A | T46: N/A | U46: N/A | BB46: No | BC46: N/A | BD46: N/A | BE46: N/A | BF46: N/A | BG46: N/A | BH46: N/A | BI46: N/A | BJ46: N/A | BK46: N/A | BL46: N/A | BM46: N/A | BN46: N/A | BO46: N/A | BP46: N/A | BQ46: N/A | BR46: N/A | BS46: N/A | BT46: N/A | BU46: N/A
A47: Microbiological quality at point of collection | B47: Not contaminated (No E. coli in 100 mL) | C47: N/A | D47: N/A | E47: N/A | F47: N/A | G47: N/A | H47: N/A | I47: N/A | J47: N/A | K47: N/A | L47: N/A | M47: N/A | N47: N/A | O47: N/A | P47: N/A | Q47: N/A | R47: N/A | S47: N/A | T47: N/A | U47: N/A | BA47: Microbiological quality at point of collection | BB47: Not contaminated (No E. coli in 100 mL) | BC47: N/A | BD47: N/A | BE47: N/A | BF47: N/A | BG47: N/A | BH47: N/A | BI47: N/A | BJ47: N/A | BK47: N/A | BL47: N/A | BM47: N/A | BN47: N/A | BO47: N/A | BP47: N/A | BQ47: N/A | BR47: N/A | BS47: N/A | BT47: N/A | BU47: N/A
B48: Contaminated (E. coli detected in 100 mL) | C48: N/A | D48: N/A | E48: N/A | F48: N/A | G48: N/A | H48: N/A | I48: N/A | J48: N/A | K48: N/A | L48: N/A | M48: N/A | N48: N/A | O48: N/A | P48: N/A | Q48: N/A | R48: N/A | S48: N/A | T48: N/A | U48: N/A | BB48: Contaminated (E. coli detected in 100 mL) | BC48: N/A | BD48: N/A | BE48: N/A | BF48: N/A | BG48: N/A | BH48: N/A | BI48: N/A | BJ48: N/A | BK48: N/A | BL48: N/A | BM48: N/A | BN48: N/A | BO48: N/A | BP48: N/A | BQ48: N/A | BR48: N/A | BS48: N/A | BT48: N/A | BU48: N/A
B49: Highly contaminated (>100 CFU/100 mL) | C49: N/A | D49: N/A | E49: N/A | F49: N/A | G49: N/A | H49: N/A | I49: N/A | J49: N/A | K49: N/A | L49: N/A | M49: N/A | N49: N/A | O49: N/A | P49: N/A | Q49: N/A | R49: N/A | S49: N/A | T49: N/A | U49: N/A | BB49: Highly contaminated (>100 CFU/100 mL) | BC49: N/A | BD49: N/A | BE49: N/A | BF49: N/A | BG49: N/A | BH49: N/A | BI49: N/A | BJ49: N/A | BK49: N/A | BL49: N/A | BM49: N/A | BN49: N/A | BO49: N/A | BP49: N/A | BQ49: N/A | BR49: N/A | BS49: N/A | BT49: N/A | BU49: N/A
A50: Microbiological quality of improved water sources at point of collection | B50: Not contaminated (No E. coli in 100 mL) | C50: N/A | D50: N/A | E50: N/A | F50: N/A | G50: N/A | H50: N/A | I50: N/A | J50: N/A | K50: N/A | L50: N/A | M50: N/A | N50: N/A | O50: N/A | P50: N/A | Q50: N/A | R50: N/A | S50: N/A | T50: N/A | U50: N/A | BA50: Microbiological quality of improved water sources at point of collection | BB50: Not contaminated (No E. coli in 100 mL) | BC50: N/A | BD50: N/A | BE50: N/A | BF50: N/A | BG50: N/A | BH50: N/A | BI50: N/A | BJ50: N/A | BK50: N/A | BL50: N/A | BM50: N/A | BN50: N/A | BO50: N/A | BP50: N/A | BQ50: N/A | BR50: N/A | BS50: N/A | BT50: N/A | BU50: N/A
B51: Contaminated (E. coli detected in 100 mL) | C51: N/A | D51: N/A | E51: N/A | F51: N/A | G51: N/A | H51: N/A | I51: N/A | J51: N/A | K51: N/A | L51: N/A | M51: N/A | N51: N/A | O51: N/A | P51: N/A | Q51: N/A | R51: N/A | S51: N/A | T51: N/A | U51: N/A | BB51: Contaminated (E. coli detected in 100 mL) | BC51: N/A | BD51: N/A | BE51: N/A | BF51: N/A | BG51: N/A | BH51: N/A | BI51: N/A | BJ51: N/A | BK51: N/A | BL51: N/A | BM51: N/A | BN51: N/A | BO51: N/A | BP51: N/A | BQ51: N/A | BR51: N/A | BS51: N/A | BT51: N/A | BU51: N/A
B52: Highly contaminated (>100 CFU/100 mL) | C52: N/A | D52: N/A | E52: N/A | F52: N/A | G52: N/A | H52: N/A | I52: N/A | J52: N/A | K52: N/A | L52: N/A | M52: N/A | N52: N/A | O52: N/A | P52: N/A | Q52: N/A | R52: N/A | S52: N/A | T52: N/A | U52: N/A | BB52: Highly contaminated (>100 CFU/100 mL) | BC52: N/A | BD52: N/A | BE52: N/A | BF52: N/A | BG52: N/A | BH52: N/A | BI52: N/A | BJ52: N/A | BK52: N/A | BL52: N/A | BM52: N/A | BN52: N/A | BO52: N/A | BP52: N/A | BQ52: N/A | BR52: N/A | BS52: N/A | BT52: N/A | BU52: N/A
A53: Microbiological quality of piped on premises at point of collection | B53: Not contaminated (No E. coli in 100 mL) | C53: N/A | D53: N/A | E53: N/A | F53: N/A | G53: N/A | H53: N/A | I53: N/A | J53: N/A | K53: N/A | L53: N/A | M53: N/A | N53: N/A | O53: N/A | P53: N/A | Q53: N/A | R53: N/A | S53: N/A | T53: N/A | U53: N/A | BA53: Microbiological quality of piped on premises at point of collection | BB53: Not contaminated (No E. coli in 100 mL) | BC53: N/A | BD53: N/A | BE53: N/A | BF53: N/A | BG53: N/A | BH53: N/A | BI53: N/A | BJ53: N/A | BK53: N/A | BL53: N/A | BM53: N/A | BN53: N/A | BO53: N/A | BP53: N/A | BQ53: N/A | BR53: N/A | BS53: N/A | BT53: N/A | BU53: N/A
B54: Contaminated (E. coli detected in 100 mL) | C54: N/A | D54: N/A | E54: N/A | F54: N/A | G54: N/A | H54: N/A | I54: N/A | J54: N/A | K54: N/A | L54: N/A | M54: N/A | N54: N/A | O54: N/A | P54: N/A | Q54: N/A | R54: N/A | S54: N/A | T54: N/A | U54: N/A | BB54: Contaminated (E. coli detected in 100 mL) | BC54: N/A | BD54: N/A | BE54: N/A | BF54: N/A | BG54: N/A | BH54: N/A | BI54: N/A | BJ54: N/A | BK54: N/A | BL54: N/A | BM54: N/A | BN54: N/A | BO54: N/A | BP54: N/A | BQ54: N/A | BR54: N/A | BS54: N/A | BT54: N/A | BU54: N/A
B55: Highly contaminated (>100 CFU/100 mL) | C55: N/A | D55: N/A | E55: N/A | F55: N/A | G55: N/A | H55: N/A | I55: N/A | J55: N/A | K55: N/A | L55: N/A | M55: N/A | N55: N/A | O55: N/A | P55: N/A | Q55: N/A | R55: N/A | S55: N/A | T55: N/A | U55: N/A | BB55: Highly contaminated (>100 CFU/100 mL) | BC55: N/A | BD55: N/A | BE55: N/A | BF55: N/A | BG55: N/A | BH55: N/A | BI55: N/A | BJ55: N/A | BK55: N/A | BL55: N/A | BM55: N/A | BN55: N/A | BO55: N/A | BP55: N/A | BQ55: N/A | BR55: N/A | BS55: N/A | BT55: N/A | BU55: N/A
C56: NATIONAL wealth index quintile | H56: URBAN wealth index quintile | M56: RURAL wealth index quintile | R56: SUB-REGIONS: | BA56: Raw numbers of respondents: | BB56: Use of drinking water sources | BC56: NATIONAL wealth index quintile | BH56: URBAN wealth index quintile | BM56: RURAL wealth index quintile | BR56: SUB-REGIONS:
A57: Percentage based on weighted population | C57: Poorest | D57: Poor | E57: Middle | F57: Rich | G57: Richest | H57: Poorest | I57: Poor | J57: Middle | K57: Rich | L57: Richest | M57: Poorest | N57: Poor | O57: Middle | P57: Rich | Q57: Richest | R57: Balochistan | S57: NWFP | T57: Punjab | U57: Sindh | BA57: Water data, raw numbers (weighted) | BC57: Poorest | BD57: Poor | BE57: Middle | BF57: Rich | BG57: Richest | BH57: Poorest | BI57: Poor | BJ57: Middle | BK57: Rich | BL57: Richest | BM57: Poorest | BN57: Poor | BO57: Middle | BP57: Rich | BQ57: Richest | BR57: Balochistan | BS57: NWFP | BT57: Punjab | BU57: Sindh
A58: Source of drinking water | B58: Piped into dwelling | C58: 8.855340185 | D58: 17.58037556 | E58: 31.66610854 | F58: 40.38190637 | G58: 51.56361163 | H58: 35.0998426 | I58: 51.76129822 | J58: 59.46171476 | K58: 62.07680506 | L58: 63.8708958 | M58: 5.433566885 | N58: 12.10047202 | O58: 18.39578625 | P58: 26.67526173 | Q58: 24.73896941 | R58: 30.82362205 | S58: 38.61013955 | T58: 27.26712177 | U58: 31.59125542
B59: Piped to yard/plot | C59: 5.256570503 | D59: 6.536632677 | E59: 6.286715206 | F59: 8.159229955 | G59: 6.066482071 | H59: 11.09234758 | I59: 6.598230047 | J59: 6.778001106 | K59: 7.157304762 | L59: 4.431746401 | M59: 4.709791747 | N59: 4.846631891 | O59: 5.098302291 | P59: 6.90195851 | Q59: 8.830827657 | R59: 13.84525939 | S59: 8.175700473 | T59: 7.379988919 | U59: 1.803126592
B60: Public tap/standpipe | C60: 1.825644994 | D60: 2.198129832 | E60: 2.509696812 | F60: 3.407234184 | G60: 1.456513972 | H60: 4.970424558 | I60: 5.036774533 | J60: 4.604102098 | K60: 2.290035106 | L60: 1.306653737 | M60: 1.377722922 | N60: 1.118050865 | O60: 2.186793177 | P60: 1.741658125 | Q60: 1.490727996 | R60: 1.310110087 | S60: 3.185262404 | T60: 2.640273491 | U60: 1.049349142
B61: Tube well or borehole | C61: 6.559844353 | D61: 8.780844344 | E61: 17.49749497 | F61: 20.24859382 | G61: 19.92553916 | H61: 8.313962 | I61: 13.52159975 | J61: 13.16164924 | K61: 13.4935269 | L61: 14.33808554 | M61: 5.886462165 | N61: 8.050087884 | O61: 12.48589564 | P61: 20.93708621 | Q61: 30.86693464 | R61: 7.873249112 | S61: 12.87897654 | T61: 18.50971248 | U61: 7.31227857
B62: Hand pump | C62: 59.68860837 | D62: 50.70615842 | E62: 30.93099585 | F62: 19.68972989 | G62: 11.07602329 | H62: 32.12387016 | I62: 15.18358299 | J62: 9.109594356 | K62: 5.962022544 | L62: 4.700469363 | M62: 62.88787992 | N62: 57.67860726 | O62: 46.94393043 | P62: 32.88265605 | Q62: 25.57364813 | R62: 9.741453294 | S62: 8.883616852 | T62: 38.20382602 | U62: 44.68952397
B63: Protected well | C63: 5.459013996 | D63: 4.10825257 | E63: 3.840591949 | F63: 2.606887617 | G63: 2.721986286 | H63: 1.890618284 | I63: 1.425017351 | J63: 0.3997141114 | K63: 1.60070213 | L63: 1.588518508 | M63: 6.409001506 | N63: 4.859805596 | O63: 4.189908207 | P63: 5.066737456 | Q63: 4.277520155 | R63: 11.89655807 | S63: 11.78410443 | T63: 1.598057179 | U63: 2.78077564
B64: Unprotected well | C64: 2.206324103 | D64: 1.764611999 | E64: 0.7219582958 | F64: 0.7202004834 | G64: 0.07639094714 | H64: 0.0895431282 | I64: 0 | J64: 0 | K64: 0.05975484773 | L64: 0 | M64: 2.489739779 | N64: 1.969126114 | O64: 2.163551851 | P64: 0.9883599309 | Q64: 0.615494497 | R64: 2.394455869 | S64: 2.516957956 | T64: 0.5852382422 | U64: 1.27934093
B65: Protected spring/karez | C65: 0.7768867686 | D65: 0.9731295839 | E65: 0.4835044334 | F65: 0.3341717469 | G65: 0 | H65: 0.1140021132 | I65: 0.2000479337 | J65: 0 | K65: 0 | L65: 0 | M65: 1.133313662 | N65: 0.8308700382 | O65: 0.8532410976 | P65: 0.4697698766 | Q65: 0.4368896355 | R65: 6.321639129 | S65: 1.622878108 | T65: 0.008640025614 | U65: 0
B66: Unprotected spring | C66: 1.348708816 | D66: 2.93242963 | E66: 0.7564263986 | F66: 0.1602195136 | G66: 0 | H66: 0 | I66: 0.08959865365 | J66: 0 | K66: 0 | L66: 0 | M66: 1.031219919 | N66: 2.671303916 | O66: 3.413184648 | P66: 0.6376378864 | Q66: 0.06342508587 | R66: 0.9235800049 | S66: 7.234313545 | T66: 0 | U66: 0
B67: River/dam/lake/ponds/stream/canal/irirgation channel | C67: 4.99422923 | D67: 2.607003218 | E67: 2.513497121 | F67: 1.209862292 | G67: 1.952684747 | H67: 0.1552642759 | I67: 2.044613232 | J67: 1.011036893 | K67: 0.9422435739 | L67: 2.930192748 | M67: 5.71143525 | N67: 4.009300762 | O67: 3.001451722 | P67: 2.083927631 | Q67: 1.645255886 | R67: 7.157210866 | S67: 3.112052707 | T67: 1.826199121 | U67: 3.5645043
B68: Rainwater | C68: 0.4585607278 | D68: 0.3487927965 | E68: 0.1523921301 | F68: 0.06084237975 | G68: 0.1056855912 | H68: 0.1428306619 | I68: 0.1173586719 | J68: 0.04077467854 | K68: 0 | L68: 0 | M68: 0.6062213101 | N68: 0.1392991045 | O68: 0.487438842 | P68: 0.1576657366 | Q68: 0.1600807838 | R68: 3.517608721 | S68: 0 | T68: 0.03646561043 | U68: 0.1932246447
B69: Tanker truck | C69: 0.2691703993 | D69: 0.4472692369 | E69: 1.1939354 | F69: 1.827769957 | G69: 1.558742232 | H69: 2.321267969 | I69: 2.744469005 | J69: 3.089413997 | K69: 2.813920368 | L69: 1.089751963 | M69: 0.2297269486 | N69: 0.3930459337 | O69: 0.1788499775 | P69: 0.3529683086 | Q69: 0.6772050502 | R69: 3.689039572 | S69: 0.3441480255 | T69: 0.1693250752 | U69: 3.15883569
B70: Cart with small tank | C70: 0.440008464 | D70: 0.2315742186 | E70: 0.624763945 | F70: 0.3695441687 | G70: 0.8340241279 | H70: 1.73737769 | I70: 0.2547826385 | J70: 0.7348697602 | K70: 0.7945019927 | L70: 1.379895322 | M70: 0.2848106061 | N70: 0.3612860621 | O70: 0.05264352316 | P70: 0.2872210375 | Q70: 0.282656237 | R70: 0.2132584064 | S70: 0.4103729132 | T70: 0.3028208488 | U70: 1.090651553
B71: Bottled water | C71: 0.08014716866 | D71: 0.09172554479 | E71: 0.2292254777 | F71: 0.3066763246 | G71: 1.553466499 | H71: 0.5412927023 | I71: 0.7232816896 | J71: 0.6738441527 | K71: 1.776512536 | L71: 2.79478674 | M71: 0.03700773286 | N71: 0.04192780638 | O71: 0 | P71: 0 | Q71: 0 | R71: 0.2318784737 | S71: 0 | T71: 0.2715649981 | U71: 1.202162638
B72: Other | C72: 1.780941921 | D72: 0.6930703654 | E72: 0.5926934664 | F72: 0.5171313004 | G72: 1.108849452 | H72: 1.407356273 | I72: 0.2993452862 | J72: 0.9352848541 | K72: 1.032670179 | L72: 1.56900387 | M72: 1.772099647 | N72: 0.9301847464 | O72: 0.5490223434 | P72: 0.8170915161 | Q72: 0.3403648426 | R72: 0.06107695031 | S72: 1.2414765 | T72: 1.200766226 | U72: 0.2849709102
A108: =A1026 -> Pakistan
A109: =A1034 -> 2007
A110: Use of sanitation facilities
A111: by wealth quintile and sub-national region
A112: Notes:
A113: WHO/UNICEF JMP customised wealth index excludes water,
A114: sanitation and hygiene assets.
A115: Survey used for analysis: | B115: =A1025 -> DHS07
A116: =B1030 -> 
A117: =B1029 -> 
A120: Use of sanitation facilities | C120: NATIONAL wealth index quintile | H120: URBAN wealth index quintile | M120: RURAL wealth index quintile | R120: SUB-REGIONS: | BA120: Raw numbers of respondents: | BB120: Use of sanitation facilities | BC120: NATIONAL wealth index quintile | BH120: URBAN wealth index quintile | BM120: RURAL wealth index quintile | BR120: SUB-REGIONS:
A121: Weighted percentage (used in graphs) | C121: Poorest | D121: Poor | E121: Middle | F121: Rich | G121: Richest | H121: Poorest | I121: Poor | J121: Middle | K121: Rich | L121: Richest | M121: Poorest | N121: Poor | O121: Middle | P121: Rich | Q121: Richest | R121: Balochistan | S121: NWFP | T121: Punjab | U121: Sindh | BA121: Sanitation data, raw numbers (weighted) | BC121: Poorest | BD121: Poor | BE121: Middle | BF121: Rich | BG121: Richest | BH121: Poorest | BI121: Poor | BJ121: Middle | BK121: Rich | BL121: Richest | BM121: Poorest | BN121: Poor | BO121: Middle | BP121: Rich | BQ121: Richest | BR121: Balochistan | BS121: NWFP | BT121: Punjab | BU121: Sindh
A122: Sanitation | B122: Improved | C122: 14.4841641 | D122: 29.77005658 | E122: 57.35228619 | F122: 77.07981429 | G122: 88.65362422 | H122: 60.2915569 | I122: 84.98645303 | J122: 88.42465878 | K122: 90.15112619 | L122: 93.5876508 | M122: 9.233440821 | N122: 19.59249733 | O122: 31.95275023 | P122: 53.75040819 | Q122: 75.65671744 | R122: 49.40673715 | S122: 48.29012448 | T122: 54.17555833 | U122: 55.51099298 | BA122: Sanitation | BB122: Improved | BC122: 1968.217952 | BD122: 4045.546782 | BE122: 7790.682686 | BF122: 10474.82144 | BG122: 12042.91575 | BH122: 2782.700558 | BI122: 3917.557484 | BJ122: 4073.555572 | BK122: 4165.866171 | BL122: 4317.556961 | BM122: 828.250754 | BN122: 1760.734763 | BO122: 2864.839104 | BP122: 4825.976773 | BQ122: 6785.146469 | BR122: 1510.367347 | BS122: 4524.709393 | BT122: 21357.19518 | BU122: 8929.912692
B123: Not Improved | C123: 85.5158359 | D123: 70.22994342 | E123: 42.64771381 | F123: 22.92018571 | G123: 11.34637578 | H123: 39.7084431 | I123: 15.01354697 | J123: 11.57534122 | K123: 9.848873808 | L123: 6.412349203 | M123: 90.76655918 | N123: 80.40750267 | O123: 68.04724977 | P123: 46.24959181 | Q123: 24.34328256 | R123: 50.59326285 | S123: 51.70987552 | T123: 45.82444167 | U123: 44.48900702 | BB123: Not Improved | BC123: 11620.53966 | BD123: 9543.768276 | BE123: 5793.226874 | BF123: 3114.756502 | BG123: 1541.318235 | BH123: 1832.706144 | BI123: 692.068338 | BJ123: 533.253918 | BK123: 455.114561 | BL123: 295.826241 | BM123: 8141.869595 | BN123: 7226.045909 | BO123: 6101.021684 | BP123: 4152.516481 | BQ123: 2183.186679 | BR123: 1546.639519 | BS123: 4845.134735 | BT123: 18065.00154 | BU123: 7156.833756
A124: Sanitation ladder | B124: Basic | C124: =C122*C129/100 -> 10.64150352 | D124: =D122*D129/100 -> 24.41177135 | E124: =E122*E129/100 -> 49.91355241 | F124: 70.34635897 | G124: 80.72330527 | H124: 50.12006116 | I124: 75.86028264 | J124: 81.48361033 | K124: 79.99117648 | L124: 85.25684097 | M124: 6.691079173 | N124: 15.46170608 | O124: 26.08312353 | P124: 47.93189156 | Q124: 69.61604109 | R124: 35.67421495 | S124: 42.31579049 | T124: 48.66274858 | U124: 48.64654983 | BA124: Sanitation ladder | BB124: Basic | BC124: 1434.147005 | BD124: 3307.709275 | BE124: 6749.758286 | BF124: 9482.625745 | BG124: 10933.81564 | BH124: 2307.356691 | BI124: 3474.996706 | BJ124: 3716.853511 | BK124: 3664.402612 | BL124: 3927.711684 | BM124: 588.459406 | BN124: 1385.78019 | BO124: 2334.447146 | BP124: 4290.710464 | BQ124: 6217.337545 | BR124: 1071.282539 | BS124: 3941.372484 | BT124: 19134.5114 | BU124: 7760.889528
B125: Limited | C125: =C122*C128/100 -> 3.842660578 | D125: =D122*D128/100 -> 5.358285234 | E125: =E122*E128/100 -> 7.438733774 | F125: 6.733455324 | G125: 7.930318951 | H125: 10.17149574 | I125: 9.126170384 | J125: 6.941048443 | K125: 10.15994971 | L125: 8.330809827 | M125: 2.542361648 | N125: 4.130791243 | O125: 5.869626704 | P125: 5.818516626 | Q125: 6.040676353 | R125: 13.7325222 | S125: 5.974333986 | T125: 5.512809746 | U125: 6.864443156 | BB125: Limited | BC125: 517.872324 | BD125: 726.028829 | BE125: 1005.932307 | BF125: 907.663705 | BG125: 1074.146371 | BH125: 468.260976 | BI125: 418.050275 | BJ125: 316.614104 | BK125: 465.428162 | BL125: 383.793473 | BM125: 223.592725 | BN125: 370.228786 | BO125: 525.333298 | BP125: 520.8551 | BQ125: 539.486637 | BR125: 412.3822 | BS125: 556.460728 | BT125: 2167.672892 | BU125: 1095.127716
B126: Unimproved | C126: =100-C124-C125-C127 -> 15.92479066 | D126: =100-D124-D125-D127 -> 24.60352699 | E126: =100-E124-E125-E127 -> 24.37123142 | F126: 16.3550596 | G126: 10.64850601 | H126: 25.26286324 | I126: 13.67853802 | J126: 11.07054806 | K126: 9.489948504 | L126: 6.315454241 | M126: 13.68949385 | N126: 20.92213772 | O126: 26.68621046 | P126: 25.35321043 | Q126: 18.71802729 | R126: 12.30772139 | S126: 23.74453584 | T126: 18.52189239 | U126: 15.90912461 | BB126: Unimproved | BC126: 2175.253994 | BD126: 3348.838675 | BE126: 3316.961358 | BF126: 2228.133204 | BG126: 1446.761903 | BH126: 1167.007048 | BI126: 630.856638 | BJ126: 510.20142 | BK126: 438.658032 | BL126: 291.361969 | BM126: 1240.449497 | BN126: 1883.03778 | BO126: 2394.740794 | BP126: 2279.347709 | BQ126: 1680.288247 | BR126: 386.471126 | BS126: 2232.342012 | BT126: 7316.756225 | BU126: 2580.379771
B127: Open defecation | C127: 69.59104524 | D127: 45.62641642 | E127: 18.2764824 | F127: 6.56512611 | G127: 0.697869778 | H127: 14.44557985 | I127: 1.335008953 | J127: 0.5047931614 | K127: 0.3589253044 | L127: 0.09689496184 | M127: 77.07706533 | N127: 59.48536496 | O127: 41.3610393 | P127: 20.89638139 | Q127: 5.625255269 | R127: 38.28554146 | S127: 27.96533968 | T127: 27.30254929 | U127: 28.5798824 | BB127: Open defecation | BC127: 9445.285669 | BD127: 6194.929601 | BE127: 2476.265516 | BF127: 886.623298 | BG127: 94.556332 | BH127: 665.699096 | BI127: 61.2117 | BJ127: 23.052498 | BK127: 16.456529 | BL127: 4.464272 | BM127: 6901.420098 | BN127: 5343.008129 | BO127: 3706.28089 | BP127: 1873.168772 | BQ127: 502.898432 | BR127: 1160.168393 | BS127: 2612.792723 | BT127: 10748.24532 | BU127: 4576.453985
A128: Shared among Improved Sanitation | B128: Yes | C128: 26.53008176 | D128: 17.99890846 | E128: 12.97024804 | F128: 8.7356922 | G128: 8.945284551 | H128: 16.87051432 | I128: 10.73838248 | J128: 7.849675124 | K128: 11.2699088 | L128: 8.901612291 | M128: 27.53428216 | N128: 21.08353608 | O128: 18.36970734 | P128: 10.825065 | Q128: 7.984322553 | R128: 27.79483728 | S128: 12.37175106 | T128: 10.17582452 | U128: 12.36591671 | BA128: Shared among improved sanitation facilities | BB128: Yes | BC128: N/A | BD128: N/A | BE128: N/A | BF128: N/A | BG128: N/A | BH128: N/A | BI128: N/A | BJ128: N/A | BK128: N/A | BL128: N/A | BM128: N/A | BN128: N/A | BO128: N/A | BP128: N/A | BQ128: N/A | BR128: N/A | BS128: N/A | BT128: N/A | BU128: N/A
B129: No | C129: 73.46991824 | D129: 82.00109154 | E129: 87.02975196 | F129: 91.2643078 | G129: 91.05471545 | H129: 83.12948568 | I129: 89.26161752 | J129: 92.15032488 | K129: 88.7300912 | L129: 91.09838771 | M129: 72.46571784 | N129: 78.91646392 | O129: 81.63029266 | P129: 89.174935 | Q129: 92.01567745 | R129: 72.20516272 | S129: 87.62824894 | T129: 89.82417548 | U129: 87.63408329 | BB129: No | BC129: N/A | BD129: N/A | BE129: N/A | BF129: N/A | BG129: N/A | BH129: N/A | BI129: N/A | BJ129: N/A | BK129: N/A | BL129: N/A | BM129: N/A | BN129: N/A | BO129: N/A | BP129: N/A | BQ129: N/A | BR129: N/A | BS129: N/A | BT129: N/A | BU129: N/A
A130: Manually calculated ratios | B130: Improved latrines | C130: =(C157+C158)/(C157+C158+C159)*100 -> 20.00060306 | D130: =(D157+D158)/(D157+D158+D159)*100 -> 32.76266822 | E130: 50.66709194 | F130: 65.4355937 | G130: 97.51766799 | H130: 35.8056387 | I130: 86.31980805 | J130: 93.54218789 | K130: 100 | L130: 100 | M130: 17.45575556 | N130: 26.28670559 | O130: 39.58513692 | P130: 45.31056539 | Q130: 66.08126227
B131: Other
B132: Other
C133: NATIONAL wealth index quintile | H133: URBAN wealth index quintile | M133: RURAL wealth index quintile | R133: SUB-REGIONS: | BA133: Raw numbers of respondents: | BB133: Use of sanitation facilities | BC133: NATIONAL wealth index quintile | BH133: URBAN wealth index quintile | BM133: RURAL wealth index quintile | BR133: SUB-REGIONS:
A134: Percentage based on weighted population | C134: Poorest | D134: Poor | E134: Middle | F134: Rich | G134: Richest | H134: Poorest | I134: Poor | J134: Middle | K134: Rich | L134: Richest | M134: Poorest | N134: Poor | O134: Middle | P134: Rich | Q134: Richest | R134: Balochistan | S134: NWFP | T134: Punjab | U134: Sindh | BA134: Sanitation data, raw numbers (weighted) | BC134: Poorest | BD134: Poor | BE134: Middle | BF134: Rich | BG134: Richest | BH134: Poorest | BI134: Poor | BJ134: Middle | BK134: Rich | BL134: Richest | BM134: Poorest | BN134: Poor | BO134: Middle | BP134: Rich | BQ134: Richest | BR134: Balochistan | BS134: NWFP | BT134: Punjab | BU134: Sindh
A135: Sanitation type | B135: Sewer connection | C135: 5.439922118 | D135: 12.77510143 | E135: 30.6835447 | F135: 47.34581564 | G135: 64.1201993 | H135: 42.71484275 | I135: 64.07895751 | J135: 72.20810561 | K135: 75.0968383 | L135: 80.59377672 | M135: 2.394439424 | N135: 6.293357228 | O135: 9.383768775 | P135: 21.70493407 | Q135: 30.96557658 | R135: 18.12551641 | S135: 25.99964198 | T135: 30.5759384 | U135: 41.92081493 | BA135: Sanitation type | BB135: Sewer connection | BC135: N/A | BD135: N/A | BE135: N/A | BF135: N/A | BG135: N/A | BH135: N/A | BI135: N/A | BJ135: N/A | BK135: N/A | BL135: N/A | BM135: N/A | BN135: N/A | BO135: N/A | BP135: N/A | BQ135: N/A | BR135: N/A | BS135: N/A | BT135: N/A | BU135: N/A
B136: Septic tank connection | C136: 6.944373693 | D136: 12.74244609 | E136: 21.73232197 | F136: 24.8258382 | G136: 22.27700443 | H136: 14.17130221 | I136: 15.64437956 | J136: 11.71517627 | K136: 12.94259742 | L136: 11.19265843 | M136: 5.116649924 | N136: 9.909119622 | O136: 17.46152879 | P136: 27.39483978 | Q136: 40.40002625 | R136: 26.61603757 | S136: 20.25474249 | T136: 21.76752784 | U136: 4.566005409 | BB136: Septic tank connection | BC136: N/A | BD136: N/A | BE136: N/A | BF136: N/A | BG136: N/A | BH136: N/A | BI136: N/A | BJ136: N/A | BK136: N/A | BL136: N/A | BM136: N/A | BN136: N/A | BO136: N/A | BP136: N/A | BQ136: N/A | BR136: N/A | BS136: N/A | BT136: N/A | BU136: N/A
B137: Improved latrines | C137: 2.099868289 | D137: 4.252509067 | E137: 4.936419512 | F137: 4.908160443 | G137: 2.256420483 | H137: 3.405411942 | I137: 5.263115953 | J137: 4.501376895 | K137: 2.111690476 | L137: 1.801215645 | M137: 1.722351473 | N137: 3.390020477 | O137: 5.107452668 | P137: 4.650634335 | Q137: 4.29111461 | R137: 4.665183176 | S137: 2.035740012 | T137: 1.832092091 | U137: 9.024172642 | BB137: Improved latrines | BC137: N/A | BD137: N/A | BE137: N/A | BF137: N/A | BG137: N/A | BH137: N/A | BI137: N/A | BJ137: N/A | BK137: N/A | BL137: N/A | BM137: N/A | BN137: N/A | BO137: N/A | BP137: N/A | BQ137: N/A | BR137: N/A | BS137: N/A | BT137: N/A | BU137: N/A
B138: Unimproved facilities | C138: 16.0077474 | D138: 24.64317488 | E138: 24.41831156 | F138: 16.39589701 | G138: 10.6503017 | H138: 25.28503171 | I138: 13.68563659 | J138: 11.07494072 | K138: 9.49274748 | L138: 6.315581348 | M138: 13.82868288 | N138: 20.95341868 | O138: 26.70954692 | P138: 25.38675081 | Q138: 18.73579203 | R138: 12.64214125 | S138: 23.82475078 | T138: 18.55999116 | U138: 16.04040804 | BB138: Unimproved facilities | BC138: N/A | BD138: N/A | BE138: N/A | BF138: N/A | BG138: N/A | BH138: N/A | BI138: N/A | BJ138: N/A | BK138: N/A | BL138: N/A | BM138: N/A | BN138: N/A | BO138: N/A | BP138: N/A | BQ138: N/A | BR138: N/A | BS138: N/A | BT138: N/A | BU138: N/A
B139: Open defecation | C139: 69.5080885 | D139: 45.58676854 | E139: 18.22940226 | F139: 6.524288699 | G139: 0.6960740821 | H139: 14.42341139 | I139: 1.327910385 | J139: 0.500400506 | K139: 0.356126328 | L139: 0.0967678557 | M139: 76.9378763 | N139: 59.45408399 | O139: 41.33770284 | P139: 20.862841 | Q139: 5.60749053 | R139: 37.9511216 | S139: 27.88512474 | T139: 27.26445051 | U139: 28.44859897 | BB139: Open defecation | BC139: N/A | BD139: N/A | BE139: N/A | BF139: N/A | BG139: N/A | BH139: N/A | BI139: N/A | BJ139: N/A | BK139: N/A | BL139: N/A | BM139: N/A | BN139: N/A | BO139: N/A | BP139: N/A | BQ139: N/A | BR139: N/A | BS139: N/A | BT139: N/A | BU139: N/A
A140: Septic tank emptying practices | B140: Not emptied/treated and disposed in situ | C140: N/A | D140: N/A | E140: N/A | F140: N/A | G140: N/A | H140: N/A | I140: N/A | J140: N/A | K140: N/A | L140: N/A | M140: N/A | N140: N/A | O140: N/A | P140: N/A | Q140: N/A | R140: N/A | S140: N/A | T140: N/A | U140: N/A | BA140: Septic tank emptying practices | BB140: Not emptied/treated and disposed in situ | BC140: N/A | BD140: N/A | BE140: N/A | BF140: N/A | BG140: N/A | BH140: N/A | BI140: N/A | BJ140: N/A | BK140: N/A | BL140: N/A | BM140: N/A | BN140: N/A | BO140: N/A | BP140: N/A | BQ140: N/A | BR140: N/A | BS140: N/A | BT140: N/A | BU140: N/A
B141: Emptied and buried on site | C141: N/A | D141: N/A | E141: N/A | F141: N/A | G141: N/A | H141: N/A | I141: N/A | J141: N/A | K141: N/A | L141: N/A | M141: N/A | N141: N/A | O141: N/A | P141: N/A | Q141: N/A | R141: N/A | S141: N/A | T141: N/A | U141: N/A | BB141: Emptied and buried on site | BC141: N/A | BD141: N/A | BE141: N/A | BF141: N/A | BG141: N/A | BH141: N/A | BI141: N/A | BJ141: N/A | BK141: N/A | BL141: N/A | BM141: N/A | BN141: N/A | BO141: N/A | BP141: N/A | BQ141: N/A | BR141: N/A | BS141: N/A | BT141: N/A | BU141: N/A
B142: Emptied and discharged locally | C142: N/A | D142: N/A | E142: N/A | F142: N/A | G142: N/A | H142: N/A | I142: N/A | J142: N/A | K142: N/A | L142: N/A | M142: N/A | N142: N/A | O142: N/A | P142: N/A | Q142: N/A | R142: N/A | S142: N/A | T142: N/A | U142: N/A | BB142: Emptied and discharged locally | BC142: N/A | BD142: N/A | BE142: N/A | BF142: N/A | BG142: N/A | BH142: N/A | BI142: N/A | BJ142: N/A | BK142: N/A | BL142: N/A | BM142: N/A | BN142: N/A | BO142: N/A | BP142: N/A | BQ142: N/A | BR142: N/A | BS142: N/A | BT142: N/A | BU142: N/A
B143: Emptied and removed offsite | C143: N/A | D143: N/A | E143: N/A | F143: N/A | G143: N/A | H143: N/A | I143: N/A | J143: N/A | K143: N/A | L143: N/A | M143: N/A | N143: N/A | O143: N/A | P143: N/A | Q143: N/A | R143: N/A | S143: N/A | T143: N/A | U143: N/A | BB143: Emptied and removed offsite | BC143: N/A | BD143: N/A | BE143: N/A | BF143: N/A | BG143: N/A | BH143: N/A | BI143: N/A | BJ143: N/A | BK143: N/A | BL143: N/A | BM143: N/A | BN143: N/A | BO143: N/A | BP143: N/A | BQ143: N/A | BR143: N/A | BS143: N/A | BT143: N/A | BU143: N/A
A144: Latrine emptying practices | B144: Not emptied/treated and disposed in situ | C144: N/A | D144: N/A | E144: N/A | F144: N/A | G144: N/A | H144: N/A | I144: N/A | J144: N/A | K144: N/A | L144: N/A | M144: N/A | N144: N/A | O144: N/A | P144: N/A | Q144: N/A | R144: N/A | S144: N/A | T144: N/A | U144: N/A | BA144: Latrine emptying practices | BB144: Not emptied/treated and disposed in situ | BC144: N/A | BD144: N/A | BE144: N/A | BF144: N/A | BG144: N/A | BH144: N/A | BI144: N/A | BJ144: N/A | BK144: N/A | BL144: N/A | BM144: N/A | BN144: N/A | BO144: N/A | BP144: N/A | BQ144: N/A | BR144: N/A | BS144: N/A | BT144: N/A | BU144: N/A
B145: Emptied and buried on site | C145: N/A | D145: N/A | E145: N/A | F145: N/A | G145: N/A | H145: N/A | I145: N/A | J145: N/A | K145: N/A | L145: N/A | M145: N/A | N145: N/A | O145: N/A | P145: N/A | Q145: N/A | R145: N/A | S145: N/A | T145: N/A | U145: N/A | BB145: Emptied and buried on site | BC145: N/A | BD145: N/A | BE145: N/A | BF145: N/A | BG145: N/A | BH145: N/A | BI145: N/A | BJ145: N/A | BK145: N/A | BL145: N/A | BM145: N/A | BN145: N/A | BO145: N/A | BP145: N/A | BQ145: N/A | BR145: N/A | BS145: N/A | BT145: N/A | BU145: N/A
B146: Emptied and discharged locally | C146: N/A | D146: N/A | E146: N/A | F146: N/A | G146: N/A | H146: N/A | I146: N/A | J146: N/A | K146: N/A | L146: N/A | M146: N/A | N146: N/A | O146: N/A | P146: N/A | Q146: N/A | R146: N/A | S146: N/A | T146: N/A | U146: N/A | BB146: Emptied and discharged locally | BC146: N/A | BD146: N/A | BE146: N/A | BF146: N/A | BG146: N/A | BH146: N/A | BI146: N/A | BJ146: N/A | BK146: N/A | BL146: N/A | BM146: N/A | BN146: N/A | BO146: N/A | BP146: N/A | BQ146: N/A | BR146: N/A | BS146: N/A | BT146: N/A | BU146: N/A
B147: Emptied and removed offsite | C147: N/A | D147: N/A | E147: N/A | F147: N/A | G147: N/A | H147: N/A | I147: N/A | J147: N/A | K147: N/A | L147: N/A | M147: N/A | N147: N/A | O147: N/A | P147: N/A | Q147: N/A | R147: N/A | S147: N/A | T147: N/A | U147: N/A | BB147: Emptied and removed offsite | BC147: N/A | BD147: N/A | BE147: N/A | BF147: N/A | BG147: N/A | BH147: N/A | BI147: N/A | BJ147: N/A | BK147: N/A | BL147: N/A | BM147: N/A | BN147: N/A | BO147: N/A | BP147: N/A | BQ147: N/A | BR147: N/A | BS147: N/A | BT147: N/A | BU147: N/A
A148: Shared among improved sanitation facilities | B148: Yes | C148: 3.811035112 | D148: 5.342644761 | E148: 7.40532247 | F148: 6.679116222 | G148: 7.907301747 | H148: 10.14560593 | I148: 9.069071789 | J148: 6.872741421 | K148: 10.07206455 | L148: 8.319132753 | M148: 2.492639076 | N148: 4.119704258 | O148: 5.859262266 | P148: 5.80114152 | Q148: 6.015461604 | R148: 13.48973745 | S148: 5.938847225 | T148: 5.498610104 | U148: 6.807639566 | BA148: Shared among improved sanitation facilities | BB148: Yes | BC148: N/A | BD148: N/A | BE148: N/A | BF148: N/A | BG148: N/A | BH148: N/A | BI148: N/A | BJ148: N/A | BK148: N/A | BL148: N/A | BM148: N/A | BN148: N/A | BO148: N/A | BP148: N/A | BQ148: N/A | BR148: N/A | BS148: N/A | BT148: N/A | BU148: N/A
B149: No | C149: 10.55392292 | D149: 24.34051504 | E149: 49.68936414 | F149: 69.77866262 | G149: 80.48901144 | H149: 49.99248907 | I149: 75.38565689 | J149: 80.68172819 | K149: 79.29924024 | L149: 85.13733874 | M149: 6.560217512 | N149: 15.42020709 | O149: 26.03706662 | P149: 47.78875857 | Q149: 69.32545259 | R149: 35.04351105 | S149: 42.06444024 | T149: 48.53740531 | U149: 48.24399734 | BB149: No | BC149: N/A | BD149: N/A | BE149: N/A | BF149: N/A | BG149: N/A | BH149: N/A | BI149: N/A | BJ149: N/A | BK149: N/A | BL149: N/A | BM149: N/A | BN149: N/A | BO149: N/A | BP149: N/A | BQ149: N/A | BR149: N/A | BS149: N/A | BT149: N/A | BU149: N/A
B150: DK/missing | C150: 85.63504196 | D150: 70.3168402 | E150: 42.90531339 | F150: 23.54222116 | G150: 11.60368681 | H150: 39.861905 | I150: 15.54527132 | J150: 12.44553039 | K150: 10.62869522 | L150: 6.543528508 | M150: 90.94714341 | N150: 80.46008866 | O150: 68.10367112 | P150: 46.41009991 | Q150: 24.6590858 | R150: 51.4667515 | S150: 51.99671253 | T150: 45.96398458 | U150: 44.9483631 | BB150: DK/missing | BC150: N/A | BD150: N/A | BE150: N/A | BF150: N/A | BG150: N/A | BH150: N/A | BI150: N/A | BJ150: N/A | BK150: N/A | BL150: N/A | BM150: N/A | BN150: N/A | BO150: N/A | BP150: N/A | BQ150: N/A | BR150: N/A | BS150: N/A | BT150: N/A | BU150: N/A
A151: Shared among all sanitation facilities | B151: Yes | C151: 24.3551677 | D151: 18.90784787 | E151: 14.66572976 | F151: 9.630410941 | G151: 8.41437555 | H151: 16.48313501 | I151: 10.71290861 | J151: 8.271328119 | K151: 10.10806202 | L151: 8.825711695 | M151: 25.3528987 | N151: 21.80927343 | O151: 20.42737405 | P151: 12.00976103 | Q151: 8.956227039 | R151: 24.2965897 | S151: 17.57575516 | T151: 10.60505101 | U151: 14.81584925 | BA151: Shared among all sanitation facilities | BB151: Yes | BC151: N/A | BD151: N/A | BE151: N/A | BF151: N/A | BG151: N/A | BH151: N/A | BI151: N/A | BJ151: N/A | BK151: N/A | BL151: N/A | BM151: N/A | BN151: N/A | BO151: N/A | BP151: N/A | BQ151: N/A | BR151: N/A | BS151: N/A | BT151: N/A | BU151: N/A
B152: No | C152: 73.11411919 | D152: 80.43934203 | E152: 84.64670494 | F152: 89.69399157 | G152: 91.26219268 | H152: 81.47445528 | I152: 88.65844575 | J152: 90.85410639 | K152: 88.92090241 | L152: 91.04298194 | M152: 71.78408425 | N152: 77.58323931 | O152: 79.18057911 | P152: 87.60678094 | Q152: 90.69398421 | R152: 71.4712191 | S152: 81.87305121 | T152: 88.99866032 | U152: 84.07384147 | BB152: No | BC152: N/A | BD152: N/A | BE152: N/A | BF152: N/A | BG152: N/A | BH152: N/A | BI152: N/A | BJ152: N/A | BK152: N/A | BL152: N/A | BM152: N/A | BN152: N/A | BO152: N/A | BP152: N/A | BQ152: N/A | BR152: N/A | BS152: N/A | BT152: N/A | BU152: N/A
A153: Type of toilet facility | B153: Flush to sewer system | C153: 5.459388877 | D153: 12.79849537 | E153: 30.68698869 | F153: 47.34581564 | G153: 64.1201993 | H153: 43.06098845 | I153: 64.07895751 | J153: 72.20810561 | K153: 75.0968383 | L153: 80.59377672 | M153: 2.401741224 | N153: 6.293357228 | O153: 9.394714365 | P153: 21.70493407 | Q153: 30.96557658 | R153: 18.16214607 | S153: 26.0284439 | T153: 30.60205569 | U153: 41.98512189 | BA153: Type of toilet facility | BB153: Flush to sewer system | BC153: 739.217831 | BD153: 1736.048782 | BE153: 4168.024962 | BF153: 6434.09652 | BG153: 8710.237903 | BH153: 1971.463715 | BI153: 2953.800172 | BJ153: 3326.489862 | BK153: 3470.210428 | BL153: 3718.099757 | BM153: 214.784098 | BN153: 565.570211 | BO153: 841.335645 | BP153: 1948.776041 | BQ153: 2777.096069 | BR153: 554.098281 | BS153: 2436.125927 | BT153: 12053.70658 | BU153: 6743.695207
B154: Flush to septic tank | C154: 6.969224132 | D154: 12.76578023 | E154: 21.73476125 | F154: 24.8258382 | G154: 22.27700443 | H154: 14.28614134 | I154: 15.64437956 | J154: 11.71517627 | K154: 12.94259742 | L154: 11.19265843 | M154: 5.132253057 | N154: 9.909119622 | O154: 17.48189659 | P154: 27.39483978 | Q154: 40.40002625 | R154: 26.66982564 | S154: 20.27718032 | T154: 21.78612119 | U154: 4.573009709 | BB154: Flush to septic tank | BC154: 943.654109 | BD154: 1731.611145 | BE154: 2952.098962 | BF154: 3373.726633 | BG154: 3026.160406 | BH154: 654.063232 | BI154: 721.14736 | BJ154: 539.695852 | BK154: 598.074933 | BL154: 516.360224 | BM154: 458.969656 | BN154: 890.510847 | BO154: 1565.576363 | BP154: 2459.643842 | BQ154: 3623.208946 | BR154: 813.654096 | BS154: 1897.8378 | BT154: 8581.237646 | BU154: 734.521713
B155: Flush to somewhere else | C155: 4.022445931 | D155: 7.704421576 | E155: 10.66627897 | F155: 8.136649685 | G155: 6.745013567 | H155: 9.258547597 | I155: 8.162442778 | J155: 6.701431927 | K155: 6.201754165 | L155: 3.238206376 | M155: 3.774366403 | N155: 5.280174273 | O155: 8.554317987 | P155: 11.80178166 | Q155: 9.788414218 | R155: 1.408694639 | S155: 4.396657939 | T155: 9.525789908 | U155: 5.316200138 | BB155: Flush to somewhere else | BC155: 544.651393 | BD155: 1045.064385 | BE155: 1448.73508 | BF155: 1105.736351 | BG155: 916.258425 | BH155: 423.884618 | BI155: 376.25807 | BJ155: 308.722202 | BK155: 286.581865 | BL155: 149.390869 | BM155: 337.535899 | BN155: 474.517681 | BO155: 766.074663 | BP155: 1059.62217 | BQ155: 877.857597 | BR155: 42.97704 | BS155: 411.504139 | BT155: 3752.0707 | BU155: 853.893755
B156: Flush, don't know where | C156: 0.8494343409 | D156: 1.551053746 | E156: 2.214566632 | F156: 2.619044524 | G156: 1.262392412 | H156: 1.628444317 | I156: 2.326650582 | J156: 2.671190946 | K156: 1.618891234 | L156: 0.9694124039 | M156: 0.7461872368 | N156: 1.151208233 | O156: 1.912636734 | P156: 2.108438862 | Q156: 2.212585736 | R156: 0.9690509473 | S156: 0.6919351669 | T156: 0.6620688564 | U156: 4.971313231 | BB156: Flush, don't know where | BC156: 115.015989 | BD156: 210.392307 | BE156: 300.790967 | BF156: 355.917097 | BG156: 171.486339 | BH156: 74.55516 | BI156: 107.249886 | BJ156: 123.056678 | BK156: 74.808652 | BL156: 44.722709 | BM156: 66.7304 | BN156: 103.456559 | BO156: 171.284554 | BP156: 189.306041 | BQ156: 198.43206 | BR156: 29.564208 | BS156: 64.761505 | BT156: 260.779335 | BU156: 798.497651
B157: Ventilated improved pit latrine | C157: 0.4195126084 | D157: 1.024288849 | E157: 1.087588796 | F157: 0.8131163194 | G157: 0.6062384976 | H157: 0.3309141152 | I157: 0.7641832843 | J157: 0.5802499552 | K157: 0.2542901752 | L157: 0.2712155581 | M157: 0.5008080149 | N157: 0.4799734363 | O157: 1.382555573 | P157: 1.489754508 | Q157: 0.997433821 | R157: 0.3834704025 | S157: 0.3709676533 | T157: 0.9270558159 | U157: 0.7766201465 | BB157: Ventilated improved pit latrine | BC157: 56.803281 | BD157: 138.939411 | BE157: 147.720498 | BF157: 110.499076 | BG157: 82.352856 | BH157: 15.15026 | BI157: 35.22599 | BJ157: 26.73101 | BK157: 11.7507 | BL157: 12.512213 | BM157: 44.786506 | BN157: 43.13416 | BO157: 123.813587 | BP157: 133.757508 | BQ157: 89.453188 | BR157: 11.699074 | BS157: 34.720628 | BT157: 365.153861 | BU157: 124.741559
B158: Pit latrine with slab | C158: 0.8384357175 | D158: 1.684953725 | E158: 1.634818158 | F158: 1.475999599 | G158: 0.3877895733 | H158: 1.473649741 | I158: 2.172282087 | J158: 1.249935994 | K158: 0.2385090663 | L158: 0.560587683 | M158: 0.480608502 | N158: 1.758838807 | O158: 1.818217892 | P158: 1.052440965 | Q158: 1.081095053 | R158: 3.322089645 | S158: 0.9750923476 | T158: 0.2445323512 | U158: 3.290082439 | BB158: Pit latrine with slab | BC158: 113.526742 | BD158: 228.555137 | BE158: 222.047297 | BF158: 200.582116 | BG158: 52.678243 | BH158: 67.468191 | BI158: 100.134076 | BJ158: 57.58217 | BK158: 11.021458 | BL158: 25.862058 | BM158: 42.980094 | BN158: 158.062986 | BO158: 162.828955 | BP158: 94.493341 | BQ158: 96.956206 | BR158: 101.351688 | BS158: 91.263533 | BT158: 96.317752 | BU158: 528.456562
B159: Pit latrine without slab/open pit | C159: 5.031603655 | D159: 5.56005514 | E159: 2.650719567 | F159: 1.209157405 | G159: 0.02530318607 | H159: 3.235323496 | I159: 0.4653788144 | J159: 0.126349375 | K159: 0 | L159: 0 | M159: 4.640892489 | N159: 6.278087055 | O159: 4.885022654 | P159: 3.068406493 | Q159: 1.066884519 | R159: 4.667430582 | S159: 5.847813473 | T159: 0.791840035 | U159: 5.987130981 | BB159: Pit latrine without slab/open pit | BC159: 681.294413 | BD159: 754.192323 | BE159: 360.030938 | BF159: 164.319388 | BG159: 3.437244 | BH159: 148.123002 | BI159: 21.452222 | BJ159: 5.820675 | BK159: 0 | BL159: 0 | BM159: 415.028021 | BN159: 564.197914 | BO159: 437.474044 | BP159: 275.49667 | BQ159: 95.681758 | BR159: 142.395907 | BS159: 547.324691 | BT159: 311.894323 | BU159: 961.659385
B160: No facility/bush/field | C160: 69.75682317 | D160: 45.67024766 | E160: 18.23144836 | F160: 6.524288699 | G160: 0.6960740821 | H160: 14.54029352 | I160: 1.327910385 | J160: 0.500400506 | K160: 0.356126328 | L160: 0.0967678557 | M160: 77.17249699 | N160: 59.45408399 | O160: 41.38592074 | P160: 20.862841 | Q160: 5.60749053 | R160: 38.02781662 | S160: 27.91601537 | T160: 27.28773921 | U160: 28.49223942 | BB160: No facility/bush/field | BC160: 9445.285669 | BD160: 6194.929601 | BE160: 2476.265516 | BF160: 886.623298 | BG160: 94.556332 | BH160: 665.699096 | BI160: 61.2117 | BJ160: 23.052498 | BK160: 16.456529 | BL160: 4.464272 | BM160: 6901.420098 | BN160: 5343.008129 | BO160: 3706.28089 | BP160: 1873.168772 | BQ160: 502.898432 | BR160: 1160.168393 | BS160: 2612.792723 | BT160: 10748.24532 | BU160: 4576.453985
B161: Bucket toilet | C161: 2.370612185 | D161: 2.593778206 | E161: 1.517471492 | F161: 0.7249686518 | G161: 0.01042610133 | H161: 1.726471431 | I161: 0.5464710146 | J161: 0 | K161: 0.03064946777 | L161: 0 | M161: 2.022424746 | N161: 3.089216318 | O161: 2.127183277 | P161: 1.690698759 | Q161: 0.8076778238 | R161: 0.8320160976 | S161: 6.24663135 | T161: 0.1839215217 | U161: 1.845251914 | BB161: Bucket toilet | BC161: 320.988088 | BD161: 351.832412 | BE161: 206.108821 | BF161: 98.52018 | BG161: 1.416306 | BH161: 79.043141 | BI161: 25.190269 | BJ161: 0 | BK161: 1.416306 | BL161: 0 | BM161: 180.862397 | BN161: 277.621095 | BO161: 190.498087 | BP161: 151.799274 | BQ161: 72.435238 | BR161: 25.383492 | BS161: 584.651954 | BT161: 72.444024 | BU161: 296.386337
B162: Hanging toilet/latrine | C162: 4.228995967 | D162: 8.410904398 | E162: 9.343018357 | F162: 6.294944321 | G162: 3.869558848 | H162: 10.45922599 | I162: 4.51134398 | J162: 4.247159415 | K162: 3.260343848 | L162: 3.077374972 | M162: 3.047181924 | N162: 6.236551001 | O162: 10.57557192 | P162: 8.66799053 | Q162: 7.027088798 | R162: 5.557459364 | S162: 6.936352589 | T162: 7.873020119 | U162: 2.763030129 | BB162: Hanging toilet/latrine | BC162: 572.618895 | BD162: 1140.895075 | BE162: 1269.004728 | BF162: 855.456365 | BG162: 525.649928 | BH162: 478.855346 | BI162: 207.956077 | BJ162: 195.658543 | BK162: 150.659861 | BL162: 141.9711 | BM162: 272.504887 | BN162: 560.46516 | BO162: 947.086338 | BP162: 778.254945 | BQ162: 630.212734 | BR162: 169.549274 | BS162: 649.206247 | BT162: 3101.068614 | BU162: 443.800856
B163: OTHER | C163: 0.05352341566 | D163: 0.2360211035 | E163: 0.2323397172 | F163: 0.03017694896 | G163: 0 | H163: 0 | I163: 0 | J163: 0 | K163: 0 | L163: 0 | M163: 0.08103941782 | N163: 0.06939003218 | O163: 0.4819622624 | P163: 0.1578733714 | Q163: 0.04572666885 | R163: 0 | S163: 0.312909883 | T163: 0.1158553077 | U163: 0 | BB163: OTHER | BC163: 7.247233 | BD163: 32.015025 | BE163: 31.557275 | BF163: 4.10092 | BG163: 0 | BH163: 0 | BI163: 0 | BJ163: 0 | BK163: 0 | BL163: 0 | BM163: 7.247233 | BN163: 6.23593 | BO163: 43.16172 | BP163: 14.17465 | BQ163: 4.10092 | BR163: 0 | BS163: 29.286725 | BT163: 45.633728 | BU163: 0
BB164: Total | BC164: 13540.30364 | BD164: 13564.4756 | BE164: 13582.38504 | BF164: 13589.57794 | BG164: 13584.23398 | BH164: 4578.305761 | BI164: 4609.625822 | BJ164: 4606.80949 | BK164: 4620.980732 | BL164: 4613.383202 | BM164: 8942.849289 | BN164: 8986.780672 | BO164: 8955.414846 | BP164: 8978.493254 | BQ164: 8968.333148 | BR164: 3050.841453 | BS164: 9359.475872 | BT164: 39388.55188 | BU164: 16062.10701
A208: =A1026 -> Pakistan
A209: =A1034 -> 2007
A210: Access to hygiene facilities
A211: by wealth quintile and sub-national region
A212: Notes:
A213: WHO/UNICEF JMP customised wealth index excludes water,
A214: sanitation and hygiene assets.
A215: Survey used for analysis: | B215: =A1025 -> DHS07
A220: Access to handwashing | C220: NATIONAL wealth index quintile | H220: URBAN wealth index quintile | M220: RURAL wealth index quintile | R220: SUB-REGIONS: | BA220: Raw numbers of respondents: | BB220: Access to handwashing | BC220: NATIONAL wealth index quintile | BH220: URBAN wealth index quintile | BM220: RURAL wealth index quintile | BR220: SUB-REGIONS:
A221: Weighted percentage (used in graphs) | C221: Poorest | D221: Poor | E221: Middle | F221: Rich | G221: Richest | H221: Poorest | I221: Poor | J221: Middle | K221: Rich | L221: Richest | M221: Poorest | N221: Poor | O221: Middle | P221: Rich | Q221: Richest | R221: Balochistan | S221: NWFP | T221: Punjab | U221: Sindh | BA221: Hygiene data, raw numbers (weighted) | BC221: Poorest | BD221: Poor | BE221: Middle | BF221: Rich | BG221: Richest | BH221: Poorest | BI221: Poor | BJ221: Middle | BK221: Rich | BL221: Richest | BM221: Poorest | BN221: Poor | BO221: Middle | BP221: Rich | BQ221: Richest | BR221: Balochistan | BS221: NWFP | BT221: Punjab | BU221: Sindh
A222: Hygiene ladder | B222: Basic | C222: N/A | D222: N/A | E222: N/A | F222: N/A | G222: N/A | H222: N/A | I222: N/A | J222: N/A | K222: N/A | L222: N/A | M222: N/A | N222: N/A | O222: N/A | P222: N/A | Q222: N/A | R222: N/A | S222: N/A | T222: N/A | U222: N/A | BA222: Hygiene ladder | BB222: Basic | BC222: N/A | BD222: N/A | BE222: N/A | BF222: N/A | BG222: N/A | BH222: N/A | BI222: N/A | BJ222: N/A | BK222: N/A | BL222: N/A | BM222: N/A | BN222: N/A | BO222: N/A | BP222: N/A | BQ222: N/A | BR222: N/A | BS222: N/A | BT222: N/A | BU222: N/A
B223: Limited | C223: N/A | D223: N/A | E223: N/A | F223: N/A | G223: N/A | H223: N/A | I223: N/A | J223: N/A | K223: N/A | L223: N/A | M223: N/A | N223: N/A | O223: N/A | P223: N/A | Q223: N/A | R223: N/A | S223: N/A | T223: N/A | U223: N/A | BB223: Limited | BC223: N/A | BD223: N/A | BE223: N/A | BF223: N/A | BG223: N/A | BH223: N/A | BI223: N/A | BJ223: N/A | BK223: N/A | BL223: N/A | BM223: N/A | BN223: N/A | BO223: N/A | BP223: N/A | BQ223: N/A | BR223: N/A | BS223: N/A | BT223: N/A | BU223: N/A
B224: No facility | C224: N/A | D224: N/A | E224: N/A | F224: N/A | G224: N/A | H224: N/A | I224: N/A | J224: N/A | K224: N/A | L224: N/A | M224: N/A | N224: N/A | O224: N/A | P224: N/A | Q224: N/A | R224: N/A | S224: N/A | T224: N/A | U224: N/A | BB224: No facility | BC224: N/A | BD224: N/A | BE224: N/A | BF224: N/A | BG224: N/A | BH224: N/A | BI224: N/A | BJ224: N/A | BK224: N/A | BL224: N/A | BM224: N/A | BN224: N/A | BO224: N/A | BP224: N/A | BQ224: N/A | BR224: N/A | BS224: N/A | BT224: N/A | BU224: N/A
BA225: Observed handwashing place | BB225: Fixed | BC225: N/A | BD225: N/A | BE225: N/A | BF225: N/A | BG225: N/A | BH225: N/A | BI225: N/A | BJ225: N/A | BK225: N/A | BL225: N/A | BM225: N/A | BN225: N/A | BO225: N/A | BP225: N/A | BQ225: N/A | BR225: N/A | BS225: N/A | BT225: N/A | BU225: N/A
BB226: Mobile | BC226: N/A | BD226: N/A | BE226: N/A | BF226: N/A | BG226: N/A | BH226: N/A | BI226: N/A | BJ226: N/A | BK226: N/A | BL226: N/A | BM226: N/A | BN226: N/A | BO226: N/A | BP226: N/A | BQ226: N/A | BR226: N/A | BS226: N/A | BT226: N/A | BU226: N/A
BA227: Water / Soap | BB227: Water and soap | BC227: N/A | BD227: N/A | BE227: N/A | BF227: N/A | BG227: N/A | BH227: N/A | BI227: N/A | BJ227: N/A | BK227: N/A | BL227: N/A | BM227: N/A | BN227: N/A | BO227: N/A | BP227: N/A | BQ227: N/A | BR227: N/A | BS227: N/A | BT227: N/A | BU227: N/A
BB228: Water only | BC228: N/A | BD228: N/A | BE228: N/A | BF228: N/A | BG228: N/A | BH228: N/A | BI228: N/A | BJ228: N/A | BK228: N/A | BL228: N/A | BM228: N/A | BN228: N/A | BO228: N/A | BP228: N/A | BQ228: N/A | BR228: N/A | BS228: N/A | BT228: N/A | BU228: N/A
BB229: Soap only | BC229: N/A | BD229: N/A | BE229: N/A | BF229: N/A | BG229: N/A | BH229: N/A | BI229: N/A | BJ229: N/A | BK229: N/A | BL229: N/A | BM229: N/A | BN229: N/A | BO229: N/A | BP229: N/A | BQ229: N/A | BR229: N/A | BS229: N/A | BT229: N/A | BU229: N/A
BB230: Neither | BC230: N/A | BD230: N/A | BE230: N/A | BF230: N/A | BG230: N/A | BH230: N/A | BI230: N/A | BJ230: N/A | BK230: N/A | BL230: N/A | BM230: N/A | BN230: N/A | BO230: N/A | BP230: N/A | BQ230: N/A | BR230: N/A | BS230: N/A | BT230: N/A | BU230: N/A
BA259: Raw numbers of respondents: | BB259: Menstrual health and hygiene | BC259: NATIONAL wealth index quintile | BH259: URBAN wealth index quintile | BM259: RURAL wealth index quintile | BR259: SUB-REGIONS:
BA260: MHH data, raw numbers (weighted) | BC260: Poorest | BD260: Poor | BE260: Middle | BF260: Rich | BG260: Richest | BH260: Poorest | BI260: Poor | BJ260: Middle | BK260: Rich | BL260: Richest | BM260: Poorest | BN260: Poor | BO260: Middle | BP260: Rich | BQ260: Richest | BR260: Balochistan | BS260: NWFP | BT260: Punjab | BU260: Sindh
BA261: Private place to wash and change | BB261: Yes | BC261: N/A | BD261: N/A | BE261: N/A | BF261: N/A | BG261: N/A | BH261: N/A | BI261: N/A | BJ261: N/A | BK261: N/A | BL261: N/A | BM261: N/A | BN261: N/A | BO261: N/A | BP261: N/A | BQ261: N/A | BR261: N/A | BS261: N/A | BT261: N/A | BU261: N/A
BB262: No | BC262: N/A | BD262: N/A | BE262: N/A | BF262: N/A | BG262: N/A | BH262: N/A | BI262: N/A | BJ262: N/A | BK262: N/A | BL262: N/A | BM262: N/A | BN262: N/A | BO262: N/A | BP262: N/A | BQ262: N/A | BR262: N/A | BS262: N/A | BT262: N/A | BU262: N/A
BB263: DK/not sure/missing | BC263: N/A | BD263: N/A | BE263: N/A | BF263: N/A | BG263: N/A | BH263: N/A | BI263: N/A | BJ263: N/A | BK263: N/A | BL263: N/A | BM263: N/A | BN263: N/A | BO263: N/A | BP263: N/A | BQ263: N/A | BR263: N/A | BS263: N/A | BT263: N/A | BU263: N/A
BA264: Use of menstrual materials | BB264: Materials reusable | BC264: N/A | BD264: N/A | BE264: N/A | BF264: N/A | BG264: N/A | BH264: N/A | BI264: N/A | BJ264: N/A | BK264: N/A | BL264: N/A | BM264: N/A | BN264: N/A | BO264: N/A | BP264: N/A | BQ264: N/A | BR264: N/A | BS264: N/A | BT264: N/A | BU264: N/A
BB265: Materials not reusable | BC265: N/A | BD265: N/A | BE265: N/A | BF265: N/A | BG265: N/A | BH265: N/A | BI265: N/A | BJ265: N/A | BK265: N/A | BL265: N/A | BM265: N/A | BN265: N/A | BO265: N/A | BP265: N/A | BQ265: N/A | BR265: N/A | BS265: N/A | BT265: N/A | BU265: N/A
BB266: No materials used | BC266: N/A | BD266: N/A | BE266: N/A | BF266: N/A | BG266: N/A | BH266: N/A | BI266: N/A | BJ266: N/A | BK266: N/A | BL266: N/A | BM266: N/A | BN266: N/A | BO266: N/A | BP266: N/A | BQ266: N/A | BR266: N/A | BS266: N/A | BT266: N/A | BU266: N/A
BB267: DK/not sure/missing | BC267: N/A | BD267: N/A | BE267: N/A | BF267: N/A | BG267: N/A | BH267: N/A | BI267: N/A | BJ267: N/A | BK267: N/A | BL267: N/A | BM267: N/A | BN267: N/A | BO267: N/A | BP267: N/A | BQ267: N/A | BR267: N/A | BS267: N/A | BT267: N/A | BU267: N/A
BA268: Use of menstrual materials with private place to wash and change | BB268: Materials reusable | BC268: N/A | BD268: N/A | BE268: N/A | BF268: N/A | BG268: N/A | BH268: N/A | BI268: N/A | BJ268: N/A | BK268: N/A | BL268: N/A | BM268: N/A | BN268: N/A | BO268: N/A | BP268: N/A | BQ268: N/A | BR268: N/A | BS268: N/A | BT268: N/A | BU268: N/A
BB269: Materials not reusable | BC269: N/A | BD269: N/A | BE269: N/A | BF269: N/A | BG269: N/A | BH269: N/A | BI269: N/A | BJ269: N/A | BK269: N/A | BL269: N/A | BM269: N/A | BN269: N/A | BO269: N/A | BP269: N/A | BQ269: N/A | BR269: N/A | BS269: N/A | BT269: N/A | BU269: N/A
BB270: No materials used | BC270: N/A | BD270: N/A | BE270: N/A | BF270: N/A | BG270: N/A | BH270: N/A | BI270: N/A | BJ270: N/A | BK270: N/A | BL270: N/A | BM270: N/A | BN270: N/A | BO270: N/A | BP270: N/A | BQ270: N/A | BR270: N/A | BS270: N/A | BT270: N/A | BU270: N/A
BA271: Awareness of menstruation before menarche | BB271: Yes | BC271: N/A | BD271: N/A | BE271: N/A | BF271: N/A | BG271: N/A | BH271: N/A | BI271: N/A | BJ271: N/A | BK271: N/A | BL271: N/A | BM271: N/A | BN271: N/A | BO271: N/A | BP271: N/A | BQ271: N/A | BR271: N/A | BS271: N/A | BT271: N/A | BU271: N/A
BB272: No | BC272: N/A | BD272: N/A | BE272: N/A | BF272: N/A | BG272: N/A | BH272: N/A | BI272: N/A | BJ272: N/A | BK272: N/A | BL272: N/A | BM272: N/A | BN272: N/A | BO272: N/A | BP272: N/A | BQ272: N/A | BR272: N/A | BS272: N/A | BT272: N/A | BU272: N/A
BB273: DK/not sure/missing | BC273: N/A | BD273: N/A | BE273: N/A | BF273: N/A | BG273: N/A | BH273: N/A | BI273: N/A | BJ273: N/A | BK273: N/A | BL273: N/A | BM273: N/A | BN273: N/A | BO273: N/A | BP273: N/A | BQ273: N/A | BR273: N/A | BS273: N/A | BT273: N/A | BU273: N/A
BA274: Participation in (all) activities during menstruation | BB274: Yes | BC274: N/A | BD274: N/A | BE274: N/A | BF274: N/A | BG274: N/A | BH274: N/A | BI274: N/A | BJ274: N/A | BK274: N/A | BL274: N/A | BM274: N/A | BN274: N/A | BO274: N/A | BP274: N/A | BQ274: N/A | BR274: N/A | BS274: N/A | BT274: N/A | BU274: N/A
BB275: No | BC275: N/A | BD275: N/A | BE275: N/A | BF275: N/A | BG275: N/A | BH275: N/A | BI275: N/A | BJ275: N/A | BK275: N/A | BL275: N/A | BM275: N/A | BN275: N/A | BO275: N/A | BP275: N/A | BQ275: N/A | BR275: N/A | BS275: N/A | BT275: N/A | BU275: N/A
BB276: DK/not sure/missing/no such activity | BC276: N/A | BD276: N/A | BE276: N/A | BF276: N/A | BG276: N/A | BH276: N/A | BI276: N/A | BJ276: N/A | BK276: N/A | BL276: N/A | BM276: N/A | BN276: N/A | BO276: N/A | BP276: N/A | BQ276: N/A | BR276: N/A | BS276: N/A | BT276: N/A | BU276: N/A
BA277: Participation in specific activities during menstruation | BB277: Did not go to school (amongst those usually attending school) | BC277: N/A | BD277: N/A | BE277: N/A | BF277: N/A | BG277: N/A | BH277: N/A | BI277: N/A | BJ277: N/A | BK277: N/A | BL277: N/A | BM277: N/A | BN277: N/A | BO277: N/A | BP277: N/A | BQ277: N/A | BR277: N/A | BS277: N/A | BT277: N/A | BU277: N/A
BB278: Did not go to work (amongst those who usually work) | BC278: N/A | BD278: N/A | BE278: N/A | BF278: N/A | BG278: N/A | BH278: N/A | BI278: N/A | BJ278: N/A | BK278: N/A | BL278: N/A | BM278: N/A | BN278: N/A | BO278: N/A | BP278: N/A | BQ278: N/A | BR278: N/A | BS278: N/A | BT278: N/A | BU278: N/A
BB279: Did not participate in social activities | BC279: N/A | BD279: N/A | BE279: N/A | BF279: N/A | BG279: N/A | BH279: N/A | BI279: N/A | BJ279: N/A | BK279: N/A | BL279: N/A | BM279: N/A | BN279: N/A | BO279: N/A | BP279: N/A | BQ279: N/A | BR279: N/A | BS279: N/A | BT279: N/A | BU279: N/A
BB280: Did not cook food | BC280: N/A | BD280: N/A | BE280: N/A | BF280: N/A | BG280: N/A | BH280: N/A | BI280: N/A | BJ280: N/A | BK280: N/A | BL280: N/A | BM280: N/A | BN280: N/A | BO280: N/A | BP280: N/A | BQ280: N/A | BR280: N/A | BS280: N/A | BT280: N/A | BU280: N/A
BB281: Did not eat with others | BC281: N/A | BD281: N/A | BE281: N/A | BF281: N/A | BG281: N/A | BH281: N/A | BI281: N/A | BJ281: N/A | BK281: N/A | BL281: N/A | BM281: N/A | BN281: N/A | BO281: N/A | BP281: N/A | BQ281: N/A | BR281: N/A | BS281: N/A | BT281: N/A | BU281: N/A
BB282: Did not bathe in regular place | BC282: N/A | BD282: N/A | BE282: N/A | BF282: N/A | BG282: N/A | BH282: N/A | BI282: N/A | BJ282: N/A | BK282: N/A | BL282: N/A | BM282: N/A | BN282: N/A | BO282: N/A | BP282: N/A | BQ282: N/A | BR282: N/A | BS282: N/A | BT282: N/A | BU282: N/A
BB283: Did not participate in other activities | BC283: N/A | BD283: N/A | BE283: N/A | BF283: N/A | BG283: N/A | BH283: N/A | BI283: N/A | BJ283: N/A | BK283: N/A | BL283: N/A | BM283: N/A | BN283: N/A | BO283: N/A | BP283: N/A | BQ283: N/A | BR283: N/A | BS283: N/A | BT283: N/A | BU283: N/A
BB284: DK/not sure/missing/no such activity | BC284: N/A | BD284: N/A | BE284: N/A | BF284: N/A | BG284: N/A | BH284: N/A | BI284: N/A | BJ284: N/A | BK284: N/A | BL284: N/A | BM284: N/A | BN284: N/A | BO284: N/A | BP284: N/A | BQ284: N/A | BR284: N/A | BS284: N/A | BT284: N/A | BU284: N/A
BA339: Raw numbers of respondents: | BB339: Basic water, sanitation and hygiene | BC339: NATIONAL wealth index quintile | BH339: URBAN wealth index quintile | BM339: RURAL wealth index quintile | BR339: SUB-REGIONS:
BA340: WatSan data, raw numbers (weighted) | BC340: Poorest | BD340: Poor | BE340: Middle | BF340: Rich | BG340: Richest | BH340: Poorest | BI340: Poor | BJ340: Middle | BK340: Rich | BL340: Richest | BM340: Poorest | BN340: Poor | BO340: Middle | BP340: Rich | BQ340: Richest | BR340: Balochistan | BS340: NWFP | BT340: Punjab | BU340: Sindh
BA341: Use of Basic Water Sanitation and Hygiene | BB341: Yes | BC341: N/A | BD341: N/A | BE341: N/A | BF341: N/A | BG341: N/A | BH341: N/A | BI341: N/A | BJ341: N/A | BK341: N/A | BL341: N/A | BM341: N/A | BN341: N/A | BO341: N/A | BP341: N/A | BQ341: N/A | BR341: N/A | BS341: N/A | BT341: N/A | BU341: N/A
BB342: No | BC342: N/A | BD342: N/A | BE342: N/A | BF342: N/A | BG342: N/A | BH342: N/A | BI342: N/A | BJ342: N/A | BK342: N/A | BL342: N/A | BM342: N/A | BN342: N/A | BO342: N/A | BP342: N/A | BQ342: N/A | BR342: N/A | BS342: N/A | BT342: N/A | BU342: N/A
BA343: Use of Basic Water and Sanitation | BB343: Yes | BC343: N/A | BD343: N/A | BE343: N/A | BF343: N/A | BG343: N/A | BH343: N/A | BI343: N/A | BJ343: N/A | BK343: N/A | BL343: N/A | BM343: N/A | BN343: N/A | BO343: N/A | BP343: N/A | BQ343: N/A | BR343: N/A | BS343: N/A | BT343: N/A | BU343: N/A
BB344: No | BC344: N/A | BD344: N/A | BE344: N/A | BF344: N/A | BG344: N/A | BH344: N/A | BI344: N/A | BJ344: N/A | BK344: N/A | BL344: N/A | BM344: N/A | BN344: N/A | BO344: N/A | BP344: N/A | BQ344: N/A | BR344: N/A | BS344: N/A | BT344: N/A | BU344: N/A
BA345: Use of Basic Water and Hygiene | BB345: Yes | BC345: N/A | BD345: N/A | BE345: N/A | BF345: N/A | BG345: N/A | BH345: N/A | BI345: N/A | BJ345: N/A | BK345: N/A | BL345: N/A | BM345: N/A | BN345: N/A | BO345: N/A | BP345: N/A | BQ345: N/A | BR345: N/A | BS345: N/A | BT345: N/A | BU345: N/A
BB346: No | BC346: N/A | BD346: N/A | BE346: N/A | BF346: N/A | BG346: N/A | BH346: N/A | BI346: N/A | BJ346: N/A | BK346: N/A | BL346: N/A | BM346: N/A | BN346: N/A | BO346: N/A | BP346: N/A | BQ346: N/A | BR346: N/A | BS346: N/A | BT346: N/A | BU346: N/A
BA347: Use of Basic Sanitation and Hygiene | BB347: Yes | BC347: N/A | BD347: N/A | BE347: N/A | BF347: N/A | BG347: N/A | BH347: N/A | BI347: N/A | BJ347: N/A | BK347: N/A | BL347: N/A | BM347: N/A | BN347: N/A | BO347: N/A | BP347: N/A | BQ347: N/A | BR347: N/A | BS347: N/A | BT347: N/A | BU347: N/A
BB348: No | BC348: N/A | BD348: N/A | BE348: N/A | BF348: N/A | BG348: N/A | BH348: N/A | BI348: N/A | BJ348: N/A | BK348: N/A | BL348: N/A | BM348: N/A | BN348: N/A | BO348: N/A | BP348: N/A | BQ348: N/A | BR348: N/A | BS348: N/A | BT348: N/A | BU348: N/A
BA349: Use of Basic Water | BB349: Yes | BC349: N/A | BD349: N/A | BE349: N/A | BF349: N/A | BG349: N/A | BH349: N/A | BI349: N/A | BJ349: N/A | BK349: N/A | BL349: N/A | BM349: N/A | BN349: N/A | BO349: N/A | BP349: N/A | BQ349: N/A | BR349: N/A | BS349: N/A | BT349: N/A | BU349: N/A
BB350: No | BC350: N/A | BD350: N/A | BE350: N/A | BF350: N/A | BG350: N/A | BH350: N/A | BI350: N/A | BJ350: N/A | BK350: N/A | BL350: N/A | BM350: N/A | BN350: N/A | BO350: N/A | BP350: N/A | BQ350: N/A | BR350: N/A | BS350: N/A | BT350: N/A | BU350: N/A
BA351: Use of Basic Sanitation | BB351: Yes | BC351: N/A | BD351: N/A | BE351: N/A | BF351: N/A | BG351: N/A | BH351: N/A | BI351: N/A | BJ351: N/A | BK351: N/A | BL351: N/A | BM351: N/A | BN351: N/A | BO351: N/A | BP351: N/A | BQ351: N/A | BR351: N/A | BS351: N/A | BT351: N/A | BU351: N/A
BB352: No | BC352: N/A | BD352: N/A | BE352: N/A | BF352: N/A | BG352: N/A | BH352: N/A | BI352: N/A | BJ352: N/A | BK352: N/A | BL352: N/A | BM352: N/A | BN352: N/A | BO352: N/A | BP352: N/A | BQ352: N/A | BR352: N/A | BS352: N/A | BT352: N/A | BU352: N/A
BA353: Access to Basic Hygiene | BB353: Yes | BC353: N/A | BD353: N/A | BE353: N/A | BF353: N/A | BG353: N/A | BH353: N/A | BI353: N/A | BJ353: N/A | BK353: N/A | BL353: N/A | BM353: N/A | BN353: N/A | BO353: N/A | BP353: N/A | BQ353: N/A | BR353: N/A | BS353: N/A | BT353: N/A | BU353: N/A
BB354: No | BC354: N/A | BD354: N/A | BE354: N/A | BF354: N/A | BG354: N/A | BH354: N/A | BI354: N/A | BJ354: N/A | BK354: N/A | BL354: N/A | BM354: N/A | BN354: N/A | BO354: N/A | BP354: N/A | BQ354: N/A | BR354: N/A | BS354: N/A | BT354: N/A | BU354: N/A
C399: INITIAL (national) Wealth Index | H399: URBAN Wealth Index | M399: RURAL Wealth Index
C400: Component Matrix | H400: Component Matrix | M400: Component Matrix
E401: Component | J401: Component | O401: Component
B402: Note: The INITIAL (national) Wealth Index is based on the first component of the Principal Component Analysis (PCA) which has been obtained at national level. The final national-level (NATIONAL) Wealth Index is based on the URBAN and RURAL specific wealth indexes. Regression procedures are used to establish the relationships between the two sets of scores (urban and rural) and the initial (national) wealth factors. This allows best use of the available information for each area and a better precision of the FINAL (NATIONAL) Wealth Index. For dependency reasons, all WASH variables (contained in the generic MICS and DHS scripts) have been excluded from the sets of asset variables used in the PCAs. The PCA can extracts as many components as there are asset variables in the input. Only the first of the components is used to represent the Wealth Index. The scores represent the weights of the asset variables on the Wealth Index (correlations between the variables and the component). The communalities are the proportion of each variable's variance that can be explained by the component. Proportion of explained variance is the part of the model's total variance that is explained by the component. For more information on the procedure used: The DHS Wealth Index, DHS Comparative Reports No. 6, Shea Oscar Rutstein, Kiersten Johnson, ORC Macro International Inc., 2004. The DHS Wealth Index: Approaches for Rural and Urban Areas, Shea O. Rutstein, ORC Macro International Inc., 2008. MICS Methodological Paper No. 4, Review of options for reporting water, sanitation and hygiene coverage by wealth quintile, UNICEF, 2016. | E402: 1 | J402: 1 | O402: 1
C403: Has electricity | E403: 0.8897215273 | H403: Has electricity | J403: 0.9400085906 | M403: Has electricity | O403: 0.8731039678
C404: Clock owns | E404: 0.8886691369 | H404: Clock owns | J404: 0.9386297145 | M404: Has a watch | O404: 0.8643689826
C405: Has a watch | E405: 0.8686546951 | H405: Has a watch | J405: 0.9169181135 | M405: Clock owns | O405: 0.8562307
C406: Bed owns | E406: 0.8498204974 | H406: Bed owns | J406: 0.9104987932 | M406: Bed owns | O406: 0.8286157893
C407: Sewing machine owns | E407: 0.8462332113 | H407: Has television | J407: 0.9049686952 | M407: Sewing machine owns | O407: 0.7997495031
C408: Has television | E408: 0.8432580536 | H408: Washing machine owns | J408: 0.8958531204 | M408: Has television | O408: 0.7544450655
C409: Washing machine owns | E409: 0.8234412264 | H409: Sewing machine owns | J409: 0.8946537394 | M409: Chairs owns | O409: 0.7505405219
C410: Almirah/Cabinet owns | E410: 0.8121988591 | H410: Almirah/Cabinet owns | J410: 0.877069929 | M410: Has telephone | O410: 0.7284361357
C411: Has telephone | E411: 0.8117856156 | H411: Has telephone | J411: 0.870551461 | M411: Almirah/Cabinet owns | O411: 0.717926883
C412: Chairs owns | E412: 0.8085861948 | H412: Has refrigerator | J412: 0.8547393296 | M412: Washing machine owns | O412: 0.7001492537
C413: Has refrigerator | E413: 0.7842250321 | H413: Chairs owns | J413: 0.8528636498 | M413: if uses wood for cooking fuel | O413: 0.6896865528
... 240 more rows

Sheet DHS13
A2: =A1026 -> Pakistan
A3: =A1034 -> 2013
A4: Use of drinking water sources
A5: by wealth quintile and sub-national region
A6: Notes:
A7: WHO/UNICEF JMP customised wealth index excludes water,
A8: sanitation and hygiene assets.
A9: Survey used for analysis: | B9: =A1025 -> DHS13
A10: =B1028 -> 
A11: =B1027 -> 
A14: Use of drinking water sources | C14: NATIONAL wealth index quintile | H14: URBAN wealth index quintile | M14: RURAL wealth index quintile | R14: SUB-REGIONS: | BA14: Raw numbers of respondents: | BB14: Use of drinking water sources | BC14: NATIONAL wealth index quintile | BH14: URBAN wealth index quintile | BM14: RURAL wealth index quintile | BR14: SUB-REGIONS:
A15: Weighted percentage (used in graphs) | C15: Poorest | D15: Poor | E15: Middle | F15: Rich | G15: Richest | H15: Poorest | I15: Poor | J15: Middle | K15: Rich | L15: Richest | M15: Poorest | N15: Poor | O15: Middle | P15: Rich | Q15: Richest | R15: Balochistan | S15: Gilgit Baltistan | T15: Islamabad (ICT) | U15: Khyber Pakhtunkhwa | V15: Punjab | W15: Sindh | BA15: Water data, raw numbers (weighted) | BC15: Poorest | BD15: Poor | BE15: Middle | BF15: Rich | BG15: Richest | BH15: Poorest | BI15: Poor | BJ15: Middle | BK15: Rich | BL15: Richest | BM15: Poorest | BN15: Poor | BO15: Middle | BP15: Rich | BQ15: Richest | BR15: Balochistan | BS15: Gilgit Baltistan | BT15: Islamabad (ICT) | BU15: Khyber Pakhtunkhwa | BV15: Punjab | BW15: Sindh
A16: Water | B16: Improved | C16: 88.55153723 | D16: 91.1928871 | E16: 97.19089756 | F16: 98.08925123 | G16: 99.30121853 | H16: 96.59302471 | I16: 98.9470296 | J16: 98.83539678 | K16: 99.96653603 | L16: 99.13635423 | M16: 87.70367169 | N16: 89.23942211 | O16: 93.19695288 | P16: 97.10277105 | Q16: 97.71172008 | R16: 77.46328911 | S16: 78.55574393 | T16: 97.3509567 | U16: 81.62635827 | V16: 98.97983292 | W16: 96.83328312 | BA16: Water | BB16: Improved | BC16: N/A | BD16: N/A | BE16: N/A | BF16: N/A | BG16: N/A | BH16: N/A | BI16: N/A | BJ16: N/A | BK16: N/A | BL16: N/A | BM16: N/A | BN16: N/A | BO16: N/A | BP16: N/A | BQ16: N/A | BR16: N/A | BS16: N/A | BT16: N/A | BU16: N/A | BV16: N/A | BW16: N/A
B17: Not Improved | C17: 11.44846277 | D17: 8.807112899 | E17: 2.809102444 | F17: 1.910748773 | G17: 0.6987814689 | H17: 3.406975289 | I17: 1.052970398 | J17: 1.164603216 | K17: 0.03346397143 | L17: 0.8636457747 | M17: 12.29632831 | N17: 10.76057789 | O17: 6.803047119 | P17: 2.897228952 | Q17: 2.288279923 | R17: 22.53671089 | S17: 21.44425607 | T17: 2.649043296 | U17: 18.37364173 | V17: 1.02016708 | W17: 3.166716883 | BB17: Not Improved | BC17: N/A | BD17: N/A | BE17: N/A | BF17: N/A | BG17: N/A | BH17: N/A | BI17: N/A | BJ17: N/A | BK17: N/A | BL17: N/A | BM17: N/A | BN17: N/A | BO17: N/A | BP17: N/A | BQ17: N/A | BR17: N/A | BS17: N/A | BT17: N/A | BU17: N/A | BV17: N/A | BW17: N/A
A18: Water ladder | B18: Basic | C18: =C16*C23/100 -> 82.6136975 | D18: =D16*D23/100 -> 87.92834207 | E18: =E16*E23/100 -> 94.97569315 | F18: 97.1996689 | G18: 98.03604446 | H18: 93.26710158 | I18: 97.91188459 | J18: 98.17888774 | K18: 99.05115736 | L18: 96.90969638 | M18: 80.74668267 | N18: 85.84102672 | O18: 90.17525489 | P18: 95.0723431 | Q18: 96.9071899 | R18: 59.88283016 | S18: 78.0339234 | T18: 93.35834053 | U18: 79.40315139 | V18: 97.84223345 | W18: 92.86674202 | BA18: Water ladder | BB18: Basic | BC18: N/A | BD18: N/A | BE18: N/A | BF18: N/A | BG18: N/A | BH18: N/A | BI18: N/A | BJ18: N/A | BK18: N/A | BL18: N/A | BM18: N/A | BN18: N/A | BO18: N/A | BP18: N/A | BQ18: N/A | BR18: N/A | BS18: N/A | BT18: N/A | BU18: N/A | BV18: N/A | BW18: N/A
B19: Limited | C19: =C16*C22/100 -> 5.937839727 | D19: =D16*D22/100 -> 3.264545031 | E19: =E16*E22/100 -> 2.215204409 | F19: 0.8895823283 | G19: 1.265174067 | H19: 3.325923135 | I19: 1.035145014 | J19: 0.6565090442 | K19: 0.9153786686 | L19: 2.226657849 | M19: 6.956989024 | N19: 3.398395395 | O19: 3.02169799 | P19: 2.030427946 | Q19: 0.8045301727 | R19: 17.58045894 | S19: 0.5218205294 | T19: 3.992616179 | U19: 2.22320688 | V19: 1.137599472 | W19: 3.9665411 | BB19: Limited | BC19: N/A | BD19: N/A | BE19: N/A | BF19: N/A | BG19: N/A | BH19: N/A | BI19: N/A | BJ19: N/A | BK19: N/A | BL19: N/A | BM19: N/A | BN19: N/A | BO19: N/A | BP19: N/A | BQ19: N/A | BR19: N/A | BS19: N/A | BT19: N/A | BU19: N/A | BV19: N/A | BW19: N/A
B20: Unimproved | C20: =100-C18-C19-C21 -> 8.465887967 | D20: =100-D18-D19-D21 -> 7.552307718 | E20: =100-E18-E19-E21 -> 2.03447987 | F20: 1.286700961 | G20: 0.3589505438 | H20: 2.439938823 | I20: 0.4111646158 | J20: 0.9578580931 | K20: -0.0001944163497 | L20: 0.3081748949 | M20: 9.064831749 | N20: 8.978032792 | O20: 5.681940033 | P20: 2.12375089 | Q20: 1.478141605 | R20: 9.810235672 | S20: 4.672316728 | T20: 2.63269457 | U20: 17.23084881 | V20: 0.756658409 | W20: 2.431234124 | BB20: Unimproved | BC20: N/A | BD20: N/A | BE20: N/A | BF20: N/A | BG20: N/A | BH20: N/A | BI20: N/A | BJ20: N/A | BK20: N/A | BL20: N/A | BM20: N/A | BN20: N/A | BO20: N/A | BP20: N/A | BQ20: N/A | BR20: N/A | BS20: N/A | BT20: N/A | BU20: N/A | BV20: N/A | BW20: N/A
B21: Surface water | C21: 2.982574807 | D21: 1.254805181 | E21: 0.774622574 | F21: 0.6240478126 | G21: 0.3398309251 | H21: 0.9670364661 | I21: 0.6418057821 | J21: 0.2067451232 | K21: 0.03365838778 | L21: 0.5554708798 | M21: 3.231496559 | N21: 1.782545094 | O21: 1.121107086 | P21: 0.7734780617 | Q21: 0.8101383183 | R21: 12.72647522 | S21: 16.77193934 | T21: 0.01634872576 | U21: 1.142792916 | V21: 0.2635086712 | W21: 0.7354827591 | BB21: Surface water | BC21: N/A | BD21: N/A | BE21: N/A | BF21: N/A | BG21: N/A | BH21: N/A | BI21: N/A | BJ21: N/A | BK21: N/A | BL21: N/A | BM21: N/A | BN21: N/A | BO21: N/A | BP21: N/A | BQ21: N/A | BR21: N/A | BS21: N/A | BT21: N/A | BU21: N/A | BV21: N/A | BW21: N/A
A22: Improved water point at more than 30 minutes | B22: Yes | C22: 6.705518519 | D22: 3.579824188 | E22: 2.279230324 | F22: 0.9069111214 | G22: 1.274077082 | H22: 3.44323324 | I22: 1.046160777 | J22: 0.6642448612 | K22: 0.9156850932 | L22: 2.246055815 | M22: 7.932380583 | N22: 3.808177277 | O22: 3.242271229 | P22: 2.091009272 | Q22: 0.8233712109 | R22: 22.69521362 | S22: 0.6642678222 | T22: 4.101260341 | U22: 2.723638451 | V22: 1.149324503 | W22: 4.096257994 | BA22: Improved water point at more than 30 minutes | BB22: Yes | BC22: N/A | BD22: N/A | BE22: N/A | BF22: N/A | BG22: N/A | BH22: N/A | BI22: N/A | BJ22: N/A | BK22: N/A | BL22: N/A | BM22: N/A | BN22: N/A | BO22: N/A | BP22: N/A | BQ22: N/A | BR22: N/A | BS22: N/A | BT22: N/A | BU22: N/A | BV22: N/A | BW22: N/A
B23: No | C23: 93.29448148 | D23: 96.42017581 | E23: 97.72076968 | F23: 99.09308888 | G23: 98.72592292 | H23: 96.55676676 | I23: 98.95383922 | J23: 99.33575514 | K23: 99.08431491 | L23: 97.75394418 | M23: 92.06761942 | N23: 96.19182272 | O23: 96.75772877 | P23: 97.90899073 | Q23: 99.17662879 | R23: 77.30478638 | S23: 99.33573218 | T23: 95.89873966 | U23: 97.27636155 | V23: 98.8506755 | W23: 95.90374201 | BB23: No | BC23: N/A | BD23: N/A | BE23: N/A | BF23: N/A | BG23: N/A | BH23: N/A | BI23: N/A | BJ23: N/A | BK23: N/A | BL23: N/A | BM23: N/A | BN23: N/A | BO23: N/A | BP23: N/A | BQ23: N/A | BR23: N/A | BS23: N/A | BT23: N/A | BU23: N/A | BV23: N/A | BW23: N/A
A24: Manually calculated ratios | B24: Improved wells
B25: Improved springs
B26: Other
C27: NATIONAL wealth index quintile | H27: URBAN wealth index quintile | M27: RURAL wealth index quintile | R27: SUB-REGIONS: | BA27: Raw numbers of respondents: | BB27: Use of drinking water sources | BC27: NATIONAL wealth index quintile | BH27: URBAN wealth index quintile | BM27: RURAL wealth index quintile | BR27: SUB-REGIONS:
A28: Percentage based on weighted population | C28: Poorest | D28: Poor | E28: Middle | F28: Rich | G28: Richest | H28: Poorest | I28: Poor | J28: Middle | K28: Rich | L28: Richest | M28: Poorest | N28: Poor | O28: Middle | P28: Rich | Q28: Richest | R28: Balochistan | S28: Gilgit Baltistan | T28: Islamabad (ICT) | U28: Khyber Pakhtunkhwa | V28: Punjab | W28: Sindh | BA28: Water data, raw numbers (weighted) | BC28: Poorest | BD28: Poor | BE28: Middle | BF28: Rich | BG28: Richest | BH28: Poorest | BI28: Poor | BJ28: Middle | BK28: Rich | BL28: Richest | BM28: Poorest | BN28: Poor | BO28: Middle | BP28: Rich | BQ28: Richest | BR28: Balochistan | BS28: Gilgit Baltistan | BT28: Islamabad (ICT) | BU28: Khyber Pakhtunkhwa | BV28: Punjab | BW28: Sindh
A29: Piped water | B29: Yes | C29: 17.33778276 | D29: 20.15490035 | E29: 33.93886158 | F29: 50.2118867 | G29: 55.5522377 | H29: 46.82742715 | I29: 67.08926009 | J29: 62.71861237 | K29: 61.42732037 | L29: 56.68654051 | M29: 16.67323776 | N29: 16.78147769 | O29: 22.22445265 | P29: 26.48074779 | Q29: 37.46090244 | R29: 37.11153164 | S29: 73.97233133 | T29: 31.00804774 | U29: 28.27042375 | V29: 35.12203195 | W29: 39.00386689 | BA29: Piped water | BB29: Yes | BC29: N/A | BD29: N/A | BE29: N/A | BF29: N/A | BG29: N/A | BH29: N/A | BI29: N/A | BJ29: N/A | BK29: N/A | BL29: N/A | BM29: N/A | BN29: N/A | BO29: N/A | BP29: N/A | BQ29: N/A | BR29: N/A | BS29: N/A | BT29: N/A | BU29: N/A | BV29: N/A | BW29: N/A
B30: No | C30: 82.66221724 | D30: 79.84509965 | E30: 66.06113842 | F30: 49.7881133 | G30: 44.4477623 | H30: 53.17257285 | I30: 32.91073991 | J30: 37.28138763 | K30: 38.57267963 | L30: 43.31345949 | M30: 83.32676224 | N30: 83.21852231 | O30: 77.77554735 | P30: 73.51925221 | Q30: 62.53909756 | R30: 62.88846836 | S30: 26.02766867 | T30: 68.99195226 | U30: 71.72957625 | V30: 64.87796805 | W30: 60.99613311 | BB30: No | BC30: N/A | BD30: N/A | BE30: N/A | BF30: N/A | BG30: N/A | BH30: N/A | BI30: N/A | BJ30: N/A | BK30: N/A | BL30: N/A | BM30: N/A | BN30: N/A | BO30: N/A | BP30: N/A | BQ30: N/A | BR30: N/A | BS30: N/A | BT30: N/A | BU30: N/A | BV30: N/A | BW30: N/A
A31: Piped water on premises | B31: Yes | C31: 9.267963112 | D31: 15.12239005 | E31: 27.84469512 | F31: 43.1348303 | G31: 48.43257382 | H31: 36.58966892 | I31: 54.26464582 | J31: 54.53349188 | K31: 51.81325753 | L31: 50.09036833 | M31: 7.685484575 | N31: 11.94129748 | O31: 16.88383241 | P31: 22.82859727 | Q31: 33.7891892 | R31: 28.17797007 | S31: 61.82283362 | T31: 25.39931243 | U31: 17.60440733 | V31: 28.71716811 | W31: 34.66651975 | BA31: Piped water on premises | BB31: Yes | BC31: N/A | BD31: N/A | BE31: N/A | BF31: N/A | BG31: N/A | BH31: N/A | BI31: N/A | BJ31: N/A | BK31: N/A | BL31: N/A | BM31: N/A | BN31: N/A | BO31: N/A | BP31: N/A | BQ31: N/A | BR31: N/A | BS31: N/A | BT31: N/A | BU31: N/A | BV31: N/A | BW31: N/A
B32: No | C32: 90.73203689 | D32: 84.87760995 | E32: 72.15530488 | F32: 56.8651697 | G32: 51.56742618 | H32: 63.41033108 | I32: 45.73535418 | J32: 45.46650812 | K32: 48.18674247 | L32: 49.90963167 | M32: 92.31451542 | N32: 88.05870252 | O32: 83.11616759 | P32: 77.17140273 | Q32: 66.2108108 | R32: 71.82202993 | S32: 38.17716638 | T32: 74.60068757 | U32: 82.39559267 | V32: 71.28283189 | W32: 65.33348025 | BB32: No | BC32: N/A | BD32: N/A | BE32: N/A | BF32: N/A | BG32: N/A | BH32: N/A | BI32: N/A | BJ32: N/A | BK32: N/A | BL32: N/A | BM32: N/A | BN32: N/A | BO32: N/A | BP32: N/A | BQ32: N/A | BR32: N/A | BS32: N/A | BT32: N/A | BU32: N/A | BV32: N/A | BW32: N/A
A33: Piped water into dwelling | B33: Yes | C33: N/A | D33: N/A | E33: N/A | F33: N/A | G33: N/A | H33: N/A | I33: N/A | J33: N/A | K33: N/A | L33: N/A | M33: N/A | N33: N/A | O33: N/A | P33: N/A | Q33: N/A | R33: N/A | S33: N/A | T33: N/A | U33: N/A | V33: N/A | W33: N/A | BA33: Piped water into dwelling | BB33: Yes | BC33: N/A | BD33: N/A | BE33: N/A | BF33: N/A | BG33: N/A | BH33: N/A | BI33: N/A | BJ33: N/A | BK33: N/A | BL33: N/A | BM33: N/A | BN33: N/A | BO33: N/A | BP33: N/A | BQ33: N/A | BR33: N/A | BS33: N/A | BT33: N/A | BU33: N/A | BV33: N/A | BW33: N/A
B34: No | C34: N/A | D34: N/A | E34: N/A | F34: N/A | G34: N/A | H34: N/A | I34: N/A | J34: N/A | K34: N/A | L34: N/A | M34: N/A | N34: N/A | O34: N/A | P34: N/A | Q34: N/A | R34: N/A | S34: N/A | T34: N/A | U34: N/A | V34: N/A | W34: N/A | BB34: No | BC34: N/A | BD34: N/A | BE34: N/A | BF34: N/A | BG34: N/A | BH34: N/A | BI34: N/A | BJ34: N/A | BK34: N/A | BL34: N/A | BM34: N/A | BN34: N/A | BO34: N/A | BP34: N/A | BQ34: N/A | BR34: N/A | BS34: N/A | BT34: N/A | BU34: N/A | BV34: N/A | BW34: N/A
A35: Water source on premises | B35: Yes | C35: 60.04424846 | D35: 74.96828103 | E35: 85.91236753 | F35: 87.24225054 | G35: 81.33961765 | H35: 81.55740981 | I35: 86.59808783 | J35: 82.84002594 | K35: 82.6302963 | L35: 75.02065439 | M35: 55.06627504 | N35: 71.31182865 | O35: 78.73435039 | P35: 86.20430719 | Q35: 88.87666725 | R35: 45.34908324 | S35: 67.54746411 | T35: 56.89833215 | U35: 69.14340833 | V35: 84.99170711 | W35: 73.31526719 | BA35: Water source on premises | BB35: Yes | BC35: N/A | BD35: N/A | BE35: N/A | BF35: N/A | BG35: N/A | BH35: N/A | BI35: N/A | BJ35: N/A | BK35: N/A | BL35: N/A | BM35: N/A | BN35: N/A | BO35: N/A | BP35: N/A | BQ35: N/A | BR35: N/A | BS35: N/A | BT35: N/A | BU35: N/A | BV35: N/A | BW35: N/A
B36: No | C36: 39.95575154 | D36: 25.03171897 | E36: 14.08763247 | F36: 12.75774946 | G36: 18.66038235 | H36: 18.44259019 | I36: 13.40191217 | J36: 17.15997406 | K36: 17.3697037 | L36: 24.97934561 | M36: 44.93372496 | N36: 28.68817135 | O36: 21.26564961 | P36: 13.79569281 | Q36: 11.12333275 | R36: 54.65091676 | S36: 32.45253589 | T36: 43.10166785 | U36: 30.85659167 | V36: 15.00829289 | W36: 26.68473281 | BB36: No | BC36: N/A | BD36: N/A | BE36: N/A | BF36: N/A | BG36: N/A | BH36: N/A | BI36: N/A | BJ36: N/A | BK36: N/A | BL36: N/A | BM36: N/A | BN36: N/A | BO36: N/A | BP36: N/A | BQ36: N/A | BR36: N/A | BS36: N/A | BT36: N/A | BU36: N/A | BV36: N/A | BW36: N/A
A37: Improved Water source on premises | B37: Yes | C37: 58.98093315 | D37: 73.65322172 | E37: 84.92943198 | F37: 87.0937487 | G37: 81.10197025 | H37: 81.15231139 | I37: 86.41056145 | J37: 82.74609191 | K37: 82.6302963 | L37: 74.59989518 | M37: 54.20475769 | N37: 69.73768289 | O37: 77.49577977 | P37: 85.06845478 | Q37: 88.64500984 | R37: 43.61864759 | S37: 65.77795858 | T37: 56.57013218 | U37: 65.97797027 | V37: 84.91313904 | W37: 72.62374865 | BA37: Improved water source on premises | BB37: Yes | BC37: N/A | BD37: N/A | BE37: N/A | BF37: N/A | BG37: N/A | BH37: N/A | BI37: N/A | BJ37: N/A | BK37: N/A | BL37: N/A | BM37: N/A | BN37: N/A | BO37: N/A | BP37: N/A | BQ37: N/A | BR37: N/A | BS37: N/A | BT37: N/A | BU37: N/A | BV37: N/A | BW37: N/A
B38: No | C38: 41.01906685 | D38: 26.34677828 | E38: 15.07056802 | F38: 12.9062513 | G38: 18.89802975 | H38: 18.84768861 | I38: 13.58943855 | J38: 17.25390809 | K38: 17.3697037 | L38: 25.40010482 | M38: 45.79524231 | N38: 30.26231711 | O38: 22.50422023 | P38: 14.93154522 | Q38: 11.35499016 | R38: 56.38135241 | S38: 34.22204142 | T38: 43.42986782 | U38: 34.02202973 | V38: 15.08686096 | W38: 27.37625135 | BB38: No | BC38: N/A | BD38: N/A | BE38: N/A | BF38: N/A | BG38: N/A | BH38: N/A | BI38: N/A | BJ38: N/A | BK38: N/A | BL38: N/A | BM38: N/A | BN38: N/A | BO38: N/A | BP38: N/A | BQ38: N/A | BR38: N/A | BS38: N/A | BT38: N/A | BU38: N/A | BV38: N/A | BW38: N/A
A39: Piped water on premises available when needed | B39: Yes | C39: N/A | D39: N/A | E39: N/A | F39: N/A | G39: N/A | H39: N/A | I39: N/A | J39: N/A | K39: N/A | L39: N/A | M39: N/A | N39: N/A | O39: N/A | P39: N/A | Q39: N/A | R39: N/A | S39: N/A | T39: N/A | U39: N/A | V39: N/A | W39: N/A | BA39: Piped water on premises available when needed | BB39: Yes | BC39: N/A | BD39: N/A | BE39: N/A | BF39: N/A | BG39: N/A | BH39: N/A | BI39: N/A | BJ39: N/A | BK39: N/A | BL39: N/A | BM39: N/A | BN39: N/A | BO39: N/A | BP39: N/A | BQ39: N/A | BR39: N/A | BS39: N/A | BT39: N/A | BU39: N/A | BV39: N/A | BW39: N/A
B40: No | C40: N/A | D40: N/A | E40: N/A | F40: N/A | G40: N/A | H40: N/A | I40: N/A | J40: N/A | K40: N/A | L40: N/A | M40: N/A | N40: N/A | O40: N/A | P40: N/A | Q40: N/A | R40: N/A | S40: N/A | T40: N/A | U40: N/A | V40: N/A | W40: N/A | BB40: No | BC40: N/A | BD40: N/A | BE40: N/A | BF40: N/A | BG40: N/A | BH40: N/A | BI40: N/A | BJ40: N/A | BK40: N/A | BL40: N/A | BM40: N/A | BN40: N/A | BO40: N/A | BP40: N/A | BQ40: N/A | BR40: N/A | BS40: N/A | BT40: N/A | BU40: N/A | BV40: N/A | BW40: N/A
A41: Water point at more than 30 minutes | B41: Yes | C41: 9.974020082 | D41: 4.735007007 | E41: 2.74710699 | F41: 1.124531151 | G41: 1.270047745 | H41: 3.847694686 | I41: 1.310829088 | J41: 0.6786787676 | K41: 0.9303361718 | L41: 2.226647118 | M41: 11.58584048 | N41: 5.948095066 | O41: 3.919200161 | P41: 2.610007842 | Q41: 1.085736576 | R41: 30.15987496 | S41: 1.307973865 | T41: 4.059995038 | U41: 5.986962679 | V41: 1.209340569 | W41: 4.412544737 | BA41: Water point at more than 30 minutes | BB41: Yes | BC41: N/A | BD41: N/A | BE41: N/A | BF41: N/A | BG41: N/A | BH41: N/A | BI41: N/A | BJ41: N/A | BK41: N/A | BL41: N/A | BM41: N/A | BN41: N/A | BO41: N/A | BP41: N/A | BQ41: N/A | BR41: N/A | BS41: N/A | BT41: N/A | BU41: N/A | BV41: N/A | BW41: N/A
B42: No | C42: 90.02597992 | D42: 95.26499299 | E42: 97.25289301 | F42: 98.87546885 | G42: 98.72995225 | H42: 96.15230531 | I42: 98.68917091 | J42: 99.32132123 | K42: 99.06966383 | L42: 97.77335288 | M42: 88.41415952 | N42: 94.05190493 | O42: 96.08079984 | P42: 97.38999216 | Q42: 98.91426342 | R42: 69.84012504 | S42: 98.69202613 | T42: 95.94000496 | U42: 94.01303732 | V42: 98.79065943 | W42: 95.58745526 | BB42: No | BC42: N/A | BD42: N/A | BE42: N/A | BF42: N/A | BG42: N/A | BH42: N/A | BI42: N/A | BJ42: N/A | BK42: N/A | BL42: N/A | BM42: N/A | BN42: N/A | BO42: N/A | BP42: N/A | BQ42: N/A | BR42: N/A | BS42: N/A | BT42: N/A | BU42: N/A | BV42: N/A | BW42: N/A
A43: Water source available when needed | B43: Yes | C43: N/A | D43: N/A | E43: N/A | F43: N/A | G43: N/A | H43: N/A | I43: N/A | J43: N/A | K43: N/A | L43: N/A | M43: N/A | N43: N/A | O43: N/A | P43: N/A | Q43: N/A | R43: N/A | S43: N/A | T43: N/A | U43: N/A | V43: N/A | W43: N/A | BA43: Water source available when needed | BB43: Yes | BC43: N/A | BD43: N/A | BE43: N/A | BF43: N/A | BG43: N/A | BH43: N/A | BI43: N/A | BJ43: N/A | BK43: N/A | BL43: N/A | BM43: N/A | BN43: N/A | BO43: N/A | BP43: N/A | BQ43: N/A | BR43: N/A | BS43: N/A | BT43: N/A | BU43: N/A | BV43: N/A | BW43: N/A
B44: No | C44: N/A | D44: N/A | E44: N/A | F44: N/A | G44: N/A | H44: N/A | I44: N/A | J44: N/A | K44: N/A | L44: N/A | M44: N/A | N44: N/A | O44: N/A | P44: N/A | Q44: N/A | R44: N/A | S44: N/A | T44: N/A | U44: N/A | V44: N/A | W44: N/A | BB44: No | BC44: N/A | BD44: N/A | BE44: N/A | BF44: N/A | BG44: N/A | BH44: N/A | BI44: N/A | BJ44: N/A | BK44: N/A | BL44: N/A | BM44: N/A | BN44: N/A | BO44: N/A | BP44: N/A | BQ44: N/A | BR44: N/A | BS44: N/A | BT44: N/A | BU44: N/A | BV44: N/A | BW44: N/A
A45: Improved water source available when needed | B45: Yes | C45: N/A | D45: N/A | E45: N/A | F45: N/A | G45: N/A | H45: N/A | I45: N/A | J45: N/A | K45: N/A | L45: N/A | M45: N/A | N45: N/A | O45: N/A | P45: N/A | Q45: N/A | R45: N/A | S45: N/A | T45: N/A | U45: N/A | V45: N/A | W45: N/A | BA45: Improved water source available when needed | BB45: Yes | BC45: N/A | BD45: N/A | BE45: N/A | BF45: N/A | BG45: N/A | BH45: N/A | BI45: N/A | BJ45: N/A | BK45: N/A | BL45: N/A | BM45: N/A | BN45: N/A | BO45: N/A | BP45: N/A | BQ45: N/A | BR45: N/A | BS45: N/A | BT45: N/A | BU45: N/A | BV45: N/A | BW45: N/A
B46: No | C46: N/A | D46: N/A | E46: N/A | F46: N/A | G46: N/A | H46: N/A | I46: N/A | J46: N/A | K46: N/A | L46: N/A | M46: N/A | N46: N/A | O46: N/A | P46: N/A | Q46: N/A | R46: N/A | S46: N/A | T46: N/A | U46: N/A | V46: N/A | W46: N/A | BB46: No | BC46: N/A | BD46: N/A | BE46: N/A | BF46: N/A | BG46: N/A | BH46: N/A | BI46: N/A | BJ46: N/A | BK46: N/A | BL46: N/A | BM46: N/A | BN46: N/A | BO46: N/A | BP46: N/A | BQ46: N/A | BR46: N/A | BS46: N/A | BT46: N/A | BU46: N/A | BV46: N/A | BW46: N/A
A47: Microbiological quality at point of collection | B47: Not contaminated (No E. coli in 100 mL) | C47: N/A | D47: N/A | E47: N/A | F47: N/A | G47: N/A | H47: N/A | I47: N/A | J47: N/A | K47: N/A | L47: N/A | M47: N/A | N47: N/A | O47: N/A | P47: N/A | Q47: N/A | R47: N/A | S47: N/A | T47: N/A | U47: N/A | V47: N/A | W47: N/A | BA47: Microbiological quality at point of collection | BB47: Not contaminated (No E. coli in 100 mL) | BC47: N/A | BD47: N/A | BE47: N/A | BF47: N/A | BG47: N/A | BH47: N/A | BI47: N/A | BJ47: N/A | BK47: N/A | BL47: N/A | BM47: N/A | BN47: N/A | BO47: N/A | BP47: N/A | BQ47: N/A | BR47: N/A | BS47: N/A | BT47: N/A | BU47: N/A | BV47: N/A | BW47: N/A
B48: Contaminated (E. coli detected in 100 mL) | C48: N/A | D48: N/A | E48: N/A | F48: N/A | G48: N/A | H48: N/A | I48: N/A | J48: N/A | K48: N/A | L48: N/A | M48: N/A | N48: N/A | O48: N/A | P48: N/A | Q48: N/A | R48: N/A | S48: N/A | T48: N/A | U48: N/A | V48: N/A | W48: N/A | BB48: Contaminated (E. coli detected in 100 mL) | BC48: N/A | BD48: N/A | BE48: N/A | BF48: N/A | BG48: N/A | BH48: N/A | BI48: N/A | BJ48: N/A | BK48: N/A | BL48: N/A | BM48: N/A | BN48: N/A | BO48: N/A | BP48: N/A | BQ48: N/A | BR48: N/A | BS48: N/A | BT48: N/A | BU48: N/A | BV48: N/A | BW48: N/A
B49: Highly contaminated (>100 CFU/100 mL) | C49: N/A | D49: N/A | E49: N/A | F49: N/A | G49: N/A | H49: N/A | I49: N/A | J49: N/A | K49: N/A | L49: N/A | M49: N/A | N49: N/A | O49: N/A | P49: N/A | Q49: N/A | R49: N/A | S49: N/A | T49: N/A | U49: N/A | V49: N/A | W49: N/A | BB49: Highly contaminated (>100 CFU/100 mL) | BC49: N/A | BD49: N/A | BE49: N/A | BF49: N/A | BG49: N/A | BH49: N/A | BI49: N/A | BJ49: N/A | BK49: N/A | BL49: N/A | BM49: N/A | BN49: N/A | BO49: N/A | BP49: N/A | BQ49: N/A | BR49: N/A | BS49: N/A | BT49: N/A | BU49: N/A | BV49: N/A | BW49: N/A
A50: Microbiological quality of improved water sources at point of collection | B50: Not contaminated (No E. coli in 100 mL) | C50: N/A | D50: N/A | E50: N/A | F50: N/A | G50: N/A | H50: N/A | I50: N/A | J50: N/A | K50: N/A | L50: N/A | M50: N/A | N50: N/A | O50: N/A | P50: N/A | Q50: N/A | R50: N/A | S50: N/A | T50: N/A | U50: N/A | V50: N/A | W50: N/A | BA50: Microbiological quality of improved water sources at point of collection | BB50: Not contaminated (No E. coli in 100 mL) | BC50: N/A | BD50: N/A | BE50: N/A | BF50: N/A | BG50: N/A | BH50: N/A | BI50: N/A | BJ50: N/A | BK50: N/A | BL50: N/A | BM50: N/A | BN50: N/A | BO50: N/A | BP50: N/A | BQ50: N/A | BR50: N/A | BS50: N/A | BT50: N/A | BU50: N/A | BV50: N/A | BW50: N/A
B51: Contaminated (E. coli detected in 100 mL) | C51: N/A | D51: N/A | E51: N/A | F51: N/A | G51: N/A | H51: N/A | I51: N/A | J51: N/A | K51: N/A | L51: N/A | M51: N/A | N51: N/A | O51: N/A | P51: N/A | Q51: N/A | R51: N/A | S51: N/A | T51: N/A | U51: N/A | V51: N/A | W51: N/A | BB51: Contaminated (E. coli detected in 100 mL) | BC51: N/A | BD51: N/A | BE51: N/A | BF51: N/A | BG51: N/A | BH51: N/A | BI51: N/A | BJ51: N/A | BK51: N/A | BL51: N/A | BM51: N/A | BN51: N/A | BO51: N/A | BP51: N/A | BQ51: N/A | BR51: N/A | BS51: N/A | BT51: N/A | BU51: N/A | BV51: N/A | BW51: N/A
B52: Highly contaminated (>100 CFU/100 mL) | C52: N/A | D52: N/A | E52: N/A | F52: N/A | G52: N/A | H52: N/A | I52: N/A | J52: N/A | K52: N/A | L52: N/A | M52: N/A | N52: N/A | O52: N/A | P52: N/A | Q52: N/A | R52: N/A | S52: N/A | T52: N/A | U52: N/A | V52: N/A | W52: N/A | BB52: Highly contaminated (>100 CFU/100 mL) | BC52: N/A | BD52: N/A | BE52: N/A | BF52: N/A | BG52: N/A | BH52: N/A | BI52: N/A | BJ52: N/A | BK52: N/A | BL52: N/A | BM52: N/A | BN52: N/A | BO52: N/A | BP52: N/A | BQ52: N/A | BR52: N/A | BS52: N/A | BT52: N/A | BU52: N/A | BV52: N/A | BW52: N/A
A53: Microbiological quality of piped on premises at point of collection | B53: Not contaminated (No E. coli in 100 mL) | C53: N/A | D53: N/A | E53: N/A | F53: N/A | G53: N/A | H53: N/A | I53: N/A | J53: N/A | K53: N/A | L53: N/A | M53: N/A | N53: N/A | O53: N/A | P53: N/A | Q53: N/A | R53: N/A | S53: N/A | T53: N/A | U53: N/A | V53: N/A | W53: N/A | BA53: Microbiological quality of piped on premises at point of collection | BB53: Not contaminated (No E. coli in 100 mL) | BC53: N/A | BD53: N/A | BE53: N/A | BF53: N/A | BG53: N/A | BH53: N/A | BI53: N/A | BJ53: N/A | BK53: N/A | BL53: N/A | BM53: N/A | BN53: N/A | BO53: N/A | BP53: N/A | BQ53: N/A | BR53: N/A | BS53: N/A | BT53: N/A | BU53: N/A | BV53: N/A | BW53: N/A
B54: Contaminated (E. coli detected in 100 mL) | C54: N/A | D54: N/A | E54: N/A | F54: N/A | G54: N/A | H54: N/A | I54: N/A | J54: N/A | K54: N/A | L54: N/A | M54: N/A | N54: N/A | O54: N/A | P54: N/A | Q54: N/A | R54: N/A | S54: N/A | T54: N/A | U54: N/A | V54: N/A | W54: N/A | BB54: Contaminated (E. coli detected in 100 mL) | BC54: N/A | BD54: N/A | BE54: N/A | BF54: N/A | BG54: N/A | BH54: N/A | BI54: N/A | BJ54: N/A | BK54: N/A | BL54: N/A | BM54: N/A | BN54: N/A | BO54: N/A | BP54: N/A | BQ54: N/A | BR54: N/A | BS54: N/A | BT54: N/A | BU54: N/A | BV54: N/A | BW54: N/A
B55: Highly contaminated (>100 CFU/100 mL) | C55: N/A | D55: N/A | E55: N/A | F55: N/A | G55: N/A | H55: N/A | I55: N/A | J55: N/A | K55: N/A | L55: N/A | M55: N/A | N55: N/A | O55: N/A | P55: N/A | Q55: N/A | R55: N/A | S55: N/A | T55: N/A | U55: N/A | V55: N/A | W55: N/A | BB55: Highly contaminated (>100 CFU/100 mL) | BC55: N/A | BD55: N/A | BE55: N/A | BF55: N/A | BG55: N/A | BH55: N/A | BI55: N/A | BJ55: N/A | BK55: N/A | BL55: N/A | BM55: N/A | BN55: N/A | BO55: N/A | BP55: N/A | BQ55: N/A | BR55: N/A | BS55: N/A | BT55: N/A | BU55: N/A | BV55: N/A | BW55: N/A
C56: NATIONAL wealth index quintile | H56: URBAN wealth index quintile | M56: RURAL wealth index quintile | R56: SUB-REGIONS: | BA56: Raw numbers of respondents: | BB56: Use of drinking water sources | BC56: NATIONAL wealth index quintile | BH56: URBAN wealth index quintile | BM56: RURAL wealth index quintile | BR56: SUB-REGIONS:
A57: Percentage based on weighted population | C57: Poorest | D57: Poor | E57: Middle | F57: Rich | G57: Richest | H57: Poorest | I57: Poor | J57: Middle | K57: Rich | L57: Richest | M57: Poorest | N57: Poor | O57: Middle | P57: Rich | Q57: Richest | R57: Balochistan | S57: Gilgit Baltistan | T57: Islamabad (ICT) | U57: Khyber Pakhtunkhwa | V57: Punjab | W57: Sindh | BA57: Water data, raw numbers (weighted) | BC57: Poorest | BD57: Poor | BE57: Middle | BF57: Rich | BG57: Richest | BH57: Poorest | BI57: Poor | BJ57: Middle | BK57: Rich | BL57: Richest | BM57: Poorest | BN57: Poor | BO57: Middle | BP57: Rich | BQ57: Richest | BR57: Balochistan | BS57: Gilgit Baltistan | BT57: Islamabad (ICT) | BU57: Khyber Pakhtunkhwa | BV57: Punjab | BW57: Sindh
A58: Source of drinking water | B58: Piped into dwelling | C58: 7.269286804 | D58: 13.58328733 | E58: 26.32788173 | F58: 42.87130167 | G58: 47.8528125 | H58: 35.34524143 | I58: 53.77806888 | J58: 54.42778332 | K58: 50.79949027 | L58: 49.90605935 | M58: 5.58068432 | N58: 10.08285371 | O58: 15.43729905 | P58: 21.29648022 | Q58: 33.47062708 | R58: 26.04654596 | S58: 52.78891885 | T58: 25.02220871 | U58: 17.16811638 | V58: 27.3469011 | W58: 33.90193135
B59: Piped to yard/plot | C59: 1.998676308 | D59: 1.54241631 | E59: 1.517102283 | F59: 0.3581888348 | G59: 0.579761323 | H59: 1.24442749 | I59: 0.5100259012 | J59: 0.4466518787 | K59: 1.013767259 | L59: 0.1843089781 | M59: 2.104800256 | N59: 1.858443772 | O59: 1.452319583 | P59: 1.532117052 | Q59: 0.3185621234 | R59: 2.172642435 | S59: 9.033914773 | T59: 0.4161854439 | U59: 0.436290949 | V59: 1.391122719 | W59: 0.7645883995
B60: Public tap/standpipe | C60: 8.06981965 | D60: 5.033613016 | E60: 6.094229686 | F60: 7.092587126 | G60: 7.11966388 | H60: 10.23775823 | I60: 12.83015607 | J60: 8.236293849 | K60: 9.614062838 | L60: 6.596172178 | M60: 8.987753189 | N60: 4.84018021 | O60: 5.342450503 | P60: 3.65215052 | Q60: 3.67171324 | R60: 8.946629462 | S60: 12.14949771 | T60: 5.617365431 | U60: 10.66601643 | V60: 6.409515338 | W60: 4.337347138
B61: Tube well or borehole | C61: 13.3509421 | D61: 20.23002285 | E61: 28.58588396 | F61: 27.46986178 | G61: 19.99207891 | H61: 19.01331404 | I61: 14.6899175 | J61: 17.69805804 | K61: 16.9864393 | L61: 10.1550414 | M61: 12.98584908 | N61: 14.74198334 | O61: 25.71466057 | P61: 32.33168253 | Q61: 39.08227899 | R61: 15.49974655 | S61: 0.08677454198 | T61: 29.40271972 | U61: 24.59212854 | V61: 28.25611664 | W61: 6.999809245
B62: Hand pump | C62: 49.3141069 | D62: 44.14631478 | E62: 27.49350057 | F62: 11.83120978 | G62: 4.958895043 | H62: 23.12604208 | I62: 7.78355644 | J62: 4.809799894 | K62: 3.358608458 | L62: 1.923084884 | M62: 49.05486593 | N62: 49.91997585 | O62: 39.70141836 | P62: 31.1302877 | Q62: 15.28153219 | R62: 5.322562898 | S62: 0 | T62: 2.458131426 | U62: 12.06161525 | V62: 28.2967244 | W62: 40.79752084
B63: Protected well | C63: 2.56854753 | D63: 2.3259835 | E63: 2.909580597 | F63: 1.757744304 | G63: 0.6813371616 | H63: 1.30908276 | I63: 1.1253699 | J63: 0.8549109514 | K63: 0.4642744188 | L63: 0.6552277899 | M63: 2.52932273 | N63: 3.175228228 | O63: 1.683834546 | P63: 3.78249265 | Q63: 1.926809618 | R63: 4.085519596 | S63: 2.264440789 | T63: 4.809722682 | U63: 8.828222616 | V63: 0.4292763793 | W63: 1.397288459
B64: Unprotected well | C64: 3.046937273 | D64: 2.084623159 | E64: 1.203008579 | F64: 0.337111249 | G64: 0.1676117657 | H64: 1.428278023 | I64: 0.1353283096 | J64: 0.01514346686 | K64: 0 | L64: 0.110715874 | M64: 3.410838999 | N64: 2.547120487 | O64: 1.425672655 | P64: 1.427575815 | Q64: 0.5457969372 | R64: 3.630775443 | S64: 1.126734164 | T64: 1.93229174 | U64: 4.299159082 | V64: 0.1110441 | W64: 2.173555627
B65: Protected spring | C65: 1.247816652 | D65: 1.345438323 | E65: 0.5269726884 | F65: 0.3378663126 | G65: 0.1557397168 | H65: 0.3436900614 | I65: 0.004024843261 | J65: 0.001043985574 | K65: 0 | L65: 0.07687613182 | M65: 1.393513942 | N65: 1.494454242 | O65: 0.9727894052 | P65: 0.7250590312 | Q65: 0.5891394566 | R65: 3.372566376 | S65: 0.3946051295 | T65: 0.1114248637 | U65: 3.993920759 | V65: 0 | W65: 0
B66: Unprotected spring | C66: 4.77042514 | D66: 4.646163706 | E66: 0.5724735761 | F66: 0.2432883816 | G66: 0 | H66: 0.1078156347 | I66: 0.01106913688 | J66: 0.01799351369 | K66: 0 | L66: 0 | M66: 5.001379148 | N66: 6.076888195 | O66: 3.249795683 | P66: 0.5002202587 | Q66: 0.3476726349 | R66: 6.154303602 | S66: 3.486798442 | T66: 0.1114248637 | U66: 12.17408505 | V66: 0.02696276251 | W66: 0
B67: River/dam/lake/ponds/stream/canal/irrigation channel | C67: 2.972016664 | D67: 1.253705386 | E67: 0.7717931958 | F67: 0.6232844666 | G67: 0.3382725028 | H67: 0.9662800206 | I67: 0.6383141839 | J67: 0.2070104635 | K67: 0.03346397143 | L67: 0.5551637646 | M67: 3.217563797 | N67: 1.78044751 | O67: 1.120304039 | P67: 0.7692838222 | Q67: 0.807287847 | R67: 12.62004055 | S67: 16.73205978 | T67: 0.01623958265 | U67: 1.139651522 | V67: 0.2628834111 | W67: 0.7335691229
B68: Rainwater | C68: 1.195377254 | D68: 0.08113297374 | E68: 0.01112876133 | F68: 0.003810699576 | G68: 0 | H68: 0.03841427995 | I68: 0.01158823377 | J68: 0 | K68: 0 | L68: 0 | M68: 1.661840823 | N68: 0.1354111917 | O68: 0.09793229141 | P68: 0 | Q68: 0 | R68: 0.9613552784 | S68: 0 | T68: 0 | U68: 0.05170691187 | V68: 0.3658474324 | W68: 0
B69: Tanker truck | C69: 0.3036315783 | D69: 0.4547228345 | E69: 0.888183172 | F69: 0.7040793721 | G69: 1.150736458 | H69: 2.366810935 | I69: 1.626358328 | J69: 1.097715778 | K69: 1.390619357 | L69: 1.207221738 | M69: 0.1360439278 | N69: 0.1651143298 | O69: 0.3794066442 | P69: 0.402574227 | Q69: 0.3689437768 | R69: 3.939220908 | S69: 0 | T69: 2.233801398 | U69: 0.2622791406 | V69: 0.1543802892 | W69: 1.633518277
B70: Cart with small tank | C70: 2.278073533 | D70: 1.575083663 | E70: 0.6977016941 | F70: 0.329753435 | G70: 0.2075244788 | H70: 0.7765689736 | I70: 0.2023626035 | J70: 0.4441296737 | K70: 0.1882315591 | L70: 0.2003443838 | M70: 2.51451074 | N70: 2.016627812 | O70: 1.234137531 | P70: 0.631321421 | Q70: 0.2935855291 | R70: 5.398553917 | S70: 1.48904391 | T70: 0.293861782 | U70: 3.367092305 | V70: 0 | W70: 1.192044971
B71: Filtration plant | C71: 0.6048469909 | D71: 0.7491489599 | E71: 1.577413763 | F71: 4.052129934 | G71: 10.034977 | H71: 1.997462715 | I71: 3.578100112 | J71: 8.154094936 | K71: 10.60868413 | L71: 15.45470409 | M71: 0.3849586228 | N71: 0.7013462164 | O71: 1.009156375 | P71: 1.451128343 | Q71: 2.326450437 | R71: 0.135465715 | S71: 0.2597328576 | T71: 19.81046853 | U71: 0.1074574736 | V71: 5.175224722 | W71: 1.543098562
B72: Bottled water | C72: 0.3504119233 | D72: 0.145704554 | E72: 0.5623270101 | F72: 1.495976694 | G72: 6.567692062 | H72: 0.7942117119 | I72: 2.850257998 | J72: 3.282833246 | K72: 5.542358439 | L72: 12.77731331 | M72: 0.3695281317 | N72: 0.1078032169 | O72: 0.203487326 | P72: 0.1674773611 | Q72: 0.3820776291 | R72: 1.6957922 | S72: 0.08881537809 | T72: 7.324859896 | U72: 0.09151153217 | V72: 1.226607527 | W72: 4.266135872
B73: Other | C73: 0.659083697 | D73: 0.8026386605 | E73: 0.2608187272 | F73: 0.4918059591 | G73: 0.1928972003 | H73: 0.9046016114 | I73: 0.2255015651 | J73: 0.3065370038 | K73: 0 | L73: 0.1977661361 | M73: 0.6665463641 | N73: 0.3561216939 | O73: 0.9753354297 | P73: 0.2001490562 | Q73: 0.5875225043 | R73: 0.01827910193 | S73: 0.09866368426 | T73: 0.4392939289 | U73: 0.7607460701 | V73: 0.5473931841 | W73: 0.2595921331
A108: =A1026 -> Pakistan
A109: =A1034 -> 2013
A110: Use of sanitation facilities
A111: by wealth quintile and sub-national region
A112: Notes:
A113: WHO/UNICEF JMP customised wealth index excludes water,
A114: sanitation and hygiene assets.
A115: Survey used for analysis: | B115: =A1025 -> DHS13
A116: =B1030 -> 
A117: =B1029 -> 
A120: Use of sanitation facilities | C120: NATIONAL wealth index quintile | H120: URBAN wealth index quintile | M120: RURAL wealth index quintile | R120: SUB-REGIONS: | BA120: Raw numbers of respondents: | BB120: Use of sanitation facilities | BC120: NATIONAL wealth index quintile | BH120: URBAN wealth index quintile | BM120: RURAL wealth index quintile | BR120: SUB-REGIONS:
A121: Weighted percentage (used in graphs) | C121: Poorest | D121: Poor | E121: Middle | F121: Rich | G121: Richest | H121: Poorest | I121: Poor | J121: Middle | K121: Rich | L121: Richest | M121: Poorest | N121: Poor | O121: Middle | P121: Rich | Q121: Richest | R121: Balochistan | S121: Gilgit Baltistan | T121: Islamabad (ICT) | U121: Khyber Pakhtunkhwa | V121: Punjab | W121: Sindh | BA121: Sanitation data, raw numbers (weighted) | BC121: Poorest | BD121: Poor | BE121: Middle | BF121: Rich | BG121: Richest | BH121: Poorest | BI121: Poor | BJ121: Middle | BK121: Rich | BL121: Richest | BM121: Poorest | BN121: Poor | BO121: Middle | BP121: Rich | BQ121: Richest | BR121: Balochistan | BS121: Gilgit Baltistan | BT121: Islamabad (ICT) | BU121: Khyber Pakhtunkhwa | BV121: Punjab | BW121: Sindh
A122: Sanitation | B122: Improved | C122: 25.37171113 | D122: 56.01647061 | E122: 82.30506022 | F122: 93.71301233 | G122: 96.44094753 | H122: 87.25835184 | I122: 96.34681505 | J122: 95.66951845 | K122: 97.06074404 | L122: 99.28854744 | M122: 18.19964195 | N122: 39.71951812 | O122: 64.54827967 | P122: 80.31487606 | Q122: 91.5370536 | R122: 56.79481773 | S122: 82.75904417 | T122: 95.92651598 | U122: 71.52529751 | V122: 74.4272122 | W122: 63.44066312 | BA122: Sanitation | BB122: Improved | BC122: 4570.994623 | BD122: 10147.03113 | BE122: 14872.03398 | BF122: 16935.52876 | BG122: 17429.78544 | BH122: 5184.626603 | BI122: 5715.566653 | BJ122: 5698.680669 | BK122: 5770.049206 | BL122: 5895.355239 | BM122: 2206.608628 | BN122: 4815.678009 | BO122: 7830.011429 | BP122: 9741.711122 | BQ122: 11097.08637 | BR122: 2349.483695 | BS122: 585.564219 | BT122: 421.926482 | BU122: 9136.39677 | BV122: 37955.66964 | BW122: 13506.33312
B123: Not Improved | C123: 74.62828887 | D123: 43.98352939 | E123: 17.69493978 | F123: 6.286987671 | G123: 3.559052474 | H123: 12.74164816 | I123: 3.653184954 | J123: 4.33048155 | K123: 2.939255959 | L123: 0.7114525588 | M123: 81.80035805 | N123: 60.28048188 | O123: 35.45172033 | P123: 19.68512394 | Q123: 8.462946396 | R123: 43.20518227 | S123: 17.24095583 | T123: 4.073484021 | U123: 28.47470249 | V123: 25.5727878 | W123: 36.55933688 | BB123: Not Improved | BC123: 13445.11237 | BD123: 7967.339554 | BE123: 3197.370185 | BF123: 1136.165169 | BG123: 643.228033 | BH123: 757.070087 | BI123: 216.717305 | BJ123: 257.950828 | BK123: 174.732346 | BL123: 42.243196 | BM123: 9917.853127 | BN123: 7308.532547 | BO123: 4300.461249 | BP123: 2387.687067 | BQ123: 1025.967555 | BR123: 1787.30869 | BS123: 121.988925 | BT123: 17.916952 | BU123: 3637.261066 | BV123: 13041.36292 | BW123: 7783.376754
A124: Sanitation ladder | B124: Basic | C124: =C122*C129/100 -> 18.04229038 | D124: =D122*D129/100 -> 42.76079808 | E124: =E122*E129/100 -> 67.72280695 | F124: 83.72048605 | G124: 92.95225233 | H124: 69.23430554 | I124: 86.51341824 | J124: 90.06709384 | K124: 93.26204349 | L124: 97.85685452 | M124: 12.27080598 | N124: 29.85896982 | O124: 50.60193988 | P124: 66.35580708 | Q124: 81.68991448 | R124: 50.96114997 | S124: 81.94336218 | T124: 92.87415283 | U124: 64.86716926 | V124: 62.27334124 | W124: 56.48469969 | BA124: Sanitation ladder | BB124: Basic | BC124: 3243.582476 | BD124: 7712.988631 | BE124: 12223.3464 | BF124: 15053.12217 | BG124: 16797.55743 | BH124: 4113.673643 | BI124: 5130.07417 | BJ124: 5329.657781 | BK124: 5544.001775 | BL124: 5808.821398 | BM124: 1482.106444 | BN124: 3588.668851 | BO124: 6133.683347 | BP124: 8037.614733 | BQ124: 9862.294961 | BR124: 2095.919268 | BS124: 578.325157 | BT124: 407.452353 | BU124: 8257.989999 | BV124: 31665.48164 | BW124: 12025.42869
B125: Limited | C125: =C122*C128/100 -> 7.329420752 | D125: =D122*D128/100 -> 13.25567253 | E125: =E122*E128/100 -> 14.58225327 | F125: 9.992526278 | G125: 3.488695194 | H125: 18.0240463 | I125: 9.83339681 | J125: 5.602424613 | K125: 3.798700548 | L125: 1.431692917 | M125: 5.928835975 | N125: 9.860548303 | O125: 13.94633979 | P125: 13.95906898 | Q125: 9.847139124 | R125: 5.833667761 | S125: 0.8156819934 | T125: 3.05236315 | U125: 6.658128245 | V125: 12.15387096 | W125: 6.955963433 | BB125: Limited | BC125: 1317.65869 | BD125: 2390.994932 | BE125: 2631.96316 | BF125: 1796.677563 | BG125: 630.44796 | BH125: 1070.929269 | BI125: 583.100934 | BJ125: 331.519589 | BK125: 225.815367 | BL125: 84.985855 | BM125: 716.10341 | BN125: 1185.11264 | BO125: 1690.49709 | BP125: 1690.848524 | BQ125: 1188.829627 | BR125: 239.925839 | BS125: 5.756774 | BT125: 13.391159 | BU125: 847.620716 | BV125: 6180.143383 | BW125: 1480.904434
B126: Unimproved | C126: =100-C124-C125-C127 -> 10.99415893 | D126: =100-D124-D125-D127 -> 12.81643475 | E126: =100-E124-E125-E127 -> 7.952534344 | F126: 4.979668774 | G126: 3.280024973 | H126: 10.11478948 | I126: 3.601190436 | J126: 4.073333952 | K126: 2.939255959 | L126: 0.7114525588 | M126: 10.18484034 | N126: 12.25384524 | O126: 11.62774558 | P126: 8.637332852 | Q126: 6.363241004 | R126: 14.61398931 | S126: 9.688353768 | T126: 3.299559686 | U126: 7.965685341 | V126: 6.806434346 | W126: 9.615970039 | BB126: Unimproved | BC126: 1986.925963 | BD126: 2335.033175 | BE126: 1438.604933 | BF126: 901.031251 | BG126: 592.804322 | BH126: 600.990734 | BI126: 213.634086 | BJ126: 242.729932 | BK126: 174.732346 | BL126: 42.243196 | BM126: 1240.871897 | BN126: 1505.803487 | BO126: 1411.889675 | BP126: 1049.120091 | BQ126: 772.3842 | BR126: 608.449832 | BS126: 68.662203 | BT126: 14.521278 | BU126: 1023.823307 | BV126: 3491.730901 | BW126: 2047.212123
B127: Open defecation | C127: 63.63412993 | D127: 31.16709464 | E127: 9.742405432 | F127: 1.307318897 | G127: 0.2790275009 | H127: 2.626858681 | I127: 0.05199451841 | J127: 0.2571475983 | K127: 0 | L127: 0 | M127: 71.61551771 | N127: 48.02663663 | O127: 23.82397475 | P127: 11.04779109 | Q127: 2.099705393 | R127: 28.59119296 | S127: 7.552602058 | T127: 0.7739243343 | U127: 20.50901715 | V127: 18.76635345 | W127: 26.94336684 | BB127: Open defecation | BC127: 11458.1864 | BD127: 5632.306379 | BE127: 1758.765252 | BF127: 235.133918 | BG127: 50.423711 | BH127: 156.079353 | BI127: 3.083219 | BJ127: 15.220896 | BK127: 0 | BL127: 0 | BM127: 8676.98123 | BN127: 5802.72906 | BO127: 2888.571574 | BP127: 1338.566976 | BQ127: 253.583355 | BR127: 1178.858858 | BS127: 53.326722 | BT127: 3.395674 | BU127: 2613.437759 | BV127: 9549.632019 | BW127: 5736.164631
A128: Shared among Improved Sanitation | B128: Yes | C128: 28.88816096 | D128: 23.66388382 | E128: 17.71732288 | F128: 10.66290159 | G128: 3.617441847 | H128: 20.65595547 | I128: 10.20625 | J128: 5.85601841 | K128: 3.913735244 | L128: 1.441951719 | M128: 32.57666272 | N128: 24.82544796 | O128: 21.60605962 | P128: 17.38042771 | Q128: 10.75754433 | R128: 10.27147897 | S128: 0.9856106985 | T128: 3.181980622 | U128: 9.308773926 | V128: 16.32987533 | W128: 10.9645188 | BA128: Shared among improved sanitation facilities | BB128: Yes | BC128: N/A | BD128: N/A | BE128: N/A | BF128: N/A | BG128: N/A | BH128: N/A | BI128: N/A | BJ128: N/A | BK128: N/A | BL128: N/A | BM128: N/A | BN128: N/A | BO128: N/A | BP128: N/A | BQ128: N/A | BR128: N/A | BS128: N/A | BT128: N/A | BU128: N/A | BV128: N/A | BW128: N/A
B129: No | C129: 71.11183904 | D129: 76.33611618 | E129: 82.28267712 | F129: 89.33709841 | G129: 96.38255815 | H129: 79.34404453 | I129: 89.79375 | J129: 94.14398159 | K129: 96.08626476 | L129: 98.55804828 | M129: 67.42333728 | N129: 75.17455204 | O129: 78.39394038 | P129: 82.61957229 | Q129: 89.24245567 | R129: 89.72852103 | S129: 99.0143893 | T129: 96.81801938 | U129: 90.69122607 | V129: 83.67012467 | W129: 89.0354812 | BB129: No | BC129: N/A | BD129: N/A | BE129: N/A | BF129: N/A | BG129: N/A | BH129: N/A | BI129: N/A | BJ129: N/A | BK129: N/A | BL129: N/A | BM129: N/A | BN129: N/A | BO129: N/A | BP129: N/A | BQ129: N/A | BR129: N/A | BS129: N/A | BT129: N/A | BU129: N/A | BV129: N/A | BW129: N/A
A130: Manually calculated ratios | B130: Improved latrines
B131: Other
B132: Other
C133: NATIONAL wealth index quintile | H133: URBAN wealth index quintile | M133: RURAL wealth index quintile | R133: SUB-REGIONS: | BA133: Raw numbers of respondents: | BB133: Use of sanitation facilities | BC133: NATIONAL wealth index quintile | BH133: URBAN wealth index quintile | BM133: RURAL wealth index quintile | BR133: SUB-REGIONS:
A134: Percentage based on weighted population | C134: Poorest | D134: Poor | E134: Middle | F134: Rich | G134: Richest | H134: Poorest | I134: Poor | J134: Middle | K134: Rich | L134: Richest | M134: Poorest | N134: Poor | O134: Middle | P134: Rich | Q134: Richest | R134: Balochistan | S134: Gilgit Baltistan | T134: Islamabad (ICT) | U134: Khyber Pakhtunkhwa | V134: Punjab | W134: Sindh | BA134: Sanitation data, raw numbers (weighted) | BC134: Poorest | BD134: Poor | BE134: Middle | BF134: Rich | BG134: Richest | BH134: Poorest | BI134: Poor | BJ134: Middle | BK134: Rich | BL134: Richest | BM134: Poorest | BN134: Poor | BO134: Middle | BP134: Rich | BQ134: Richest | BR134: Balochistan | BS134: Gilgit Baltistan | BT134: Islamabad (ICT) | BU134: Khyber Pakhtunkhwa | BV134: Punjab | BW134: Sindh
A135: Sanitation type | B135: Sewer connection | C135: 4.103609828 | D135: 10.12544076 | E135: 24.18367094 | F135: 40.56948487 | G135: 64.60684395 | H135: 48.68347384 | I135: 67.96843414 | J135: 71.04539658 | K135: 74.45715366 | L135: 80.94596131 | M135: 1.81226661 | N135: 6.949349874 | O135: 9.150512816 | P135: 12.2712709 | Q135: 15.68433873 | R135: 5.213860811 | S135: 0.8138149125 | T135: 65.38762313 | U135: 10.0538178 | V135: 27.12035108 | W135: 48.50911622 | BA135: Sanitation type | BB135: Sewer connection | BC135: N/A | BD135: N/A | BE135: N/A | BF135: N/A | BG135: N/A | BH135: N/A | BI135: N/A | BJ135: N/A | BK135: N/A | BL135: N/A | BM135: N/A | BN135: N/A | BO135: N/A | BP135: N/A | BQ135: N/A | BR135: N/A | BS135: N/A | BT135: N/A | BU135: N/A | BV135: N/A | BW135: N/A
B136: Septic tank connection | C136: 3.484928861 | D136: 13.81139689 | E136: 27.37863297 | F136: 33.78480418 | G136: 21.51233388 | H136: 15.14877665 | I136: 16.22039572 | J136: 18.15549272 | K136: 15.91598816 | L136: 12.2578271 | M136: 2.061198188 | N136: 6.804955846 | O136: 20.00048946 | P136: 34.12317316 | Q136: 47.94532997 | R136: 7.916452254 | S136: 0.6304384395 | T136: 13.46418371 | U136: 20.01876018 | V136: 28.27541992 | W136: 3.298979451 | BB136: Septic tank connection | BC136: N/A | BD136: N/A | BE136: N/A | BF136: N/A | BG136: N/A | BH136: N/A | BI136: N/A | BJ136: N/A | BK136: N/A | BL136: N/A | BM136: N/A | BN136: N/A | BO136: N/A | BP136: N/A | BQ136: N/A | BR136: N/A | BS136: N/A | BT136: N/A | BU136: N/A | BV136: N/A | BW136: N/A
B137: Improved latrines | C137: 17.78317245 | D137: 32.07963295 | E137: 30.74275631 | F137: 19.35872327 | G137: 10.3217697 | H137: 23.42610134 | I137: 12.15798519 | J137: 6.468629144 | K137: 6.687602219 | L137: 6.084759031 | M137: 14.32617715 | N137: 25.9652124 | O137: 35.39727739 | P137: 33.920432 | Q137: 27.90738491 | R137: 43.66450467 | S137: 81.31479082 | T137: 17.07470913 | U137: 41.45271953 | V137: 19.03144121 | W137: 11.63256744 | BB137: Improved latrines | BC137: N/A | BD137: N/A | BE137: N/A | BF137: N/A | BG137: N/A | BH137: N/A | BI137: N/A | BJ137: N/A | BK137: N/A | BL137: N/A | BM137: N/A | BN137: N/A | BO137: N/A | BP137: N/A | BQ137: N/A | BR137: N/A | BS137: N/A | BT137: N/A | BU137: N/A | BV137: N/A | BW137: N/A
B138: Unimproved facilities | C138: 11.02860881 | D138: 12.89050123 | E138: 7.961551581 | F138: 4.985870471 | G138: 3.280052455 | H138: 10.11479995 | I138: 3.601211397 | J138: 4.074952968 | K138: 2.939255959 | L138: 0.7114525588 | M138: 10.23444935 | N138: 12.41980647 | O138: 11.63919752 | P138: 8.649399374 | Q138: 6.371201555 | R138: 14.7082516 | S138: 9.704176087 | T138: 3.301465221 | U138: 8.015114544 | V138: 6.846929568 | W138: 9.615970039 | BB138: Unimproved facilities | BC138: N/A | BD138: N/A | BE138: N/A | BF138: N/A | BG138: N/A | BH138: N/A | BI138: N/A | BJ138: N/A | BK138: N/A | BL138: N/A | BM138: N/A | BN138: N/A | BO138: N/A | BP138: N/A | BQ138: N/A | BR138: N/A | BS138: N/A | BT138: N/A | BU138: N/A | BV138: N/A | BW138: N/A
B139: Open defecation | C139: 63.59968005 | D139: 31.09302817 | E139: 9.733388195 | F139: 1.3011172 | G139: 0.2790000189 | H139: 2.626848208 | I139: 0.05197355726 | J139: 0.255528582 | K139: 0 | L139: 0 | M139: 71.5659087 | N139: 47.86067541 | O139: 23.81252281 | P139: 11.03572457 | Q139: 2.091744841 | R139: 28.49693067 | S139: 7.536779739 | T139: 0.7720187998 | U139: 20.45958795 | V139: 18.72585823 | W139: 26.94336684 | BB139: Open defecation | BC139: N/A | BD139: N/A | BE139: N/A | BF139: N/A | BG139: N/A | BH139: N/A | BI139: N/A | BJ139: N/A | BK139: N/A | BL139: N/A | BM139: N/A | BN139: N/A | BO139: N/A | BP139: N/A | BQ139: N/A | BR139: N/A | BS139: N/A | BT139: N/A | BU139: N/A | BV139: N/A | BW139: N/A
A140: Septic tank emptying practices | B140: Not emptied/treated and disposed in situ | C140: N/A | D140: N/A | E140: N/A | F140: N/A | G140: N/A | H140: N/A | I140: N/A | J140: N/A | K140: N/A | L140: N/A | M140: N/A | N140: N/A | O140: N/A | P140: N/A | Q140: N/A | R140: N/A | S140: N/A | T140: N/A | U140: N/A | V140: N/A | W140: N/A | BA140: Septic tank emptying practices | BB140: Not emptied/treated and disposed in situ | BC140: N/A | BD140: N/A | BE140: N/A | BF140: N/A | BG140: N/A | BH140: N/A | BI140: N/A | BJ140: N/A | BK140: N/A | BL140: N/A | BM140: N/A | BN140: N/A | BO140: N/A | BP140: N/A | BQ140: N/A | BR140: N/A | BS140: N/A | BT140: N/A | BU140: N/A | BV140: N/A | BW140: N/A
B141: Emptied and buried on site | C141: N/A | D141: N/A | E141: N/A | F141: N/A | G141: N/A | H141: N/A | I141: N/A | J141: N/A | K141: N/A | L141: N/A | M141: N/A | N141: N/A | O141: N/A | P141: N/A | Q141: N/A | R141: N/A | S141: N/A | T141: N/A | U141: N/A | V141: N/A | W141: N/A | BB141: Emptied and buried on site | BC141: N/A | BD141: N/A | BE141: N/A | BF141: N/A | BG141: N/A | BH141: N/A | BI141: N/A | BJ141: N/A | BK141: N/A | BL141: N/A | BM141: N/A | BN141: N/A | BO141: N/A | BP141: N/A | BQ141: N/A | BR141: N/A | BS141: N/A | BT141: N/A | BU141: N/A | BV141: N/A | BW141: N/A
B142: Emptied and discharged locally | C142: N/A | D142: N/A | E142: N/A | F142: N/A | G142: N/A | H142: N/A | I142: N/A | J142: N/A | K142: N/A | L142: N/A | M142: N/A | N142: N/A | O142: N/A | P142: N/A | Q142: N/A | R142: N/A | S142: N/A | T142: N/A | U142: N/A | V142: N/A | W142: N/A | BB142: Emptied and discharged locally | BC142: N/A | BD142: N/A | BE142: N/A | BF142: N/A | BG142: N/A | BH142: N/A | BI142: N/A | BJ142: N/A | BK142: N/A | BL142: N/A | BM142: N/A | BN142: N/A | BO142: N/A | BP142: N/A | BQ142: N/A | BR142: N/A | BS142: N/A | BT142: N/A | BU142: N/A | BV142: N/A | BW142: N/A
B143: Emptied and removed offsite | C143: N/A | D143: N/A | E143: N/A | F143: N/A | G143: N/A | H143: N/A | I143: N/A | J143: N/A | K143: N/A | L143: N/A | M143: N/A | N143: N/A | O143: N/A | P143: N/A | Q143: N/A | R143: N/A | S143: N/A | T143: N/A | U143: N/A | V143: N/A | W143: N/A | BB143: Emptied and removed offsite | BC143: N/A | BD143: N/A | BE143: N/A | BF143: N/A | BG143: N/A | BH143: N/A | BI143: N/A | BJ143: N/A | BK143: N/A | BL143: N/A | BM143: N/A | BN143: N/A | BO143: N/A | BP143: N/A | BQ143: N/A | BR143: N/A | BS143: N/A | BT143: N/A | BU143: N/A | BV143: N/A | BW143: N/A
A144: Latrine emptying practices | B144: Not emptied/treated and disposed in situ | C144: N/A | D144: N/A | E144: N/A | F144: N/A | G144: N/A | H144: N/A | I144: N/A | J144: N/A | K144: N/A | L144: N/A | M144: N/A | N144: N/A | O144: N/A | P144: N/A | Q144: N/A | R144: N/A | S144: N/A | T144: N/A | U144: N/A | V144: N/A | W144: N/A | BA144: Latrine emptying practices | BB144: Not emptied/treated and disposed in situ | BC144: N/A | BD144: N/A | BE144: N/A | BF144: N/A | BG144: N/A | BH144: N/A | BI144: N/A | BJ144: N/A | BK144: N/A | BL144: N/A | BM144: N/A | BN144: N/A | BO144: N/A | BP144: N/A | BQ144: N/A | BR144: N/A | BS144: N/A | BT144: N/A | BU144: N/A | BV144: N/A | BW144: N/A
B145: Emptied and buried on site | C145: N/A | D145: N/A | E145: N/A | F145: N/A | G145: N/A | H145: N/A | I145: N/A | J145: N/A | K145: N/A | L145: N/A | M145: N/A | N145: N/A | O145: N/A | P145: N/A | Q145: N/A | R145: N/A | S145: N/A | T145: N/A | U145: N/A | V145: N/A | W145: N/A | BB145: Emptied and buried on site | BC145: N/A | BD145: N/A | BE145: N/A | BF145: N/A | BG145: N/A | BH145: N/A | BI145: N/A | BJ145: N/A | BK145: N/A | BL145: N/A | BM145: N/A | BN145: N/A | BO145: N/A | BP145: N/A | BQ145: N/A | BR145: N/A | BS145: N/A | BT145: N/A | BU145: N/A | BV145: N/A | BW145: N/A
B146: Emptied and discharged locally | C146: N/A | D146: N/A | E146: N/A | F146: N/A | G146: N/A | H146: N/A | I146: N/A | J146: N/A | K146: N/A | L146: N/A | M146: N/A | N146: N/A | O146: N/A | P146: N/A | Q146: N/A | R146: N/A | S146: N/A | T146: N/A | U146: N/A | V146: N/A | W146: N/A | BB146: Emptied and discharged locally | BC146: N/A | BD146: N/A | BE146: N/A | BF146: N/A | BG146: N/A | BH146: N/A | BI146: N/A | BJ146: N/A | BK146: N/A | BL146: N/A | BM146: N/A | BN146: N/A | BO146: N/A | BP146: N/A | BQ146: N/A | BR146: N/A | BS146: N/A | BT146: N/A | BU146: N/A | BV146: N/A | BW146: N/A
B147: Emptied and removed offsite | C147: N/A | D147: N/A | E147: N/A | F147: N/A | G147: N/A | H147: N/A | I147: N/A | J147: N/A | K147: N/A | L147: N/A | M147: N/A | N147: N/A | O147: N/A | P147: N/A | Q147: N/A | R147: N/A | S147: N/A | T147: N/A | U147: N/A | V147: N/A | W147: N/A | BB147: Emptied and removed offsite | BC147: N/A | BD147: N/A | BE147: N/A | BF147: N/A | BG147: N/A | BH147: N/A | BI147: N/A | BJ147: N/A | BK147: N/A | BL147: N/A | BM147: N/A | BN147: N/A | BO147: N/A | BP147: N/A | BQ147: N/A | BR147: N/A | BS147: N/A | BT147: N/A | BU147: N/A | BV147: N/A | BW147: N/A
A148: Shared among improved sanitation facilities | B148: Yes | C148: 7.313781445 | D148: 13.19943692 | E148: 14.56585472 | F148: 9.941943298 | G148: 3.488338904 | H148: 18.02396394 | I148: 9.829282248 | J148: 5.56555478 | K148: 3.798547769 | L148: 1.431316987 | M148: 5.906269692 | N148: 9.774761289 | O148: 13.93595398 | P148: 13.94008588 | Q148: 9.806354361 | R148: 5.799803729 | S148: 0.8136171889 | T148: 3.044528567 | U148: 6.635692978 | V148: 12.11863333 | W148: 6.955963433 | BA148: Shared among improved sanitation facilities | BB148: Yes | BC148: N/A | BD148: N/A | BE148: N/A | BF148: N/A | BG148: N/A | BH148: N/A | BI148: N/A | BJ148: N/A | BK148: N/A | BL148: N/A | BM148: N/A | BN148: N/A | BO148: N/A | BP148: N/A | BQ148: N/A | BR148: N/A | BS148: N/A | BT148: N/A | BU148: N/A | BV148: N/A | BW148: N/A
B149: No | C149: 18.00379226 | D149: 42.57939051 | E149: 67.64664892 | F149: 83.29668615 | G149: 92.94275941 | H149: 69.23398917 | I149: 86.47721866 | J149: 89.47435784 | K149: 93.25829261 | L149: 97.83115954 | M149: 12.22410095 | N149: 29.59919604 | O149: 50.56425673 | P149: 66.26556906 | Q149: 81.35157217 | R149: 50.66532407 | S149: 81.73593205 | T149: 92.63577025 | U149: 64.64859248 | V149: 62.09279256 | W149: 56.48469969 | BB149: No | BC149: N/A | BD149: N/A | BE149: N/A | BF149: N/A | BG149: N/A | BH149: N/A | BI149: N/A | BJ149: N/A | BK149: N/A | BL149: N/A | BM149: N/A | BN149: N/A | BO149: N/A | BP149: N/A | BQ149: N/A | BR149: N/A | BS149: N/A | BT149: N/A | BU149: N/A | BV149: N/A | BW149: N/A
